Workbook

Sheet 2024
J1: Приложение №2
J2: к Порядку составления, утверждения
J3: и ведения бюджетных смет Администрации
J4: Прионежского муниципального района
J5: и казенных учреждений, находящихся
J6: в ведении Администрации Прионежского
J7: муниципального района
J8: от 30 декабря 2022 № 1390
F9: УТВЕРЖДАЮ
F10: И.О.Главы Администрации Прионежского муниципального района
F11: (наименование должности лица, согласующего бюджетную смету)
F13: Администрация Прионежского муниципального района
F14: (наименование главного распорядителя (распорядителя) бюджетных средств; учреждения)
I16: Е.А. Кондратьева
F17: (подпись) (расшифровка подписи)
H19: 19 декабря 2023
B21: БЮДЖЕТНАЯ СМЕТА НА 2024 ФИНАНСОВЫЙ ГОД И ПЛАНОВЫЙ ПЕРИОД 2025 и 2026 ГОДОВ
B24: СПРАВКА 015/00406/001 от 19 декабря 2023 г. | J24: КОДЫ | U24: СПРАВКА 015/00406/001 от 20 декабря 2022 г. | AK24: СПРАВКА 015/00406/001 от 20 декабря 2022 г. | BA24: СПРАВКА 015/00406/001 от 20 декабря 2022 г. | BQ24: СПРАВКА 015/00406/001 от 20 декабря 2022 г. | CG24: СПРАВКА 015/00406/001 от 20 декабря 2022 г. | CW24: СПРАВКА 015/00406/001 от 20 декабря 2022 г. | DM24: СПРАВКА 015/00406/001 от 20 декабря 2022 г. | EC24: СПРАВКА 015/00406/001 от 20 декабря 2022 г. | ES24: СПРАВКА 015/00406/001 от 20 декабря 2022 г. | FI24: СПРАВКА 015/00406/001 от 20 декабря 2022 г. | FY24: СПРАВКА 015/00406/001 от 20 декабря 2022 г. | GO24: СПРАВКА 015/00406/001 от 20 декабря 2022 г. | HE24: СПРАВКА 015/00406/001 от 20 декабря 2022 г. | HU24: СПРАВКА 015/00406/001 от 20 декабря 2022 г. | IK24: СПРАВКА 015/00406/001 от 20 декабря 2022 г. | JA24: СПРАВКА 015/00406/001 от 20 декабря 2022 г. | JQ24: СПРАВКА 015/00406/001 от 20 декабря 2022 г. | KG24: СПРАВКА 015/00406/001 от 20 декабря 2022 г. | KW24: СПРАВКА 015/00406/001 от 20 декабря 2022 г. | LM24: СПРАВКА 015/00406/001 от 20 декабря 2022 г. | MC24: СПРАВКА 015/00406/001 от 20 декабря 2022 г. | MS24: СПРАВКА 015/00406/001 от 20 декабря 2022 г. | NI24: СПРАВКА 015/00406/001 от 20 декабря 2022 г. | NY24: СПРАВКА 015/00406/001 от 20 декабря 2022 г. | OO24: СПРАВКА 015/00406/001 от 20 декабря 2022 г. | PE24: СПРАВКА 015/00406/001 от 20 декабря 2022 г. | PU24: СПРАВКА 015/00406/001 от 20 декабря 2022 г. | QK24: СПРАВКА 015/00406/001 от 20 декабря 2022 г. | RA24: СПРАВКА 015/00406/001 от 20 декабря 2022 г. | RQ24: СПРАВКА 015/00406/001 от 20 декабря 2022 г. | SG24: СПРАВКА 015/00406/001 от 20 декабря 2022 г. | SW24: СПРАВКА 015/00406/001 от 20 декабря 2022 г. | TM24: СПРАВКА 015/00406/001 от 20 декабря 2022 г. | UC24: СПРАВКА 015/00406/001 от 20 декабря 2022 г. | US24: СПРАВКА 015/00406/001 от 20 декабря 2022 г. | VI24: СПРАВКА 015/00406/001 от 20 декабря 2022 г. | VY24: СПРАВКА 015/00406/001 от 20 декабря 2022 г. | WO24: СПРАВКА 015/00406/001 от 20 декабря 2022 г. | XE24: СПРАВКА 015/00406/001 от 20 декабря 2022 г. | XU24: СПРАВКА 015/00406/001 от 20 декабря 2022 г. | YK24: СПРАВКА 015/00406/001 от 20 декабря 2022 г. | ZA24: СПРАВКА 015/00406/001 от 20 декабря 2022 г. | ZQ24: СПРАВКА 015/00406/001 от 20 декабря 2022 г. | AAG24: СПРАВКА 015/00406/001 от 20 декабря 2022 г. | AAW24: СПРАВКА 015/00406/001 от 20 декабря 2022 г. | ABM24: СПРАВКА 015/00406/001 от 20 декабря 2022 г. | ACC24: СПРАВКА 015/00406/001 от 20 декабря 2022 г. | ACS24: СПРАВКА 015/00406/001 от 20 декабря 2022 г. | ADI24: СПРАВКА 015/00406/001 от 20 декабря 2022 г. | ADY24: СПРАВКА 015/00406/001 от 20 декабря 2022 г. | AEO24: СПРАВКА 015/00406/001 от 20 декабря 2022 г. | AFE24: СПРАВКА 015/00406/001 от 20 декабря 2022 г. | AFU24: СПРАВКА 015/00406/001 от 20 декабря 2022 г. | AGK24: СПРАВКА 015/00406/001 от 20 декабря 2022 г. | AHA24: СПРАВКА 015/00406/001 от 20 декабря 2022 г. | AHQ24: СПРАВКА 015/00406/001 от 20 декабря 2022 г. | AIG24: СПРАВКА 015/00406/001 от 20 декабря 2022 г. | AIW24: СПРАВКА 015/00406/001 от 20 декабря 2022 г. | AJM24: СПРАВКА 015/00406/001 от 20 декабря 2022 г. | AKC24: СПРАВКА 015/00406/001 от 20 декабря 2022 г. | AKS24: СПРАВКА 015/00406/001 от 20 декабря 2022 г. | ALI24: СПРАВКА 015/00406/001 от 20 декабря 2022 г. | ALY24: СПРАВКА 015/00406/001 от 20 декабря 2022 г. | AMO24: СПРАВКА 015/00406/001 от 20 декабря 2022 г. | ANE24: СПРАВКА 015/00406/001 от 20 декабря 2022 г. | ANU24: СПРАВКА 015/00406/001 от 20 декабря 2022 г. | AOK24: СПРАВКА 015/00406/001 от 20 декабря 2022 г. | APA24: СПРАВКА 015/00406/001 от 20 декабря 2022 г. | APQ24: СПРАВКА 015/00406/001 от 20 декабря 2022 г. | AQG24: СПРАВКА 015/00406/001 от 20 декабря 2022 г. | AQW24: СПРАВКА 015/00406/001 от 20 декабря 2022 г. | ARM24: СПРАВКА 015/00406/001 от 20 декабря 2022 г. | ASC24: СПРАВКА 015/00406/001 от 20 декабря 2022 г. | ASS24: СПРАВКА 015/00406/001 от 20 декабря 2022 г. | ATI24: СПРАВКА 015/00406/001 от 20 декабря 2022 г. | ATY24: СПРАВКА 015/00406/001 от 20 декабря 2022 г. | AUO24: СПРАВКА 015/00406/001 от 20 декабря 2022 г. | AVE24: СПРАВКА 015/00406/001 от 20 декабря 2022 г. | AVU24: СПРАВКА 015/00406/001 от 20 декабря 2022 г. | AWK24: СПРАВКА 015/00406/001 от 20 декабря 2022 г. | AXA24: СПРАВКА 015/00406/001 от 20 декабря 2022 г. | AXQ24: СПРАВКА 015/00406/001 от 20 декабря 2022 г. | AYG24: СПРАВКА 015/00406/001 от 20 декабря 2022 г. | AYW24: СПРАВКА 015/00406/001 от 20 декабря 2022 г. | AZM24: СПРАВКА 015/00406/001 от 20 декабря 2022 г. | BAC24: СПРАВКА 015/00406/001 от 20 декабря 2022 г. | BAS24: СПРАВКА 015/00406/001 от 20 декабря 2022 г. | BBI24: СПРАВКА 015/00406/001 от 20 декабря 2022 г. | BBY24: СПРАВКА 015/00406/001 от 20 декабря 2022 г. | BCO24: СПРАВКА 015/00406/001 от 20 декабря 2022 г. | BDE24: СПРАВКА 015/00406/001 от 20 декабря 2022 г. | BDU24: СПРАВКА 015/00406/001 от 20 декабря 2022 г. | BEK24: СПРАВКА 015/00406/001 от 20 декабря 2022 г. | BFA24: СПРАВКА 015/00406/001 от 20 декабря 2022 г. | BFQ24: СПРАВКА 015/00406/001 от 20 декабря 2022 г. | BGG24: СПРАВКА 015/00406/001 от 20 декабря 2022 г. | BGW24: СПРАВКА 015/00406/001 от 20 декабря 2022 г. | BHM24: СПРАВКА 015/00406/001 от 20 декабря 2022 г. | BIC24: СПРАВКА 015/00406/001 от 20 декабря 2022 г. | BIS24: СПРАВКА 015/00406/001 от 20 декабря 2022 г. | BJI24: СПРАВКА 015/00406/001 от 20 декабря 2022 г. | BJY24: СПРАВКА 015/00406/001 от 20 декабря 2022 г. | BKO24: СПРАВКА 015/00406/001 от 20 декабря 2022 г. | BLE24: СПРАВКА 015/00406/001 от 20 декабря 2022 г. | BLU24: СПРАВКА 015/00406/001 от 20 декабря 2022 г. | BMK24: СПРАВКА 015/00406/001 от 20 декабря 2022 г. | BNA24: СПРАВКА 015/00406/001 от 20 декабря 2022 г. | BNQ24: СПРАВКА 015/00406/001 от 20 декабря 2022 г. | BOG24: СПРАВКА 015/00406/001 от 20 декабря 2022 г. | BOW24: СПРАВКА 015/00406/001 от 20 декабря 2022 г. | BPM24: СПРАВКА 015/00406/001 от 20 декабря 2022 г. | BQC24: СПРАВКА 015/00406/001 от 20 декабря 2022 г. | BQS24: СПРАВКА 015/00406/001 от 20 декабря 2022 г. | BRI24: СПРАВКА 015/00406/001 от 20 декабря 2022 г. | BRY24: СПРАВКА 015/00406/001 от 20 декабря 2022 г. | BSO24: СПРАВКА 015/00406/001 от 20 декабря 2022 г. | BTE24: СПРАВКА 015/00406/001 от 20 декабря 2022 г. | BTU24: СПРАВКА 015/00406/001 от 20 декабря 2022 г. | BUK24: СПРАВКА 015/00406/001 от 20 декабря 2022 г. | BVA24: СПРАВКА 015/00406/001 от 20 декабря 2022 г. | BVQ24: СПРАВКА 015/00406/001 от 20 декабря 2022 г. | BWG24: СПРАВКА 015/00406/001 от 20 декабря 2022 г. | BWW24: СПРАВКА 015/00406/001 от 20 декабря 2022 г. | BXM24: СПРАВКА 015/00406/001 от 20 декабря 2022 г. | BYC24: СПРАВКА 015/00406/001 от 20 декабря 2022 г. | BYS24: СПРАВКА 015/00406/001 от 20 декабря 2022 г. | BZI24: СПРАВКА 015/00406/001 от 20 декабря 2022 г. | BZY24: СПРАВКА 015/00406/001 от 20 декабря 2022 г. | CAO24: СПРАВКА 015/00406/001 от 20 декабря 2022 г. | CBE24: СПРАВКА 015/00406/001 от 20 декабря 2022 г. | CBU24: СПРАВКА 015/00406/001 от 20 декабря 2022 г. | CCK24: СПРАВКА 015/00406/001 от 20 декабря 2022 г. | CDA24: СПРАВКА 015/00406/001 от 20 декабря 2022 г. | CDQ24: СПРАВКА 015/00406/001 от 20 декабря 2022 г. | CEG24: СПРАВКА 015/00406/001 от 20 декабря 2022 г. | CEW24: СПРАВКА 015/00406/001 от 20 декабря 2022 г. | CFM24: СПРАВКА 015/00406/001 от 20 декабря 2022 г. | CGC24: СПРАВКА 015/00406/001 от 20 декабря 2022 г. | CGS24: СПРАВКА 015/00406/001 от 20 декабря 2022 г. | CHI24: СПРАВКА 015/00406/001 от 20 декабря 2022 г. | CHY24: СПРАВКА 015/00406/001 от 20 декабря 2022 г. | CIO24: СПРАВКА 015/00406/001 от 20 декабря 2022 г. | CJE24: СПРАВКА 015/00406/001 от 20 декабря 2022 г. | CJU24: СПРАВКА 015/00406/001 от 20 декабря 2022 г. | CKK24: СПРАВКА 015/00406/001 от 20 декабря 2022 г. | CLA24: СПРАВКА 015/00406/001 от 20 декабря 2022 г. | CLQ24: СПРАВКА 015/00406/001 от 20 декабря 2022 г. | CMG24: СПРАВКА 015/00406/001 от 20 декабря 2022 г. | CMW24: СПРАВКА 015/00406/001 от 20 декабря 2022 г. | CNM24: СПРАВКА 015/00406/001 от 20 декабря 2022 г. | COC24: СПРАВКА 015/00406/001 от 20 декабря 2022 г. | COS24: СПРАВКА 015/00406/001 от 20 декабря 2022 г. | CPI24: СПРАВКА 015/00406/001 от 20 декабря 2022 г. | CPY24: СПРАВКА 015/00406/001 от 20 декабря 2022 г. | CQO24: СПРАВКА 015/00406/001 от 20 декабря 2022 г. | CRE24: СПРАВКА 015/00406/001 от 20 декабря 2022 г. | CRU24: СПРАВКА 015/00406/001 от 20 декабря 2022 г. | CSK24: СПРАВКА 015/00406/001 от 20 декабря 2022 г. | CTA24: СПРАВКА 015/00406/001 от 20 декабря 2022 г. | CTQ24: СПРАВКА 015/00406/001 от 20 декабря 2022 г. | CUG24: СПРАВКА 015/00406/001 от 20 декабря 2022 г. | CUW24: СПРАВКА 015/00406/001 от 20 декабря 2022 г. | CVM24: СПРАВКА 015/00406/001 от 20 декабря 2022 г. | CWC24: СПРАВКА 015/00406/001 от 20 декабря 2022 г. | CWS24: СПРАВКА 015/00406/001 от 20 декабря 2022 г. | CXI24: СПРАВКА 015/00406/001 от 20 декабря 2022 г. | CXY24: СПРАВКА 015/00406/001 от 20 декабря 2022 г. | CYO24: СПРАВКА 015/00406/001 от 20 декабря 2022 г. | CZE24: СПРАВКА 015/00406/001 от 20 декабря 2022 г. | CZU24: СПРАВКА 015/00406/001 от 20 декабря 2022 г. | DAK24: СПРАВКА 015/00406/001 от 20 декабря 2022 г. | DBA24: СПРАВКА 015/00406/001 от 20 декабря 2022 г. | DBQ24: СПРАВКА 015/00406/001 от 20 декабря 2022 г. | DCG24: СПРАВКА 015/00406/001 от 20 декабря 2022 г. | DCW24: СПРАВКА 015/00406/001 от 20 декабря 2022 г. | DDM24: СПРАВКА 015/00406/001 от 20 декабря 2022 г. | DEC24: СПРАВКА 015/00406/001 от 20 декабря 2022 г. | DES24: СПРАВКА 015/00406/001 от 20 декабря 2022 г. | DFI24: СПРАВКА 015/00406/001 от 20 декабря 2022 г. | DFY24: СПРАВКА 015/00406/001 от 20 декабря 2022 г. | DGO24: СПРАВКА 015/00406/001 от 20 декабря 2022 г. | DHE24: СПРАВКА 015/00406/001 от 20 декабря 2022 г. | DHU24: СПРАВКА 015/00406/001 от 20 декабря 2022 г. | DIK24: СПРАВКА 015/00406/001 от 20 декабря 2022 г. | DJA24: СПРАВКА 015/00406/001 от 20 декабря 2022 г. | DJQ24: СПРАВКА 015/00406/001 от 20 декабря 2022 г. | DKG24: СПРАВКА 015/00406/001 от 20 декабря 2022 г. | DKW24: СПРАВКА 015/00406/001 от 20 декабря 2022 г. | DLM24: СПРАВКА 015/00406/001 от 20 декабря 2022 г. | DMC24: СПРАВКА 015/00406/001 от 20 декабря 2022 г. | DMS24: СПРАВКА 015/00406/001 от 20 декабря 2022 г. | DNI24: СПРАВКА 015/00406/001 от 20 декабря 2022 г. | DNY24: СПРАВКА 015/00406/001 от 20 декабря 2022 г. | DOO24: СПРАВКА 015/00406/001 от 20 декабря 2022 г. | DPE24: СПРАВКА 015/00406/001 от 20 декабря 2022 г. | DPU24: СПРАВКА 015/00406/001 от 20 декабря 2022 г. | DQK24: СПРАВКА 015/00406/001 от 20 декабря 2022 г. | DRA24: СПРАВКА 015/00406/001 от 20 декабря 2022 г. | DRQ24: СПРАВКА 015/00406/001 от 20 декабря 2022 г. | DSG24: СПРАВКА 015/00406/001 от 20 декабря 2022 г. | DSW24: СПРАВКА 015/00406/001 от 20 декабря 2022 г. | DTM24: СПРАВКА 015/00406/001 от 20 декабря 2022 г. | DUC24: СПРАВКА 015/00406/001 от 20 декабря 2022 г. | DUS24: СПРАВКА 015/00406/001 от 20 декабря 2022 г. | DVI24: СПРАВКА 015/00406/001 от 20 декабря 2022 г. | DVY24: СПРАВКА 015/00406/001 от 20 декабря 2022 г. | DWO24: СПРАВКА 015/00406/001 от 20 декабря 2022 г. | DXE24: СПРАВКА 015/00406/001 от 20 декабря 2022 г. | DXU24: СПРАВКА 015/00406/001 от 20 декабря 2022 г. | DYK24: СПРАВКА 015/00406/001 от 20 декабря 2022 г. | DZA24: СПРАВКА 015/00406/001 от 20 декабря 2022 г. | DZQ24: СПРАВКА 015/00406/001 от 20 декабря 2022 г. | EAG24: СПРАВКА 015/00406/001 от 20 декабря 2022 г. | EAW24: СПРАВКА 015/00406/001 от 20 декабря 2022 г. | EBM24: СПРАВКА 015/00406/001 от 20 декабря 2022 г. | ECC24: СПРАВКА 015/00406/001 от 20 декабря 2022 г. | ECS24: СПРАВКА 015/00406/001 от 20 декабря 2022 г. | EDI24: СПРАВКА 015/00406/001 от 20 декабря 2022 г. | EDY24: СПРАВКА 015/00406/001 от 20 декабря 2022 г. | EEO24: СПРАВКА 015/00406/001 от 20 декабря 2022 г. | EFE24: СПРАВКА 015/00406/001 от 20 декабря 2022 г. | EFU24: СПРАВКА 015/00406/001 от 20 декабря 2022 г. | EGK24: СПРАВКА 015/00406/001 от 20 декабря 2022 г. | EHA24: СПРАВКА 015/00406/001 от 20 декабря 2022 г. | EHQ24: СПРАВКА 015/00406/001 от 20 декабря 2022 г. | EIG24: СПРАВКА 015/00406/001 от 20 декабря 2022 г. | EIW24: СПРАВКА 015/00406/001 от 20 декабря 2022 г. | EJM24: СПРАВКА 015/00406/001 от 20 декабря 2022 г. | EKC24: СПРАВКА 015/00406/001 от 20 декабря 2022 г. | EKS24: СПРАВКА 015/00406/001 от 20 декабря 2022 г. | ELI24: СПРАВКА 015/00406/001 от 20 декабря 2022 г. | ELY24: СПРАВКА 015/00406/001 от 20 декабря 2022 г. | EMO24: СПРАВКА 015/00406/001 от 20 декабря 2022 г. | ENE24: СПРАВКА 015/00406/001 от 20 декабря 2022 г. | ENU24: СПРАВКА 015/00406/001 от 20 декабря 2022 г. | EOK24: СПРАВКА 015/00406/001 от 20 декабря 2022 г. | EPA24: СПРАВКА 015/00406/001 от 20 декабря 2022 г. | EPQ24: СПРАВКА 015/00406/001 от 20 декабря 2022 г. | EQG24: СПРАВКА 015/00406/001 от 20 декабря 2022 г. | EQW24: СПРАВКА 015/00406/001 от 20 декабря 2022 г. | ERM24: СПРАВКА 015/00406/001 от 20 декабря 2022 г. | ESC24: СПРАВКА 015/00406/001 от 20 декабря 2022 г. | ESS24: СПРАВКА 015/00406/001 от 20 декабря 2022 г. | ETI24: СПРАВКА 015/00406/001 от 20 декабря 2022 г. | ETY24: СПРАВКА 015/00406/001 от 20 декабря 2022 г. | EUO24: СПРАВКА 015/00406/001 от 20 декабря 2022 г. | EVE24: СПРАВКА 015/00406/001 от 20 декабря 2022 г. | EVU24: СПРАВКА 015/00406/001 от 20 декабря 2022 г. | EWK24: СПРАВКА 015/00406/001 от 20 декабря 2022 г. | EXA24: СПРАВКА 015/00406/001 от 20 декабря 2022 г. | EXQ24: СПРАВКА 015/00406/001 от 20 декабря 2022 г. | EYG24: СПРАВКА 015/00406/001 от 20 декабря 2022 г. | EYW24: СПРАВКА 015/00406/001 от 20 декабря 2022 г. | EZM24: СПРАВКА 015/00406/001 от 20 декабря 2022 г. | FAC24: СПРАВКА 015/00406/001 от 20 декабря 2022 г. | FAS24: СПРАВКА 015/00406/001 от 20 декабря 2022 г. | FBI24: СПРАВКА 015/00406/001 от 20 декабря 2022 г. | FBY24: СПРАВКА 015/00406/001 от 20 декабря 2022 г. | FCO24: СПРАВКА 015/00406/001 от 20 декабря 2022 г. | FDE24: СПРАВКА 015/00406/001 от 20 декабря 2022 г. | FDU24: СПРАВКА 015/00406/001 от 20 декабря 2022 г. | FEK24: СПРАВКА 015/00406/001 от 20 декабря 2022 г. | FFA24: СПРАВКА 015/00406/001 от 20 декабря 2022 г. | FFQ24: СПРАВКА 015/00406/001 от 20 декабря 2022 г. | FGG24: СПРАВКА 015/00406/001 от 20 декабря 2022 г. | FGW24: СПРАВКА 015/00406/001 от 20 декабря 2022 г. | FHM24: СПРАВКА 015/00406/001 от 20 декабря 2022 г. | FIC24: СПРАВКА 015/00406/001 от 20 декабря 2022 г. | FIS24: СПРАВКА 015/00406/001 от 20 декабря 2022 г. | FJI24: СПРАВКА 015/00406/001 от 20 декабря 2022 г. | FJY24: СПРАВКА 015/00406/001 от 20 декабря 2022 г. | FKO24: СПРАВКА 015/00406/001 от 20 декабря 2022 г. | FLE24: СПРАВКА 015/00406/001 от 20 декабря 2022 г. | FLU24: СПРАВКА 015/00406/001 от 20 декабря 2022 г. | FMK24: СПРАВКА 015/00406/001 от 20 декабря 2022 г. | FNA24: СПРАВКА 015/00406/001 от 20 декабря 2022 г. | FNQ24: СПРАВКА 015/00406/001 от 20 декабря 2022 г. | FOG24: СПРАВКА 015/00406/001 от 20 декабря 2022 г. | FOW24: СПРАВКА 015/00406/001 от 20 декабря 2022 г. | FPM24: СПРАВКА 015/00406/001 от 20 декабря 2022 г. | FQC24: СПРАВКА 015/00406/001 от 20 декабря 2022 г. | FQS24: СПРАВКА 015/00406/001 от 20 декабря 2022 г. | FRI24: СПРАВКА 015/00406/001 от 20 декабря 2022 г. | FRY24: СПРАВКА 015/00406/001 от 20 декабря 2022 г. | FSO24: СПРАВКА 015/00406/001 от 20 декабря 2022 г. | FTE24: СПРАВКА 015/00406/001 от 20 декабря 2022 г. | FTU24: СПРАВКА 015/00406/001 от 20 декабря 2022 г. | FUK24: СПРАВКА 015/00406/001 от 20 декабря 2022 г. | FVA24: СПРАВКА 015/00406/001 от 20 декабря 2022 г. | FVQ24: СПРАВКА 015/00406/001 от 20 декабря 2022 г. | FWG24: СПРАВКА 015/00406/001 от 20 декабря 2022 г. | FWW24: СПРАВКА 015/00406/001 от 20 декабря 2022 г. | FXM24: СПРАВКА 015/00406/001 от 20 декабря 2022 г. | FYC24: СПРАВКА 015/00406/001 от 20 декабря 2022 г. | FYS24: СПРАВКА 015/00406/001 от 20 декабря 2022 г. | FZI24: СПРАВКА 015/00406/001 от 20 декабря 2022 г. | FZY24: СПРАВКА 015/00406/001 от 20 декабря 2022 г. | GAO24: СПРАВКА 015/00406/001 от 20 декабря 2022 г. | GBE24: СПРАВКА 015/00406/001 от 20 декабря 2022 г. | GBU24: СПРАВКА 015/00406/001 от 20 декабря 2022 г. | GCK24: СПРАВКА 015/00406/001 от 20 декабря 2022 г. | GDA24: СПРАВКА 015/00406/001 от 20 декабря 2022 г. | GDQ24: СПРАВКА 015/00406/001 от 20 декабря 2022 г. | GEG24: СПРАВКА 015/00406/001 от 20 декабря 2022 г. | GEW24: СПРАВКА 015/00406/001 от 20 декабря 2022 г. | GFM24: СПРАВКА 015/00406/001 от 20 декабря 2022 г. | GGC24: СПРАВКА 015/00406/001 от 20 декабря 2022 г. | GGS24: СПРАВКА 015/00406/001 от 20 декабря 2022 г. | GHI24: СПРАВКА 015/00406/001 от 20 декабря 2022 г. | GHY24: СПРАВКА 015/00406/001 от 20 декабря 2022 г. | GIO24: СПРАВКА 015/00406/001 от 20 декабря 2022 г. | GJE24: СПРАВКА 015/00406/001 от 20 декабря 2022 г. | GJU24: СПРАВКА 015/00406/001 от 20 декабря 2022 г. | GKK24: СПРАВКА 015/00406/001 от 20 декабря 2022 г. | GLA24: СПРАВКА 015/00406/001 от 20 декабря 2022 г. | GLQ24: СПРАВКА 015/00406/001 от 20 декабря 2022 г. | GMG24: СПРАВКА 015/00406/001 от 20 декабря 2022 г. | GMW24: СПРАВКА 015/00406/001 от 20 декабря 2022 г. | GNM24: СПРАВКА 015/00406/001 от 20 декабря 2022 г. | GOC24: СПРАВКА 015/00406/001 от 20 декабря 2022 г. | GOS24: СПРАВКА 015/00406/001 от 20 декабря 2022 г. | GPI24: СПРАВКА 015/00406/001 от 20 декабря 2022 г. | GPY24: СПРАВКА 015/00406/001 от 20 декабря 2022 г. | GQO24: СПРАВКА 015/00406/001 от 20 декабря 2022 г. | GRE24: СПРАВКА 015/00406/001 от 20 декабря 2022 г. | GRU24: СПРАВКА 015/00406/001 от 20 декабря 2022 г. | GSK24: СПРАВКА 015/00406/001 от 20 декабря 2022 г. | GTA24: СПРАВКА 015/00406/001 от 20 декабря 2022 г. | GTQ24: СПРАВКА 015/00406/001 от 20 декабря 2022 г. | GUG24: СПРАВКА 015/00406/001 от 20 декабря 2022 г. | GUW24: СПРАВКА 015/00406/001 от 20 декабря 2022 г. | GVM24: СПРАВКА 015/00406/001 от 20 декабря 2022 г. | GWC24: СПРАВКА 015/00406/001 от 20 декабря 2022 г. | GWS24: СПРАВКА 015/00406/001 от 20 декабря 2022 г. | GXI24: СПРАВКА 015/00406/001 от 20 декабря 2022 г. | GXY24: СПРАВКА 015/00406/001 от 20 декабря 2022 г. | GYO24: СПРАВКА 015/00406/001 от 20 декабря 2022 г. | GZE24: СПРАВКА 015/00406/001 от 20 декабря 2022 г. | GZU24: СПРАВКА 015/00406/001 от 20 декабря 2022 г. | HAK24: СПРАВКА 015/00406/001 от 20 декабря 2022 г. | HBA24: СПРАВКА 015/00406/001 от 20 декабря 2022 г. | HBQ24: СПРАВКА 015/00406/001 от 20 декабря 2022 г. | HCG24: СПРАВКА 015/00406/001 от 20 декабря 2022 г. | HCW24: СПРАВКА 015/00406/001 от 20 декабря 2022 г. | HDM24: СПРАВКА 015/00406/001 от 20 декабря 2022 г. | HEC24: СПРАВКА 015/00406/001 от 20 декабря 2022 г. | HES24: СПРАВКА 015/00406/001 от 20 декабря 2022 г. | HFI24: СПРАВКА 015/00406/001 от 20 декабря 2022 г. | HFY24: СПРАВКА 015/00406/001 от 20 декабря 2022 г. | HGO24: СПРАВКА 015/00406/001 от 20 декабря 2022 г. | HHE24: СПРАВКА 015/00406/001 от 20 декабря 2022 г. | HHU24: СПРАВКА 015/00406/001 от 20 декабря 2022 г. | HIK24: СПРАВКА 015/00406/001 от 20 декабря 2022 г. | HJA24: СПРАВКА 015/00406/001 от 20 декабря 2022 г. | HJQ24: СПРАВКА 015/00406/001 от 20 декабря 2022 г. | HKG24: СПРАВКА 015/00406/001 от 20 декабря 2022 г. | HKW24: СПРАВКА 015/00406/001 от 20 декабря 2022 г. | HLM24: СПРАВКА 015/00406/001 от 20 декабря 2022 г. | HMC24: СПРАВКА 015/00406/001 от 20 декабря 2022 г. | HMS24: СПРАВКА 015/00406/001 от 20 декабря 2022 г. | HNI24: СПРАВКА 015/00406/001 от 20 декабря 2022 г. | HNY24: СПРАВКА 015/00406/001 от 20 декабря 2022 г. | HOO24: СПРАВКА 015/00406/001 от 20 декабря 2022 г. | HPE24: СПРАВКА 015/00406/001 от 20 декабря 2022 г. | HPU24: СПРАВКА 015/00406/001 от 20 декабря 2022 г. | HQK24: СПРАВКА 015/00406/001 от 20 декабря 2022 г. | HRA24: СПРАВКА 015/00406/001 от 20 декабря 2022 г. | HRQ24: СПРАВКА 015/00406/001 от 20 декабря 2022 г. | HSG24: СПРАВКА 015/00406/001 от 20 декабря 2022 г. | HSW24: СПРАВКА 015/00406/001 от 20 декабря 2022 г. | HTM24: СПРАВКА 015/00406/001 от 20 декабря 2022 г. | HUC24: СПРАВКА 015/00406/001 от 20 декабря 2022 г. | HUS24: СПРАВКА 015/00406/001 от 20 декабря 2022 г. | HVI24: СПРАВКА 015/00406/001 от 20 декабря 2022 г. | HVY24: СПРАВКА 015/00406/001 от 20 декабря 2022 г. | HWO24: СПРАВКА 015/00406/001 от 20 декабря 2022 г. | HXE24: СПРАВКА 015/00406/001 от 20 декабря 2022 г. | HXU24: СПРАВКА 015/00406/001 от 20 декабря 2022 г. | HYK24: СПРАВКА 015/00406/001 от 20 декабря 2022 г. | HZA24: СПРАВКА 015/00406/001 от 20 декабря 2022 г. | HZQ24: СПРАВКА 015/00406/001 от 20 декабря 2022 г. | IAG24: СПРАВКА 015/00406/001 от 20 декабря 2022 г. | IAW24: СПРАВКА 015/00406/001 от 20 декабря 2022 г. | IBM24: СПРАВКА 015/00406/001 от 20 декабря 2022 г. | ICC24: СПРАВКА 015/00406/001 от 20 декабря 2022 г. | ICS24: СПРАВКА 015/00406/001 от 20 декабря 2022 г. | IDI24: СПРАВКА 015/00406/001 от 20 декабря 2022 г. | IDY24: СПРАВКА 015/00406/001 от 20 декабря 2022 г. | IEO24: СПРАВКА 015/00406/001 от 20 декабря 2022 г. | IFE24: СПРАВКА 015/00406/001 от 20 декабря 2022 г. | IFU24: СПРАВКА 015/00406/001 от 20 декабря 2022 г. | IGK24: СПРАВКА 015/00406/001 от 20 декабря 2022 г. | IHA24: СПРАВКА 015/00406/001 от 20 декабря 2022 г. | IHQ24: СПРАВКА 015/00406/001 от 20 декабря 2022 г. | IIG24: СПРАВКА 015/00406/001 от 20 декабря 2022 г. | IIW24: СПРАВКА 015/00406/001 от 20 декабря 2022 г. | IJM24: СПРАВКА 015/00406/001 от 20 декабря 2022 г. | IKC24: СПРАВКА 015/00406/001 от 20 декабря 2022 г. | IKS24: СПРАВКА 015/00406/001 от 20 декабря 2022 г. | ILI24: СПРАВКА 015/00406/001 от 20 декабря 2022 г. | ILY24: СПРАВКА 015/00406/001 от 20 декабря 2022 г. | IMO24: СПРАВКА 015/00406/001 от 20 декабря 2022 г. | INE24: СПРАВКА 015/00406/001 от 20 декабря 2022 г. | INU24: СПРАВКА 015/00406/001 от 20 декабря 2022 г. | IOK24: СПРАВКА 015/00406/001 от 20 декабря 2022 г. | IPA24: СПРАВКА 015/00406/001 от 20 декабря 2022 г. | IPQ24: СПРАВКА 015/00406/001 от 20 декабря 2022 г. | IQG24: СПРАВКА 015/00406/001 от 20 декабря 2022 г. | IQW24: СПРАВКА 015/00406/001 от 20 декабря 2022 г. | IRM24: СПРАВКА 015/00406/001 от 20 декабря 2022 г. | ISC24: СПРАВКА 015/00406/001 от 20 декабря 2022 г. | ISS24: СПРАВКА 015/00406/001 от 20 декабря 2022 г. | ITI24: СПРАВКА 015/00406/001 от 20 декабря 2022 г. | ITY24: СПРАВКА 015/00406/001 от 20 декабря 2022 г. | IUO24: СПРАВКА 015/00406/001 от 20 декабря 2022 г. | IVE24: СПРАВКА 015/00406/001 от 20 декабря 2022 г. | IVU24: СПРАВКА 015/00406/001 от 20 декабря 2022 г. | IWK24: СПРАВКА 015/00406/001 от 20 декабря 2022 г. | IXA24: СПРАВКА 015/00406/001 от 20 декабря 2022 г. | IXQ24: СПРАВКА 015/00406/001 от 20 декабря 2022 г. | IYG24: СПРАВКА 015/00406/001 от 20 декабря 2022 г. | IYW24: СПРАВКА 015/00406/001 от 20 декабря 2022 г. | IZM24: СПРАВКА 015/00406/001 от 20 декабря 2022 г. | JAC24: СПРАВКА 015/00406/001 от 20 декабря 2022 г. | JAS24: СПРАВКА 015/00406/001 от 20 декабря 2022 г. | JBI24: СПРАВКА 015/00406/001 от 20 декабря 2022 г. | JBY24: СПРАВКА 015/00406/001 от 20 декабря 2022 г. | JCO24: СПРАВКА 015/00406/001 от 20 декабря 2022 г. | JDE24: СПРАВКА 015/00406/001 от 20 декабря 2022 г. | JDU24: СПРАВКА 015/00406/001 от 20 декабря 2022 г. | JEK24: СПРАВКА 015/00406/001 от 20 декабря 2022 г. | JFA24: СПРАВКА 015/00406/001 от 20 декабря 2022 г. | JFQ24: СПРАВКА 015/00406/001 от 20 декабря 2022 г. | JGG24: СПРАВКА 015/00406/001 от 20 декабря 2022 г. | JGW24: СПРАВКА 015/00406/001 от 20 декабря 2022 г. | JHM24: СПРАВКА 015/00406/001 от 20 декабря 2022 г. | JIC24: СПРАВКА 015/00406/001 от 20 декабря 2022 г. | JIS24: СПРАВКА 015/00406/001 от 20 декабря 2022 г. | JJI24: СПРАВКА 015/00406/001 от 20 декабря 2022 г. | JJY24: СПРАВКА 015/00406/001 от 20 декабря 2022 г. | JKO24: СПРАВКА 015/00406/001 от 20 декабря 2022 г. | JLE24: СПРАВКА 015/00406/001 от 20 декабря 2022 г. | JLU24: СПРАВКА 015/00406/001 от 20 декабря 2022 г. | JMK24: СПРАВКА 015/00406/001 от 20 декабря 2022 г. | JNA24: СПРАВКА 015/00406/001 от 20 декабря 2022 г. | JNQ24: СПРАВКА 015/00406/001 от 20 декабря 2022 г. | JOG24: СПРАВКА 015/00406/001 от 20 декабря 2022 г. | JOW24: СПРАВКА 015/00406/001 от 20 декабря 2022 г. | JPM24: СПРАВКА 015/00406/001 от 20 декабря 2022 г. | JQC24: СПРАВКА 015/00406/001 от 20 декабря 2022 г. | JQS24: СПРАВКА 015/00406/001 от 20 декабря 2022 г. | JRI24: СПРАВКА 015/00406/001 от 20 декабря 2022 г. | JRY24: СПРАВКА 015/00406/001 от 20 декабря 2022 г. | JSO24: СПРАВКА 015/00406/001 от 20 декабря 2022 г. | JTE24: СПРАВКА 015/00406/001 от 20 декабря 2022 г. | JTU24: СПРАВКА 015/00406/001 от 20 декабря 2022 г. | JUK24: СПРАВКА 015/00406/001 от 20 декабря 2022 г. | JVA24: СПРАВКА 015/00406/001 от 20 декабря 2022 г. | JVQ24: СПРАВКА 015/00406/001 от 20 декабря 2022 г. | JWG24: СПРАВКА 015/00406/001 от 20 декабря 2022 г. | JWW24: СПРАВКА 015/00406/001 от 20 декабря 2022 г. | JXM24: СПРАВКА 015/00406/001 от 20 декабря 2022 г. | JYC24: СПРАВКА 015/00406/001 от 20 декабря 2022 г. | JYS24: СПРАВКА 015/00406/001 от 20 декабря 2022 г. | JZI24: СПРАВКА 015/00406/001 от 20 декабря 2022 г. | JZY24: СПРАВКА 015/00406/001 от 20 декабря 2022 г. | KAO24: СПРАВКА 015/00406/001 от 20 декабря 2022 г. | KBE24: СПРАВКА 015/00406/001 от 20 декабря 2022 г. | KBU24: СПРАВКА 015/00406/001 от 20 декабря 2022 г. | KCK24: СПРАВКА 015/00406/001 от 20 декабря 2022 г. | KDA24: СПРАВКА 015/00406/001 от 20 декабря 2022 г. | KDQ24: СПРАВКА 015/00406/001 от 20 декабря 2022 г. | KEG24: СПРАВКА 015/00406/001 от 20 декабря 2022 г. | KEW24: СПРАВКА 015/00406/001 от 20 декабря 2022 г. | KFM24: СПРАВКА 015/00406/001 от 20 декабря 2022 г. | KGC24: СПРАВКА 015/00406/001 от 20 декабря 2022 г. | KGS24: СПРАВКА 015/00406/001 от 20 декабря 2022 г. | KHI24: СПРАВКА 015/00406/001 от 20 декабря 2022 г. | KHY24: СПРАВКА 015/00406/001 от 20 декабря 2022 г. | KIO24: СПРАВКА 015/00406/001 от 20 декабря 2022 г. | KJE24: СПРАВКА 015/00406/001 от 20 декабря 2022 г. | KJU24: СПРАВКА 015/00406/001 от 20 декабря 2022 г. | KKK24: СПРАВКА 015/00406/001 от 20 декабря 2022 г. | KLA24: СПРАВКА 015/00406/001 от 20 декабря 2022 г. | KLQ24: СПРАВКА 015/00406/001 от 20 декабря 2022 г. | KMG24: СПРАВКА 015/00406/001 от 20 декабря 2022 г. | KMW24: СПРАВКА 015/00406/001 от 20 декабря 2022 г. | KNM24: СПРАВКА 015/00406/001 от 20 декабря 2022 г. | KOC24: СПРАВКА 015/00406/001 от 20 декабря 2022 г. | KOS24: СПРАВКА 015/00406/001 от 20 декабря 2022 г. | KPI24: СПРАВКА 015/00406/001 от 20 декабря 2022 г. | KPY24: СПРАВКА 015/00406/001 от 20 декабря 2022 г. | KQO24: СПРАВКА 015/00406/001 от 20 декабря 2022 г. | KRE24: СПРАВКА 015/00406/001 от 20 декабря 2022 г. | KRU24: СПРАВКА 015/00406/001 от 20 декабря 2022 г. | KSK24: СПРАВКА 015/00406/001 от 20 декабря 2022 г. | KTA24: СПРАВКА 015/00406/001 от 20 декабря 2022 г. | KTQ24: СПРАВКА 015/00406/001 от 20 декабря 2022 г. | KUG24: СПРАВКА 015/00406/001 от 20 декабря 2022 г. | KUW24: СПРАВКА 015/00406/001 от 20 декабря 2022 г. | KVM24: СПРАВКА 015/00406/001 от 20 декабря 2022 г. | KWC24: СПРАВКА 015/00406/001 от 20 декабря 2022 г. | KWS24: СПРАВКА 015/00406/001 от 20 декабря 2022 г. | KXI24: СПРАВКА 015/00406/001 от 20 декабря 2022 г. | KXY24: СПРАВКА 015/00406/001 от 20 декабря 2022 г. | KYO24: СПРАВКА 015/00406/001 от 20 декабря 2022 г. | KZE24: СПРАВКА 015/00406/001 от 20 декабря 2022 г. | KZU24: СПРАВКА 015/00406/001 от 20 декабря 2022 г. | LAK24: СПРАВКА 015/00406/001 от 20 декабря 2022 г. | LBA24: СПРАВКА 015/00406/001 от 20 декабря 2022 г. | LBQ24: СПРАВКА 015/00406/001 от 20 декабря 2022 г. | LCG24: СПРАВКА 015/00406/001 от 20 декабря 2022 г. | LCW24: СПРАВКА 015/00406/001 от 20 декабря 2022 г. | LDM24: СПРАВКА 015/00406/001 от 20 декабря 2022 г. | LEC24: СПРАВКА 015/00406/001 от 20 декабря 2022 г. | LES24: СПРАВКА 015/00406/001 от 20 декабря 2022 г. | LFI24: СПРАВКА 015/00406/001 от 20 декабря 2022 г. | LFY24: СПРАВКА 015/00406/001 от 20 декабря 2022 г. | LGO24: СПРАВКА 015/00406/001 от 20 декабря 2022 г. | LHE24: СПРАВКА 015/00406/001 от 20 декабря 2022 г. | LHU24: СПРАВКА 015/00406/001 от 20 декабря 2022 г. | LIK24: СПРАВКА 015/00406/001 от 20 декабря 2022 г. | LJA24: СПРАВКА 015/00406/001 от 20 декабря 2022 г. | LJQ24: СПРАВКА 015/00406/001 от 20 декабря 2022 г. | LKG24: СПРАВКА 015/00406/001 от 20 декабря 2022 г. | LKW24: СПРАВКА 015/00406/001 от 20 декабря 2022 г. | LLM24: СПРАВКА 015/00406/001 от 20 декабря 2022 г. | LMC24: СПРАВКА 015/00406/001 от 20 декабря 2022 г. | LMS24: СПРАВКА 015/00406/001 от 20 декабря 2022 г. | LNI24: СПРАВКА 015/00406/001 от 20 декабря 2022 г. | LNY24: СПРАВКА 015/00406/001 от 20 декабря 2022 г. | LOO24: СПРАВКА 015/00406/001 от 20 декабря 2022 г. | LPE24: СПРАВКА 015/00406/001 от 20 декабря 2022 г. | LPU24: СПРАВКА 015/00406/001 от 20 декабря 2022 г. | LQK24: СПРАВКА 015/00406/001 от 20 декабря 2022 г. | LRA24: СПРАВКА 015/00406/001 от 20 декабря 2022 г. | LRQ24: СПРАВКА 015/00406/001 от 20 декабря 2022 г. | LSG24: СПРАВКА 015/00406/001 от 20 декабря 2022 г. | LSW24: СПРАВКА 015/00406/001 от 20 декабря 2022 г. | LTM24: СПРАВКА 015/00406/001 от 20 декабря 2022 г. | LUC24: СПРАВКА 015/00406/001 от 20 декабря 2022 г. | LUS24: СПРАВКА 015/00406/001 от 20 декабря 2022 г. | LVI24: СПРАВКА 015/00406/001 от 20 декабря 2022 г. | LVY24: СПРАВКА 015/00406/001 от 20 декабря 2022 г. | LWO24: СПРАВКА 015/00406/001 от 20 декабря 2022 г. | LXE24: СПРАВКА 015/00406/001 от 20 декабря 2022 г. | LXU24: СПРАВКА 015/00406/001 от 20 декабря 2022 г. | LYK24: СПРАВКА 015/00406/001 от 20 декабря 2022 г. | LZA24: СПРАВКА 015/00406/001 от 20 декабря 2022 г. | LZQ24: СПРАВКА 015/00406/001 от 20 декабря 2022 г. | MAG24: СПРАВКА 015/00406/001 от 20 декабря 2022 г. | MAW24: СПРАВКА 015/00406/001 от 20 декабря 2022 г. | MBM24: СПРАВКА 015/00406/001 от 20 декабря 2022 г. | MCC24: СПРАВКА 015/00406/001 от 20 декабря 2022 г. | MCS24: СПРАВКА 015/00406/001 от 20 декабря 2022 г. | MDI24: СПРАВКА 015/00406/001 от 20 декабря 2022 г. | MDY24: СПРАВКА 015/00406/001 от 20 декабря 2022 г. | MEO24: СПРАВКА 015/00406/001 от 20 декабря 2022 г. | MFE24: СПРАВКА 015/00406/001 от 20 декабря 2022 г. | MFU24: СПРАВКА 015/00406/001 от 20 декабря 2022 г. | MGK24: СПРАВКА 015/00406/001 от 20 декабря 2022 г. | MHA24: СПРАВКА 015/00406/001 от 20 декабря 2022 г. | MHQ24: СПРАВКА 015/00406/001 от 20 декабря 2022 г. | MIG24: СПРАВКА 015/00406/001 от 20 декабря 2022 г. | MIW24: СПРАВКА 015/00406/001 от 20 декабря 2022 г. | MJM24: СПРАВКА 015/00406/001 от 20 декабря 2022 г. | MKC24: СПРАВКА 015/00406/001 от 20 декабря 2022 г. | MKS24: СПРАВКА 015/00406/001 от 20 декабря 2022 г. | MLI24: СПРАВКА 015/00406/001 от 20 декабря 2022 г. | MLY24: СПРАВКА 015/00406/001 от 20 декабря 2022 г. | MMO24: СПРАВКА 015/00406/001 от 20 декабря 2022 г. | MNE24: СПРАВКА 015/00406/001 от 20 декабря 2022 г. | MNU24: СПРАВКА 015/00406/001 от 20 декабря 2022 г. | MOK24: СПРАВКА 015/00406/001 от 20 декабря 2022 г. | MPA24: СПРАВКА 015/00406/001 от 20 декабря 2022 г. | MPQ24: СПРАВКА 015/00406/001 от 20 декабря 2022 г. | MQG24: СПРАВКА 015/00406/001 от 20 декабря 2022 г. | MQW24: СПРАВКА 015/00406/001 от 20 декабря 2022 г. | MRM24: СПРАВКА 015/00406/001 от 20 декабря 2022 г. | MSC24: СПРАВКА 015/00406/001 от 20 декабря 2022 г. | MSS24: СПРАВКА 015/00406/001 от 20 декабря 2022 г. | MTI24: СПРАВКА 015/00406/001 от 20 декабря 2022 г. | MTY24: СПРАВКА 015/00406/001 от 20 декабря 2022 г. | MUO24: СПРАВКА 015/00406/001 от 20 декабря 2022 г. | MVE24: СПРАВКА 015/00406/001 от 20 декабря 2022 г. | MVU24: СПРАВКА 015/00406/001 от 20 декабря 2022 г. | MWK24: СПРАВКА 015/00406/001 от 20 декабря 2022 г. | MXA24: СПРАВКА 015/00406/001 от 20 декабря 2022 г. | MXQ24: СПРАВКА 015/00406/001 от 20 декабря 2022 г. | MYG24: СПРАВКА 015/00406/001 от 20 декабря 2022 г. | MYW24: СПРАВКА 015/00406/001 от 20 декабря 2022 г. | MZM24: СПРАВКА 015/00406/001 от 20 декабря 2022 г. | NAC24: СПРАВКА 015/00406/001 от 20 декабря 2022 г. | NAS24: СПРАВКА 015/00406/001 от 20 декабря 2022 г. | NBI24: СПРАВКА 015/00406/001 от 20 декабря 2022 г. | NBY24: СПРАВКА 015/00406/001 от 20 декабря 2022 г. | NCO24: СПРАВКА 015/00406/001 от 20 декабря 2022 г. | NDE24: СПРАВКА 015/00406/001 от 20 декабря 2022 г. | NDU24: СПРАВКА 015/00406/001 от 20 декабря 2022 г. | NEK24: СПРАВКА 015/00406/001 от 20 декабря 2022 г. | NFA24: СПРАВКА 015/00406/001 от 20 декабря 2022 г. | NFQ24: СПРАВКА 015/00406/001 от 20 декабря 2022 г. | NGG24: СПРАВКА 015/00406/001 от 20 декабря 2022 г. | NGW24: СПРАВКА 015/00406/001 от 20 декабря 2022 г. | NHM24: СПРАВКА 015/00406/001 от 20 декабря 2022 г. | NIC24: СПРАВКА 015/00406/001 от 20 декабря 2022 г. | NIS24: СПРАВКА 015/00406/001 от 20 декабря 2022 г. | NJI24: СПРАВКА 015/00406/001 от 20 декабря 2022 г. | NJY24: СПРАВКА 015/00406/001 от 20 декабря 2022 г. | NKO24: СПРАВКА 015/00406/001 от 20 декабря 2022 г. | NLE24: СПРАВКА 015/00406/001 от 20 декабря 2022 г. | NLU24: СПРАВКА 015/00406/001 от 20 декабря 2022 г. | NMK24: СПРАВКА 015/00406/001 от 20 декабря 2022 г. | NNA24: СПРАВКА 015/00406/001 от 20 декабря 2022 г. | NNQ24: СПРАВКА 015/00406/001 от 20 декабря 2022 г. | NOG24: СПРАВКА 015/00406/001 от 20 декабря 2022 г. | NOW24: СПРАВКА 015/00406/001 от 20 декабря 2022 г. | NPM24: СПРАВКА 015/00406/001 от 20 декабря 2022 г. | NQC24: СПРАВКА 015/00406/001 от 20 декабря 2022 г. | NQS24: СПРАВКА 015/00406/001 от 20 декабря 2022 г. | NRI24: СПРАВКА 015/00406/001 от 20 декабря 2022 г. | NRY24: СПРАВКА 015/00406/001 от 20 декабря 2022 г. | NSO24: СПРАВКА 015/00406/001 от 20 декабря 2022 г. | NTE24: СПРАВКА 015/00406/001 от 20 декабря 2022 г. | NTU24: СПРАВКА 015/00406/001 от 20 декабря 2022 г. | NUK24: СПРАВКА 015/00406/001 от 20 декабря 2022 г. | NVA24: СПРАВКА 015/00406/001 от 20 декабря 2022 г. | NVQ24: СПРАВКА 015/00406/001 от 20 декабря 2022 г. | NWG24: СПРАВКА 015/00406/001 от 20 декабря 2022 г. | NWW24: СПРАВКА 015/00406/001 от 20 декабря 2022 г. | NXM24: СПРАВКА 015/00406/001 от 20 декабря 2022 г. | NYC24: СПРАВКА 015/00406/001 от 20 декабря 2022 г. | NYS24: СПРАВКА 015/00406/001 от 20 декабря 2022 г. | NZI24: СПРАВКА 015/00406/001 от 20 декабря 2022 г. | NZY24: СПРАВКА 015/00406/001 от 20 декабря 2022 г. | OAO24: СПРАВКА 015/00406/001 от 20 декабря 2022 г. | OBE24: СПРАВКА 015/00406/001 от 20 декабря 2022 г. | OBU24: СПРАВКА 015/00406/001 от 20 декабря 2022 г. | OCK24: СПРАВКА 015/00406/001 от 20 декабря 2022 г. | ODA24: СПРАВКА 015/00406/001 от 20 декабря 2022 г. | ODQ24: СПРАВКА 015/00406/001 от 20 декабря 2022 г. | OEG24: СПРАВКА 015/00406/001 от 20 декабря 2022 г. | OEW24: СПРАВКА 015/00406/001 от 20 декабря 2022 г. | OFM24: СПРАВКА 015/00406/001 от 20 декабря 2022 г. | OGC24: СПРАВКА 015/00406/001 от 20 декабря 2022 г. | OGS24: СПРАВКА 015/00406/001 от 20 декабря 2022 г. | OHI24: СПРАВКА 015/00406/001 от 20 декабря 2022 г. | OHY24: СПРАВКА 015/00406/001 от 20 декабря 2022 г. | OIO24: СПРАВКА 015/00406/001 от 20 декабря 2022 г. | OJE24: СПРАВКА 015/00406/001 от 20 декабря 2022 г. | OJU24: СПРАВКА 015/00406/001 от 20 декабря 2022 г. | OKK24: СПРАВКА 015/00406/001 от 20 декабря 2022 г. | OLA24: СПРАВКА 015/00406/001 от 20 декабря 2022 г. | OLQ24: СПРАВКА 015/00406/001 от 20 декабря 2022 г. | OMG24: СПРАВКА 015/00406/001 от 20 декабря 2022 г. | OMW24: СПРАВКА 015/00406/001 от 20 декабря 2022 г. | ONM24: СПРАВКА 015/00406/001 от 20 декабря 2022 г. | OOC24: СПРАВКА 015/00406/001 от 20 декабря 2022 г. | OOS24: СПРАВКА 015/00406/001 от 20 декабря 2022 г. | OPI24: СПРАВКА 015/00406/001 от 20 декабря 2022 г. | OPY24: СПРАВКА 015/00406/001 от 20 декабря 2022 г. | OQO24: СПРАВКА 015/00406/001 от 20 декабря 2022 г. | ORE24: СПРАВКА 015/00406/001 от 20 декабря 2022 г. | ORU24: СПРАВКА 015/00406/001 от 20 декабря 2022 г. | OSK24: СПРАВКА 015/00406/001 от 20 декабря 2022 г. | OTA24: СПРАВКА 015/00406/001 от 20 декабря 2022 г. | OTQ24: СПРАВКА 015/00406/001 от 20 декабря 2022 г. | OUG24: СПРАВКА 015/00406/001 от 20 декабря 2022 г. | OUW24: СПРАВКА 015/00406/001 от 20 декабря 2022 г. | OVM24: СПРАВКА 015/00406/001 от 20 декабря 2022 г. | OWC24: СПРАВКА 015/00406/001 от 20 декабря 2022 г. | OWS24: СПРАВКА 015/00406/001 от 20 декабря 2022 г. | OXI24: СПРАВКА 015/00406/001 от 20 декабря 2022 г. | OXY24: СПРАВКА 015/00406/001 от 20 декабря 2022 г. | OYO24: СПРАВКА 015/00406/001 от 20 декабря 2022 г. | OZE24: СПРАВКА 015/00406/001 от 20 декабря 2022 г. | OZU24: СПРАВКА 015/00406/001 от 20 декабря 2022 г. | PAK24: СПРАВКА 015/00406/001 от 20 декабря 2022 г. | PBA24: СПРАВКА 015/00406/001 от 20 декабря 2022 г. | PBQ24: СПРАВКА 015/00406/001 от 20 декабря 2022 г. | PCG24: СПРАВКА 015/00406/001 от 20 декабря 2022 г. | PCW24: СПРАВКА 015/00406/001 от 20 декабря 2022 г. | PDM24: СПРАВКА 015/00406/001 от 20 декабря 2022 г. | PEC24: СПРАВКА 015/00406/001 от 20 декабря 2022 г. | PES24: СПРАВКА 015/00406/001 от 20 декабря 2022 г. | PFI24: СПРАВКА 015/00406/001 от 20 декабря 2022 г. | PFY24: СПРАВКА 015/00406/001 от 20 декабря 2022 г. | PGO24: СПРАВКА 015/00406/001 от 20 декабря 2022 г. | PHE24: СПРАВКА 015/00406/001 от 20 декабря 2022 г. | PHU24: СПРАВКА 015/00406/001 от 20 декабря 2022 г. | PIK24: СПРАВКА 015/00406/001 от 20 декабря 2022 г. | PJA24: СПРАВКА 015/00406/001 от 20 декабря 2022 г. | PJQ24: СПРАВКА 015/00406/001 от 20 декабря 2022 г. | PKG24: СПРАВКА 015/00406/001 от 20 декабря 2022 г. | PKW24: СПРАВКА 015/00406/001 от 20 декабря 2022 г. | PLM24: СПРАВКА 015/00406/001 от 20 декабря 2022 г. | PMC24: СПРАВКА 015/00406/001 от 20 декабря 2022 г. | PMS24: СПРАВКА 015/00406/001 от 20 декабря 2022 г. | PNI24: СПРАВКА 015/00406/001 от 20 декабря 2022 г. | PNY24: СПРАВКА 015/00406/001 от 20 декабря 2022 г. | POO24: СПРАВКА 015/00406/001 от 20 декабря 2022 г. | PPE24: СПРАВКА 015/00406/001 от 20 декабря 2022 г. | PPU24: СПРАВКА 015/00406/001 от 20 декабря 2022 г. | PQK24: СПРАВКА 015/00406/001 от 20 декабря 2022 г. | PRA24: СПРАВКА 015/00406/001 от 20 декабря 2022 г. | PRQ24: СПРАВКА 015/00406/001 от 20 декабря 2022 г. | PSG24: СПРАВКА 015/00406/001 от 20 декабря 2022 г. | PSW24: СПРАВКА 015/00406/001 от 20 декабря 2022 г. | PTM24: СПРАВКА 015/00406/001 от 20 декабря 2022 г. | PUC24: СПРАВКА 015/00406/001 от 20 декабря 2022 г. | PUS24: СПРАВКА 015/00406/001 от 20 декабря 2022 г. | PVI24: СПРАВКА 015/00406/001 от 20 декабря 2022 г. | PVY24: СПРАВКА 015/00406/001 от 20 декабря 2022 г. | PWO24: СПРАВКА 015/00406/001 от 20 декабря 2022 г. | PXE24: СПРАВКА 015/00406/001 от 20 декабря 2022 г. | PXU24: СПРАВКА 015/00406/001 от 20 декабря 2022 г. | PYK24: СПРАВКА 015/00406/001 от 20 декабря 2022 г. | PZA24: СПРАВКА 015/00406/001 от 20 декабря 2022 г. | PZQ24: СПРАВКА 015/00406/001 от 20 декабря 2022 г. | QAG24: СПРАВКА 015/00406/001 от 20 декабря 2022 г. | QAW24: СПРАВКА 015/00406/001 от 20 декабря 2022 г. | QBM24: СПРАВКА 015/00406/001 от 20 декабря 2022 г. | QCC24: СПРАВКА 015/00406/001 от 20 декабря 2022 г. | QCS24: СПРАВКА 015/00406/001 от 20 декабря 2022 г. | QDI24: СПРАВКА 015/00406/001 от 20 декабря 2022 г. | QDY24: СПРАВКА 015/00406/001 от 20 декабря 2022 г. | QEO24: СПРАВКА 015/00406/001 от 20 декабря 2022 г. | QFE24: СПРАВКА 015/00406/001 от 20 декабря 2022 г. | QFU24: СПРАВКА 015/00406/001 от 20 декабря 2022 г. | QGK24: СПРАВКА 015/00406/001 от 20 декабря 2022 г. | QHA24: СПРАВКА 015/00406/001 от 20 декабря 2022 г. | QHQ24: СПРАВКА 015/00406/001 от 20 декабря 2022 г. | QIG24: СПРАВКА 015/00406/001 от 20 декабря 2022 г. | QIW24: СПРАВКА 015/00406/001 от 20 декабря 2022 г. | QJM24: СПРАВКА 015/00406/001 от 20 декабря 2022 г. | QKC24: СПРАВКА 015/00406/001 от 20 декабря 2022 г. | QKS24: СПРАВКА 015/00406/001 от 20 декабря 2022 г. | QLI24: СПРАВКА 015/00406/001 от 20 декабря 2022 г. | QLY24: СПРАВКА 015/00406/001 от 20 декабря 2022 г. | QMO24: СПРАВКА 015/00406/001 от 20 декабря 2022 г. | QNE24: СПРАВКА 015/00406/001 от 20 декабря 2022 г. | QNU24: СПРАВКА 015/00406/001 от 20 декабря 2022 г. | QOK24: СПРАВКА 015/00406/001 от 20 декабря 2022 г. | QPA24: СПРАВКА 015/00406/001 от 20 декабря 2022 г. | QPQ24: СПРАВКА 015/00406/001 от 20 декабря 2022 г. | QQG24: СПРАВКА 015/00406/001 от 20 декабря 2022 г. | QQW24: СПРАВКА 015/00406/001 от 20 декабря 2022 г. | QRM24: СПРАВКА 015/00406/001 от 20 декабря 2022 г. | QSC24: СПРАВКА 015/00406/001 от 20 декабря 2022 г. | QSS24: СПРАВКА 015/00406/001 от 20 декабря 2022 г. | QTI24: СПРАВКА 015/00406/001 от 20 декабря 2022 г. | QTY24: СПРАВКА 015/00406/001 от 20 декабря 2022 г. | QUO24: СПРАВКА 015/00406/001 от 20 декабря 2022 г. | QVE24: СПРАВКА 015/00406/001 от 20 декабря 2022 г. | QVU24: СПРАВКА 015/00406/001 от 20 декабря 2022 г. | QWK24: СПРАВКА 015/00406/001 от 20 декабря 2022 г. | QXA24: СПРАВКА 015/00406/001 от 20 декабря 2022 г. | QXQ24: СПРАВКА 015/00406/001 от 20 декабря 2022 г. | QYG24: СПРАВКА 015/00406/001 от 20 декабря 2022 г. | QYW24: СПРАВКА 015/00406/001 от 20 декабря 2022 г. | QZM24: СПРАВКА 015/00406/001 от 20 декабря 2022 г. | RAC24: СПРАВКА 015/00406/001 от 20 декабря 2022 г. | RAS24: СПРАВКА 015/00406/001 от 20 декабря 2022 г. | RBI24: СПРАВКА 015/00406/001 от 20 декабря 2022 г. | RBY24: СПРАВКА 015/00406/001 от 20 декабря 2022 г. | RCO24: СПРАВКА 015/00406/001 от 20 декабря 2022 г. | RDE24: СПРАВКА 015/00406/001 от 20 декабря 2022 г. | RDU24: СПРАВКА 015/00406/001 от 20 декабря 2022 г. | REK24: СПРАВКА 015/00406/001 от 20 декабря 2022 г. | RFA24: СПРАВКА 015/00406/001 от 20 декабря 2022 г. | RFQ24: СПРАВКА 015/00406/001 от 20 декабря 2022 г. | RGG24: СПРАВКА 015/00406/001 от 20 декабря 2022 г. | RGW24: СПРАВКА 015/00406/001 от 20 декабря 2022 г. | RHM24: СПРАВКА 015/00406/001 от 20 декабря 2022 г. | RIC24: СПРАВКА 015/00406/001 от 20 декабря 2022 г. | RIS24: СПРАВКА 015/00406/001 от 20 декабря 2022 г. | RJI24: СПРАВКА 015/00406/001 от 20 декабря 2022 г. | RJY24: СПРАВКА 015/00406/001 от 20 декабря 2022 г. | RKO24: СПРАВКА 015/00406/001 от 20 декабря 2022 г. | RLE24: СПРАВКА 015/00406/001 от 20 декабря 2022 г. | RLU24: СПРАВКА 015/00406/001 от 20 декабря 2022 г. | RMK24: СПРАВКА 015/00406/001 от 20 декабря 2022 г. | RNA24: СПРАВКА 015/00406/001 от 20 декабря 2022 г. | RNQ24: СПРАВКА 015/00406/001 от 20 декабря 2022 г. | ROG24: СПРАВКА 015/00406/001 от 20 декабря 2022 г. | ROW24: СПРАВКА 015/00406/001 от 20 декабря 2022 г. | RPM24: СПРАВКА 015/00406/001 от 20 декабря 2022 г. | RQC24: СПРАВКА 015/00406/001 от 20 декабря 2022 г. | RQS24: СПРАВКА 015/00406/001 от 20 декабря 2022 г. | RRI24: СПРАВКА 015/00406/001 от 20 декабря 2022 г. | RRY24: СПРАВКА 015/00406/001 от 20 декабря 2022 г. | RSO24: СПРАВКА 015/00406/001 от 20 декабря 2022 г. | RTE24: СПРАВКА 015/00406/001 от 20 декабря 2022 г. | RTU24: СПРАВКА 015/00406/001 от 20 декабря 2022 г. | RUK24: СПРАВКА 015/00406/001 от 20 декабря 2022 г. | RVA24: СПРАВКА 015/00406/001 от 20 декабря 2022 г. | RVQ24: СПРАВКА 015/00406/001 от 20 декабря 2022 г. | RWG24: СПРАВКА 015/00406/001 от 20 декабря 2022 г. | RWW24: СПРАВКА 015/00406/001 от 20 декабря 2022 г. | RXM24: СПРАВКА 015/00406/001 от 20 декабря 2022 г. | RYC24: СПРАВКА 015/00406/001 от 20 декабря 2022 г. | RYS24: СПРАВКА 015/00406/001 от 20 декабря 2022 г. | RZI24: СПРАВКА 015/00406/001 от 20 декабря 2022 г. | RZY24: СПРАВКА 015/00406/001 от 20 декабря 2022 г. | SAO24: СПРАВКА 015/00406/001 от 20 декабря 2022 г. | SBE24: СПРАВКА 015/00406/001 от 20 декабря 2022 г. | SBU24: СПРАВКА 015/00406/001 от 20 декабря 2022 г. | SCK24: СПРАВКА 015/00406/001 от 20 декабря 2022 г. | SDA24: СПРАВКА 015/00406/001 от 20 декабря 2022 г. | SDQ24: СПРАВКА 015/00406/001 от 20 декабря 2022 г. | SEG24: СПРАВКА 015/00406/001 от 20 декабря 2022 г. | SEW24: СПРАВКА 015/00406/001 от 20 декабря 2022 г. | SFM24: СПРАВКА 015/00406/001 от 20 декабря 2022 г. | SGC24: СПРАВКА 015/00406/001 от 20 декабря 2022 г. | SGS24: СПРАВКА 015/00406/001 от 20 декабря 2022 г. | SHI24: СПРАВКА 015/00406/001 от 20 декабря 2022 г. | SHY24: СПРАВКА 015/00406/001 от 20 декабря 2022 г. | SIO24: СПРАВКА 015/00406/001 от 20 декабря 2022 г. | SJE24: СПРАВКА 015/00406/001 от 20 декабря 2022 г. | SJU24: СПРАВКА 015/00406/001 от 20 декабря 2022 г. | SKK24: СПРАВКА 015/00406/001 от 20 декабря 2022 г. | SLA24: СПРАВКА 015/00406/001 от 20 декабря 2022 г. | SLQ24: СПРАВКА 015/00406/001 от 20 декабря 2022 г. | SMG24: СПРАВКА 015/00406/001 от 20 декабря 2022 г. | SMW24: СПРАВКА 015/00406/001 от 20 декабря 2022 г. | SNM24: СПРАВКА 015/00406/001 от 20 декабря 2022 г. | SOC24: СПРАВКА 015/00406/001 от 20 декабря 2022 г. | SOS24: СПРАВКА 015/00406/001 от 20 декабря 2022 г. | SPI24: СПРАВКА 015/00406/001 от 20 декабря 2022 г. | SPY24: СПРАВКА 015/00406/001 от 20 декабря 2022 г. | SQO24: СПРАВКА 015/00406/001 от 20 декабря 2022 г. | SRE24: СПРАВКА 015/00406/001 от 20 декабря 2022 г. | SRU24: СПРАВКА 015/00406/001 от 20 декабря 2022 г. | SSK24: СПРАВКА 015/00406/001 от 20 декабря 2022 г. | STA24: СПРАВКА 015/00406/001 от 20 декабря 2022 г. | STQ24: СПРАВКА 015/00406/001 от 20 декабря 2022 г. | SUG24: СПРАВКА 015/00406/001 от 20 декабря 2022 г. | SUW24: СПРАВКА 015/00406/001 от 20 декабря 2022 г. | SVM24: СПРАВКА 015/00406/001 от 20 декабря 2022 г. | SWC24: СПРАВКА 015/00406/001 от 20 декабря 2022 г. | SWS24: СПРАВКА 015/00406/001 от 20 декабря 2022 г. | SXI24: СПРАВКА 015/00406/001 от 20 декабря 2022 г. | SXY24: СПРАВКА 015/00406/001 от 20 декабря 2022 г. | SYO24: СПРАВКА 015/00406/001 от 20 декабря 2022 г. | SZE24: СПРАВКА 015/00406/001 от 20 декабря 2022 г. | SZU24: СПРАВКА 015/00406/001 от 20 декабря 2022 г. | TAK24: СПРАВКА 015/00406/001 от 20 декабря 2022 г. | TBA24: СПРАВКА 015/00406/001 от 20 декабря 2022 г. | TBQ24: СПРАВКА 015/00406/001 от 20 декабря 2022 г. | TCG24: СПРАВКА 015/00406/001 от 20 декабря 2022 г. | TCW24: СПРАВКА 015/00406/001 от 20 декабря 2022 г. | TDM24: СПРАВКА 015/00406/001 от 20 декабря 2022 г. | TEC24: СПРАВКА 015/00406/001 от 20 декабря 2022 г. | TES24: СПРАВКА 015/00406/001 от 20 декабря 2022 г. | TFI24: СПРАВКА 015/00406/001 от 20 декабря 2022 г. | TFY24: СПРАВКА 015/00406/001 от 20 декабря 2022 г. | TGO24: СПРАВКА 015/00406/001 от 20 декабря 2022 г. | THE24: СПРАВКА 015/00406/001 от 20 декабря 2022 г. | THU24: СПРАВКА 015/00406/001 от 20 декабря 2022 г. | TIK24: СПРАВКА 015/00406/001 от 20 декабря 2022 г. | TJA24: СПРАВКА 015/00406/001 от 20 декабря 2022 г. | TJQ24: СПРАВКА 015/00406/001 от 20 декабря 2022 г. | TKG24: СПРАВКА 015/00406/001 от 20 декабря 2022 г. | TKW24: СПРАВКА 015/00406/001 от 20 декабря 2022 г. | TLM24: СПРАВКА 015/00406/001 от 20 декабря 2022 г. | TMC24: СПРАВКА 015/00406/001 от 20 декабря 2022 г. | TMS24: СПРАВКА 015/00406/001 от 20 декабря 2022 г. | TNI24: СПРАВКА 015/00406/001 от 20 декабря 2022 г. | TNY24: СПРАВКА 015/00406/001 от 20 декабря 2022 г. | TOO24: СПРАВКА 015/00406/001 от 20 декабря 2022 г. | TPE24: СПРАВКА 015/00406/001 от 20 декабря 2022 г. | TPU24: СПРАВКА 015/00406/001 от 20 декабря 2022 г. | TQK24: СПРАВКА 015/00406/001 от 20 декабря 2022 г. | TRA24: СПРАВКА 015/00406/001 от 20 декабря 2022 г. | TRQ24: СПРАВКА 015/00406/001 от 20 декабря 2022 г. | TSG24: СПРАВКА 015/00406/001 от 20 декабря 2022 г. | TSW24: СПРАВКА 015/00406/001 от 20 декабря 2022 г. | TTM24: СПРАВКА 015/00406/001 от 20 декабря 2022 г. | TUC24: СПРАВКА 015/00406/001 от 20 декабря 2022 г. | TUS24: СПРАВКА 015/00406/001 от 20 декабря 2022 г. | TVI24: СПРАВКА 015/00406/001 от 20 декабря 2022 г. | TVY24: СПРАВКА 015/00406/001 от 20 декабря 2022 г. | TWO24: СПРАВКА 015/00406/001 от 20 декабря 2022 г. | TXE24: СПРАВКА 015/00406/001 от 20 декабря 2022 г. | TXU24: СПРАВКА 015/00406/001 от 20 декабря 2022 г. | TYK24: СПРАВКА 015/00406/001 от 20 декабря 2022 г. | TZA24: СПРАВКА 015/00406/001 от 20 декабря 2022 г. | TZQ24: СПРАВКА 015/00406/001 от 20 декабря 2022 г. | UAG24: СПРАВКА 015/00406/001 от 20 декабря 2022 г. | UAW24: СПРАВКА 015/00406/001 от 20 декабря 2022 г. | UBM24: СПРАВКА 015/00406/001 от 20 декабря 2022 г. | UCC24: СПРАВКА 015/00406/001 от 20 декабря 2022 г. | UCS24: СПРАВКА 015/00406/001 от 20 декабря 2022 г. | UDI24: СПРАВКА 015/00406/001 от 20 декабря 2022 г. | UDY24: СПРАВКА 015/00406/001 от 20 декабря 2022 г. | UEO24: СПРАВКА 015/00406/001 от 20 декабря 2022 г. | UFE24: СПРАВКА 015/00406/001 от 20 декабря 2022 г. | UFU24: СПРАВКА 015/00406/001 от 20 декабря 2022 г. | UGK24: СПРАВКА 015/00406/001 от 20 декабря 2022 г. | UHA24: СПРАВКА 015/00406/001 от 20 декабря 2022 г. | UHQ24: СПРАВКА 015/00406/001 от 20 декабря 2022 г. | UIG24: СПРАВКА 015/00406/001 от 20 декабря 2022 г. | UIW24: СПРАВКА 015/00406/001 от 20 декабря 2022 г. | UJM24: СПРАВКА 015/00406/001 от 20 декабря 2022 г. | UKC24: СПРАВКА 015/00406/001 от 20 декабря 2022 г. | UKS24: СПРАВКА 015/00406/001 от 20 декабря 2022 г. | ULI24: СПРАВКА 015/00406/001 от 20 декабря 2022 г. | ULY24: СПРАВКА 015/00406/001 от 20 декабря 2022 г. | UMO24: СПРАВКА 015/00406/001 от 20 декабря 2022 г. | UNE24: СПРАВКА 015/00406/001 от 20 декабря 2022 г. | UNU24: СПРАВКА 015/00406/001 от 20 декабря 2022 г. | UOK24: СПРАВКА 015/00406/001 от 20 декабря 2022 г. | UPA24: СПРАВКА 015/00406/001 от 20 декабря 2022 г. | UPQ24: СПРАВКА 015/00406/001 от 20 декабря 2022 г. | UQG24: СПРАВКА 015/00406/001 от 20 декабря 2022 г. | UQW24: СПРАВКА 015/00406/001 от 20 декабря 2022 г. | URM24: СПРАВКА 015/00406/001 от 20 декабря 2022 г. | USC24: СПРАВКА 015/00406/001 от 20 декабря 2022 г. | USS24: СПРАВКА 015/00406/001 от 20 декабря 2022 г. | UTI24: СПРАВКА 015/00406/001 от 20 декабря 2022 г. | UTY24: СПРАВКА 015/00406/001 от 20 декабря 2022 г. | UUO24: СПРАВКА 015/00406/001 от 20 декабря 2022 г. | UVE24: СПРАВКА 015/00406/001 от 20 декабря 2022 г. | UVU24: СПРАВКА 015/00406/001 от 20 декабря 2022 г. | UWK24: СПРАВКА 015/00406/001 от 20 декабря 2022 г. | UXA24: СПРАВКА 015/00406/001 от 20 декабря 2022 г. | UXQ24: СПРАВКА 015/00406/001 от 20 декабря 2022 г. | UYG24: СПРАВКА 015/00406/001 от 20 декабря 2022 г. | UYW24: СПРАВКА 015/00406/001 от 20 декабря 2022 г. | UZM24: СПРАВКА 015/00406/001 от 20 декабря 2022 г. | VAC24: СПРАВКА 015/00406/001 от 20 декабря 2022 г. | VAS24: СПРАВКА 015/00406/001 от 20 декабря 2022 г. | VBI24: СПРАВКА 015/00406/001 от 20 декабря 2022 г. | VBY24: СПРАВКА 015/00406/001 от 20 декабря 2022 г. | VCO24: СПРАВКА 015/00406/001 от 20 декабря 2022 г. | VDE24: СПРАВКА 015/00406/001 от 20 декабря 2022 г. | VDU24: СПРАВКА 015/00406/001 от 20 декабря 2022 г. | VEK24: СПРАВКА 015/00406/001 от 20 декабря 2022 г. | VFA24: СПРАВКА 015/00406/001 от 20 декабря 2022 г. | VFQ24: СПРАВКА 015/00406/001 от 20 декабря 2022 г. | VGG24: СПРАВКА 015/00406/001 от 20 декабря 2022 г. | VGW24: СПРАВКА 015/00406/001 от 20 декабря 2022 г. | VHM24: СПРАВКА 015/00406/001 от 20 декабря 2022 г. | VIC24: СПРАВКА 015/00406/001 от 20 декабря 2022 г. | VIS24: СПРАВКА 015/00406/001 от 20 декабря 2022 г. | VJI24: СПРАВКА 015/00406/001 от 20 декабря 2022 г. | VJY24: СПРАВКА 015/00406/001 от 20 декабря 2022 г. | VKO24: СПРАВКА 015/00406/001 от 20 декабря 2022 г. | VLE24: СПРАВКА 015/00406/001 от 20 декабря 2022 г. | VLU24: СПРАВКА 015/00406/001 от 20 декабря 2022 г. | VMK24: СПРАВКА 015/00406/001 от 20 декабря 2022 г. | VNA24: СПРАВКА 015/00406/001 от 20 декабря 2022 г. | VNQ24: СПРАВКА 015/00406/001 от 20 декабря 2022 г. | VOG24: СПРАВКА 015/00406/001 от 20 декабря 2022 г. | VOW24: СПРАВКА 015/00406/001 от 20 декабря 2022 г. | VPM24: СПРАВКА 015/00406/001 от 20 декабря 2022 г. | VQC24: СПРАВКА 015/00406/001 от 20 декабря 2022 г. | VQS24: СПРАВКА 015/00406/001 от 20 декабря 2022 г. | VRI24: СПРАВКА 015/00406/001 от 20 декабря 2022 г. | VRY24: СПРАВКА 015/00406/001 от 20 декабря 2022 г. | VSO24: СПРАВКА 015/00406/001 от 20 декабря 2022 г. | VTE24: СПРАВКА 015/00406/001 от 20 декабря 2022 г. | VTU24: СПРАВКА 015/00406/001 от 20 декабря 2022 г. | VUK24: СПРАВКА 015/00406/001 от 20 декабря 2022 г. | VVA24: СПРАВКА 015/00406/001 от 20 декабря 2022 г. | VVQ24: СПРАВКА 015/00406/001 от 20 декабря 2022 г. | VWG24: СПРАВКА 015/00406/001 от 20 декабря 2022 г. | VWW24: СПРАВКА 015/00406/001 от 20 декабря 2022 г. | VXM24: СПРАВКА 015/00406/001 от 20 декабря 2022 г. | VYC24: СПРАВКА 015/00406/001 от 20 декабря 2022 г. | VYS24: СПРАВКА 015/00406/001 от 20 декабря 2022 г. | VZI24: СПРАВКА 015/00406/001 от 20 декабря 2022 г. | VZY24: СПРАВКА 015/00406/001 от 20 декабря 2022 г. | WAO24: СПРАВКА 015/00406/001 от 20 декабря 2022 г. | WBE24: СПРАВКА 015/00406/001 от 20 декабря 2022 г. | WBU24: СПРАВКА 015/00406/001 от 20 декабря 2022 г. | WCK24: СПРАВКА 015/00406/001 от 20 декабря 2022 г. | WDA24: СПРАВКА 015/00406/001 от 20 декабря 2022 г. | WDQ24: СПРАВКА 015/00406/001 от 20 декабря 2022 г. | WEG24: СПРАВКА 015/00406/001 от 20 декабря 2022 г. | WEW24: СПРАВКА 015/00406/001 от 20 декабря 2022 г. | WFM24: СПРАВКА 015/00406/001 от 20 декабря 2022 г. | WGC24: СПРАВКА 015/00406/001 от 20 декабря 2022 г. | WGS24: СПРАВКА 015/00406/001 от 20 декабря 2022 г. | WHI24: СПРАВКА 015/00406/001 от 20 декабря 2022 г. | WHY24: СПРАВКА 015/00406/001 от 20 декабря 2022 г. | WIO24: СПРАВКА 015/00406/001 от 20 декабря 2022 г. | WJE24: СПРАВКА 015/00406/001 от 20 декабря 2022 г. | WJU24: СПРАВКА 015/00406/001 от 20 декабря 2022 г. | WKK24: СПРАВКА 015/00406/001 от 20 декабря 2022 г. | WLA24: СПРАВКА 015/00406/001 от 20 декабря 2022 г. | WLQ24: СПРАВКА 015/00406/001 от 20 декабря 2022 г. | WMG24: СПРАВКА 015/00406/001 от 20 декабря 2022 г. | WMW24: СПРАВКА 015/00406/001 от 20 декабря 2022 г. | WNM24: СПРАВКА 015/00406/001 от 20 декабря 2022 г. | WOC24: СПРАВКА 015/00406/001 от 20 декабря 2022 г. | WOS24: СПРАВКА 015/00406/001 от 20 декабря 2022 г. | WPI24: СПРАВКА 015/00406/001 от 20 декабря 2022 г. | WPY24: СПРАВКА 015/00406/001 от 20 декабря 2022 г. | WQO24: СПРАВКА 015/00406/001 от 20 декабря 2022 г. | WRE24: СПРАВКА 015/00406/001 от 20 декабря 2022 г. | WRU24: СПРАВКА 015/00406/001 от 20 декабря 2022 г. | WSK24: СПРАВКА 015/00406/001 от 20 декабря 2022 г. | WTA24: СПРАВКА 015/00406/001 от 20 декабря 2022 г. | WTQ24: СПРАВКА 015/00406/001 от 20 декабря 2022 г. | WUG24: СПРАВКА 015/00406/001 от 20 декабря 2022 г. | WUW24: СПРАВКА 015/00406/001 от 20 декабря 2022 г. | WVM24: СПРАВКА 015/00406/001 от 20 декабря 2022 г. | WWC24: СПРАВКА 015/00406/001 от 20 декабря 2022 г. | WWS24: СПРАВКА 015/00406/001 от 20 декабря 2022 г. | WXI24: СПРАВКА 015/00406/001 от 20 декабря 2022 г. | WXY24: СПРАВКА 015/00406/001 от 20 декабря 2022 г. | WYO24: СПРАВКА 015/00406/001 от 20 декабря 2022 г. | WZE24: СПРАВКА 015/00406/001 от 20 декабря 2022 г. | WZU24: СПРАВКА 015/00406/001 от 20 декабря 2022 г. | XAK24: СПРАВКА 015/00406/001 от 20 декабря 2022 г. | XBA24: СПРАВКА 015/00406/001 от 20 декабря 2022 г. | XBQ24: СПРАВКА 015/00406/001 от 20 декабря 2022 г. | XCG24: СПРАВКА 015/00406/001 от 20 декабря 2022 г. | XCW24: СПРАВКА 015/00406/001 от 20 декабря 2022 г. | XDM24: СПРАВКА 015/00406/001 от 20 декабря 2022 г. | XEC24: СПРАВКА 015/00406/001 от 20 декабря 2022 г.
I25: Форма по ОКУД | J25: 0501012
I26: Дата | J26: =H19 -> 19 декабря 2023
B27: Муниципальное общеобразовательное учреждение Шуйская средняя общеобразовательная школа №1 | I27: по ОКПО | J27: 77446968
A28: Получатель бюджетных средств
A29: Распорядитель бюджетных средств | B29: Администрация Прионежского муниципального района
A30: Главный распорядитель бюджетных средств | B30: Администрация Прионежского муниципального района | I30: Глава по БК | J30: 015
A31: Наименование бюджета | B31: Бюджет Прионежского муниципального района | I31: по ОКТМО | J31: 86636470
A32: Единица измерения: | B32: руб. | I32: по ОКЕЙ | J32: 383
A33: Наименование показателя (детализация кода бюджетной классификации) | B33: РЗ | C33: ПР | D33: ЦСР | E33: Вид расхода | F33: Детализация | G33: Вид целевых средств | H33: Сумма на текущий год | I33: Сумма на первый год планового периода (руб) | J33: Сумма на второй год планового периода (руб.)
A35: 1 | B35: =SUM(A35+1) -> 2 | C35: 3 | D35: 4 | E35: 5 | F35: 6 | G35: 7 | H35: 8 | I35: 9 | J35: 10
A36: Средства местного бюджета (КЦ 1000)
A37: Заработная плата | B37: 07 | C37: 01 | D37: 0220170200 | E37: 111 | F37: 211000 | G37: 1000 | H37: 2,716,061.42 | I37: 2,716,061.42 | J37: 2,716,061.42
A38: Расходы по оплате проезда к месту отпуска и обратно отдельным категориям лиц (для лиц, работающих в районах Крайнего Севера и приравненных к ним местностях, и членов их семей) | B38: 07 | C38: 01 | D38: 0220170200 | E38: 112 | F38: 214000 | G38: 1000 | H38: 20,000.00 | I38: 20,000.00 | J38: 20,000.00
A39: Начисления на выплаты по оплате труда | B39: 07 | C39: 01 | D39: 0220170200 | E39: 119 | F39: 213000 | G39: 1000 | H39: 820,250.50 | I39: 820,250.50 | J39: 820,250.50
A40: Услуги связи (телефон) | B40: 07 | C40: 01 | D40: 0220170200 | E40: 244 | F40: 221100 | G40: 1000 | H40: 32,769.60 | I40: 34,721.88 | J40: 36,785.06
A41: Услуги связи (почта) | B41: 07 | C41: 01 | D41: 0220170200 | E41: 244 | F41: 221300 | G41: 1000 | H41: 12,000.00 | I41: 12,792.00 | J41: 13,636.27
A42: Отопление, горячее водоснабжение и газоснабжение | B42: 07 | C42: 01 | D42: 0220170200 | E42: 247 | F42: 223100 | G42: 1000 | H42: 581,744.79 | I42: 590,000.00 | J42: 590,000.00
A43: Электроэнергия | B43: 07 | C43: 01 | D43: 0220170200 | E43: 247 | F43: 223200 | G43: 1000 | H43: 1,782,695.91 | I43: 1,800,000.00 | J43: 1,972,936.91
A44: Холодное водоснабжение | B44: 07 | C44: 01 | D44: 0220170200 | E44: 244 | F44: 223300 | G44: 1000 | H44: 148,808.90 | I44: 149,000.00 | J44: 195,004.79
A45: Водоотведение | B45: 07 | C45: 01 | D45: 0220170200 | E45: 244 | F45: 223400 | G45: 1000 | H45: 155,193.20 | I45: 160,000.00 | J45: 305,051.13
A46: Вывоз бытовых отходов | B46: 07 | C46: 01 | D46: 0220170200 | E46: 244 | F46: 223500 | G46: 1000 | H46: 72,359.15 | I46: 91,926.69 | J46: 94,707.35
A47: Санитарная и противопожарная (дезинфекция, дезинсекция, дератизация, газация, огнезащитная) обработка помещений | B47: 07 | C47: 01 | D47: 0220170200 | E47: 244 | F47: 225600 | G47: 1000 | H47: 41,819.85 | I47: 42,000.00 | J47: 471,068.05
A48: Содержание и обслуживание помещений | B48: 07 | C48: 01 | D48: 0220170200 | E48: 244 | F48: 225700 | G48: 1000 | H48: 260,071.43 | I48: 232,462.14 | J48: 240,266.89
A49: Другие расходы | B49: 07 | C49: 01 | D49: 0220170200 | E49: 244 | F49: 225900 | G49: 1000 | H49: 50,000.00 | I49: 50,000.00 | J49: 50,000.00
A50: Аттестация | B50: 07 | C50: 01 | D50: 0220170200 | E50: 244 | F50: 226200 | G50: 1000 | H50: 25,000.00
A51: Ведомственная, вневедомственная, пожарная охрана | B51: 07 | C51: 01 | D51: 0220170200 | E51: 244 | F51: 226400 | G51: 1000 | H51: 103,685.75 | I51: 110,529.01 | J51: 117,823.93
A52: Медицинский осмотр работников учрежждений, за исключением водителей транспортных средств | B52: 07 | C52: 01 | D52: 0220170200 | E52: 244 | F52: 226800 | G52: 1000 | H52: 218,889.22 | I52: 277,636.10 | J52: 289,019.18
A53: Другие расходы | B53: 07 | C53: 01 | D53: 0220170200 | E53: 244 | F53: 226900 | G53: 1000 | H53: 50,000.00 | I53: 50,000.00 | J53: 50,000.00
A54: Приобретение предметов длительного пользования (оборудование, мебель,компьютерная техника и т.п.) стоимостью свыше 3000 рублей | B54: 07 | C54: 01 | D54: 0220170200 | E54: 244 | F54: 310100 | G54: 1000 | H54: 40,000.00 | I54: 40,000.00 | J54: 40,000.00
A55: Другие расходы стоимостью до 3000,00 рублей | B55: 07 | C55: 01 | D55: 0220170200 | E55: 244 | F55: 310900 | G55: 1000 | H55: 30,000.00 | I55: 30,000.00 | J55: 30,000.00
A56: Продукты питания | B56: 07 | C56: 01 | D56: 0220170200 | E56: 244 | F56: 342000 | G56: 1000 | H56: 900,000.00 | I56: 900,000.00 | J56: 900,000.00
A57: Приобретение строительных материалов | B57: 07 | C57: 01 | D57: 0220170200 | E57: 244 | F57: 344000 | G57: 1000 | H57: 20,000.00 | I57: 20,000.00 | J57: 20,000.00
A58: Увеличение стоимости прочих оборотных запасов (материалов) | B58: 07 | C58: 01 | D58: 0220170200 | E58: 244 | F58: 346000 | G58: 1000 | H58: 80,000.00 | I58: 80,000.00 | J58: 80,000.00
A59: Налог на имущество | B59: 07 | C59: 01 | D59: 0220170200 | E59: 851 | F59: 291200 | G59: 1000 | H59: 1,270,049.00 | I59: 1,270,049.00 | J59: 1,270,049.00
A60: Земельный налог | B60: 07 | C60: 01 | D60: 0220170200 | E60: 851 | F60: 291300 | G60: 1000 | H60: 16,817.00 | I60: 16,817.00 | J60: 16,817.00
A61: Итого по КЦ 1000 | H61: =SUM(H37:H60) -> 9,448,215.72 | I61: =SUM(I37:I60) -> 9,514,245.74 | J61: 10,339,477.48
A62: Средства местного бюджета (КЦ 1000)
A63: Заработная плата | B63: 07 | C63: 02 | D63: 0220270210 | E63: 111 | F63: 211000 | G63: 1000 | H63: 3,557,030.47 | I63: 3,557,030.47 | J63: 3,557,030.47
A64: Расходы по оплате проезда к месту отпуска и обратно отдельным категориям лиц (для лиц, работающих в районах Крайнего Севера и приравненных к ним местностях, и членов их семей) | B64: 07 | C64: 02 | D64: 0220270210 | E64: 112 | F64: 214000 | G64: 1000 | H64: 20,000.00 | I64: 20,000.00 | J64: 20,000.00
A65: Начисления на выплаты по оплате труда | B65: 07 | C65: 02 | D65: 0220270210 | E65: 119 | F65: 213000 | G65: 1000 | H65: 1,074,223.20 | I65: 1,074,223.20 | J65: 1,074,223.20
A66: Услуги связи (телефон) | B66: 07 | C66: 02 | D66: 0220270210 | E66: 244 | F66: 221100 | G66: 1000 | H66: 43,200.00 | I66: 52,498.80 | J66: 54,651.21
A67: Услуги связи (почта) | B67: 07 | C67: 02 | D67: 0220270210 | E67: 244 | F67: 221300 | G67: 1000 | H67: 10,000.00 | I67: 10,420.00 | J67: 10,857.60
A68: Отопление, горячее водоснабжение и газоснабжение | B68: 07 | C68: 02 | D68: 0220270210 | E68: 247 | F68: 223100 | G68: 1000 | H68: 3,220,180.98 | I68: 3,220,000.00 | J68: 3,541,852.90
A69: Электроэнергия | B69: 07 | C69: 02 | D69: 0220270210 | E69: 247 | F69: 223200 | G69: 1000 | H69: 740,097.06 | I69: 783,955.84 | J69: 810,061.29
A70: Холодное водоснабжение | B70: 07 | C70: 02 | D70: 0220270210 | E70: 244 | F70: 223300 | G70: 1000 | H70: 107,463.24 | I70: 113,811.28 | J70: 117,487.36
A71: Водоотведение | B71: 07 | C71: 02 | D71: 0220270210 | E71: 244 | F71: 223400 | G71: 1000 | H71: 112,069.73 | I71: 178,037.99 | J71: 183,788.57
A72: Вывоз бытовых отходов | B72: 07 | C72: 02 | D72: 0220270210 | E72: 244 | F72: 223500 | G72: 1000 | H72: 56,746.02 | I72: 60,076.11 | J72: 61,893.30
A73: Санитарная и противопожарная (дезинфекция, дезинсекция, дератизация, газация, огнезащитная) обработка помещений | B73: 07 | C73: 02 | D73: 0220270210 | E73: 244 | F73: 225600 | G73: 1000 | H73: 22,000.00 | I73: 15,990.00 | J73: 17,045.34
A74: Содержание, обслуживание помещений и сетей инженерно-технического обеспечения | B74: 07 | C74: 02 | D74: 0220270210 | E74: 244 | F74: 225700 | G74: 1000 | H74: 206,000.00 | I74: 214,652.00 | J74: 223,452.73
A75: Другие расходы | B75: 07 | C75: 02 | D75: 0220270210 | E75: 244 | F75: 225900 | G75: 1000 | H75: 100,000.00 | I75: 100,000.00 | J75: 100,000.00
A76: Аттестация | B76: 07 | C76: 02 | D76: 0220270210 | E76: 244 | F76: 226200 | G76: 1000
A77: Ведомственная, вневедомственная, пожарная охрана | B77: 07 | C77: 02 | D77: 0220270210 | E77: 244 | F77: 226400 | G77: 1000 | H77: 97,991.86 | I77: 64,374.72 | J77: 68,226.88
A78: Медицинский осмотр водителей транспортных средств | B78: 07 | C78: 02 | D78: 0220270210 | E78: 244 | F78: 226500 | G78: 1000 | H78: 136,275.00 | I78: 156,716.25 | J78: 180,223.69
A79: Медицинский осмотр работников учрежждений, за исключением водителей транспортных средств | B79: 07 | C79: 02 | D79: 0220270210 | E79: 244 | F79: 226800 | G79: 1000 | H79: 234,225.00 | I79: 243,828.23 | J79: 253,825.19
A80: Другие расходы | B80: 07 | C80: 02 | D80: 0220270210 | E80: 244 | F80: 226900 | G80: 1000 | H80: 100,000.00 | I80: 100,000.00 | J80: 100,000.00
A81: Обязательное страхование автогражданской ответственности | B81: 07 | C81: 02 | D81: 0220270210 | E81: 244 | F81: 227200 | G81: 1000 | H81: 12,000.00 | I81: 12,000.00 | J81: 12,000.00
A82: Приобретение предметов длительного пользования (оборудование, мебель,компьютерная техника и т.п.) стоимостью свыше 3000 рублей | B82: 07 | C82: 02 | D82: 0220270210 | E82: 244 | F82: 310100 | G82: 1000 | H82: 40,000.00 | I82: 40,000.00 | J82: 40,000.00
A83: Другие расходы стоимостью до 3000,00 рублей | B83: 07 | C83: 02 | D83: 0220270210 | E83: 244 | F83: 310900 | G83: 1000 | H83: 30,000.00 | I83: 30,000.00 | J83: 30,000.00
A84: Приобретение строительных материалов | B84: 07 | C84: 02 | D84: 0220270210 | E84: 244 | F84: 344000 | G84: 1000 | H84: 20,000.00 | I84: 20,000.00 | J84: 20,000.00
A85: Мягкий инвентарь | B85: 07 | C85: 02 | D85: 0220270210 | E85: 244 | F85: 345000 | G85: 1000 | H85: 10,000.00 | I85: 10,000.00 | J85: 10,000.00
A86: Увеличение стоимости прочих оборотных запасов (материалов) | B86: 07 | C86: 02 | D86: 0220270210 | E86: 244 | F86: 346000 | G86: 1000 | H86: 80,000.00 | I86: 80,000.00 | J86: 80,000.00
A87: Налог на имущество | B87: 07 | C87: 02 | D87: 0220270210 | E87: 851 | F87: 291200 | G87: 1000 | H87: 62,393.00 | I87: 62,393.00 | J87: 62,393.00
A88: Земельный залог | B88: 07 | C88: 02 | D88: 0220270210 | E88: 851 | F88: 291300 | G88: 1000 | H88: 36,368.00 | I88: 36,368.00 | J88: 36,368.00
A89: Транспотный налог | B89: 07 | C89: 02 | D89: 0220270210 | E89: 852 | F89: 291400 | G89: 1000 | H89: 60,590.00 | I89: 60,590.00 | J89: 60,590.00
A90: Итого по КЦ 1000 | H90: =SUM(H63:H89) -> 10,188,853.56 | I90: =SUM(I63:I89) -> 10,316,965.89 | J90: 10,725,970.73
A91: Средства, полученные от оказания платных услуг, безвозмездных поступлений (КЦ 8000)
A92: Продукты питания | B92: 07 | C92: 01 | D92: 0220170200 | E92: 244 | F92: 342000 | G92: 8000 | H92: 4,500,000.00 | I92: 4,500,000.00 | J92: 4,500,000.00
A93: Итого по КЦ 8000 | H93: =SUM(H92) -> 4,500,000.00 | I93: =SUM(I92) -> 4,500,000.00 | J93: 4,500,000.00
A94: Субвенции на обеспечение гос.гарантий реализации прав на получение общедоступного и бесплатного дошкольного образования в муниципальных дошкольных образовательных организациях, общедоступного и бесплатного дошкольного, начального общего, основного общего, среднего общего образования в муниципальных общеобразовательных организациях, обеспечение дополнительного образования детей в муниципальных общеобразовательных организациях (КЦ 24219)
A96: Заработная плата | B96: 07 | C96: 01 | D96: 0220142190 | E96: 111 | F96: 211000 | G96: 23424219000219 | H96: 20,850,907.55
A97: Начисления на выплаты по оплате труда | B97: 07 | C97: 01 | D97: 0220142190 | E97: 119 | F97: 213000 | G97: 23424219000219 | H97: 6,296,974.08
A98: Услуги связи (интернет) | B98: 07 | C98: 01 | D98: 0220142190 | E98: 244 | F98: 221200 | G98: 23424219000219 | H98: 44,000.00
A99: Итого субвенция 0701 (КЦ 24219) | H99: =SUM(H96:H98) -> 27,191,881.63 | I99: =SUM(I96:I98) -> 0.00 | J99: 0.00
A100: Заработная плата | B100: 07 | C100: 02 | D100: 0220242190 | E100: 111 | F100: 211000 | G100: 23424219000219 | H100: 30,264,082.56
A101: Начисления на выплаты по оплате труда | B101: 07 | C101: 02 | D101: 0220242190 | E101: 119 | F101: 213000 | G101: 23424219000219 | H101: 9,139,752.93
A102: Услуги связи (интернет) | B102: 07 | C102: 02 | D102: 0220242190 | E102: 244 | F102: 221200 | G102: 23424219000219 | H102: 40,000.00
A103: Мероприятия по переподготовке и повышению квалификации кадров | B103: 07 | C103: 05 | D103: 0220242190 | E103: 244 | F103: 226700 | G103: 23424219000219 | H103: 35,000.00
A104: Итого субвенция 0702 (КЦ 24219) | H104: =SUM(H100:H103) -> 39,478,835.49 | I104: =SUM(I100:I103) -> 0.00 | J104: 0.00
A105: Итого по КЦ 24219 | H105: =H99+H104 -> 66,670,717.12 | I105: =I99+I104 -> 0.00 | J105: 0.00
A106: Субсидии на проведение мероприятий по обеспечению деятельности советников директора по воспитанию и взаимодействию с детским общественными объединениями в образовательных организациях
A107: Заработная плата | B107: 07 | C107: 02 | D107: 022EВ51790 | E107: 111 | F107: 211000 | G107: 23-51790-00000-00000 | H107: 251,508.00
A108: Начисления на выплаты по оплате труда | B108: 07 | C108: 02 | D108: 022EВ51790 | E108: 119 | F108: 213000 | G108: 23-51790-00000-00000 | H108: 75,955.42
A109: Итого по КЦ 24320, 1000 | H109: =SUM(H107:H108) -> 327,463.42 | I109: =SUM(I107:I108) -> 0.00 | J109: 0.00
A110: Всего | H110: =H61+H90+H93+H105+H109 -> 91,135,249.82 | I110: =I61+I90+I93+I105+I109 -> 24,331,211.63 | J110: 25,565,448.21
A112: Директор | E112: О.В. Высоцкая
A113: (уполномоченное лицо) | B113: (подпись) | E113: (расшифровка подписи)
A115: Гл.бухгалтер МУ "ЦБ № 1" | F115: И.В. Ананьева
A116: (уполномоченное лицо) | B116: (подпись) | F116: (расшифровка подписи)
A118: Ведущий экономист ПЭО | F118: И.В. Пружинина
A119: (исполнитель) | B119: (подпись) | F119: (расшифровка подписи)

Sheet 17.01
N1: Приложение №2
N2: к Порядку составления, утверждения
N3: и ведения бюджетных смет Администрации
N4: Прионежского муниципального района
N5: и казенных учреждений, находящихся
N6: в ведении Администрации Прионежского
N7: муниципального района
N8: от 30 декабря 2022 № 1390
F9: УТВЕРЖДАЮ
F10: И.О.Главы Администрации Прионежского муниципального района
F11: (наименование должности лица, согласующего бюджетную смету)
F13: Администрация Прионежского муниципального района
F14: (наименование главного распорядителя (распорядителя) бюджетных средств; учреждения)
K16: Е.А. Кондратьева
F17: (подпись) (расшифровка подписи)
H19: 17 января 2024 г.
B21: Изменения к БЮДЖЕТНОЙ СМЕТЕ НА 2024 ФИНАНСОВЫЙ ГОД И ПЛАНОВЫЙ ПЕРИОД 2025 и 2026 ГОДОВ
B24: СПРАВКА №№015/00406/002, 015/00406/003 от | J24: =H19 -> 17 января 2024 г. | P24: КОДЫ | Y24: СПРАВКА 015/00406/001 от 20 декабря 2022 г. | AO24: СПРАВКА 015/00406/001 от 20 декабря 2022 г. | BE24: СПРАВКА 015/00406/001 от 20 декабря 2022 г. | BU24: СПРАВКА 015/00406/001 от 20 декабря 2022 г. | CK24: СПРАВКА 015/00406/001 от 20 декабря 2022 г. | DA24: СПРАВКА 015/00406/001 от 20 декабря 2022 г. | DQ24: СПРАВКА 015/00406/001 от 20 декабря 2022 г. | EG24: СПРАВКА 015/00406/001 от 20 декабря 2022 г. | EW24: СПРАВКА 015/00406/001 от 20 декабря 2022 г. | FM24: СПРАВКА 015/00406/001 от 20 декабря 2022 г. | GC24: СПРАВКА 015/00406/001 от 20 декабря 2022 г. | GS24: СПРАВКА 015/00406/001 от 20 декабря 2022 г. | HI24: СПРАВКА 015/00406/001 от 20 декабря 2022 г. | HY24: СПРАВКА 015/00406/001 от 20 декабря 2022 г. | IO24: СПРАВКА 015/00406/001 от 20 декабря 2022 г. | JE24: СПРАВКА 015/00406/001 от 20 декабря 2022 г. | JU24: СПРАВКА 015/00406/001 от 20 декабря 2022 г. | KK24: СПРАВКА 015/00406/001 от 20 декабря 2022 г. | LA24: СПРАВКА 015/00406/001 от 20 декабря 2022 г. | LQ24: СПРАВКА 015/00406/001 от 20 декабря 2022 г. | MG24: СПРАВКА 015/00406/001 от 20 декабря 2022 г. | MW24: СПРАВКА 015/00406/001 от 20 декабря 2022 г. | NM24: СПРАВКА 015/00406/001 от 20 декабря 2022 г. | OC24: СПРАВКА 015/00406/001 от 20 декабря 2022 г. | OS24: СПРАВКА 015/00406/001 от 20 декабря 2022 г. | PI24: СПРАВКА 015/00406/001 от 20 декабря 2022 г. | PY24: СПРАВКА 015/00406/001 от 20 декабря 2022 г. | QO24: СПРАВКА 015/00406/001 от 20 декабря 2022 г. | RE24: СПРАВКА 015/00406/001 от 20 декабря 2022 г. | RU24: СПРАВКА 015/00406/001 от 20 декабря 2022 г. | SK24: СПРАВКА 015/00406/001 от 20 декабря 2022 г. | TA24: СПРАВКА 015/00406/001 от 20 декабря 2022 г. | TQ24: СПРАВКА 015/00406/001 от 20 декабря 2022 г. | UG24: СПРАВКА 015/00406/001 от 20 декабря 2022 г. | UW24: СПРАВКА 015/00406/001 от 20 декабря 2022 г. | VM24: СПРАВКА 015/00406/001 от 20 декабря 2022 г. | WC24: СПРАВКА 015/00406/001 от 20 декабря 2022 г. | WS24: СПРАВКА 015/00406/001 от 20 декабря 2022 г. | XI24: СПРАВКА 015/00406/001 от 20 декабря 2022 г. | XY24: СПРАВКА 015/00406/001 от 20 декабря 2022 г. | YO24: СПРАВКА 015/00406/001 от 20 декабря 2022 г. | ZE24: СПРАВКА 015/00406/001 от 20 декабря 2022 г. | ZU24: СПРАВКА 015/00406/001 от 20 декабря 2022 г. | AAK24: СПРАВКА 015/00406/001 от 20 декабря 2022 г. | ABA24: СПРАВКА 015/00406/001 от 20 декабря 2022 г. | ABQ24: СПРАВКА 015/00406/001 от 20 декабря 2022 г. | ACG24: СПРАВКА 015/00406/001 от 20 декабря 2022 г. | ACW24: СПРАВКА 015/00406/001 от 20 декабря 2022 г. | ADM24: СПРАВКА 015/00406/001 от 20 декабря 2022 г. | AEC24: СПРАВКА 015/00406/001 от 20 декабря 2022 г. | AES24: СПРАВКА 015/00406/001 от 20 декабря 2022 г. | AFI24: СПРАВКА 015/00406/001 от 20 декабря 2022 г. | AFY24: СПРАВКА 015/00406/001 от 20 декабря 2022 г. | AGO24: СПРАВКА 015/00406/001 от 20 декабря 2022 г. | AHE24: СПРАВКА 015/00406/001 от 20 декабря 2022 г. | AHU24: СПРАВКА 015/00406/001 от 20 декабря 2022 г. | AIK24: СПРАВКА 015/00406/001 от 20 декабря 2022 г. | AJA24: СПРАВКА 015/00406/001 от 20 декабря 2022 г. | AJQ24: СПРАВКА 015/00406/001 от 20 декабря 2022 г. | AKG24: СПРАВКА 015/00406/001 от 20 декабря 2022 г. | AKW24: СПРАВКА 015/00406/001 от 20 декабря 2022 г. | ALM24: СПРАВКА 015/00406/001 от 20 декабря 2022 г. | AMC24: СПРАВКА 015/00406/001 от 20 декабря 2022 г. | AMS24: СПРАВКА 015/00406/001 от 20 декабря 2022 г. | ANI24: СПРАВКА 015/00406/001 от 20 декабря 2022 г. | ANY24: СПРАВКА 015/00406/001 от 20 декабря 2022 г. | AOO24: СПРАВКА 015/00406/001 от 20 декабря 2022 г. | APE24: СПРАВКА 015/00406/001 от 20 декабря 2022 г. | APU24: СПРАВКА 015/00406/001 от 20 декабря 2022 г. | AQK24: СПРАВКА 015/00406/001 от 20 декабря 2022 г. | ARA24: СПРАВКА 015/00406/001 от 20 декабря 2022 г. | ARQ24: СПРАВКА 015/00406/001 от 20 декабря 2022 г. | ASG24: СПРАВКА 015/00406/001 от 20 декабря 2022 г. | ASW24: СПРАВКА 015/00406/001 от 20 декабря 2022 г. | ATM24: СПРАВКА 015/00406/001 от 20 декабря 2022 г. | AUC24: СПРАВКА 015/00406/001 от 20 декабря 2022 г. | AUS24: СПРАВКА 015/00406/001 от 20 декабря 2022 г. | AVI24: СПРАВКА 015/00406/001 от 20 декабря 2022 г. | AVY24: СПРАВКА 015/00406/001 от 20 декабря 2022 г. | AWO24: СПРАВКА 015/00406/001 от 20 декабря 2022 г. | AXE24: СПРАВКА 015/00406/001 от 20 декабря 2022 г. | AXU24: СПРАВКА 015/00406/001 от 20 декабря 2022 г. | AYK24: СПРАВКА 015/00406/001 от 20 декабря 2022 г. | AZA24: СПРАВКА 015/00406/001 от 20 декабря 2022 г. | AZQ24: СПРАВКА 015/00406/001 от 20 декабря 2022 г. | BAG24: СПРАВКА 015/00406/001 от 20 декабря 2022 г. | BAW24: СПРАВКА 015/00406/001 от 20 декабря 2022 г. | BBM24: СПРАВКА 015/00406/001 от 20 декабря 2022 г. | BCC24: СПРАВКА 015/00406/001 от 20 декабря 2022 г. | BCS24: СПРАВКА 015/00406/001 от 20 декабря 2022 г. | BDI24: СПРАВКА 015/00406/001 от 20 декабря 2022 г. | BDY24: СПРАВКА 015/00406/001 от 20 декабря 2022 г. | BEO24: СПРАВКА 015/00406/001 от 20 декабря 2022 г. | BFE24: СПРАВКА 015/00406/001 от 20 декабря 2022 г. | BFU24: СПРАВКА 015/00406/001 от 20 декабря 2022 г. | BGK24: СПРАВКА 015/00406/001 от 20 декабря 2022 г. | BHA24: СПРАВКА 015/00406/001 от 20 декабря 2022 г. | BHQ24: СПРАВКА 015/00406/001 от 20 декабря 2022 г. | BIG24: СПРАВКА 015/00406/001 от 20 декабря 2022 г. | BIW24: СПРАВКА 015/00406/001 от 20 декабря 2022 г. | BJM24: СПРАВКА 015/00406/001 от 20 декабря 2022 г. | BKC24: СПРАВКА 015/00406/001 от 20 декабря 2022 г. | BKS24: СПРАВКА 015/00406/001 от 20 декабря 2022 г. | BLI24: СПРАВКА 015/00406/001 от 20 декабря 2022 г. | BLY24: СПРАВКА 015/00406/001 от 20 декабря 2022 г. | BMO24: СПРАВКА 015/00406/001 от 20 декабря 2022 г. | BNE24: СПРАВКА 015/00406/001 от 20 декабря 2022 г. | BNU24: СПРАВКА 015/00406/001 от 20 декабря 2022 г. | BOK24: СПРАВКА 015/00406/001 от 20 декабря 2022 г. | BPA24: СПРАВКА 015/00406/001 от 20 декабря 2022 г. | BPQ24: СПРАВКА 015/00406/001 от 20 декабря 2022 г. | BQG24: СПРАВКА 015/00406/001 от 20 декабря 2022 г. | BQW24: СПРАВКА 015/00406/001 от 20 декабря 2022 г. | BRM24: СПРАВКА 015/00406/001 от 20 декабря 2022 г. | BSC24: СПРАВКА 015/00406/001 от 20 декабря 2022 г. | BSS24: СПРАВКА 015/00406/001 от 20 декабря 2022 г. | BTI24: СПРАВКА 015/00406/001 от 20 декабря 2022 г. | BTY24: СПРАВКА 015/00406/001 от 20 декабря 2022 г. | BUO24: СПРАВКА 015/00406/001 от 20 декабря 2022 г. | BVE24: СПРАВКА 015/00406/001 от 20 декабря 2022 г. | BVU24: СПРАВКА 015/00406/001 от 20 декабря 2022 г. | BWK24: СПРАВКА 015/00406/001 от 20 декабря 2022 г. | BXA24: СПРАВКА 015/00406/001 от 20 декабря 2022 г. | BXQ24: СПРАВКА 015/00406/001 от 20 декабря 2022 г. | BYG24: СПРАВКА 015/00406/001 от 20 декабря 2022 г. | BYW24: СПРАВКА 015/00406/001 от 20 декабря 2022 г. | BZM24: СПРАВКА 015/00406/001 от 20 декабря 2022 г. | CAC24: СПРАВКА 015/00406/001 от 20 декабря 2022 г. | CAS24: СПРАВКА 015/00406/001 от 20 декабря 2022 г. | CBI24: СПРАВКА 015/00406/001 от 20 декабря 2022 г. | CBY24: СПРАВКА 015/00406/001 от 20 декабря 2022 г. | CCO24: СПРАВКА 015/00406/001 от 20 декабря 2022 г. | CDE24: СПРАВКА 015/00406/001 от 20 декабря 2022 г. | CDU24: СПРАВКА 015/00406/001 от 20 декабря 2022 г. | CEK24: СПРАВКА 015/00406/001 от 20 декабря 2022 г. | CFA24: СПРАВКА 015/00406/001 от 20 декабря 2022 г. | CFQ24: СПРАВКА 015/00406/001 от 20 декабря 2022 г. | CGG24: СПРАВКА 015/00406/001 от 20 декабря 2022 г. | CGW24: СПРАВКА 015/00406/001 от 20 декабря 2022 г. | CHM24: СПРАВКА 015/00406/001 от 20 декабря 2022 г. | CIC24: СПРАВКА 015/00406/001 от 20 декабря 2022 г. | CIS24: СПРАВКА 015/00406/001 от 20 декабря 2022 г. | CJI24: СПРАВКА 015/00406/001 от 20 декабря 2022 г. | CJY24: СПРАВКА 015/00406/001 от 20 декабря 2022 г. | CKO24: СПРАВКА 015/00406/001 от 20 декабря 2022 г. | CLE24: СПРАВКА 015/00406/001 от 20 декабря 2022 г. | CLU24: СПРАВКА 015/00406/001 от 20 декабря 2022 г. | CMK24: СПРАВКА 015/00406/001 от 20 декабря 2022 г. | CNA24: СПРАВКА 015/00406/001 от 20 декабря 2022 г. | CNQ24: СПРАВКА 015/00406/001 от 20 декабря 2022 г. | COG24: СПРАВКА 015/00406/001 от 20 декабря 2022 г. | COW24: СПРАВКА 015/00406/001 от 20 декабря 2022 г. | CPM24: СПРАВКА 015/00406/001 от 20 декабря 2022 г. | CQC24: СПРАВКА 015/00406/001 от 20 декабря 2022 г. | CQS24: СПРАВКА 015/00406/001 от 20 декабря 2022 г. | CRI24: СПРАВКА 015/00406/001 от 20 декабря 2022 г. | CRY24: СПРАВКА 015/00406/001 от 20 декабря 2022 г. | CSO24: СПРАВКА 015/00406/001 от 20 декабря 2022 г. | CTE24: СПРАВКА 015/00406/001 от 20 декабря 2022 г. | CTU24: СПРАВКА 015/00406/001 от 20 декабря 2022 г. | CUK24: СПРАВКА 015/00406/001 от 20 декабря 2022 г. | CVA24: СПРАВКА 015/00406/001 от 20 декабря 2022 г. | CVQ24: СПРАВКА 015/00406/001 от 20 декабря 2022 г. | CWG24: СПРАВКА 015/00406/001 от 20 декабря 2022 г. | CWW24: СПРАВКА 015/00406/001 от 20 декабря 2022 г. | CXM24: СПРАВКА 015/00406/001 от 20 декабря 2022 г. | CYC24: СПРАВКА 015/00406/001 от 20 декабря 2022 г. | CYS24: СПРАВКА 015/00406/001 от 20 декабря 2022 г. | CZI24: СПРАВКА 015/00406/001 от 20 декабря 2022 г. | CZY24: СПРАВКА 015/00406/001 от 20 декабря 2022 г. | DAO24: СПРАВКА 015/00406/001 от 20 декабря 2022 г. | DBE24: СПРАВКА 015/00406/001 от 20 декабря 2022 г. | DBU24: СПРАВКА 015/00406/001 от 20 декабря 2022 г. | DCK24: СПРАВКА 015/00406/001 от 20 декабря 2022 г. | DDA24: СПРАВКА 015/00406/001 от 20 декабря 2022 г. | DDQ24: СПРАВКА 015/00406/001 от 20 декабря 2022 г. | DEG24: СПРАВКА 015/00406/001 от 20 декабря 2022 г. | DEW24: СПРАВКА 015/00406/001 от 20 декабря 2022 г. | DFM24: СПРАВКА 015/00406/001 от 20 декабря 2022 г. | DGC24: СПРАВКА 015/00406/001 от 20 декабря 2022 г. | DGS24: СПРАВКА 015/00406/001 от 20 декабря 2022 г. | DHI24: СПРАВКА 015/00406/001 от 20 декабря 2022 г. | DHY24: СПРАВКА 015/00406/001 от 20 декабря 2022 г. | DIO24: СПРАВКА 015/00406/001 от 20 декабря 2022 г. | DJE24: СПРАВКА 015/00406/001 от 20 декабря 2022 г. | DJU24: СПРАВКА 015/00406/001 от 20 декабря 2022 г. | DKK24: СПРАВКА 015/00406/001 от 20 декабря 2022 г. | DLA24: СПРАВКА 015/00406/001 от 20 декабря 2022 г. | DLQ24: СПРАВКА 015/00406/001 от 20 декабря 2022 г. | DMG24: СПРАВКА 015/00406/001 от 20 декабря 2022 г. | DMW24: СПРАВКА 015/00406/001 от 20 декабря 2022 г. | DNM24: СПРАВКА 015/00406/001 от 20 декабря 2022 г. | DOC24: СПРАВКА 015/00406/001 от 20 декабря 2022 г. | DOS24: СПРАВКА 015/00406/001 от 20 декабря 2022 г. | DPI24: СПРАВКА 015/00406/001 от 20 декабря 2022 г. | DPY24: СПРАВКА 015/00406/001 от 20 декабря 2022 г. | DQO24: СПРАВКА 015/00406/001 от 20 декабря 2022 г. | DRE24: СПРАВКА 015/00406/001 от 20 декабря 2022 г. | DRU24: СПРАВКА 015/00406/001 от 20 декабря 2022 г. | DSK24: СПРАВКА 015/00406/001 от 20 декабря 2022 г. | DTA24: СПРАВКА 015/00406/001 от 20 декабря 2022 г. | DTQ24: СПРАВКА 015/00406/001 от 20 декабря 2022 г. | DUG24: СПРАВКА 015/00406/001 от 20 декабря 2022 г. | DUW24: СПРАВКА 015/00406/001 от 20 декабря 2022 г. | DVM24: СПРАВКА 015/00406/001 от 20 декабря 2022 г. | DWC24: СПРАВКА 015/00406/001 от 20 декабря 2022 г. | DWS24: СПРАВКА 015/00406/001 от 20 декабря 2022 г. | DXI24: СПРАВКА 015/00406/001 от 20 декабря 2022 г. | DXY24: СПРАВКА 015/00406/001 от 20 декабря 2022 г. | DYO24: СПРАВКА 015/00406/001 от 20 декабря 2022 г. | DZE24: СПРАВКА 015/00406/001 от 20 декабря 2022 г. | DZU24: СПРАВКА 015/00406/001 от 20 декабря 2022 г. | EAK24: СПРАВКА 015/00406/001 от 20 декабря 2022 г. | EBA24: СПРАВКА 015/00406/001 от 20 декабря 2022 г. | EBQ24: СПРАВКА 015/00406/001 от 20 декабря 2022 г. | ECG24: СПРАВКА 015/00406/001 от 20 декабря 2022 г. | ECW24: СПРАВКА 015/00406/001 от 20 декабря 2022 г. | EDM24: СПРАВКА 015/00406/001 от 20 декабря 2022 г. | EEC24: СПРАВКА 015/00406/001 от 20 декабря 2022 г. | EES24: СПРАВКА 015/00406/001 от 20 декабря 2022 г. | EFI24: СПРАВКА 015/00406/001 от 20 декабря 2022 г. | EFY24: СПРАВКА 015/00406/001 от 20 декабря 2022 г. | EGO24: СПРАВКА 015/00406/001 от 20 декабря 2022 г. | EHE24: СПРАВКА 015/00406/001 от 20 декабря 2022 г. | EHU24: СПРАВКА 015/00406/001 от 20 декабря 2022 г. | EIK24: СПРАВКА 015/00406/001 от 20 декабря 2022 г. | EJA24: СПРАВКА 015/00406/001 от 20 декабря 2022 г. | EJQ24: СПРАВКА 015/00406/001 от 20 декабря 2022 г. | EKG24: СПРАВКА 015/00406/001 от 20 декабря 2022 г. | EKW24: СПРАВКА 015/00406/001 от 20 декабря 2022 г. | ELM24: СПРАВКА 015/00406/001 от 20 декабря 2022 г. | EMC24: СПРАВКА 015/00406/001 от 20 декабря 2022 г. | EMS24: СПРАВКА 015/00406/001 от 20 декабря 2022 г. | ENI24: СПРАВКА 015/00406/001 от 20 декабря 2022 г. | ENY24: СПРАВКА 015/00406/001 от 20 декабря 2022 г. | EOO24: СПРАВКА 015/00406/001 от 20 декабря 2022 г. | EPE24: СПРАВКА 015/00406/001 от 20 декабря 2022 г. | EPU24: СПРАВКА 015/00406/001 от 20 декабря 2022 г. | EQK24: СПРАВКА 015/00406/001 от 20 декабря 2022 г. | ERA24: СПРАВКА 015/00406/001 от 20 декабря 2022 г. | ERQ24: СПРАВКА 015/00406/001 от 20 декабря 2022 г. | ESG24: СПРАВКА 015/00406/001 от 20 декабря 2022 г. | ESW24: СПРАВКА 015/00406/001 от 20 декабря 2022 г. | ETM24: СПРАВКА 015/00406/001 от 20 декабря 2022 г. | EUC24: СПРАВКА 015/00406/001 от 20 декабря 2022 г. | EUS24: СПРАВКА 015/00406/001 от 20 декабря 2022 г. | EVI24: СПРАВКА 015/00406/001 от 20 декабря 2022 г. | EVY24: СПРАВКА 015/00406/001 от 20 декабря 2022 г. | EWO24: СПРАВКА 015/00406/001 от 20 декабря 2022 г. | EXE24: СПРАВКА 015/00406/001 от 20 декабря 2022 г. | EXU24: СПРАВКА 015/00406/001 от 20 декабря 2022 г. | EYK24: СПРАВКА 015/00406/001 от 20 декабря 2022 г. | EZA24: СПРАВКА 015/00406/001 от 20 декабря 2022 г. | EZQ24: СПРАВКА 015/00406/001 от 20 декабря 2022 г. | FAG24: СПРАВКА 015/00406/001 от 20 декабря 2022 г. | FAW24: СПРАВКА 015/00406/001 от 20 декабря 2022 г. | FBM24: СПРАВКА 015/00406/001 от 20 декабря 2022 г. | FCC24: СПРАВКА 015/00406/001 от 20 декабря 2022 г. | FCS24: СПРАВКА 015/00406/001 от 20 декабря 2022 г. | FDI24: СПРАВКА 015/00406/001 от 20 декабря 2022 г. | FDY24: СПРАВКА 015/00406/001 от 20 декабря 2022 г. | FEO24: СПРАВКА 015/00406/001 от 20 декабря 2022 г. | FFE24: СПРАВКА 015/00406/001 от 20 декабря 2022 г. | FFU24: СПРАВКА 015/00406/001 от 20 декабря 2022 г. | FGK24: СПРАВКА 015/00406/001 от 20 декабря 2022 г. | FHA24: СПРАВКА 015/00406/001 от 20 декабря 2022 г. | FHQ24: СПРАВКА 015/00406/001 от 20 декабря 2022 г. | FIG24: СПРАВКА 015/00406/001 от 20 декабря 2022 г. | FIW24: СПРАВКА 015/00406/001 от 20 декабря 2022 г. | FJM24: СПРАВКА 015/00406/001 от 20 декабря 2022 г. | FKC24: СПРАВКА 015/00406/001 от 20 декабря 2022 г. | FKS24: СПРАВКА 015/00406/001 от 20 декабря 2022 г. | FLI24: СПРАВКА 015/00406/001 от 20 декабря 2022 г. | FLY24: СПРАВКА 015/00406/001 от 20 декабря 2022 г. | FMO24: СПРАВКА 015/00406/001 от 20 декабря 2022 г. | FNE24: СПРАВКА 015/00406/001 от 20 декабря 2022 г. | FNU24: СПРАВКА 015/00406/001 от 20 декабря 2022 г. | FOK24: СПРАВКА 015/00406/001 от 20 декабря 2022 г. | FPA24: СПРАВКА 015/00406/001 от 20 декабря 2022 г. | FPQ24: СПРАВКА 015/00406/001 от 20 декабря 2022 г. | FQG24: СПРАВКА 015/00406/001 от 20 декабря 2022 г. | FQW24: СПРАВКА 015/00406/001 от 20 декабря 2022 г. | FRM24: СПРАВКА 015/00406/001 от 20 декабря 2022 г. | FSC24: СПРАВКА 015/00406/001 от 20 декабря 2022 г. | FSS24: СПРАВКА 015/00406/001 от 20 декабря 2022 г. | FTI24: СПРАВКА 015/00406/001 от 20 декабря 2022 г. | FTY24: СПРАВКА 015/00406/001 от 20 декабря 2022 г. | FUO24: СПРАВКА 015/00406/001 от 20 декабря 2022 г. | FVE24: СПРАВКА 015/00406/001 от 20 декабря 2022 г. | FVU24: СПРАВКА 015/00406/001 от 20 декабря 2022 г. | FWK24: СПРАВКА 015/00406/001 от 20 декабря 2022 г. | FXA24: СПРАВКА 015/00406/001 от 20 декабря 2022 г. | FXQ24: СПРАВКА 015/00406/001 от 20 декабря 2022 г. | FYG24: СПРАВКА 015/00406/001 от 20 декабря 2022 г. | FYW24: СПРАВКА 015/00406/001 от 20 декабря 2022 г. | FZM24: СПРАВКА 015/00406/001 от 20 декабря 2022 г. | GAC24: СПРАВКА 015/00406/001 от 20 декабря 2022 г. | GAS24: СПРАВКА 015/00406/001 от 20 декабря 2022 г. | GBI24: СПРАВКА 015/00406/001 от 20 декабря 2022 г. | GBY24: СПРАВКА 015/00406/001 от 20 декабря 2022 г. | GCO24: СПРАВКА 015/00406/001 от 20 декабря 2022 г. | GDE24: СПРАВКА 015/00406/001 от 20 декабря 2022 г. | GDU24: СПРАВКА 015/00406/001 от 20 декабря 2022 г. | GEK24: СПРАВКА 015/00406/001 от 20 декабря 2022 г. | GFA24: СПРАВКА 015/00406/001 от 20 декабря 2022 г. | GFQ24: СПРАВКА 015/00406/001 от 20 декабря 2022 г. | GGG24: СПРАВКА 015/00406/001 от 20 декабря 2022 г. | GGW24: СПРАВКА 015/00406/001 от 20 декабря 2022 г. | GHM24: СПРАВКА 015/00406/001 от 20 декабря 2022 г. | GIC24: СПРАВКА 015/00406/001 от 20 декабря 2022 г. | GIS24: СПРАВКА 015/00406/001 от 20 декабря 2022 г. | GJI24: СПРАВКА 015/00406/001 от 20 декабря 2022 г. | GJY24: СПРАВКА 015/00406/001 от 20 декабря 2022 г. | GKO24: СПРАВКА 015/00406/001 от 20 декабря 2022 г. | GLE24: СПРАВКА 015/00406/001 от 20 декабря 2022 г. | GLU24: СПРАВКА 015/00406/001 от 20 декабря 2022 г. | GMK24: СПРАВКА 015/00406/001 от 20 декабря 2022 г. | GNA24: СПРАВКА 015/00406/001 от 20 декабря 2022 г. | GNQ24: СПРАВКА 015/00406/001 от 20 декабря 2022 г. | GOG24: СПРАВКА 015/00406/001 от 20 декабря 2022 г. | GOW24: СПРАВКА 015/00406/001 от 20 декабря 2022 г. | GPM24: СПРАВКА 015/00406/001 от 20 декабря 2022 г. | GQC24: СПРАВКА 015/00406/001 от 20 декабря 2022 г. | GQS24: СПРАВКА 015/00406/001 от 20 декабря 2022 г. | GRI24: СПРАВКА 015/00406/001 от 20 декабря 2022 г. | GRY24: СПРАВКА 015/00406/001 от 20 декабря 2022 г. | GSO24: СПРАВКА 015/00406/001 от 20 декабря 2022 г. | GTE24: СПРАВКА 015/00406/001 от 20 декабря 2022 г. | GTU24: СПРАВКА 015/00406/001 от 20 декабря 2022 г. | GUK24: СПРАВКА 015/00406/001 от 20 декабря 2022 г. | GVA24: СПРАВКА 015/00406/001 от 20 декабря 2022 г. | GVQ24: СПРАВКА 015/00406/001 от 20 декабря 2022 г. | GWG24: СПРАВКА 015/00406/001 от 20 декабря 2022 г. | GWW24: СПРАВКА 015/00406/001 от 20 декабря 2022 г. | GXM24: СПРАВКА 015/00406/001 от 20 декабря 2022 г. | GYC24: СПРАВКА 015/00406/001 от 20 декабря 2022 г. | GYS24: СПРАВКА 015/00406/001 от 20 декабря 2022 г. | GZI24: СПРАВКА 015/00406/001 от 20 декабря 2022 г. | GZY24: СПРАВКА 015/00406/001 от 20 декабря 2022 г. | HAO24: СПРАВКА 015/00406/001 от 20 декабря 2022 г. | HBE24: СПРАВКА 015/00406/001 от 20 декабря 2022 г. | HBU24: СПРАВКА 015/00406/001 от 20 декабря 2022 г. | HCK24: СПРАВКА 015/00406/001 от 20 декабря 2022 г. | HDA24: СПРАВКА 015/00406/001 от 20 декабря 2022 г. | HDQ24: СПРАВКА 015/00406/001 от 20 декабря 2022 г. | HEG24: СПРАВКА 015/00406/001 от 20 декабря 2022 г. | HEW24: СПРАВКА 015/00406/001 от 20 декабря 2022 г. | HFM24: СПРАВКА 015/00406/001 от 20 декабря 2022 г. | HGC24: СПРАВКА 015/00406/001 от 20 декабря 2022 г. | HGS24: СПРАВКА 015/00406/001 от 20 декабря 2022 г. | HHI24: СПРАВКА 015/00406/001 от 20 декабря 2022 г. | HHY24: СПРАВКА 015/00406/001 от 20 декабря 2022 г. | HIO24: СПРАВКА 015/00406/001 от 20 декабря 2022 г. | HJE24: СПРАВКА 015/00406/001 от 20 декабря 2022 г. | HJU24: СПРАВКА 015/00406/001 от 20 декабря 2022 г. | HKK24: СПРАВКА 015/00406/001 от 20 декабря 2022 г. | HLA24: СПРАВКА 015/00406/001 от 20 декабря 2022 г. | HLQ24: СПРАВКА 015/00406/001 от 20 декабря 2022 г. | HMG24: СПРАВКА 015/00406/001 от 20 декабря 2022 г. | HMW24: СПРАВКА 015/00406/001 от 20 декабря 2022 г. | HNM24: СПРАВКА 015/00406/001 от 20 декабря 2022 г. | HOC24: СПРАВКА 015/00406/001 от 20 декабря 2022 г. | HOS24: СПРАВКА 015/00406/001 от 20 декабря 2022 г. | HPI24: СПРАВКА 015/00406/001 от 20 декабря 2022 г. | HPY24: СПРАВКА 015/00406/001 от 20 декабря 2022 г. | HQO24: СПРАВКА 015/00406/001 от 20 декабря 2022 г. | HRE24: СПРАВКА 015/00406/001 от 20 декабря 2022 г. | HRU24: СПРАВКА 015/00406/001 от 20 декабря 2022 г. | HSK24: СПРАВКА 015/00406/001 от 20 декабря 2022 г. | HTA24: СПРАВКА 015/00406/001 от 20 декабря 2022 г. | HTQ24: СПРАВКА 015/00406/001 от 20 декабря 2022 г. | HUG24: СПРАВКА 015/00406/001 от 20 декабря 2022 г. | HUW24: СПРАВКА 015/00406/001 от 20 декабря 2022 г. | HVM24: СПРАВКА 015/00406/001 от 20 декабря 2022 г. | HWC24: СПРАВКА 015/00406/001 от 20 декабря 2022 г. | HWS24: СПРАВКА 015/00406/001 от 20 декабря 2022 г. | HXI24: СПРАВКА 015/00406/001 от 20 декабря 2022 г. | HXY24: СПРАВКА 015/00406/001 от 20 декабря 2022 г. | HYO24: СПРАВКА 015/00406/001 от 20 декабря 2022 г. | HZE24: СПРАВКА 015/00406/001 от 20 декабря 2022 г. | HZU24: СПРАВКА 015/00406/001 от 20 декабря 2022 г. | IAK24: СПРАВКА 015/00406/001 от 20 декабря 2022 г. | IBA24: СПРАВКА 015/00406/001 от 20 декабря 2022 г. | IBQ24: СПРАВКА 015/00406/001 от 20 декабря 2022 г. | ICG24: СПРАВКА 015/00406/001 от 20 декабря 2022 г. | ICW24: СПРАВКА 015/00406/001 от 20 декабря 2022 г. | IDM24: СПРАВКА 015/00406/001 от 20 декабря 2022 г. | IEC24: СПРАВКА 015/00406/001 от 20 декабря 2022 г. | IES24: СПРАВКА 015/00406/001 от 20 декабря 2022 г. | IFI24: СПРАВКА 015/00406/001 от 20 декабря 2022 г. | IFY24: СПРАВКА 015/00406/001 от 20 декабря 2022 г. | IGO24: СПРАВКА 015/00406/001 от 20 декабря 2022 г. | IHE24: СПРАВКА 015/00406/001 от 20 декабря 2022 г. | IHU24: СПРАВКА 015/00406/001 от 20 декабря 2022 г. | IIK24: СПРАВКА 015/00406/001 от 20 декабря 2022 г. | IJA24: СПРАВКА 015/00406/001 от 20 декабря 2022 г. | IJQ24: СПРАВКА 015/00406/001 от 20 декабря 2022 г. | IKG24: СПРАВКА 015/00406/001 от 20 декабря 2022 г. | IKW24: СПРАВКА 015/00406/001 от 20 декабря 2022 г. | ILM24: СПРАВКА 015/00406/001 от 20 декабря 2022 г. | IMC24: СПРАВКА 015/00406/001 от 20 декабря 2022 г. | IMS24: СПРАВКА 015/00406/001 от 20 декабря 2022 г. | INI24: СПРАВКА 015/00406/001 от 20 декабря 2022 г. | INY24: СПРАВКА 015/00406/001 от 20 декабря 2022 г. | IOO24: СПРАВКА 015/00406/001 от 20 декабря 2022 г. | IPE24: СПРАВКА 015/00406/001 от 20 декабря 2022 г. | IPU24: СПРАВКА 015/00406/001 от 20 декабря 2022 г. | IQK24: СПРАВКА 015/00406/001 от 20 декабря 2022 г. | IRA24: СПРАВКА 015/00406/001 от 20 декабря 2022 г. | IRQ24: СПРАВКА 015/00406/001 от 20 декабря 2022 г. | ISG24: СПРАВКА 015/00406/001 от 20 декабря 2022 г. | ISW24: СПРАВКА 015/00406/001 от 20 декабря 2022 г. | ITM24: СПРАВКА 015/00406/001 от 20 декабря 2022 г. | IUC24: СПРАВКА 015/00406/001 от 20 декабря 2022 г. | IUS24: СПРАВКА 015/00406/001 от 20 декабря 2022 г. | IVI24: СПРАВКА 015/00406/001 от 20 декабря 2022 г. | IVY24: СПРАВКА 015/00406/001 от 20 декабря 2022 г. | IWO24: СПРАВКА 015/00406/001 от 20 декабря 2022 г. | IXE24: СПРАВКА 015/00406/001 от 20 декабря 2022 г. | IXU24: СПРАВКА 015/00406/001 от 20 декабря 2022 г. | IYK24: СПРАВКА 015/00406/001 от 20 декабря 2022 г. | IZA24: СПРАВКА 015/00406/001 от 20 декабря 2022 г. | IZQ24: СПРАВКА 015/00406/001 от 20 декабря 2022 г. | JAG24: СПРАВКА 015/00406/001 от 20 декабря 2022 г. | JAW24: СПРАВКА 015/00406/001 от 20 декабря 2022 г. | JBM24: СПРАВКА 015/00406/001 от 20 декабря 2022 г. | JCC24: СПРАВКА 015/00406/001 от 20 декабря 2022 г. | JCS24: СПРАВКА 015/00406/001 от 20 декабря 2022 г. | JDI24: СПРАВКА 015/00406/001 от 20 декабря 2022 г. | JDY24: СПРАВКА 015/00406/001 от 20 декабря 2022 г. | JEO24: СПРАВКА 015/00406/001 от 20 декабря 2022 г. | JFE24: СПРАВКА 015/00406/001 от 20 декабря 2022 г. | JFU24: СПРАВКА 015/00406/001 от 20 декабря 2022 г. | JGK24: СПРАВКА 015/00406/001 от 20 декабря 2022 г. | JHA24: СПРАВКА 015/00406/001 от 20 декабря 2022 г. | JHQ24: СПРАВКА 015/00406/001 от 20 декабря 2022 г. | JIG24: СПРАВКА 015/00406/001 от 20 декабря 2022 г. | JIW24: СПРАВКА 015/00406/001 от 20 декабря 2022 г. | JJM24: СПРАВКА 015/00406/001 от 20 декабря 2022 г. | JKC24: СПРАВКА 015/00406/001 от 20 декабря 2022 г. | JKS24: СПРАВКА 015/00406/001 от 20 декабря 2022 г. | JLI24: СПРАВКА 015/00406/001 от 20 декабря 2022 г. | JLY24: СПРАВКА 015/00406/001 от 20 декабря 2022 г. | JMO24: СПРАВКА 015/00406/001 от 20 декабря 2022 г. | JNE24: СПРАВКА 015/00406/001 от 20 декабря 2022 г. | JNU24: СПРАВКА 015/00406/001 от 20 декабря 2022 г. | JOK24: СПРАВКА 015/00406/001 от 20 декабря 2022 г. | JPA24: СПРАВКА 015/00406/001 от 20 декабря 2022 г. | JPQ24: СПРАВКА 015/00406/001 от 20 декабря 2022 г. | JQG24: СПРАВКА 015/00406/001 от 20 декабря 2022 г. | JQW24: СПРАВКА 015/00406/001 от 20 декабря 2022 г. | JRM24: СПРАВКА 015/00406/001 от 20 декабря 2022 г. | JSC24: СПРАВКА 015/00406/001 от 20 декабря 2022 г. | JSS24: СПРАВКА 015/00406/001 от 20 декабря 2022 г. | JTI24: СПРАВКА 015/00406/001 от 20 декабря 2022 г. | JTY24: СПРАВКА 015/00406/001 от 20 декабря 2022 г. | JUO24: СПРАВКА 015/00406/001 от 20 декабря 2022 г. | JVE24: СПРАВКА 015/00406/001 от 20 декабря 2022 г. | JVU24: СПРАВКА 015/00406/001 от 20 декабря 2022 г. | JWK24: СПРАВКА 015/00406/001 от 20 декабря 2022 г. | JXA24: СПРАВКА 015/00406/001 от 20 декабря 2022 г. | JXQ24: СПРАВКА 015/00406/001 от 20 декабря 2022 г. | JYG24: СПРАВКА 015/00406/001 от 20 декабря 2022 г. | JYW24: СПРАВКА 015/00406/001 от 20 декабря 2022 г. | JZM24: СПРАВКА 015/00406/001 от 20 декабря 2022 г. | KAC24: СПРАВКА 015/00406/001 от 20 декабря 2022 г. | KAS24: СПРАВКА 015/00406/001 от 20 декабря 2022 г. | KBI24: СПРАВКА 015/00406/001 от 20 декабря 2022 г. | KBY24: СПРАВКА 015/00406/001 от 20 декабря 2022 г. | KCO24: СПРАВКА 015/00406/001 от 20 декабря 2022 г. | KDE24: СПРАВКА 015/00406/001 от 20 декабря 2022 г. | KDU24: СПРАВКА 015/00406/001 от 20 декабря 2022 г. | KEK24: СПРАВКА 015/00406/001 от 20 декабря 2022 г. | KFA24: СПРАВКА 015/00406/001 от 20 декабря 2022 г. | KFQ24: СПРАВКА 015/00406/001 от 20 декабря 2022 г. | KGG24: СПРАВКА 015/00406/001 от 20 декабря 2022 г. | KGW24: СПРАВКА 015/00406/001 от 20 декабря 2022 г. | KHM24: СПРАВКА 015/00406/001 от 20 декабря 2022 г. | KIC24: СПРАВКА 015/00406/001 от 20 декабря 2022 г. | KIS24: СПРАВКА 015/00406/001 от 20 декабря 2022 г. | KJI24: СПРАВКА 015/00406/001 от 20 декабря 2022 г. | KJY24: СПРАВКА 015/00406/001 от 20 декабря 2022 г. | KKO24: СПРАВКА 015/00406/001 от 20 декабря 2022 г. | KLE24: СПРАВКА 015/00406/001 от 20 декабря 2022 г. | KLU24: СПРАВКА 015/00406/001 от 20 декабря 2022 г. | KMK24: СПРАВКА 015/00406/001 от 20 декабря 2022 г. | KNA24: СПРАВКА 015/00406/001 от 20 декабря 2022 г. | KNQ24: СПРАВКА 015/00406/001 от 20 декабря 2022 г. | KOG24: СПРАВКА 015/00406/001 от 20 декабря 2022 г. | KOW24: СПРАВКА 015/00406/001 от 20 декабря 2022 г. | KPM24: СПРАВКА 015/00406/001 от 20 декабря 2022 г. | KQC24: СПРАВКА 015/00406/001 от 20 декабря 2022 г. | KQS24: СПРАВКА 015/00406/001 от 20 декабря 2022 г. | KRI24: СПРАВКА 015/00406/001 от 20 декабря 2022 г. | KRY24: СПРАВКА 015/00406/001 от 20 декабря 2022 г. | KSO24: СПРАВКА 015/00406/001 от 20 декабря 2022 г. | KTE24: СПРАВКА 015/00406/001 от 20 декабря 2022 г. | KTU24: СПРАВКА 015/00406/001 от 20 декабря 2022 г. | KUK24: СПРАВКА 015/00406/001 от 20 декабря 2022 г. | KVA24: СПРАВКА 015/00406/001 от 20 декабря 2022 г. | KVQ24: СПРАВКА 015/00406/001 от 20 декабря 2022 г. | KWG24: СПРАВКА 015/00406/001 от 20 декабря 2022 г. | KWW24: СПРАВКА 015/00406/001 от 20 декабря 2022 г. | KXM24: СПРАВКА 015/00406/001 от 20 декабря 2022 г. | KYC24: СПРАВКА 015/00406/001 от 20 декабря 2022 г. | KYS24: СПРАВКА 015/00406/001 от 20 декабря 2022 г. | KZI24: СПРАВКА 015/00406/001 от 20 декабря 2022 г. | KZY24: СПРАВКА 015/00406/001 от 20 декабря 2022 г. | LAO24: СПРАВКА 015/00406/001 от 20 декабря 2022 г. | LBE24: СПРАВКА 015/00406/001 от 20 декабря 2022 г. | LBU24: СПРАВКА 015/00406/001 от 20 декабря 2022 г. | LCK24: СПРАВКА 015/00406/001 от 20 декабря 2022 г. | LDA24: СПРАВКА 015/00406/001 от 20 декабря 2022 г. | LDQ24: СПРАВКА 015/00406/001 от 20 декабря 2022 г. | LEG24: СПРАВКА 015/00406/001 от 20 декабря 2022 г. | LEW24: СПРАВКА 015/00406/001 от 20 декабря 2022 г. | LFM24: СПРАВКА 015/00406/001 от 20 декабря 2022 г. | LGC24: СПРАВКА 015/00406/001 от 20 декабря 2022 г. | LGS24: СПРАВКА 015/00406/001 от 20 декабря 2022 г. | LHI24: СПРАВКА 015/00406/001 от 20 декабря 2022 г. | LHY24: СПРАВКА 015/00406/001 от 20 декабря 2022 г. | LIO24: СПРАВКА 015/00406/001 от 20 декабря 2022 г. | LJE24: СПРАВКА 015/00406/001 от 20 декабря 2022 г. | LJU24: СПРАВКА 015/00406/001 от 20 декабря 2022 г. | LKK24: СПРАВКА 015/00406/001 от 20 декабря 2022 г. | LLA24: СПРАВКА 015/00406/001 от 20 декабря 2022 г. | LLQ24: СПРАВКА 015/00406/001 от 20 декабря 2022 г. | LMG24: СПРАВКА 015/00406/001 от 20 декабря 2022 г. | LMW24: СПРАВКА 015/00406/001 от 20 декабря 2022 г. | LNM24: СПРАВКА 015/00406/001 от 20 декабря 2022 г. | LOC24: СПРАВКА 015/00406/001 от 20 декабря 2022 г. | LOS24: СПРАВКА 015/00406/001 от 20 декабря 2022 г. | LPI24: СПРАВКА 015/00406/001 от 20 декабря 2022 г. | LPY24: СПРАВКА 015/00406/001 от 20 декабря 2022 г. | LQO24: СПРАВКА 015/00406/001 от 20 декабря 2022 г. | LRE24: СПРАВКА 015/00406/001 от 20 декабря 2022 г. | LRU24: СПРАВКА 015/00406/001 от 20 декабря 2022 г. | LSK24: СПРАВКА 015/00406/001 от 20 декабря 2022 г. | LTA24: СПРАВКА 015/00406/001 от 20 декабря 2022 г. | LTQ24: СПРАВКА 015/00406/001 от 20 декабря 2022 г. | LUG24: СПРАВКА 015/00406/001 от 20 декабря 2022 г. | LUW24: СПРАВКА 015/00406/001 от 20 декабря 2022 г. | LVM24: СПРАВКА 015/00406/001 от 20 декабря 2022 г. | LWC24: СПРАВКА 015/00406/001 от 20 декабря 2022 г. | LWS24: СПРАВКА 015/00406/001 от 20 декабря 2022 г. | LXI24: СПРАВКА 015/00406/001 от 20 декабря 2022 г. | LXY24: СПРАВКА 015/00406/001 от 20 декабря 2022 г. | LYO24: СПРАВКА 015/00406/001 от 20 декабря 2022 г. | LZE24: СПРАВКА 015/00406/001 от 20 декабря 2022 г. | LZU24: СПРАВКА 015/00406/001 от 20 декабря 2022 г. | MAK24: СПРАВКА 015/00406/001 от 20 декабря 2022 г. | MBA24: СПРАВКА 015/00406/001 от 20 декабря 2022 г. | MBQ24: СПРАВКА 015/00406/001 от 20 декабря 2022 г. | MCG24: СПРАВКА 015/00406/001 от 20 декабря 2022 г. | MCW24: СПРАВКА 015/00406/001 от 20 декабря 2022 г. | MDM24: СПРАВКА 015/00406/001 от 20 декабря 2022 г. | MEC24: СПРАВКА 015/00406/001 от 20 декабря 2022 г. | MES24: СПРАВКА 015/00406/001 от 20 декабря 2022 г. | MFI24: СПРАВКА 015/00406/001 от 20 декабря 2022 г. | MFY24: СПРАВКА 015/00406/001 от 20 декабря 2022 г. | MGO24: СПРАВКА 015/00406/001 от 20 декабря 2022 г. | MHE24: СПРАВКА 015/00406/001 от 20 декабря 2022 г. | MHU24: СПРАВКА 015/00406/001 от 20 декабря 2022 г. | MIK24: СПРАВКА 015/00406/001 от 20 декабря 2022 г. | MJA24: СПРАВКА 015/00406/001 от 20 декабря 2022 г. | MJQ24: СПРАВКА 015/00406/001 от 20 декабря 2022 г. | MKG24: СПРАВКА 015/00406/001 от 20 декабря 2022 г. | MKW24: СПРАВКА 015/00406/001 от 20 декабря 2022 г. | MLM24: СПРАВКА 015/00406/001 от 20 декабря 2022 г. | MMC24: СПРАВКА 015/00406/001 от 20 декабря 2022 г. | MMS24: СПРАВКА 015/00406/001 от 20 декабря 2022 г. | MNI24: СПРАВКА 015/00406/001 от 20 декабря 2022 г. | MNY24: СПРАВКА 015/00406/001 от 20 декабря 2022 г. | MOO24: СПРАВКА 015/00406/001 от 20 декабря 2022 г. | MPE24: СПРАВКА 015/00406/001 от 20 декабря 2022 г. | MPU24: СПРАВКА 015/00406/001 от 20 декабря 2022 г. | MQK24: СПРАВКА 015/00406/001 от 20 декабря 2022 г. | MRA24: СПРАВКА 015/00406/001 от 20 декабря 2022 г. | MRQ24: СПРАВКА 015/00406/001 от 20 декабря 2022 г. | MSG24: СПРАВКА 015/00406/001 от 20 декабря 2022 г. | MSW24: СПРАВКА 015/00406/001 от 20 декабря 2022 г. | MTM24: СПРАВКА 015/00406/001 от 20 декабря 2022 г. | MUC24: СПРАВКА 015/00406/001 от 20 декабря 2022 г. | MUS24: СПРАВКА 015/00406/001 от 20 декабря 2022 г. | MVI24: СПРАВКА 015/00406/001 от 20 декабря 2022 г. | MVY24: СПРАВКА 015/00406/001 от 20 декабря 2022 г. | MWO24: СПРАВКА 015/00406/001 от 20 декабря 2022 г. | MXE24: СПРАВКА 015/00406/001 от 20 декабря 2022 г. | MXU24: СПРАВКА 015/00406/001 от 20 декабря 2022 г. | MYK24: СПРАВКА 015/00406/001 от 20 декабря 2022 г. | MZA24: СПРАВКА 015/00406/001 от 20 декабря 2022 г. | MZQ24: СПРАВКА 015/00406/001 от 20 декабря 2022 г. | NAG24: СПРАВКА 015/00406/001 от 20 декабря 2022 г. | NAW24: СПРАВКА 015/00406/001 от 20 декабря 2022 г. | NBM24: СПРАВКА 015/00406/001 от 20 декабря 2022 г. | NCC24: СПРАВКА 015/00406/001 от 20 декабря 2022 г. | NCS24: СПРАВКА 015/00406/001 от 20 декабря 2022 г. | NDI24: СПРАВКА 015/00406/001 от 20 декабря 2022 г. | NDY24: СПРАВКА 015/00406/001 от 20 декабря 2022 г. | NEO24: СПРАВКА 015/00406/001 от 20 декабря 2022 г. | NFE24: СПРАВКА 015/00406/001 от 20 декабря 2022 г. | NFU24: СПРАВКА 015/00406/001 от 20 декабря 2022 г. | NGK24: СПРАВКА 015/00406/001 от 20 декабря 2022 г. | NHA24: СПРАВКА 015/00406/001 от 20 декабря 2022 г. | NHQ24: СПРАВКА 015/00406/001 от 20 декабря 2022 г. | NIG24: СПРАВКА 015/00406/001 от 20 декабря 2022 г. | NIW24: СПРАВКА 015/00406/001 от 20 декабря 2022 г. | NJM24: СПРАВКА 015/00406/001 от 20 декабря 2022 г. | NKC24: СПРАВКА 015/00406/001 от 20 декабря 2022 г. | NKS24: СПРАВКА 015/00406/001 от 20 декабря 2022 г. | NLI24: СПРАВКА 015/00406/001 от 20 декабря 2022 г. | NLY24: СПРАВКА 015/00406/001 от 20 декабря 2022 г. | NMO24: СПРАВКА 015/00406/001 от 20 декабря 2022 г. | NNE24: СПРАВКА 015/00406/001 от 20 декабря 2022 г. | NNU24: СПРАВКА 015/00406/001 от 20 декабря 2022 г. | NOK24: СПРАВКА 015/00406/001 от 20 декабря 2022 г. | NPA24: СПРАВКА 015/00406/001 от 20 декабря 2022 г. | NPQ24: СПРАВКА 015/00406/001 от 20 декабря 2022 г. | NQG24: СПРАВКА 015/00406/001 от 20 декабря 2022 г. | NQW24: СПРАВКА 015/00406/001 от 20 декабря 2022 г. | NRM24: СПРАВКА 015/00406/001 от 20 декабря 2022 г. | NSC24: СПРАВКА 015/00406/001 от 20 декабря 2022 г. | NSS24: СПРАВКА 015/00406/001 от 20 декабря 2022 г. | NTI24: СПРАВКА 015/00406/001 от 20 декабря 2022 г. | NTY24: СПРАВКА 015/00406/001 от 20 декабря 2022 г. | NUO24: СПРАВКА 015/00406/001 от 20 декабря 2022 г. | NVE24: СПРАВКА 015/00406/001 от 20 декабря 2022 г. | NVU24: СПРАВКА 015/00406/001 от 20 декабря 2022 г. | NWK24: СПРАВКА 015/00406/001 от 20 декабря 2022 г. | NXA24: СПРАВКА 015/00406/001 от 20 декабря 2022 г. | NXQ24: СПРАВКА 015/00406/001 от 20 декабря 2022 г. | NYG24: СПРАВКА 015/00406/001 от 20 декабря 2022 г. | NYW24: СПРАВКА 015/00406/001 от 20 декабря 2022 г. | NZM24: СПРАВКА 015/00406/001 от 20 декабря 2022 г. | OAC24: СПРАВКА 015/00406/001 от 20 декабря 2022 г. | OAS24: СПРАВКА 015/00406/001 от 20 декабря 2022 г. | OBI24: СПРАВКА 015/00406/001 от 20 декабря 2022 г. | OBY24: СПРАВКА 015/00406/001 от 20 декабря 2022 г. | OCO24: СПРАВКА 015/00406/001 от 20 декабря 2022 г. | ODE24: СПРАВКА 015/00406/001 от 20 декабря 2022 г. | ODU24: СПРАВКА 015/00406/001 от 20 декабря 2022 г. | OEK24: СПРАВКА 015/00406/001 от 20 декабря 2022 г. | OFA24: СПРАВКА 015/00406/001 от 20 декабря 2022 г. | OFQ24: СПРАВКА 015/00406/001 от 20 декабря 2022 г. | OGG24: СПРАВКА 015/00406/001 от 20 декабря 2022 г. | OGW24: СПРАВКА 015/00406/001 от 20 декабря 2022 г. | OHM24: СПРАВКА 015/00406/001 от 20 декабря 2022 г. | OIC24: СПРАВКА 015/00406/001 от 20 декабря 2022 г. | OIS24: СПРАВКА 015/00406/001 от 20 декабря 2022 г. | OJI24: СПРАВКА 015/00406/001 от 20 декабря 2022 г. | OJY24: СПРАВКА 015/00406/001 от 20 декабря 2022 г. | OKO24: СПРАВКА 015/00406/001 от 20 декабря 2022 г. | OLE24: СПРАВКА 015/00406/001 от 20 декабря 2022 г. | OLU24: СПРАВКА 015/00406/001 от 20 декабря 2022 г. | OMK24: СПРАВКА 015/00406/001 от 20 декабря 2022 г. | ONA24: СПРАВКА 015/00406/001 от 20 декабря 2022 г. | ONQ24: СПРАВКА 015/00406/001 от 20 декабря 2022 г. | OOG24: СПРАВКА 015/00406/001 от 20 декабря 2022 г. | OOW24: СПРАВКА 015/00406/001 от 20 декабря 2022 г. | OPM24: СПРАВКА 015/00406/001 от 20 декабря 2022 г. | OQC24: СПРАВКА 015/00406/001 от 20 декабря 2022 г. | OQS24: СПРАВКА 015/00406/001 от 20 декабря 2022 г. | ORI24: СПРАВКА 015/00406/001 от 20 декабря 2022 г. | ORY24: СПРАВКА 015/00406/001 от 20 декабря 2022 г. | OSO24: СПРАВКА 015/00406/001 от 20 декабря 2022 г. | OTE24: СПРАВКА 015/00406/001 от 20 декабря 2022 г. | OTU24: СПРАВКА 015/00406/001 от 20 декабря 2022 г. | OUK24: СПРАВКА 015/00406/001 от 20 декабря 2022 г. | OVA24: СПРАВКА 015/00406/001 от 20 декабря 2022 г. | OVQ24: СПРАВКА 015/00406/001 от 20 декабря 2022 г. | OWG24: СПРАВКА 015/00406/001 от 20 декабря 2022 г. | OWW24: СПРАВКА 015/00406/001 от 20 декабря 2022 г. | OXM24: СПРАВКА 015/00406/001 от 20 декабря 2022 г. | OYC24: СПРАВКА 015/00406/001 от 20 декабря 2022 г. | OYS24: СПРАВКА 015/00406/001 от 20 декабря 2022 г. | OZI24: СПРАВКА 015/00406/001 от 20 декабря 2022 г. | OZY24: СПРАВКА 015/00406/001 от 20 декабря 2022 г. | PAO24: СПРАВКА 015/00406/001 от 20 декабря 2022 г. | PBE24: СПРАВКА 015/00406/001 от 20 декабря 2022 г. | PBU24: СПРАВКА 015/00406/001 от 20 декабря 2022 г. | PCK24: СПРАВКА 015/00406/001 от 20 декабря 2022 г. | PDA24: СПРАВКА 015/00406/001 от 20 декабря 2022 г. | PDQ24: СПРАВКА 015/00406/001 от 20 декабря 2022 г. | PEG24: СПРАВКА 015/00406/001 от 20 декабря 2022 г. | PEW24: СПРАВКА 015/00406/001 от 20 декабря 2022 г. | PFM24: СПРАВКА 015/00406/001 от 20 декабря 2022 г. | PGC24: СПРАВКА 015/00406/001 от 20 декабря 2022 г. | PGS24: СПРАВКА 015/00406/001 от 20 декабря 2022 г. | PHI24: СПРАВКА 015/00406/001 от 20 декабря 2022 г. | PHY24: СПРАВКА 015/00406/001 от 20 декабря 2022 г. | PIO24: СПРАВКА 015/00406/001 от 20 декабря 2022 г. | PJE24: СПРАВКА 015/00406/001 от 20 декабря 2022 г. | PJU24: СПРАВКА 015/00406/001 от 20 декабря 2022 г. | PKK24: СПРАВКА 015/00406/001 от 20 декабря 2022 г. | PLA24: СПРАВКА 015/00406/001 от 20 декабря 2022 г. | PLQ24: СПРАВКА 015/00406/001 от 20 декабря 2022 г. | PMG24: СПРАВКА 015/00406/001 от 20 декабря 2022 г. | PMW24: СПРАВКА 015/00406/001 от 20 декабря 2022 г. | PNM24: СПРАВКА 015/00406/001 от 20 декабря 2022 г. | POC24: СПРАВКА 015/00406/001 от 20 декабря 2022 г. | POS24: СПРАВКА 015/00406/001 от 20 декабря 2022 г. | PPI24: СПРАВКА 015/00406/001 от 20 декабря 2022 г. | PPY24: СПРАВКА 015/00406/001 от 20 декабря 2022 г. | PQO24: СПРАВКА 015/00406/001 от 20 декабря 2022 г. | PRE24: СПРАВКА 015/00406/001 от 20 декабря 2022 г. | PRU24: СПРАВКА 015/00406/001 от 20 декабря 2022 г. | PSK24: СПРАВКА 015/00406/001 от 20 декабря 2022 г. | PTA24: СПРАВКА 015/00406/001 от 20 декабря 2022 г. | PTQ24: СПРАВКА 015/00406/001 от 20 декабря 2022 г. | PUG24: СПРАВКА 015/00406/001 от 20 декабря 2022 г. | PUW24: СПРАВКА 015/00406/001 от 20 декабря 2022 г. | PVM24: СПРАВКА 015/00406/001 от 20 декабря 2022 г. | PWC24: СПРАВКА 015/00406/001 от 20 декабря 2022 г. | PWS24: СПРАВКА 015/00406/001 от 20 декабря 2022 г. | PXI24: СПРАВКА 015/00406/001 от 20 декабря 2022 г. | PXY24: СПРАВКА 015/00406/001 от 20 декабря 2022 г. | PYO24: СПРАВКА 015/00406/001 от 20 декабря 2022 г. | PZE24: СПРАВКА 015/00406/001 от 20 декабря 2022 г. | PZU24: СПРАВКА 015/00406/001 от 20 декабря 2022 г. | QAK24: СПРАВКА 015/00406/001 от 20 декабря 2022 г. | QBA24: СПРАВКА 015/00406/001 от 20 декабря 2022 г. | QBQ24: СПРАВКА 015/00406/001 от 20 декабря 2022 г. | QCG24: СПРАВКА 015/00406/001 от 20 декабря 2022 г. | QCW24: СПРАВКА 015/00406/001 от 20 декабря 2022 г. | QDM24: СПРАВКА 015/00406/001 от 20 декабря 2022 г. | QEC24: СПРАВКА 015/00406/001 от 20 декабря 2022 г. | QES24: СПРАВКА 015/00406/001 от 20 декабря 2022 г. | QFI24: СПРАВКА 015/00406/001 от 20 декабря 2022 г. | QFY24: СПРАВКА 015/00406/001 от 20 декабря 2022 г. | QGO24: СПРАВКА 015/00406/001 от 20 декабря 2022 г. | QHE24: СПРАВКА 015/00406/001 от 20 декабря 2022 г. | QHU24: СПРАВКА 015/00406/001 от 20 декабря 2022 г. | QIK24: СПРАВКА 015/00406/001 от 20 декабря 2022 г. | QJA24: СПРАВКА 015/00406/001 от 20 декабря 2022 г. | QJQ24: СПРАВКА 015/00406/001 от 20 декабря 2022 г. | QKG24: СПРАВКА 015/00406/001 от 20 декабря 2022 г. | QKW24: СПРАВКА 015/00406/001 от 20 декабря 2022 г. | QLM24: СПРАВКА 015/00406/001 от 20 декабря 2022 г. | QMC24: СПРАВКА 015/00406/001 от 20 декабря 2022 г. | QMS24: СПРАВКА 015/00406/001 от 20 декабря 2022 г. | QNI24: СПРАВКА 015/00406/001 от 20 декабря 2022 г. | QNY24: СПРАВКА 015/00406/001 от 20 декабря 2022 г. | QOO24: СПРАВКА 015/00406/001 от 20 декабря 2022 г. | QPE24: СПРАВКА 015/00406/001 от 20 декабря 2022 г. | QPU24: СПРАВКА 015/00406/001 от 20 декабря 2022 г. | QQK24: СПРАВКА 015/00406/001 от 20 декабря 2022 г. | QRA24: СПРАВКА 015/00406/001 от 20 декабря 2022 г. | QRQ24: СПРАВКА 015/00406/001 от 20 декабря 2022 г. | QSG24: СПРАВКА 015/00406/001 от 20 декабря 2022 г. | QSW24: СПРАВКА 015/00406/001 от 20 декабря 2022 г. | QTM24: СПРАВКА 015/00406/001 от 20 декабря 2022 г. | QUC24: СПРАВКА 015/00406/001 от 20 декабря 2022 г. | QUS24: СПРАВКА 015/00406/001 от 20 декабря 2022 г. | QVI24: СПРАВКА 015/00406/001 от 20 декабря 2022 г. | QVY24: СПРАВКА 015/00406/001 от 20 декабря 2022 г. | QWO24: СПРАВКА 015/00406/001 от 20 декабря 2022 г. | QXE24: СПРАВКА 015/00406/001 от 20 декабря 2022 г. | QXU24: СПРАВКА 015/00406/001 от 20 декабря 2022 г. | QYK24: СПРАВКА 015/00406/001 от 20 декабря 2022 г. | QZA24: СПРАВКА 015/00406/001 от 20 декабря 2022 г. | QZQ24: СПРАВКА 015/00406/001 от 20 декабря 2022 г. | RAG24: СПРАВКА 015/00406/001 от 20 декабря 2022 г. | RAW24: СПРАВКА 015/00406/001 от 20 декабря 2022 г. | RBM24: СПРАВКА 015/00406/001 от 20 декабря 2022 г. | RCC24: СПРАВКА 015/00406/001 от 20 декабря 2022 г. | RCS24: СПРАВКА 015/00406/001 от 20 декабря 2022 г. | RDI24: СПРАВКА 015/00406/001 от 20 декабря 2022 г. | RDY24: СПРАВКА 015/00406/001 от 20 декабря 2022 г. | REO24: СПРАВКА 015/00406/001 от 20 декабря 2022 г. | RFE24: СПРАВКА 015/00406/001 от 20 декабря 2022 г. | RFU24: СПРАВКА 015/00406/001 от 20 декабря 2022 г. | RGK24: СПРАВКА 015/00406/001 от 20 декабря 2022 г. | RHA24: СПРАВКА 015/00406/001 от 20 декабря 2022 г. | RHQ24: СПРАВКА 015/00406/001 от 20 декабря 2022 г. | RIG24: СПРАВКА 015/00406/001 от 20 декабря 2022 г. | RIW24: СПРАВКА 015/00406/001 от 20 декабря 2022 г. | RJM24: СПРАВКА 015/00406/001 от 20 декабря 2022 г. | RKC24: СПРАВКА 015/00406/001 от 20 декабря 2022 г. | RKS24: СПРАВКА 015/00406/001 от 20 декабря 2022 г. | RLI24: СПРАВКА 015/00406/001 от 20 декабря 2022 г. | RLY24: СПРАВКА 015/00406/001 от 20 декабря 2022 г. | RMO24: СПРАВКА 015/00406/001 от 20 декабря 2022 г. | RNE24: СПРАВКА 015/00406/001 от 20 декабря 2022 г. | RNU24: СПРАВКА 015/00406/001 от 20 декабря 2022 г. | ROK24: СПРАВКА 015/00406/001 от 20 декабря 2022 г. | RPA24: СПРАВКА 015/00406/001 от 20 декабря 2022 г. | RPQ24: СПРАВКА 015/00406/001 от 20 декабря 2022 г. | RQG24: СПРАВКА 015/00406/001 от 20 декабря 2022 г. | RQW24: СПРАВКА 015/00406/001 от 20 декабря 2022 г. | RRM24: СПРАВКА 015/00406/001 от 20 декабря 2022 г. | RSC24: СПРАВКА 015/00406/001 от 20 декабря 2022 г. | RSS24: СПРАВКА 015/00406/001 от 20 декабря 2022 г. | RTI24: СПРАВКА 015/00406/001 от 20 декабря 2022 г. | RTY24: СПРАВКА 015/00406/001 от 20 декабря 2022 г. | RUO24: СПРАВКА 015/00406/001 от 20 декабря 2022 г. | RVE24: СПРАВКА 015/00406/001 от 20 декабря 2022 г. | RVU24: СПРАВКА 015/00406/001 от 20 декабря 2022 г. | RWK24: СПРАВКА 015/00406/001 от 20 декабря 2022 г. | RXA24: СПРАВКА 015/00406/001 от 20 декабря 2022 г. | RXQ24: СПРАВКА 015/00406/001 от 20 декабря 2022 г. | RYG24: СПРАВКА 015/00406/001 от 20 декабря 2022 г. | RYW24: СПРАВКА 015/00406/001 от 20 декабря 2022 г. | RZM24: СПРАВКА 015/00406/001 от 20 декабря 2022 г. | SAC24: СПРАВКА 015/00406/001 от 20 декабря 2022 г. | SAS24: СПРАВКА 015/00406/001 от 20 декабря 2022 г. | SBI24: СПРАВКА 015/00406/001 от 20 декабря 2022 г. | SBY24: СПРАВКА 015/00406/001 от 20 декабря 2022 г. | SCO24: СПРАВКА 015/00406/001 от 20 декабря 2022 г. | SDE24: СПРАВКА 015/00406/001 от 20 декабря 2022 г. | SDU24: СПРАВКА 015/00406/001 от 20 декабря 2022 г. | SEK24: СПРАВКА 015/00406/001 от 20 декабря 2022 г. | SFA24: СПРАВКА 015/00406/001 от 20 декабря 2022 г. | SFQ24: СПРАВКА 015/00406/001 от 20 декабря 2022 г. | SGG24: СПРАВКА 015/00406/001 от 20 декабря 2022 г. | SGW24: СПРАВКА 015/00406/001 от 20 декабря 2022 г. | SHM24: СПРАВКА 015/00406/001 от 20 декабря 2022 г. | SIC24: СПРАВКА 015/00406/001 от 20 декабря 2022 г. | SIS24: СПРАВКА 015/00406/001 от 20 декабря 2022 г. | SJI24: СПРАВКА 015/00406/001 от 20 декабря 2022 г. | SJY24: СПРАВКА 015/00406/001 от 20 декабря 2022 г. | SKO24: СПРАВКА 015/00406/001 от 20 декабря 2022 г. | SLE24: СПРАВКА 015/00406/001 от 20 декабря 2022 г. | SLU24: СПРАВКА 015/00406/001 от 20 декабря 2022 г. | SMK24: СПРАВКА 015/00406/001 от 20 декабря 2022 г. | SNA24: СПРАВКА 015/00406/001 от 20 декабря 2022 г. | SNQ24: СПРАВКА 015/00406/001 от 20 декабря 2022 г. | SOG24: СПРАВКА 015/00406/001 от 20 декабря 2022 г. | SOW24: СПРАВКА 015/00406/001 от 20 декабря 2022 г. | SPM24: СПРАВКА 015/00406/001 от 20 декабря 2022 г. | SQC24: СПРАВКА 015/00406/001 от 20 декабря 2022 г. | SQS24: СПРАВКА 015/00406/001 от 20 декабря 2022 г. | SRI24: СПРАВКА 015/00406/001 от 20 декабря 2022 г. | SRY24: СПРАВКА 015/00406/001 от 20 декабря 2022 г. | SSO24: СПРАВКА 015/00406/001 от 20 декабря 2022 г. | STE24: СПРАВКА 015/00406/001 от 20 декабря 2022 г. | STU24: СПРАВКА 015/00406/001 от 20 декабря 2022 г. | SUK24: СПРАВКА 015/00406/001 от 20 декабря 2022 г. | SVA24: СПРАВКА 015/00406/001 от 20 декабря 2022 г. | SVQ24: СПРАВКА 015/00406/001 от 20 декабря 2022 г. | SWG24: СПРАВКА 015/00406/001 от 20 декабря 2022 г. | SWW24: СПРАВКА 015/00406/001 от 20 декабря 2022 г. | SXM24: СПРАВКА 015/00406/001 от 20 декабря 2022 г. | SYC24: СПРАВКА 015/00406/001 от 20 декабря 2022 г. | SYS24: СПРАВКА 015/00406/001 от 20 декабря 2022 г. | SZI24: СПРАВКА 015/00406/001 от 20 декабря 2022 г. | SZY24: СПРАВКА 015/00406/001 от 20 декабря 2022 г. | TAO24: СПРАВКА 015/00406/001 от 20 декабря 2022 г. | TBE24: СПРАВКА 015/00406/001 от 20 декабря 2022 г. | TBU24: СПРАВКА 015/00406/001 от 20 декабря 2022 г. | TCK24: СПРАВКА 015/00406/001 от 20 декабря 2022 г. | TDA24: СПРАВКА 015/00406/001 от 20 декабря 2022 г. | TDQ24: СПРАВКА 015/00406/001 от 20 декабря 2022 г. | TEG24: СПРАВКА 015/00406/001 от 20 декабря 2022 г. | TEW24: СПРАВКА 015/00406/001 от 20 декабря 2022 г. | TFM24: СПРАВКА 015/00406/001 от 20 декабря 2022 г. | TGC24: СПРАВКА 015/00406/001 от 20 декабря 2022 г. | TGS24: СПРАВКА 015/00406/001 от 20 декабря 2022 г. | THI24: СПРАВКА 015/00406/001 от 20 декабря 2022 г. | THY24: СПРАВКА 015/00406/001 от 20 декабря 2022 г. | TIO24: СПРАВКА 015/00406/001 от 20 декабря 2022 г. | TJE24: СПРАВКА 015/00406/001 от 20 декабря 2022 г. | TJU24: СПРАВКА 015/00406/001 от 20 декабря 2022 г. | TKK24: СПРАВКА 015/00406/001 от 20 декабря 2022 г. | TLA24: СПРАВКА 015/00406/001 от 20 декабря 2022 г. | TLQ24: СПРАВКА 015/00406/001 от 20 декабря 2022 г. | TMG24: СПРАВКА 015/00406/001 от 20 декабря 2022 г. | TMW24: СПРАВКА 015/00406/001 от 20 декабря 2022 г. | TNM24: СПРАВКА 015/00406/001 от 20 декабря 2022 г. | TOC24: СПРАВКА 015/00406/001 от 20 декабря 2022 г. | TOS24: СПРАВКА 015/00406/001 от 20 декабря 2022 г. | TPI24: СПРАВКА 015/00406/001 от 20 декабря 2022 г. | TPY24: СПРАВКА 015/00406/001 от 20 декабря 2022 г. | TQO24: СПРАВКА 015/00406/001 от 20 декабря 2022 г. | TRE24: СПРАВКА 015/00406/001 от 20 декабря 2022 г. | TRU24: СПРАВКА 015/00406/001 от 20 декабря 2022 г. | TSK24: СПРАВКА 015/00406/001 от 20 декабря 2022 г. | TTA24: СПРАВКА 015/00406/001 от 20 декабря 2022 г. | TTQ24: СПРАВКА 015/00406/001 от 20 декабря 2022 г. | TUG24: СПРАВКА 015/00406/001 от 20 декабря 2022 г. | TUW24: СПРАВКА 015/00406/001 от 20 декабря 2022 г. | TVM24: СПРАВКА 015/00406/001 от 20 декабря 2022 г. | TWC24: СПРАВКА 015/00406/001 от 20 декабря 2022 г. | TWS24: СПРАВКА 015/00406/001 от 20 декабря 2022 г. | TXI24: СПРАВКА 015/00406/001 от 20 декабря 2022 г. | TXY24: СПРАВКА 015/00406/001 от 20 декабря 2022 г. | TYO24: СПРАВКА 015/00406/001 от 20 декабря 2022 г. | TZE24: СПРАВКА 015/00406/001 от 20 декабря 2022 г. | TZU24: СПРАВКА 015/00406/001 от 20 декабря 2022 г. | UAK24: СПРАВКА 015/00406/001 от 20 декабря 2022 г. | UBA24: СПРАВКА 015/00406/001 от 20 декабря 2022 г. | UBQ24: СПРАВКА 015/00406/001 от 20 декабря 2022 г. | UCG24: СПРАВКА 015/00406/001 от 20 декабря 2022 г. | UCW24: СПРАВКА 015/00406/001 от 20 декабря 2022 г. | UDM24: СПРАВКА 015/00406/001 от 20 декабря 2022 г. | UEC24: СПРАВКА 015/00406/001 от 20 декабря 2022 г. | UES24: СПРАВКА 015/00406/001 от 20 декабря 2022 г. | UFI24: СПРАВКА 015/00406/001 от 20 декабря 2022 г. | UFY24: СПРАВКА 015/00406/001 от 20 декабря 2022 г. | UGO24: СПРАВКА 015/00406/001 от 20 декабря 2022 г. | UHE24: СПРАВКА 015/00406/001 от 20 декабря 2022 г. | UHU24: СПРАВКА 015/00406/001 от 20 декабря 2022 г. | UIK24: СПРАВКА 015/00406/001 от 20 декабря 2022 г. | UJA24: СПРАВКА 015/00406/001 от 20 декабря 2022 г. | UJQ24: СПРАВКА 015/00406/001 от 20 декабря 2022 г. | UKG24: СПРАВКА 015/00406/001 от 20 декабря 2022 г. | UKW24: СПРАВКА 015/00406/001 от 20 декабря 2022 г. | ULM24: СПРАВКА 015/00406/001 от 20 декабря 2022 г. | UMC24: СПРАВКА 015/00406/001 от 20 декабря 2022 г. | UMS24: СПРАВКА 015/00406/001 от 20 декабря 2022 г. | UNI24: СПРАВКА 015/00406/001 от 20 декабря 2022 г. | UNY24: СПРАВКА 015/00406/001 от 20 декабря 2022 г. | UOO24: СПРАВКА 015/00406/001 от 20 декабря 2022 г. | UPE24: СПРАВКА 015/00406/001 от 20 декабря 2022 г. | UPU24: СПРАВКА 015/00406/001 от 20 декабря 2022 г. | UQK24: СПРАВКА 015/00406/001 от 20 декабря 2022 г. | URA24: СПРАВКА 015/00406/001 от 20 декабря 2022 г. | URQ24: СПРАВКА 015/00406/001 от 20 декабря 2022 г. | USG24: СПРАВКА 015/00406/001 от 20 декабря 2022 г. | USW24: СПРАВКА 015/00406/001 от 20 декабря 2022 г. | UTM24: СПРАВКА 015/00406/001 от 20 декабря 2022 г. | UUC24: СПРАВКА 015/00406/001 от 20 декабря 2022 г. | UUS24: СПРАВКА 015/00406/001 от 20 декабря 2022 г. | UVI24: СПРАВКА 015/00406/001 от 20 декабря 2022 г. | UVY24: СПРАВКА 015/00406/001 от 20 декабря 2022 г. | UWO24: СПРАВКА 015/00406/001 от 20 декабря 2022 г. | UXE24: СПРАВКА 015/00406/001 от 20 декабря 2022 г. | UXU24: СПРАВКА 015/00406/001 от 20 декабря 2022 г. | UYK24: СПРАВКА 015/00406/001 от 20 декабря 2022 г. | UZA24: СПРАВКА 015/00406/001 от 20 декабря 2022 г. | UZQ24: СПРАВКА 015/00406/001 от 20 декабря 2022 г. | VAG24: СПРАВКА 015/00406/001 от 20 декабря 2022 г. | VAW24: СПРАВКА 015/00406/001 от 20 декабря 2022 г. | VBM24: СПРАВКА 015/00406/001 от 20 декабря 2022 г. | VCC24: СПРАВКА 015/00406/001 от 20 декабря 2022 г. | VCS24: СПРАВКА 015/00406/001 от 20 декабря 2022 г. | VDI24: СПРАВКА 015/00406/001 от 20 декабря 2022 г. | VDY24: СПРАВКА 015/00406/001 от 20 декабря 2022 г. | VEO24: СПРАВКА 015/00406/001 от 20 декабря 2022 г. | VFE24: СПРАВКА 015/00406/001 от 20 декабря 2022 г. | VFU24: СПРАВКА 015/00406/001 от 20 декабря 2022 г. | VGK24: СПРАВКА 015/00406/001 от 20 декабря 2022 г. | VHA24: СПРАВКА 015/00406/001 от 20 декабря 2022 г. | VHQ24: СПРАВКА 015/00406/001 от 20 декабря 2022 г. | VIG24: СПРАВКА 015/00406/001 от 20 декабря 2022 г. | VIW24: СПРАВКА 015/00406/001 от 20 декабря 2022 г. | VJM24: СПРАВКА 015/00406/001 от 20 декабря 2022 г. | VKC24: СПРАВКА 015/00406/001 от 20 декабря 2022 г. | VKS24: СПРАВКА 015/00406/001 от 20 декабря 2022 г. | VLI24: СПРАВКА 015/00406/001 от 20 декабря 2022 г. | VLY24: СПРАВКА 015/00406/001 от 20 декабря 2022 г. | VMO24: СПРАВКА 015/00406/001 от 20 декабря 2022 г. | VNE24: СПРАВКА 015/00406/001 от 20 декабря 2022 г. | VNU24: СПРАВКА 015/00406/001 от 20 декабря 2022 г. | VOK24: СПРАВКА 015/00406/001 от 20 декабря 2022 г. | VPA24: СПРАВКА 015/00406/001 от 20 декабря 2022 г. | VPQ24: СПРАВКА 015/00406/001 от 20 декабря 2022 г. | VQG24: СПРАВКА 015/00406/001 от 20 декабря 2022 г. | VQW24: СПРАВКА 015/00406/001 от 20 декабря 2022 г. | VRM24: СПРАВКА 015/00406/001 от 20 декабря 2022 г. | VSC24: СПРАВКА 015/00406/001 от 20 декабря 2022 г. | VSS24: СПРАВКА 015/00406/001 от 20 декабря 2022 г. | VTI24: СПРАВКА 015/00406/001 от 20 декабря 2022 г. | VTY24: СПРАВКА 015/00406/001 от 20 декабря 2022 г. | VUO24: СПРАВКА 015/00406/001 от 20 декабря 2022 г. | VVE24: СПРАВКА 015/00406/001 от 20 декабря 2022 г. | VVU24: СПРАВКА 015/00406/001 от 20 декабря 2022 г. | VWK24: СПРАВКА 015/00406/001 от 20 декабря 2022 г. | VXA24: СПРАВКА 015/00406/001 от 20 декабря 2022 г. | VXQ24: СПРАВКА 015/00406/001 от 20 декабря 2022 г. | VYG24: СПРАВКА 015/00406/001 от 20 декабря 2022 г. | VYW24: СПРАВКА 015/00406/001 от 20 декабря 2022 г. | VZM24: СПРАВКА 015/00406/001 от 20 декабря 2022 г. | WAC24: СПРАВКА 015/00406/001 от 20 декабря 2022 г. | WAS24: СПРАВКА 015/00406/001 от 20 декабря 2022 г. | WBI24: СПРАВКА 015/00406/001 от 20 декабря 2022 г. | WBY24: СПРАВКА 015/00406/001 от 20 декабря 2022 г. | WCO24: СПРАВКА 015/00406/001 от 20 декабря 2022 г. | WDE24: СПРАВКА 015/00406/001 от 20 декабря 2022 г. | WDU24: СПРАВКА 015/00406/001 от 20 декабря 2022 г. | WEK24: СПРАВКА 015/00406/001 от 20 декабря 2022 г. | WFA24: СПРАВКА 015/00406/001 от 20 декабря 2022 г. | WFQ24: СПРАВКА 015/00406/001 от 20 декабря 2022 г. | WGG24: СПРАВКА 015/00406/001 от 20 декабря 2022 г. | WGW24: СПРАВКА 015/00406/001 от 20 декабря 2022 г. | WHM24: СПРАВКА 015/00406/001 от 20 декабря 2022 г. | WIC24: СПРАВКА 015/00406/001 от 20 декабря 2022 г. | WIS24: СПРАВКА 015/00406/001 от 20 декабря 2022 г. | WJI24: СПРАВКА 015/00406/001 от 20 декабря 2022 г. | WJY24: СПРАВКА 015/00406/001 от 20 декабря 2022 г. | WKO24: СПРАВКА 015/00406/001 от 20 декабря 2022 г. | WLE24: СПРАВКА 015/00406/001 от 20 декабря 2022 г. | WLU24: СПРАВКА 015/00406/001 от 20 декабря 2022 г. | WMK24: СПРАВКА 015/00406/001 от 20 декабря 2022 г. | WNA24: СПРАВКА 015/00406/001 от 20 декабря 2022 г. | WNQ24: СПРАВКА 015/00406/001 от 20 декабря 2022 г. | WOG24: СПРАВКА 015/00406/001 от 20 декабря 2022 г. | WOW24: СПРАВКА 015/00406/001 от 20 декабря 2022 г. | WPM24: СПРАВКА 015/00406/001 от 20 декабря 2022 г. | WQC24: СПРАВКА 015/00406/001 от 20 декабря 2022 г. | WQS24: СПРАВКА 015/00406/001 от 20 декабря 2022 г. | WRI24: СПРАВКА 015/00406/001 от 20 декабря 2022 г. | WRY24: СПРАВКА 015/00406/001 от 20 декабря 2022 г. | WSO24: СПРАВКА 015/00406/001 от 20 декабря 2022 г. | WTE24: СПРАВКА 015/00406/001 от 20 декабря 2022 г. | WTU24: СПРАВКА 015/00406/001 от 20 декабря 2022 г. | WUK24: СПРАВКА 015/00406/001 от 20 декабря 2022 г. | WVA24: СПРАВКА 015/00406/001 от 20 декабря 2022 г. | WVQ24: СПРАВКА 015/00406/001 от 20 декабря 2022 г. | WWG24: СПРАВКА 015/00406/001 от 20 декабря 2022 г. | WWW24: СПРАВКА 015/00406/001 от 20 декабря 2022 г. | WXM24: СПРАВКА 015/00406/001 от 20 декабря 2022 г. | WYC24: СПРАВКА 015/00406/001 от 20 декабря 2022 г. | WYS24: СПРАВКА 015/00406/001 от 20 декабря 2022 г. | WZI24: СПРАВКА 015/00406/001 от 20 декабря 2022 г. | WZY24: СПРАВКА 015/00406/001 от 20 декабря 2022 г. | XAO24: СПРАВКА 015/00406/001 от 20 декабря 2022 г. | XBE24: СПРАВКА 015/00406/001 от 20 декабря 2022 г. | XBU24: СПРАВКА 015/00406/001 от 20 декабря 2022 г. | XCK24: СПРАВКА 015/00406/001 от 20 декабря 2022 г. | XDA24: СПРАВКА 015/00406/001 от 20 декабря 2022 г. | XDQ24: СПРАВКА 015/00406/001 от 20 декабря 2022 г. | XEG24: СПРАВКА 015/00406/001 от 20 декабря 2022 г.
O25: Форма по ОКУД | P25: 0501012
O26: Дата | P26: =H19 -> 17 января 2024 г.
B27: Муниципальное общеобразовательное учреждение Шуйская средняя общеобразовательная школа №1 | O27: по ОКПО | P27: 77446968
A28: Получатель бюджетных средств
A29: Распорядитель бюджетных средств | B29: Администрация Прионежского муниципального района
A30: Главный распорядитель бюджетных средств | B30: Администрация Прионежского муниципального района | O30: Глава по БК | P30: 015
A31: Наименование бюджета | B31: Бюджет Прионежского муниципального района | O31: по ОКТМО | P31: 86636470
A32: Единица измерения: | B32: руб. | O32: по ОКЕЙ | P32: 383
A33: Наименование показателя (детализация кода бюджетной классификации) | B33: РЗ | C33: ПР | D33: ЦСР | E33: Вид расхода | F33: Детализация | G33: Вид целевых средств | H33: Сумма на текущий год | K33: Сумма на первый год планового периода (руб) | N33: Сумма на второй год планового периода (руб.)
H34: 2023-12-19 | I34: ИЗМЕНЕНИЯ (+/-) | J34: ИТОГО | K34: =H34 -> 2023-12-19 | L34: ИЗМЕНЕНИЯ (+/-) | M34: ИТОГО | N34: =H34 -> 2023-12-19 | O34: ИЗМЕНЕНИЯ (+/-) | P34: ИТОГО
A35: 1 | B35: =SUM(A35+1) -> 2 | C35: 3 | D35: 4 | E35: 5 | F35: 6 | G35: 7 | H35: 8 | I35: 9 | J35: 10 | K35: 11 | L35: 12 | M35: 13 | N35: 14 | O35: 15 | P35: 16
A36: Средства местного бюджета (КЦ 1000)
A37: Заработная плата | B37: 07 | C37: 01 | D37: 0220170200 | E37: 111 | F37: 211000 | G37: 1000 | H37: 2,716,061.42 | J37: =H37+I37 -> 2,716,061.42 | K37: 2,716,061.42 | M37: =K37+L37 -> 2,716,061.42 | N37: 2,716,061.42 | P37: =N37+O37 -> 2,716,061.42
A38: Расходы по оплате проезда к месту отпуска и обратно отдельным категориям лиц (для лиц, работающих в районах Крайнего Севера и приравненных к ним местностях, и членов их семей) | B38: 07 | C38: 01 | D38: 0220170200 | E38: 112 | F38: 214000 | G38: 1000 | H38: 20,000.00 | J38: =H38+I38 -> 20,000.00 | K38: 20,000.00 | M38: =K38+L38 -> 20,000.00 | N38: 20,000.00 | P38: =N38+O38 -> 20,000.00
A39: Начисления на выплаты по оплате труда | B39: 07 | C39: 01 | D39: 0220170200 | E39: 119 | F39: 213000 | G39: 1000 | H39: 820,250.50 | J39: 820,250.50 | K39: 820,250.50 | M39: 820,250.50 | N39: 820,250.50 | P39: 820,250.50
A40: Услуги связи (телефон) | B40: 07 | C40: 01 | D40: 0220170200 | E40: 244 | F40: 221100 | G40: 1000 | H40: 32,769.60 | J40: 32,769.60 | K40: 34,721.88 | M40: 34,721.88 | N40: 36,785.06 | P40: 36,785.06
A41: Услуги связи (почта) | B41: 07 | C41: 01 | D41: 0220170200 | E41: 244 | F41: 221300 | G41: 1000 | H41: 12,000.00 | J41: 12,000.00 | K41: 12,792.00 | M41: 12,792.00 | N41: 13,636.27 | P41: 13,636.27
A42: Отопление, горячее водоснабжение и газоснабжение | B42: 07 | C42: 01 | D42: 0220170200 | E42: 247 | F42: 223100 | G42: 1000 | H42: 581,744.79 | J42: 581,744.79 | K42: 590,000.00 | M42: 590,000.00 | N42: 590,000.00 | P42: 590,000.00
A43: Электроэнергия | B43: 07 | C43: 01 | D43: 0220170200 | E43: 247 | F43: 223200 | G43: 1000 | H43: 1,782,695.91 | J43: 1,782,695.91 | K43: 1,800,000.00 | M43: 1,800,000.00 | N43: 1,972,936.91 | P43: 1,972,936.91
A44: Холодное водоснабжение | B44: 07 | C44: 01 | D44: 0220170200 | E44: 244 | F44: 223300 | G44: 1000 | H44: 148,808.90 | J44: 148,808.90 | K44: 149,000.00 | M44: 149,000.00 | N44: 195,004.79 | P44: 195,004.79
A45: Водоотведение | B45: 07 | C45: 01 | D45: 0220170200 | E45: 244 | F45: 223400 | G45: 1000 | H45: 155,193.20 | J45: 155,193.20 | K45: 160,000.00 | M45: 160,000.00 | N45: 305,051.13 | P45: 305,051.13
A46: Вывоз бытовых отходов | B46: 07 | C46: 01 | D46: 0220170200 | E46: 244 | F46: 223500 | G46: 1000 | H46: 72,359.15 | J46: 72,359.15 | K46: 91,926.69 | M46: 91,926.69 | N46: 94,707.35 | P46: 94,707.35
A47: Санитарная и противопожарная (дезинфекция, дезинсекция, дератизация, газация, огнезащитная) обработка помещений | B47: 07 | C47: 01 | D47: 0220170200 | E47: 244 | F47: 225600 | G47: 1000 | H47: 41,819.85 | J47: 41,819.85 | K47: 42,000.00 | M47: 42,000.00 | N47: 471,068.05 | P47: 471,068.05
A48: Содержание и обслуживание помещений | B48: 07 | C48: 01 | D48: 0220170200 | E48: 244 | F48: 225700 | G48: 1000 | H48: 260,071.43 | J48: 260,071.43 | K48: 232,462.14 | M48: 232,462.14 | N48: 240,266.89 | P48: 240,266.89
A49: Другие расходы | B49: 07 | C49: 01 | D49: 0220170200 | E49: 244 | F49: 225900 | G49: 1000 | H49: 50,000.00 | J49: 50,000.00 | K49: 50,000.00 | M49: 50,000.00 | N49: 50,000.00 | P49: 50,000.00
A50: Аттестация | B50: 07 | C50: 01 | D50: 0220170200 | E50: 244 | F50: 226200 | G50: 1000 | H50: 25,000.00 | J50: 25,000.00 | M50: 0.00 | P50: 0.00
A51: Ведомственная, вневедомственная, пожарная охрана | B51: 07 | C51: 01 | D51: 0220170200 | E51: 244 | F51: 226400 | G51: 1000 | H51: 103,685.75 | J51: 103,685.75 | K51: 110,529.01 | M51: 110,529.01 | N51: 117,823.93 | P51: 117,823.93
A52: Медицинский осмотр работников учрежждений, за исключением водителей транспортных средств | B52: 07 | C52: 01 | D52: 0220170200 | E52: 244 | F52: 226800 | G52: 1000 | H52: 218,889.22 | J52: 218,889.22 | K52: 277,636.10 | M52: 277,636.10 | N52: 289,019.18 | P52: 289,019.18
A53: Другие расходы | B53: 07 | C53: 01 | D53: 0220170200 | E53: 244 | F53: 226900 | G53: 1000 | H53: 50,000.00 | J53: 50,000.00 | K53: 50,000.00 | M53: 50,000.00 | N53: 50,000.00 | P53: 50,000.00
A54: Приобретение предметов длительного пользования (оборудование, мебель,компьютерная техника и т.п.) стоимостью свыше 3000 рублей | B54: 07 | C54: 01 | D54: 0220170200 | E54: 244 | F54: 310100 | G54: 1000 | H54: 40,000.00 | J54: 40,000.00 | K54: 40,000.00 | M54: 40,000.00 | N54: 40,000.00 | P54: 40,000.00
A55: Другие расходы стоимостью до 3000,00 рублей | B55: 07 | C55: 01 | D55: 0220170200 | E55: 244 | F55: 310900 | G55: 1000 | H55: 30,000.00 | J55: 30,000.00 | K55: 30,000.00 | M55: 30,000.00 | N55: 30,000.00 | P55: 30,000.00
A56: Продукты питания | B56: 07 | C56: 01 | D56: 0220170200 | E56: 244 | F56: 342000 | G56: 1000 | H56: 900,000.00 | J56: 900,000.00 | K56: 900,000.00 | M56: 900,000.00 | N56: 900,000.00 | P56: 900,000.00
A57: Приобретение строительных материалов | B57: 07 | C57: 01 | D57: 0220170200 | E57: 244 | F57: 344000 | G57: 1000 | H57: 20,000.00 | J57: 20,000.00 | K57: 20,000.00 | M57: 20,000.00 | N57: 20,000.00 | P57: 20,000.00
A58: Увеличение стоимости прочих оборотных запасов (материалов) | B58: 07 | C58: 01 | D58: 0220170200 | E58: 244 | F58: 346000 | G58: 1000 | H58: 80,000.00 | J58: 80,000.00 | K58: 80,000.00 | M58: 80,000.00 | N58: 80,000.00 | P58: 80,000.00
A59: Налог на имущество | B59: 07 | C59: 01 | D59: 0220170200 | E59: 851 | F59: 291200 | G59: 1000 | H59: 1,270,049.00 | J59: 1,270,049.00 | K59: 1,270,049.00 | M59: 1,270,049.00 | N59: 1,270,049.00 | P59: 1,270,049.00
A60: Земельный налог | B60: 07 | C60: 01 | D60: 0220170200 | E60: 851 | F60: 291300 | G60: 1000 | H60: 16,817.00 | J60: 16,817.00 | K60: 16,817.00 | M60: 16,817.00 | N60: 16,817.00 | P60: 16,817.00
A61: Итого по КЦ 1000 | H61: =SUM(H37:H60) -> 9,448,215.72 | I61: =SUM(I37:I60) -> 0.00 | J61: 9,448,215.72 | K61: 9,514,245.74 | L61: 0.00 | M61: 9,514,245.74 | N61: 10,339,477.48 | O61: =SUM(O37:O60) -> 0.00 | P61: 10,339,477.48
A62: Средства местного бюджета (КЦ 1000)
A63: Заработная плата | B63: 07 | C63: 02 | D63: 0220270210 | E63: 111 | F63: 211000 | G63: 1000 | H63: 3,557,030.47 | J63: =H63+I63 -> 3,557,030.47 | K63: 3,557,030.47 | M63: =K63+L63 -> 3,557,030.47 | N63: 3,557,030.47 | P63: =N63+O63 -> 3,557,030.47
A64: Расходы по оплате проезда к месту отпуска и обратно отдельным категориям лиц (для лиц, работающих в районах Крайнего Севера и приравненных к ним местностях, и членов их семей) | B64: 07 | C64: 02 | D64: 0220270210 | E64: 112 | F64: 214000 | G64: 1000 | H64: 20,000.00 | J64: =H64+I64 -> 20,000.00 | K64: 20,000.00 | M64: =K64+L64 -> 20,000.00 | N64: 20,000.00 | P64: =N64+O64 -> 20,000.00
A65: Начисления на выплаты по оплате труда | B65: 07 | C65: 02 | D65: 0220270210 | E65: 119 | F65: 213000 | G65: 1000 | H65: 1,074,223.20 | J65: 1,074,223.20 | K65: 1,074,223.20 | M65: 1,074,223.20 | N65: 1,074,223.20 | P65: 1,074,223.20
A66: Услуги связи (телефон) | B66: 07 | C66: 02 | D66: 0220270210 | E66: 244 | F66: 221100 | G66: 1000 | H66: 43,200.00 | J66: 43,200.00 | K66: 52,498.80 | M66: 52,498.80 | N66: 54,651.21 | P66: 54,651.21
A67: Услуги связи (почта) | B67: 07 | C67: 02 | D67: 0220270210 | E67: 244 | F67: 221300 | G67: 1000 | H67: 10,000.00 | J67: 10,000.00 | K67: 10,420.00 | M67: 10,420.00 | N67: 10,857.60 | P67: 10,857.60
A68: Отопление, горячее водоснабжение и газоснабжение | B68: 07 | C68: 02 | D68: 0220270210 | E68: 247 | F68: 223100 | G68: 1000 | H68: 3,220,180.98 | J68: 3,220,180.98 | K68: 3,220,000.00 | M68: 3,220,000.00 | N68: 3,541,852.90 | P68: 3,541,852.90
A69: Электроэнергия | B69: 07 | C69: 02 | D69: 0220270210 | E69: 247 | F69: 223200 | G69: 1000 | H69: 740,097.06 | J69: 740,097.06 | K69: 783,955.84 | M69: 783,955.84 | N69: 810,061.29 | P69: 810,061.29
A70: Холодное водоснабжение | B70: 07 | C70: 02 | D70: 0220270210 | E70: 244 | F70: 223300 | G70: 1000 | H70: 107,463.24 | J70: 107,463.24 | K70: 113,811.28 | M70: 113,811.28 | N70: 117,487.36 | P70: 117,487.36
A71: Водоотведение | B71: 07 | C71: 02 | D71: 0220270210 | E71: 244 | F71: 223400 | G71: 1000 | H71: 112,069.73 | J71: 112,069.73 | K71: 178,037.99 | M71: 178,037.99 | N71: 183,788.57 | P71: 183,788.57
A72: Вывоз бытовых отходов | B72: 07 | C72: 02 | D72: 0220270210 | E72: 244 | F72: 223500 | G72: 1000 | H72: 56,746.02 | J72: 56,746.02 | K72: 60,076.11 | M72: 60,076.11 | N72: 61,893.30 | P72: 61,893.30
A73: Санитарная и противопожарная (дезинфекция, дезинсекция, дератизация, газация, огнезащитная) обработка помещений | B73: 07 | C73: 02 | D73: 0220270210 | E73: 244 | F73: 225600 | G73: 1000 | H73: 22,000.00 | J73: 22,000.00 | K73: 15,990.00 | M73: 15,990.00 | N73: 17,045.34 | P73: 17,045.34
A74: Содержание, обслуживание помещений и сетей инженерно-технического обеспечения | B74: 07 | C74: 02 | D74: 0220270210 | E74: 244 | F74: 225700 | G74: 1000 | H74: 206,000.00 | J74: 206,000.00 | K74: 214,652.00 | M74: 214,652.00 | N74: 223,452.73 | P74: 223,452.73
A75: Другие расходы | B75: 07 | C75: 02 | D75: 0220270210 | E75: 244 | F75: 225900 | G75: 1000 | H75: 100,000.00 | J75: 100,000.00 | K75: 100,000.00 | M75: 100,000.00 | N75: 100,000.00 | P75: 100,000.00
A76: Аттестация | B76: 07 | C76: 02 | D76: 0220270210 | E76: 244 | F76: 226200 | G76: 1000 | J76: 0.00 | M76: 0.00 | P76: 0.00
A77: Ведомственная, вневедомственная, пожарная охрана | B77: 07 | C77: 02 | D77: 0220270210 | E77: 244 | F77: 226400 | G77: 1000 | H77: 97,991.86 | J77: 97,991.86 | K77: 64,374.72 | M77: 64,374.72 | N77: 68,226.88 | P77: 68,226.88
A78: Медицинский осмотр водителей транспортных средств | B78: 07 | C78: 02 | D78: 0220270210 | E78: 244 | F78: 226500 | G78: 1000 | H78: 136,275.00 | J78: 136,275.00 | K78: 156,716.25 | M78: 156,716.25 | N78: 180,223.69 | P78: 180,223.69
A79: Медицинский осмотр работников учрежждений, за исключением водителей транспортных средств | B79: 07 | C79: 02 | D79: 0220270210 | E79: 244 | F79: 226800 | G79: 1000 | H79: 234,225.00 | J79: 234,225.00 | K79: 243,828.23 | M79: 243,828.23 | N79: 253,825.19 | P79: 253,825.19
A80: Другие расходы | B80: 07 | C80: 02 | D80: 0220270210 | E80: 244 | F80: 226900 | G80: 1000 | H80: 100,000.00 | J80: 100,000.00 | K80: 100,000.00 | M80: 100,000.00 | N80: 100,000.00 | P80: 100,000.00
A81: Обязательное страхование автогражданской ответственности | B81: 07 | C81: 02 | D81: 0220270210 | E81: 244 | F81: 227200 | G81: 1000 | H81: 12,000.00 | J81: 12,000.00 | K81: 12,000.00 | M81: 12,000.00 | N81: 12,000.00 | P81: 12,000.00
A82: Приобретение предметов длительного пользования (оборудование, мебель,компьютерная техника и т.п.) стоимостью свыше 3000 рублей | B82: 07 | C82: 02 | D82: 0220270210 | E82: 244 | F82: 310100 | G82: 1000 | H82: 40,000.00 | J82: 40,000.00 | K82: 40,000.00 | M82: 40,000.00 | N82: 40,000.00 | P82: 40,000.00
A83: Другие расходы стоимостью до 3000,00 рублей | B83: 07 | C83: 02 | D83: 0220270210 | E83: 244 | F83: 310900 | G83: 1000 | H83: 30,000.00 | J83: 30,000.00 | K83: 30,000.00 | M83: 30,000.00 | N83: 30,000.00 | P83: 30,000.00
A84: Приобретение строительных материалов | B84: 07 | C84: 02 | D84: 0220270210 | E84: 244 | F84: 344000 | G84: 1000 | H84: 20,000.00 | J84: 20,000.00 | K84: 20,000.00 | M84: 20,000.00 | N84: 20,000.00 | P84: 20,000.00
A85: Мягкий инвентарь | B85: 07 | C85: 02 | D85: 0220270210 | E85: 244 | F85: 345000 | G85: 1000 | H85: 10,000.00 | J85: 10,000.00 | K85: 10,000.00 | M85: 10,000.00 | N85: 10,000.00 | P85: 10,000.00
A86: Увеличение стоимости прочих оборотных запасов (материалов) | B86: 07 | C86: 02 | D86: 0220270210 | E86: 244 | F86: 346000 | G86: 1000 | H86: 80,000.00 | J86: 80,000.00 | K86: 80,000.00 | M86: 80,000.00 | N86: 80,000.00 | P86: 80,000.00
A87: Налог на имущество | B87: 07 | C87: 02 | D87: 0220270210 | E87: 851 | F87: 291200 | G87: 1000 | H87: 62,393.00 | J87: 62,393.00 | K87: 62,393.00 | M87: 62,393.00 | N87: 62,393.00 | P87: 62,393.00
A88: Земельный залог | B88: 07 | C88: 02 | D88: 0220270210 | E88: 851 | F88: 291300 | G88: 1000 | H88: 36,368.00 | J88: 36,368.00 | K88: 36,368.00 | M88: 36,368.00 | N88: 36,368.00 | P88: 36,368.00
A89: Транспотный налог | B89: 07 | C89: 02 | D89: 0220270210 | E89: 852 | F89: 291400 | G89: 1000 | H89: 60,590.00 | J89: 60,590.00 | K89: 60,590.00 | M89: 60,590.00 | N89: 60,590.00 | P89: 60,590.00
A90: Итого по КЦ 1000 | H90: =SUM(H63:H89) -> 10,188,853.56 | I90: =SUM(I63:I89) -> 0.00 | J90: 10,188,853.56 | K90: 10,316,965.89 | L90: 0.00 | M90: 10,316,965.89 | N90: 10,725,970.73 | O90: 0.00 | P90: 10,725,970.73
A91: Средства, полученные от оказания платных услуг, безвозмездных поступлений (КЦ 8000)
A92: Продукты питания | B92: 07 | C92: 01 | D92: 0220170200 | E92: 244 | F92: 342000 | G92: 8000 | H92: 4,500,000.00 | J92: =H92+I92 -> 4,500,000.00 | K92: 4,500,000.00 | M92: =K92+L92 -> 4,500,000.00 | N92: 4,500,000.00 | P92: =N92+O92 -> 4,500,000.00
A93: Итого по КЦ 8000 | H93: =SUM(H92) -> 4,500,000.00 | I93: =SUM(I92) -> 0.00 | J93: 4,500,000.00 | K93: 4,500,000.00 | L93: 0.00 | M93: 4,500,000.00 | N93: 4,500,000.00 | O93: 0.00 | P93: 4,500,000.00
A94: Субвенции на обеспечение гос.гарантий реализации прав на получение общедоступного и бесплатного дошкольного образования в муниципальных дошкольных образовательных организациях, общедоступного и бесплатного дошкольного, начального общего, основного общего, среднего общего образования в муниципальных общеобразовательных организациях, обеспечение дополнительного образования детей в муниципальных общеобразовательных организациях (КЦ 24219)
A96: Заработная плата | B96: 07 | C96: 01 | D96: 0220142190 | E96: 111 | F96: 211000 | G96: 23424219000219 | H96: 20,850,907.55 | I96: -20,850,907.55 | J96: =H96+I96 -> 0.00 | K96: 0.00 | M96: =K96+L96 -> 0.00 | N96: 0.00 | P96: =N96+O96 -> 0.00
A97: Заработная плата | B97: 07 | C97: 01 | D97: 0220142190 | E97: 111 | F97: 211000 | G97: 24424219000219 | H97: 0.00 | I97: 20,850,907.55 | J97: 20,850,907.55 | K97: 0.00 | M97: 0.00 | N97: 0.00 | P97: 0.00
A98: Начисления на выплаты по оплате труда | B98: 07 | C98: 01 | D98: 0220142190 | E98: 119 | F98: 213000 | G98: 23424219000219 | H98: 6,296,974.08 | I98: -6,296,974.08 | J98: 0.00 | K98: 0.00 | M98: 0.00 | N98: 0.00 | P98: 0.00
A99: Начисления на выплаты по оплате труда | B99: 07 | C99: 01 | D99: 0220142190 | E99: 119 | F99: 213000 | G99: 24424219000219 | H99: 0.00 | I99: 6,296,974.08 | J99: 6,296,974.08 | K99: 0.00 | M99: 0.00 | N99: 0.00 | P99: 0.00
A100: Услуги связи (интернет) | B100: 07 | C100: 01 | D100: 0220142190 | E100: 244 | F100: 221200 | G100: 23424219000219 | H100: 44,000.00 | I100: -44,000.00 | J100: 0.00 | K100: 0.00 | M100: 0.00 | N100: 0.00 | P100: 0.00
A101: Услуги связи (интернет) | B101: 07 | C101: 01 | D101: 0220142190 | E101: 244 | F101: 221200 | G101: 24424219000219 | H101: 0.00 | I101: 44,000.00 | J101: 44,000.00 | K101: 0.00 | M101: 0.00 | N101: 0.00 | P101: 0.00
A102: Итого субвенция 0701 (КЦ 23424219000219) | H102: =SUM(H96:H101) -> 27,191,881.63 | I102: =SUM(I96:I101) -> 0.00 | J102: 27,191,881.63 | K102: 0.00 | L102: 0.00 | M102: 0.00 | N102: 0.00 | O102: 0.00 | P102: 0.00
A103: Заработная плата | B103: 07 | C103: 02 | D103: 0220242190 | E103: 111 | F103: 211000 | G103: 23424219000219 | H103: 30,264,082.56 | I103: -30,264,082.56 | J103: =H103+I103 -> 0.00 | K103: 0.00 | M103: =K103+L103 -> 0.00 | N103: 0.00 | P103: =N103+O103 -> 0.00
A104: Заработная плата | B104: 07 | C104: 02 | D104: 0220242190 | E104: 111 | F104: 211000 | G104: 24424219000219 | H104: 0.00 | I104: 30,264,082.56 | J104: =H104+I104 -> 30,264,082.56 | K104: 0.00 | M104: 0.00 | N104: 0.00 | P104: 0.00
A105: Начисления на выплаты по оплате труда | B105: 07 | C105: 02 | D105: 0220242190 | E105: 119 | F105: 213000 | G105: 23424219000219 | H105: 9,139,752.93 | I105: -9,139,752.93 | J105: 0.00 | K105: 0.00 | M105: 0.00 | N105: 0.00 | P105: 0.00
A106: Начисления на выплаты по оплате труда | B106: 07 | C106: 02 | D106: 0220242190 | E106: 119 | F106: 213000 | G106: 24424219000219 | H106: 0.00 | I106: 9,139,752.93 | J106: 9,139,752.93 | K106: 0.00 | M106: 0.00 | N106: 0.00 | P106: 0.00
A107: Услуги связи (интернет) | B107: 07 | C107: 02 | D107: 0220242190 | E107: 244 | F107: 221200 | G107: 23424219000219 | H107: 40,000.00 | I107: -40,000.00 | J107: 0.00 | K107: 0.00 | M107: 0.00 | N107: 0.00 | P107: 0.00
A108: Услуги связи (интернет) | B108: 07 | C108: 02 | D108: 0220242190 | E108: 244 | F108: 221200 | G108: 24424219000219 | H108: 0.00 | I108: 40,000.00 | J108: 40,000.00 | K108: 0.00 | M108: 0.00 | N108: 0.00 | P108: 0.00
A109: Мероприятия по переподготовке и повышению квалификации кадров | B109: 07 | C109: 05 | D109: 0220242190 | E109: 244 | F109: 226700 | G109: 23424219000219 | H109: 35,000.00 | I109: -35,000.00 | J109: 0.00 | K109: 0.00 | M109: 0.00 | N109: 0.00 | P109: 0.00
A110: Мероприятия по переподготовке и повышению квалификации кадров | B110: 07 | C110: 05 | D110: 0220242190 | E110: 244 | F110: 226700 | G110: 24424219000219 | H110: 0.00 | I110: 35,000.00 | J110: 35,000.00 | K110: 0.00 | M110: 0.00 | N110: 0.00 | P110: 0.00
A111: Итого субвенция 0702 (КЦ 23424219000219) | H111: =SUM(H103:H110) -> 39,478,835.49 | I111: =SUM(I103:I110) -> 0.00 | J111: 39,478,835.49 | K111: 0.00 | L111: 0.00 | M111: 0.00 | N111: 0.00 | O111: 0.00 | P111: 0.00
A112: Итого по КЦ 24219 | H112: =H102+H111 -> 66,670,717.12 | I112: =I102+I111 -> 0.00 | J112: 66,670,717.12 | K112: 0.00 | L112: 0.00 | M112: 0.00 | N112: 0.00 | O112: 0.00 | P112: 0.00
A113: Субсидии на проведение мероприятий по обеспечению деятельности советников директора по воспитанию и взаимодействию с детским общественными объединениями в образовательных организациях
A114: Заработная плата | B114: 07 | C114: 02 | D114: 022EВ51790 | E114: 111 | F114: 211000 | G114: 23-51790-00000-00000 | H114: 251,508.00 | J114: =H114+I114 -> 251,508.00 | K114: 0 | M114: =K114+L114 -> 0.00 | N114: 0 | P114: =N114+O114 -> 0.00
A115: Начисления на выплаты по оплате труда | B115: 07 | C115: 02 | D115: 022EВ51790 | E115: 119 | F115: 213000 | G115: 23-51790-00000-00000 | H115: 75,955.42 | J115: 75,955.42 | K115: 0.00 | M115: 0.00 | N115: 0.00 | P115: 0.00
A116: Итого по КЦ 23-51790-00000-00000 | H116: =SUM(H114:H115) -> 327,463.42 | I116: =SUM(I114:I115) -> 0.00 | J116: 327,463.42 | K116: 0.00 | L116: 0.00 | M116: 0.00 | N116: 0.00 | O116: 0.00 | P116: 0.00
A117: Всего | H117: =H61+H90+H93+H112+H116 -> 91,135,249.82 | I117: =I61+I90+I93+I112+I116 -> 0.00 | J117: 91,135,249.82 | K117: 24,331,211.63 | L117: 0.00 | M117: 24,331,211.63 | N117: 25,565,448.21 | O117: 0.00 | P117: 25,565,448.21
A119: Директор | E119: О.В. Высоцкая
A120: (уполномоченное лицо) | B120: (подпись) | E120: (расшифровка подписи)
A122: Гл.бухгалтер МУ "ЦБ № 1" | F122: И.В. Ананьева
A123: (уполномоченное лицо) | B123: (подпись) | F123: (расшифровка подписи)
A125: Ведущий экономист ПЭО | F125: И.В. Пружинина
A126: (исполнитель) | B126: (подпись) | F126: (расшифровка подписи)

Sheet 18.01
N1: Приложение №2
N2: к Порядку составления, утверждения
N3: и ведения бюджетных смет Администрации
N4: Прионежского муниципального района
N5: и казенных учреждений, находящихся
N6: в ведении Администрации Прионежского
N7: муниципального района
N8: от 30 декабря 2022 № 1390
F9: УТВЕРЖДАЮ
F10: И.О.Главы Администрации Прионежского муниципального района
F11: (наименование должности лица, согласующего бюджетную смету)
F13: Администрация Прионежского муниципального района
F14: (наименование главного распорядителя (распорядителя) бюджетных средств; учреждения)
K16: Е.А. Кондратьева
F17: (подпись) (расшифровка подписи)
H19: 18 января 2024 г.
B21: Изменения к БЮДЖЕТНОЙ СМЕТЕ НА 2024 ФИНАНСОВЫЙ ГОД И ПЛАНОВЫЙ ПЕРИОД 2025 и 2026 ГОДОВ
B24: СПРАВКА №№015/00406/006 от | J24: =H19 -> 18 января 2024 г. | P24: КОДЫ | Y24: СПРАВКА 015/00406/001 от 20 декабря 2022 г. | AO24: СПРАВКА 015/00406/001 от 20 декабря 2022 г. | BE24: СПРАВКА 015/00406/001 от 20 декабря 2022 г. | BU24: СПРАВКА 015/00406/001 от 20 декабря 2022 г. | CK24: СПРАВКА 015/00406/001 от 20 декабря 2022 г. | DA24: СПРАВКА 015/00406/001 от 20 декабря 2022 г. | DQ24: СПРАВКА 015/00406/001 от 20 декабря 2022 г. | EG24: СПРАВКА 015/00406/001 от 20 декабря 2022 г. | EW24: СПРАВКА 015/00406/001 от 20 декабря 2022 г. | FM24: СПРАВКА 015/00406/001 от 20 декабря 2022 г. | GC24: СПРАВКА 015/00406/001 от 20 декабря 2022 г. | GS24: СПРАВКА 015/00406/001 от 20 декабря 2022 г. | HI24: СПРАВКА 015/00406/001 от 20 декабря 2022 г. | HY24: СПРАВКА 015/00406/001 от 20 декабря 2022 г. | IO24: СПРАВКА 015/00406/001 от 20 декабря 2022 г. | JE24: СПРАВКА 015/00406/001 от 20 декабря 2022 г. | JU24: СПРАВКА 015/00406/001 от 20 декабря 2022 г. | KK24: СПРАВКА 015/00406/001 от 20 декабря 2022 г. | LA24: СПРАВКА 015/00406/001 от 20 декабря 2022 г. | LQ24: СПРАВКА 015/00406/001 от 20 декабря 2022 г. | MG24: СПРАВКА 015/00406/001 от 20 декабря 2022 г. | MW24: СПРАВКА 015/00406/001 от 20 декабря 2022 г. | NM24: СПРАВКА 015/00406/001 от 20 декабря 2022 г. | OC24: СПРАВКА 015/00406/001 от 20 декабря 2022 г. | OS24: СПРАВКА 015/00406/001 от 20 декабря 2022 г. | PI24: СПРАВКА 015/00406/001 от 20 декабря 2022 г. | PY24: СПРАВКА 015/00406/001 от 20 декабря 2022 г. | QO24: СПРАВКА 015/00406/001 от 20 декабря 2022 г. | RE24: СПРАВКА 015/00406/001 от 20 декабря 2022 г. | RU24: СПРАВКА 015/00406/001 от 20 декабря 2022 г. | SK24: СПРАВКА 015/00406/001 от 20 декабря 2022 г. | TA24: СПРАВКА 015/00406/001 от 20 декабря 2022 г. | TQ24: СПРАВКА 015/00406/001 от 20 декабря 2022 г. | UG24: СПРАВКА 015/00406/001 от 20 декабря 2022 г. | UW24: СПРАВКА 015/00406/001 от 20 декабря 2022 г. | VM24: СПРАВКА 015/00406/001 от 20 декабря 2022 г. | WC24: СПРАВКА 015/00406/001 от 20 декабря 2022 г. | WS24: СПРАВКА 015/00406/001 от 20 декабря 2022 г. | XI24: СПРАВКА 015/00406/001 от 20 декабря 2022 г. | XY24: СПРАВКА 015/00406/001 от 20 декабря 2022 г. | YO24: СПРАВКА 015/00406/001 от 20 декабря 2022 г. | ZE24: СПРАВКА 015/00406/001 от 20 декабря 2022 г. | ZU24: СПРАВКА 015/00406/001 от 20 декабря 2022 г. | AAK24: СПРАВКА 015/00406/001 от 20 декабря 2022 г. | ABA24: СПРАВКА 015/00406/001 от 20 декабря 2022 г. | ABQ24: СПРАВКА 015/00406/001 от 20 декабря 2022 г. | ACG24: СПРАВКА 015/00406/001 от 20 декабря 2022 г. | ACW24: СПРАВКА 015/00406/001 от 20 декабря 2022 г. | ADM24: СПРАВКА 015/00406/001 от 20 декабря 2022 г. | AEC24: СПРАВКА 015/00406/001 от 20 декабря 2022 г. | AES24: СПРАВКА 015/00406/001 от 20 декабря 2022 г. | AFI24: СПРАВКА 015/00406/001 от 20 декабря 2022 г. | AFY24: СПРАВКА 015/00406/001 от 20 декабря 2022 г. | AGO24: СПРАВКА 015/00406/001 от 20 декабря 2022 г. | AHE24: СПРАВКА 015/00406/001 от 20 декабря 2022 г. | AHU24: СПРАВКА 015/00406/001 от 20 декабря 2022 г. | AIK24: СПРАВКА 015/00406/001 от 20 декабря 2022 г. | AJA24: СПРАВКА 015/00406/001 от 20 декабря 2022 г. | AJQ24: СПРАВКА 015/00406/001 от 20 декабря 2022 г. | AKG24: СПРАВКА 015/00406/001 от 20 декабря 2022 г. | AKW24: СПРАВКА 015/00406/001 от 20 декабря 2022 г. | ALM24: СПРАВКА 015/00406/001 от 20 декабря 2022 г. | AMC24: СПРАВКА 015/00406/001 от 20 декабря 2022 г. | AMS24: СПРАВКА 015/00406/001 от 20 декабря 2022 г. | ANI24: СПРАВКА 015/00406/001 от 20 декабря 2022 г. | ANY24: СПРАВКА 015/00406/001 от 20 декабря 2022 г. | AOO24: СПРАВКА 015/00406/001 от 20 декабря 2022 г. | APE24: СПРАВКА 015/00406/001 от 20 декабря 2022 г. | APU24: СПРАВКА 015/00406/001 от 20 декабря 2022 г. | AQK24: СПРАВКА 015/00406/001 от 20 декабря 2022 г. | ARA24: СПРАВКА 015/00406/001 от 20 декабря 2022 г. | ARQ24: СПРАВКА 015/00406/001 от 20 декабря 2022 г. | ASG24: СПРАВКА 015/00406/001 от 20 декабря 2022 г. | ASW24: СПРАВКА 015/00406/001 от 20 декабря 2022 г. | ATM24: СПРАВКА 015/00406/001 от 20 декабря 2022 г. | AUC24: СПРАВКА 015/00406/001 от 20 декабря 2022 г. | AUS24: СПРАВКА 015/00406/001 от 20 декабря 2022 г. | AVI24: СПРАВКА 015/00406/001 от 20 декабря 2022 г. | AVY24: СПРАВКА 015/00406/001 от 20 декабря 2022 г. | AWO24: СПРАВКА 015/00406/001 от 20 декабря 2022 г. | AXE24: СПРАВКА 015/00406/001 от 20 декабря 2022 г. | AXU24: СПРАВКА 015/00406/001 от 20 декабря 2022 г. | AYK24: СПРАВКА 015/00406/001 от 20 декабря 2022 г. | AZA24: СПРАВКА 015/00406/001 от 20 декабря 2022 г. | AZQ24: СПРАВКА 015/00406/001 от 20 декабря 2022 г. | BAG24: СПРАВКА 015/00406/001 от 20 декабря 2022 г. | BAW24: СПРАВКА 015/00406/001 от 20 декабря 2022 г. | BBM24: СПРАВКА 015/00406/001 от 20 декабря 2022 г. | BCC24: СПРАВКА 015/00406/001 от 20 декабря 2022 г. | BCS24: СПРАВКА 015/00406/001 от 20 декабря 2022 г. | BDI24: СПРАВКА 015/00406/001 от 20 декабря 2022 г. | BDY24: СПРАВКА 015/00406/001 от 20 декабря 2022 г. | BEO24: СПРАВКА 015/00406/001 от 20 декабря 2022 г. | BFE24: СПРАВКА 015/00406/001 от 20 декабря 2022 г. | BFU24: СПРАВКА 015/00406/001 от 20 декабря 2022 г. | BGK24: СПРАВКА 015/00406/001 от 20 декабря 2022 г. | BHA24: СПРАВКА 015/00406/001 от 20 декабря 2022 г. | BHQ24: СПРАВКА 015/00406/001 от 20 декабря 2022 г. | BIG24: СПРАВКА 015/00406/001 от 20 декабря 2022 г. | BIW24: СПРАВКА 015/00406/001 от 20 декабря 2022 г. | BJM24: СПРАВКА 015/00406/001 от 20 декабря 2022 г. | BKC24: СПРАВКА 015/00406/001 от 20 декабря 2022 г. | BKS24: СПРАВКА 015/00406/001 от 20 декабря 2022 г. | BLI24: СПРАВКА 015/00406/001 от 20 декабря 2022 г. | BLY24: СПРАВКА 015/00406/001 от 20 декабря 2022 г. | BMO24: СПРАВКА 015/00406/001 от 20 декабря 2022 г. | BNE24: СПРАВКА 015/00406/001 от 20 декабря 2022 г. | BNU24: СПРАВКА 015/00406/001 от 20 декабря 2022 г. | BOK24: СПРАВКА 015/00406/001 от 20 декабря 2022 г. | BPA24: СПРАВКА 015/00406/001 от 20 декабря 2022 г. | BPQ24: СПРАВКА 015/00406/001 от 20 декабря 2022 г. | BQG24: СПРАВКА 015/00406/001 от 20 декабря 2022 г. | BQW24: СПРАВКА 015/00406/001 от 20 декабря 2022 г. | BRM24: СПРАВКА 015/00406/001 от 20 декабря 2022 г. | BSC24: СПРАВКА 015/00406/001 от 20 декабря 2022 г. | BSS24: СПРАВКА 015/00406/001 от 20 декабря 2022 г. | BTI24: СПРАВКА 015/00406/001 от 20 декабря 2022 г. | BTY24: СПРАВКА 015/00406/001 от 20 декабря 2022 г. | BUO24: СПРАВКА 015/00406/001 от 20 декабря 2022 г. | BVE24: СПРАВКА 015/00406/001 от 20 декабря 2022 г. | BVU24: СПРАВКА 015/00406/001 от 20 декабря 2022 г. | BWK24: СПРАВКА 015/00406/001 от 20 декабря 2022 г. | BXA24: СПРАВКА 015/00406/001 от 20 декабря 2022 г. | BXQ24: СПРАВКА 015/00406/001 от 20 декабря 2022 г. | BYG24: СПРАВКА 015/00406/001 от 20 декабря 2022 г. | BYW24: СПРАВКА 015/00406/001 от 20 декабря 2022 г. | BZM24: СПРАВКА 015/00406/001 от 20 декабря 2022 г. | CAC24: СПРАВКА 015/00406/001 от 20 декабря 2022 г. | CAS24: СПРАВКА 015/00406/001 от 20 декабря 2022 г. | CBI24: СПРАВКА 015/00406/001 от 20 декабря 2022 г. | CBY24: СПРАВКА 015/00406/001 от 20 декабря 2022 г. | CCO24: СПРАВКА 015/00406/001 от 20 декабря 2022 г. | CDE24: СПРАВКА 015/00406/001 от 20 декабря 2022 г. | CDU24: СПРАВКА 015/00406/001 от 20 декабря 2022 г. | CEK24: СПРАВКА 015/00406/001 от 20 декабря 2022 г. | CFA24: СПРАВКА 015/00406/001 от 20 декабря 2022 г. | CFQ24: СПРАВКА 015/00406/001 от 20 декабря 2022 г. | CGG24: СПРАВКА 015/00406/001 от 20 декабря 2022 г. | CGW24: СПРАВКА 015/00406/001 от 20 декабря 2022 г. | CHM24: СПРАВКА 015/00406/001 от 20 декабря 2022 г. | CIC24: СПРАВКА 015/00406/001 от 20 декабря 2022 г. | CIS24: СПРАВКА 015/00406/001 от 20 декабря 2022 г. | CJI24: СПРАВКА 015/00406/001 от 20 декабря 2022 г. | CJY24: СПРАВКА 015/00406/001 от 20 декабря 2022 г. | CKO24: СПРАВКА 015/00406/001 от 20 декабря 2022 г. | CLE24: СПРАВКА 015/00406/001 от 20 декабря 2022 г. | CLU24: СПРАВКА 015/00406/001 от 20 декабря 2022 г. | CMK24: СПРАВКА 015/00406/001 от 20 декабря 2022 г. | CNA24: СПРАВКА 015/00406/001 от 20 декабря 2022 г. | CNQ24: СПРАВКА 015/00406/001 от 20 декабря 2022 г. | COG24: СПРАВКА 015/00406/001 от 20 декабря 2022 г. | COW24: СПРАВКА 015/00406/001 от 20 декабря 2022 г. | CPM24: СПРАВКА 015/00406/001 от 20 декабря 2022 г. | CQC24: СПРАВКА 015/00406/001 от 20 декабря 2022 г. | CQS24: СПРАВКА 015/00406/001 от 20 декабря 2022 г. | CRI24: СПРАВКА 015/00406/001 от 20 декабря 2022 г. | CRY24: СПРАВКА 015/00406/001 от 20 декабря 2022 г. | CSO24: СПРАВКА 015/00406/001 от 20 декабря 2022 г. | CTE24: СПРАВКА 015/00406/001 от 20 декабря 2022 г. | CTU24: СПРАВКА 015/00406/001 от 20 декабря 2022 г. | CUK24: СПРАВКА 015/00406/001 от 20 декабря 2022 г. | CVA24: СПРАВКА 015/00406/001 от 20 декабря 2022 г. | CVQ24: СПРАВКА 015/00406/001 от 20 декабря 2022 г. | CWG24: СПРАВКА 015/00406/001 от 20 декабря 2022 г. | CWW24: СПРАВКА 015/00406/001 от 20 декабря 2022 г. | CXM24: СПРАВКА 015/00406/001 от 20 декабря 2022 г. | CYC24: СПРАВКА 015/00406/001 от 20 декабря 2022 г. | CYS24: СПРАВКА 015/00406/001 от 20 декабря 2022 г. | CZI24: СПРАВКА 015/00406/001 от 20 декабря 2022 г. | CZY24: СПРАВКА 015/00406/001 от 20 декабря 2022 г. | DAO24: СПРАВКА 015/00406/001 от 20 декабря 2022 г. | DBE24: СПРАВКА 015/00406/001 от 20 декабря 2022 г. | DBU24: СПРАВКА 015/00406/001 от 20 декабря 2022 г. | DCK24: СПРАВКА 015/00406/001 от 20 декабря 2022 г. | DDA24: СПРАВКА 015/00406/001 от 20 декабря 2022 г. | DDQ24: СПРАВКА 015/00406/001 от 20 декабря 2022 г. | DEG24: СПРАВКА 015/00406/001 от 20 декабря 2022 г. | DEW24: СПРАВКА 015/00406/001 от 20 декабря 2022 г. | DFM24: СПРАВКА 015/00406/001 от 20 декабря 2022 г. | DGC24: СПРАВКА 015/00406/001 от 20 декабря 2022 г. | DGS24: СПРАВКА 015/00406/001 от 20 декабря 2022 г. | DHI24: СПРАВКА 015/00406/001 от 20 декабря 2022 г. | DHY24: СПРАВКА 015/00406/001 от 20 декабря 2022 г. | DIO24: СПРАВКА 015/00406/001 от 20 декабря 2022 г. | DJE24: СПРАВКА 015/00406/001 от 20 декабря 2022 г. | DJU24: СПРАВКА 015/00406/001 от 20 декабря 2022 г. | DKK24: СПРАВКА 015/00406/001 от 20 декабря 2022 г. | DLA24: СПРАВКА 015/00406/001 от 20 декабря 2022 г. | DLQ24: СПРАВКА 015/00406/001 от 20 декабря 2022 г. | DMG24: СПРАВКА 015/00406/001 от 20 декабря 2022 г. | DMW24: СПРАВКА 015/00406/001 от 20 декабря 2022 г. | DNM24: СПРАВКА 015/00406/001 от 20 декабря 2022 г. | DOC24: СПРАВКА 015/00406/001 от 20 декабря 2022 г. | DOS24: СПРАВКА 015/00406/001 от 20 декабря 2022 г. | DPI24: СПРАВКА 015/00406/001 от 20 декабря 2022 г. | DPY24: СПРАВКА 015/00406/001 от 20 декабря 2022 г. | DQO24: СПРАВКА 015/00406/001 от 20 декабря 2022 г. | DRE24: СПРАВКА 015/00406/001 от 20 декабря 2022 г. | DRU24: СПРАВКА 015/00406/001 от 20 декабря 2022 г. | DSK24: СПРАВКА 015/00406/001 от 20 декабря 2022 г. | DTA24: СПРАВКА 015/00406/001 от 20 декабря 2022 г. | DTQ24: СПРАВКА 015/00406/001 от 20 декабря 2022 г. | DUG24: СПРАВКА 015/00406/001 от 20 декабря 2022 г. | DUW24: СПРАВКА 015/00406/001 от 20 декабря 2022 г. | DVM24: СПРАВКА 015/00406/001 от 20 декабря 2022 г. | DWC24: СПРАВКА 015/00406/001 от 20 декабря 2022 г. | DWS24: СПРАВКА 015/00406/001 от 20 декабря 2022 г. | DXI24: СПРАВКА 015/00406/001 от 20 декабря 2022 г. | DXY24: СПРАВКА 015/00406/001 от 20 декабря 2022 г. | DYO24: СПРАВКА 015/00406/001 от 20 декабря 2022 г. | DZE24: СПРАВКА 015/00406/001 от 20 декабря 2022 г. | DZU24: СПРАВКА 015/00406/001 от 20 декабря 2022 г. | EAK24: СПРАВКА 015/00406/001 от 20 декабря 2022 г. | EBA24: СПРАВКА 015/00406/001 от 20 декабря 2022 г. | EBQ24: СПРАВКА 015/00406/001 от 20 декабря 2022 г. | ECG24: СПРАВКА 015/00406/001 от 20 декабря 2022 г. | ECW24: СПРАВКА 015/00406/001 от 20 декабря 2022 г. | EDM24: СПРАВКА 015/00406/001 от 20 декабря 2022 г. | EEC24: СПРАВКА 015/00406/001 от 20 декабря 2022 г. | EES24: СПРАВКА 015/00406/001 от 20 декабря 2022 г. | EFI24: СПРАВКА 015/00406/001 от 20 декабря 2022 г. | EFY24: СПРАВКА 015/00406/001 от 20 декабря 2022 г. | EGO24: СПРАВКА 015/00406/001 от 20 декабря 2022 г. | EHE24: СПРАВКА 015/00406/001 от 20 декабря 2022 г. | EHU24: СПРАВКА 015/00406/001 от 20 декабря 2022 г. | EIK24: СПРАВКА 015/00406/001 от 20 декабря 2022 г. | EJA24: СПРАВКА 015/00406/001 от 20 декабря 2022 г. | EJQ24: СПРАВКА 015/00406/001 от 20 декабря 2022 г. | EKG24: СПРАВКА 015/00406/001 от 20 декабря 2022 г. | EKW24: СПРАВКА 015/00406/001 от 20 декабря 2022 г. | ELM24: СПРАВКА 015/00406/001 от 20 декабря 2022 г. | EMC24: СПРАВКА 015/00406/001 от 20 декабря 2022 г. | EMS24: СПРАВКА 015/00406/001 от 20 декабря 2022 г. | ENI24: СПРАВКА 015/00406/001 от 20 декабря 2022 г. | ENY24: СПРАВКА 015/00406/001 от 20 декабря 2022 г. | EOO24: СПРАВКА 015/00406/001 от 20 декабря 2022 г. | EPE24: СПРАВКА 015/00406/001 от 20 декабря 2022 г. | EPU24: СПРАВКА 015/00406/001 от 20 декабря 2022 г. | EQK24: СПРАВКА 015/00406/001 от 20 декабря 2022 г. | ERA24: СПРАВКА 015/00406/001 от 20 декабря 2022 г. | ERQ24: СПРАВКА 015/00406/001 от 20 декабря 2022 г. | ESG24: СПРАВКА 015/00406/001 от 20 декабря 2022 г. | ESW24: СПРАВКА 015/00406/001 от 20 декабря 2022 г. | ETM24: СПРАВКА 015/00406/001 от 20 декабря 2022 г. | EUC24: СПРАВКА 015/00406/001 от 20 декабря 2022 г. | EUS24: СПРАВКА 015/00406/001 от 20 декабря 2022 г. | EVI24: СПРАВКА 015/00406/001 от 20 декабря 2022 г. | EVY24: СПРАВКА 015/00406/001 от 20 декабря 2022 г. | EWO24: СПРАВКА 015/00406/001 от 20 декабря 2022 г. | EXE24: СПРАВКА 015/00406/001 от 20 декабря 2022 г. | EXU24: СПРАВКА 015/00406/001 от 20 декабря 2022 г. | EYK24: СПРАВКА 015/00406/001 от 20 декабря 2022 г. | EZA24: СПРАВКА 015/00406/001 от 20 декабря 2022 г. | EZQ24: СПРАВКА 015/00406/001 от 20 декабря 2022 г. | FAG24: СПРАВКА 015/00406/001 от 20 декабря 2022 г. | FAW24: СПРАВКА 015/00406/001 от 20 декабря 2022 г. | FBM24: СПРАВКА 015/00406/001 от 20 декабря 2022 г. | FCC24: СПРАВКА 015/00406/001 от 20 декабря 2022 г. | FCS24: СПРАВКА 015/00406/001 от 20 декабря 2022 г. | FDI24: СПРАВКА 015/00406/001 от 20 декабря 2022 г. | FDY24: СПРАВКА 015/00406/001 от 20 декабря 2022 г. | FEO24: СПРАВКА 015/00406/001 от 20 декабря 2022 г. | FFE24: СПРАВКА 015/00406/001 от 20 декабря 2022 г. | FFU24: СПРАВКА 015/00406/001 от 20 декабря 2022 г. | FGK24: СПРАВКА 015/00406/001 от 20 декабря 2022 г. | FHA24: СПРАВКА 015/00406/001 от 20 декабря 2022 г. | FHQ24: СПРАВКА 015/00406/001 от 20 декабря 2022 г. | FIG24: СПРАВКА 015/00406/001 от 20 декабря 2022 г. | FIW24: СПРАВКА 015/00406/001 от 20 декабря 2022 г. | FJM24: СПРАВКА 015/00406/001 от 20 декабря 2022 г. | FKC24: СПРАВКА 015/00406/001 от 20 декабря 2022 г. | FKS24: СПРАВКА 015/00406/001 от 20 декабря 2022 г. | FLI24: СПРАВКА 015/00406/001 от 20 декабря 2022 г. | FLY24: СПРАВКА 015/00406/001 от 20 декабря 2022 г. | FMO24: СПРАВКА 015/00406/001 от 20 декабря 2022 г. | FNE24: СПРАВКА 015/00406/001 от 20 декабря 2022 г. | FNU24: СПРАВКА 015/00406/001 от 20 декабря 2022 г. | FOK24: СПРАВКА 015/00406/001 от 20 декабря 2022 г. | FPA24: СПРАВКА 015/00406/001 от 20 декабря 2022 г. | FPQ24: СПРАВКА 015/00406/001 от 20 декабря 2022 г. | FQG24: СПРАВКА 015/00406/001 от 20 декабря 2022 г. | FQW24: СПРАВКА 015/00406/001 от 20 декабря 2022 г. | FRM24: СПРАВКА 015/00406/001 от 20 декабря 2022 г. | FSC24: СПРАВКА 015/00406/001 от 20 декабря 2022 г. | FSS24: СПРАВКА 015/00406/001 от 20 декабря 2022 г. | FTI24: СПРАВКА 015/00406/001 от 20 декабря 2022 г. | FTY24: СПРАВКА 015/00406/001 от 20 декабря 2022 г. | FUO24: СПРАВКА 015/00406/001 от 20 декабря 2022 г. | FVE24: СПРАВКА 015/00406/001 от 20 декабря 2022 г. | FVU24: СПРАВКА 015/00406/001 от 20 декабря 2022 г. | FWK24: СПРАВКА 015/00406/001 от 20 декабря 2022 г. | FXA24: СПРАВКА 015/00406/001 от 20 декабря 2022 г. | FXQ24: СПРАВКА 015/00406/001 от 20 декабря 2022 г. | FYG24: СПРАВКА 015/00406/001 от 20 декабря 2022 г. | FYW24: СПРАВКА 015/00406/001 от 20 декабря 2022 г. | FZM24: СПРАВКА 015/00406/001 от 20 декабря 2022 г. | GAC24: СПРАВКА 015/00406/001 от 20 декабря 2022 г. | GAS24: СПРАВКА 015/00406/001 от 20 декабря 2022 г. | GBI24: СПРАВКА 015/00406/001 от 20 декабря 2022 г. | GBY24: СПРАВКА 015/00406/001 от 20 декабря 2022 г. | GCO24: СПРАВКА 015/00406/001 от 20 декабря 2022 г. | GDE24: СПРАВКА 015/00406/001 от 20 декабря 2022 г. | GDU24: СПРАВКА 015/00406/001 от 20 декабря 2022 г. | GEK24: СПРАВКА 015/00406/001 от 20 декабря 2022 г. | GFA24: СПРАВКА 015/00406/001 от 20 декабря 2022 г. | GFQ24: СПРАВКА 015/00406/001 от 20 декабря 2022 г. | GGG24: СПРАВКА 015/00406/001 от 20 декабря 2022 г. | GGW24: СПРАВКА 015/00406/001 от 20 декабря 2022 г. | GHM24: СПРАВКА 015/00406/001 от 20 декабря 2022 г. | GIC24: СПРАВКА 015/00406/001 от 20 декабря 2022 г. | GIS24: СПРАВКА 015/00406/001 от 20 декабря 2022 г. | GJI24: СПРАВКА 015/00406/001 от 20 декабря 2022 г. | GJY24: СПРАВКА 015/00406/001 от 20 декабря 2022 г. | GKO24: СПРАВКА 015/00406/001 от 20 декабря 2022 г. | GLE24: СПРАВКА 015/00406/001 от 20 декабря 2022 г. | GLU24: СПРАВКА 015/00406/001 от 20 декабря 2022 г. | GMK24: СПРАВКА 015/00406/001 от 20 декабря 2022 г. | GNA24: СПРАВКА 015/00406/001 от 20 декабря 2022 г. | GNQ24: СПРАВКА 015/00406/001 от 20 декабря 2022 г. | GOG24: СПРАВКА 015/00406/001 от 20 декабря 2022 г. | GOW24: СПРАВКА 015/00406/001 от 20 декабря 2022 г. | GPM24: СПРАВКА 015/00406/001 от 20 декабря 2022 г. | GQC24: СПРАВКА 015/00406/001 от 20 декабря 2022 г. | GQS24: СПРАВКА 015/00406/001 от 20 декабря 2022 г. | GRI24: СПРАВКА 015/00406/001 от 20 декабря 2022 г. | GRY24: СПРАВКА 015/00406/001 от 20 декабря 2022 г. | GSO24: СПРАВКА 015/00406/001 от 20 декабря 2022 г. | GTE24: СПРАВКА 015/00406/001 от 20 декабря 2022 г. | GTU24: СПРАВКА 015/00406/001 от 20 декабря 2022 г. | GUK24: СПРАВКА 015/00406/001 от 20 декабря 2022 г. | GVA24: СПРАВКА 015/00406/001 от 20 декабря 2022 г. | GVQ24: СПРАВКА 015/00406/001 от 20 декабря 2022 г. | GWG24: СПРАВКА 015/00406/001 от 20 декабря 2022 г. | GWW24: СПРАВКА 015/00406/001 от 20 декабря 2022 г. | GXM24: СПРАВКА 015/00406/001 от 20 декабря 2022 г. | GYC24: СПРАВКА 015/00406/001 от 20 декабря 2022 г. | GYS24: СПРАВКА 015/00406/001 от 20 декабря 2022 г. | GZI24: СПРАВКА 015/00406/001 от 20 декабря 2022 г. | GZY24: СПРАВКА 015/00406/001 от 20 декабря 2022 г. | HAO24: СПРАВКА 015/00406/001 от 20 декабря 2022 г. | HBE24: СПРАВКА 015/00406/001 от 20 декабря 2022 г. | HBU24: СПРАВКА 015/00406/001 от 20 декабря 2022 г. | HCK24: СПРАВКА 015/00406/001 от 20 декабря 2022 г. | HDA24: СПРАВКА 015/00406/001 от 20 декабря 2022 г. | HDQ24: СПРАВКА 015/00406/001 от 20 декабря 2022 г. | HEG24: СПРАВКА 015/00406/001 от 20 декабря 2022 г. | HEW24: СПРАВКА 015/00406/001 от 20 декабря 2022 г. | HFM24: СПРАВКА 015/00406/001 от 20 декабря 2022 г. | HGC24: СПРАВКА 015/00406/001 от 20 декабря 2022 г. | HGS24: СПРАВКА 015/00406/001 от 20 декабря 2022 г. | HHI24: СПРАВКА 015/00406/001 от 20 декабря 2022 г. | HHY24: СПРАВКА 015/00406/001 от 20 декабря 2022 г. | HIO24: СПРАВКА 015/00406/001 от 20 декабря 2022 г. | HJE24: СПРАВКА 015/00406/001 от 20 декабря 2022 г. | HJU24: СПРАВКА 015/00406/001 от 20 декабря 2022 г. | HKK24: СПРАВКА 015/00406/001 от 20 декабря 2022 г. | HLA24: СПРАВКА 015/00406/001 от 20 декабря 2022 г. | HLQ24: СПРАВКА 015/00406/001 от 20 декабря 2022 г. | HMG24: СПРАВКА 015/00406/001 от 20 декабря 2022 г. | HMW24: СПРАВКА 015/00406/001 от 20 декабря 2022 г. | HNM24: СПРАВКА 015/00406/001 от 20 декабря 2022 г. | HOC24: СПРАВКА 015/00406/001 от 20 декабря 2022 г. | HOS24: СПРАВКА 015/00406/001 от 20 декабря 2022 г. | HPI24: СПРАВКА 015/00406/001 от 20 декабря 2022 г. | HPY24: СПРАВКА 015/00406/001 от 20 декабря 2022 г. | HQO24: СПРАВКА 015/00406/001 от 20 декабря 2022 г. | HRE24: СПРАВКА 015/00406/001 от 20 декабря 2022 г. | HRU24: СПРАВКА 015/00406/001 от 20 декабря 2022 г. | HSK24: СПРАВКА 015/00406/001 от 20 декабря 2022 г. | HTA24: СПРАВКА 015/00406/001 от 20 декабря 2022 г. | HTQ24: СПРАВКА 015/00406/001 от 20 декабря 2022 г. | HUG24: СПРАВКА 015/00406/001 от 20 декабря 2022 г. | HUW24: СПРАВКА 015/00406/001 от 20 декабря 2022 г. | HVM24: СПРАВКА 015/00406/001 от 20 декабря 2022 г. | HWC24: СПРАВКА 015/00406/001 от 20 декабря 2022 г. | HWS24: СПРАВКА 015/00406/001 от 20 декабря 2022 г. | HXI24: СПРАВКА 015/00406/001 от 20 декабря 2022 г. | HXY24: СПРАВКА 015/00406/001 от 20 декабря 2022 г. | HYO24: СПРАВКА 015/00406/001 от 20 декабря 2022 г. | HZE24: СПРАВКА 015/00406/001 от 20 декабря 2022 г. | HZU24: СПРАВКА 015/00406/001 от 20 декабря 2022 г. | IAK24: СПРАВКА 015/00406/001 от 20 декабря 2022 г. | IBA24: СПРАВКА 015/00406/001 от 20 декабря 2022 г. | IBQ24: СПРАВКА 015/00406/001 от 20 декабря 2022 г. | ICG24: СПРАВКА 015/00406/001 от 20 декабря 2022 г. | ICW24: СПРАВКА 015/00406/001 от 20 декабря 2022 г. | IDM24: СПРАВКА 015/00406/001 от 20 декабря 2022 г. | IEC24: СПРАВКА 015/00406/001 от 20 декабря 2022 г. | IES24: СПРАВКА 015/00406/001 от 20 декабря 2022 г. | IFI24: СПРАВКА 015/00406/001 от 20 декабря 2022 г. | IFY24: СПРАВКА 015/00406/001 от 20 декабря 2022 г. | IGO24: СПРАВКА 015/00406/001 от 20 декабря 2022 г. | IHE24: СПРАВКА 015/00406/001 от 20 декабря 2022 г. | IHU24: СПРАВКА 015/00406/001 от 20 декабря 2022 г. | IIK24: СПРАВКА 015/00406/001 от 20 декабря 2022 г. | IJA24: СПРАВКА 015/00406/001 от 20 декабря 2022 г. | IJQ24: СПРАВКА 015/00406/001 от 20 декабря 2022 г. | IKG24: СПРАВКА 015/00406/001 от 20 декабря 2022 г. | IKW24: СПРАВКА 015/00406/001 от 20 декабря 2022 г. | ILM24: СПРАВКА 015/00406/001 от 20 декабря 2022 г. | IMC24: СПРАВКА 015/00406/001 от 20 декабря 2022 г. | IMS24: СПРАВКА 015/00406/001 от 20 декабря 2022 г. | INI24: СПРАВКА 015/00406/001 от 20 декабря 2022 г. | INY24: СПРАВКА 015/00406/001 от 20 декабря 2022 г. | IOO24: СПРАВКА 015/00406/001 от 20 декабря 2022 г. | IPE24: СПРАВКА 015/00406/001 от 20 декабря 2022 г. | IPU24: СПРАВКА 015/00406/001 от 20 декабря 2022 г. | IQK24: СПРАВКА 015/00406/001 от 20 декабря 2022 г. | IRA24: СПРАВКА 015/00406/001 от 20 декабря 2022 г. | IRQ24: СПРАВКА 015/00406/001 от 20 декабря 2022 г. | ISG24: СПРАВКА 015/00406/001 от 20 декабря 2022 г. | ISW24: СПРАВКА 015/00406/001 от 20 декабря 2022 г. | ITM24: СПРАВКА 015/00406/001 от 20 декабря 2022 г. | IUC24: СПРАВКА 015/00406/001 от 20 декабря 2022 г. | IUS24: СПРАВКА 015/00406/001 от 20 декабря 2022 г. | IVI24: СПРАВКА 015/00406/001 от 20 декабря 2022 г. | IVY24: СПРАВКА 015/00406/001 от 20 декабря 2022 г. | IWO24: СПРАВКА 015/00406/001 от 20 декабря 2022 г. | IXE24: СПРАВКА 015/00406/001 от 20 декабря 2022 г. | IXU24: СПРАВКА 015/00406/001 от 20 декабря 2022 г. | IYK24: СПРАВКА 015/00406/001 от 20 декабря 2022 г. | IZA24: СПРАВКА 015/00406/001 от 20 декабря 2022 г. | IZQ24: СПРАВКА 015/00406/001 от 20 декабря 2022 г. | JAG24: СПРАВКА 015/00406/001 от 20 декабря 2022 г. | JAW24: СПРАВКА 015/00406/001 от 20 декабря 2022 г. | JBM24: СПРАВКА 015/00406/001 от 20 декабря 2022 г. | JCC24: СПРАВКА 015/00406/001 от 20 декабря 2022 г. | JCS24: СПРАВКА 015/00406/001 от 20 декабря 2022 г. | JDI24: СПРАВКА 015/00406/001 от 20 декабря 2022 г. | JDY24: СПРАВКА 015/00406/001 от 20 декабря 2022 г. | JEO24: СПРАВКА 015/00406/001 от 20 декабря 2022 г. | JFE24: СПРАВКА 015/00406/001 от 20 декабря 2022 г. | JFU24: СПРАВКА 015/00406/001 от 20 декабря 2022 г. | JGK24: СПРАВКА 015/00406/001 от 20 декабря 2022 г. | JHA24: СПРАВКА 015/00406/001 от 20 декабря 2022 г. | JHQ24: СПРАВКА 015/00406/001 от 20 декабря 2022 г. | JIG24: СПРАВКА 015/00406/001 от 20 декабря 2022 г. | JIW24: СПРАВКА 015/00406/001 от 20 декабря 2022 г. | JJM24: СПРАВКА 015/00406/001 от 20 декабря 2022 г. | JKC24: СПРАВКА 015/00406/001 от 20 декабря 2022 г. | JKS24: СПРАВКА 015/00406/001 от 20 декабря 2022 г. | JLI24: СПРАВКА 015/00406/001 от 20 декабря 2022 г. | JLY24: СПРАВКА 015/00406/001 от 20 декабря 2022 г. | JMO24: СПРАВКА 015/00406/001 от 20 декабря 2022 г. | JNE24: СПРАВКА 015/00406/001 от 20 декабря 2022 г. | JNU24: СПРАВКА 015/00406/001 от 20 декабря 2022 г. | JOK24: СПРАВКА 015/00406/001 от 20 декабря 2022 г. | JPA24: СПРАВКА 015/00406/001 от 20 декабря 2022 г. | JPQ24: СПРАВКА 015/00406/001 от 20 декабря 2022 г. | JQG24: СПРАВКА 015/00406/001 от 20 декабря 2022 г. | JQW24: СПРАВКА 015/00406/001 от 20 декабря 2022 г. | JRM24: СПРАВКА 015/00406/001 от 20 декабря 2022 г. | JSC24: СПРАВКА 015/00406/001 от 20 декабря 2022 г. | JSS24: СПРАВКА 015/00406/001 от 20 декабря 2022 г. | JTI24: СПРАВКА 015/00406/001 от 20 декабря 2022 г. | JTY24: СПРАВКА 015/00406/001 от 20 декабря 2022 г. | JUO24: СПРАВКА 015/00406/001 от 20 декабря 2022 г. | JVE24: СПРАВКА 015/00406/001 от 20 декабря 2022 г. | JVU24: СПРАВКА 015/00406/001 от 20 декабря 2022 г. | JWK24: СПРАВКА 015/00406/001 от 20 декабря 2022 г. | JXA24: СПРАВКА 015/00406/001 от 20 декабря 2022 г. | JXQ24: СПРАВКА 015/00406/001 от 20 декабря 2022 г. | JYG24: СПРАВКА 015/00406/001 от 20 декабря 2022 г. | JYW24: СПРАВКА 015/00406/001 от 20 декабря 2022 г. | JZM24: СПРАВКА 015/00406/001 от 20 декабря 2022 г. | KAC24: СПРАВКА 015/00406/001 от 20 декабря 2022 г. | KAS24: СПРАВКА 015/00406/001 от 20 декабря 2022 г. | KBI24: СПРАВКА 015/00406/001 от 20 декабря 2022 г. | KBY24: СПРАВКА 015/00406/001 от 20 декабря 2022 г. | KCO24: СПРАВКА 015/00406/001 от 20 декабря 2022 г. | KDE24: СПРАВКА 015/00406/001 от 20 декабря 2022 г. | KDU24: СПРАВКА 015/00406/001 от 20 декабря 2022 г. | KEK24: СПРАВКА 015/00406/001 от 20 декабря 2022 г. | KFA24: СПРАВКА 015/00406/001 от 20 декабря 2022 г. | KFQ24: СПРАВКА 015/00406/001 от 20 декабря 2022 г. | KGG24: СПРАВКА 015/00406/001 от 20 декабря 2022 г. | KGW24: СПРАВКА 015/00406/001 от 20 декабря 2022 г. | KHM24: СПРАВКА 015/00406/001 от 20 декабря 2022 г. | KIC24: СПРАВКА 015/00406/001 от 20 декабря 2022 г. | KIS24: СПРАВКА 015/00406/001 от 20 декабря 2022 г. | KJI24: СПРАВКА 015/00406/001 от 20 декабря 2022 г. | KJY24: СПРАВКА 015/00406/001 от 20 декабря 2022 г. | KKO24: СПРАВКА 015/00406/001 от 20 декабря 2022 г. | KLE24: СПРАВКА 015/00406/001 от 20 декабря 2022 г. | KLU24: СПРАВКА 015/00406/001 от 20 декабря 2022 г. | KMK24: СПРАВКА 015/00406/001 от 20 декабря 2022 г. | KNA24: СПРАВКА 015/00406/001 от 20 декабря 2022 г. | KNQ24: СПРАВКА 015/00406/001 от 20 декабря 2022 г. | KOG24: СПРАВКА 015/00406/001 от 20 декабря 2022 г. | KOW24: СПРАВКА 015/00406/001 от 20 декабря 2022 г. | KPM24: СПРАВКА 015/00406/001 от 20 декабря 2022 г. | KQC24: СПРАВКА 015/00406/001 от 20 декабря 2022 г. | KQS24: СПРАВКА 015/00406/001 от 20 декабря 2022 г. | KRI24: СПРАВКА 015/00406/001 от 20 декабря 2022 г. | KRY24: СПРАВКА 015/00406/001 от 20 декабря 2022 г. | KSO24: СПРАВКА 015/00406/001 от 20 декабря 2022 г. | KTE24: СПРАВКА 015/00406/001 от 20 декабря 2022 г. | KTU24: СПРАВКА 015/00406/001 от 20 декабря 2022 г. | KUK24: СПРАВКА 015/00406/001 от 20 декабря 2022 г. | KVA24: СПРАВКА 015/00406/001 от 20 декабря 2022 г. | KVQ24: СПРАВКА 015/00406/001 от 20 декабря 2022 г. | KWG24: СПРАВКА 015/00406/001 от 20 декабря 2022 г. | KWW24: СПРАВКА 015/00406/001 от 20 декабря 2022 г. | KXM24: СПРАВКА 015/00406/001 от 20 декабря 2022 г. | KYC24: СПРАВКА 015/00406/001 от 20 декабря 2022 г. | KYS24: СПРАВКА 015/00406/001 от 20 декабря 2022 г. | KZI24: СПРАВКА 015/00406/001 от 20 декабря 2022 г. | KZY24: СПРАВКА 015/00406/001 от 20 декабря 2022 г. | LAO24: СПРАВКА 015/00406/001 от 20 декабря 2022 г. | LBE24: СПРАВКА 015/00406/001 от 20 декабря 2022 г. | LBU24: СПРАВКА 015/00406/001 от 20 декабря 2022 г. | LCK24: СПРАВКА 015/00406/001 от 20 декабря 2022 г. | LDA24: СПРАВКА 015/00406/001 от 20 декабря 2022 г. | LDQ24: СПРАВКА 015/00406/001 от 20 декабря 2022 г. | LEG24: СПРАВКА 015/00406/001 от 20 декабря 2022 г. | LEW24: СПРАВКА 015/00406/001 от 20 декабря 2022 г. | LFM24: СПРАВКА 015/00406/001 от 20 декабря 2022 г. | LGC24: СПРАВКА 015/00406/001 от 20 декабря 2022 г. | LGS24: СПРАВКА 015/00406/001 от 20 декабря 2022 г. | LHI24: СПРАВКА 015/00406/001 от 20 декабря 2022 г. | LHY24: СПРАВКА 015/00406/001 от 20 декабря 2022 г. | LIO24: СПРАВКА 015/00406/001 от 20 декабря 2022 г. | LJE24: СПРАВКА 015/00406/001 от 20 декабря 2022 г. | LJU24: СПРАВКА 015/00406/001 от 20 декабря 2022 г. | LKK24: СПРАВКА 015/00406/001 от 20 декабря 2022 г. | LLA24: СПРАВКА 015/00406/001 от 20 декабря 2022 г. | LLQ24: СПРАВКА 015/00406/001 от 20 декабря 2022 г. | LMG24: СПРАВКА 015/00406/001 от 20 декабря 2022 г. | LMW24: СПРАВКА 015/00406/001 от 20 декабря 2022 г. | LNM24: СПРАВКА 015/00406/001 от 20 декабря 2022 г. | LOC24: СПРАВКА 015/00406/001 от 20 декабря 2022 г. | LOS24: СПРАВКА 015/00406/001 от 20 декабря 2022 г. | LPI24: СПРАВКА 015/00406/001 от 20 декабря 2022 г. | LPY24: СПРАВКА 015/00406/001 от 20 декабря 2022 г. | LQO24: СПРАВКА 015/00406/001 от 20 декабря 2022 г. | LRE24: СПРАВКА 015/00406/001 от 20 декабря 2022 г. | LRU24: СПРАВКА 015/00406/001 от 20 декабря 2022 г. | LSK24: СПРАВКА 015/00406/001 от 20 декабря 2022 г. | LTA24: СПРАВКА 015/00406/001 от 20 декабря 2022 г. | LTQ24: СПРАВКА 015/00406/001 от 20 декабря 2022 г. | LUG24: СПРАВКА 015/00406/001 от 20 декабря 2022 г. | LUW24: СПРАВКА 015/00406/001 от 20 декабря 2022 г. | LVM24: СПРАВКА 015/00406/001 от 20 декабря 2022 г. | LWC24: СПРАВКА 015/00406/001 от 20 декабря 2022 г. | LWS24: СПРАВКА 015/00406/001 от 20 декабря 2022 г. | LXI24: СПРАВКА 015/00406/001 от 20 декабря 2022 г. | LXY24: СПРАВКА 015/00406/001 от 20 декабря 2022 г. | LYO24: СПРАВКА 015/00406/001 от 20 декабря 2022 г. | LZE24: СПРАВКА 015/00406/001 от 20 декабря 2022 г. | LZU24: СПРАВКА 015/00406/001 от 20 декабря 2022 г. | MAK24: СПРАВКА 015/00406/001 от 20 декабря 2022 г. | MBA24: СПРАВКА 015/00406/001 от 20 декабря 2022 г. | MBQ24: СПРАВКА 015/00406/001 от 20 декабря 2022 г. | MCG24: СПРАВКА 015/00406/001 от 20 декабря 2022 г. | MCW24: СПРАВКА 015/00406/001 от 20 декабря 2022 г. | MDM24: СПРАВКА 015/00406/001 от 20 декабря 2022 г. | MEC24: СПРАВКА 015/00406/001 от 20 декабря 2022 г. | MES24: СПРАВКА 015/00406/001 от 20 декабря 2022 г. | MFI24: СПРАВКА 015/00406/001 от 20 декабря 2022 г. | MFY24: СПРАВКА 015/00406/001 от 20 декабря 2022 г. | MGO24: СПРАВКА 015/00406/001 от 20 декабря 2022 г. | MHE24: СПРАВКА 015/00406/001 от 20 декабря 2022 г. | MHU24: СПРАВКА 015/00406/001 от 20 декабря 2022 г. | MIK24: СПРАВКА 015/00406/001 от 20 декабря 2022 г. | MJA24: СПРАВКА 015/00406/001 от 20 декабря 2022 г. | MJQ24: СПРАВКА 015/00406/001 от 20 декабря 2022 г. | MKG24: СПРАВКА 015/00406/001 от 20 декабря 2022 г. | MKW24: СПРАВКА 015/00406/001 от 20 декабря 2022 г. | MLM24: СПРАВКА 015/00406/001 от 20 декабря 2022 г. | MMC24: СПРАВКА 015/00406/001 от 20 декабря 2022 г. | MMS24: СПРАВКА 015/00406/001 от 20 декабря 2022 г. | MNI24: СПРАВКА 015/00406/001 от 20 декабря 2022 г. | MNY24: СПРАВКА 015/00406/001 от 20 декабря 2022 г. | MOO24: СПРАВКА 015/00406/001 от 20 декабря 2022 г. | MPE24: СПРАВКА 015/00406/001 от 20 декабря 2022 г. | MPU24: СПРАВКА 015/00406/001 от 20 декабря 2022 г. | MQK24: СПРАВКА 015/00406/001 от 20 декабря 2022 г. | MRA24: СПРАВКА 015/00406/001 от 20 декабря 2022 г. | MRQ24: СПРАВКА 015/00406/001 от 20 декабря 2022 г. | MSG24: СПРАВКА 015/00406/001 от 20 декабря 2022 г. | MSW24: СПРАВКА 015/00406/001 от 20 декабря 2022 г. | MTM24: СПРАВКА 015/00406/001 от 20 декабря 2022 г. | MUC24: СПРАВКА 015/00406/001 от 20 декабря 2022 г. | MUS24: СПРАВКА 015/00406/001 от 20 декабря 2022 г. | MVI24: СПРАВКА 015/00406/001 от 20 декабря 2022 г. | MVY24: СПРАВКА 015/00406/001 от 20 декабря 2022 г. | MWO24: СПРАВКА 015/00406/001 от 20 декабря 2022 г. | MXE24: СПРАВКА 015/00406/001 от 20 декабря 2022 г. | MXU24: СПРАВКА 015/00406/001 от 20 декабря 2022 г. | MYK24: СПРАВКА 015/00406/001 от 20 декабря 2022 г. | MZA24: СПРАВКА 015/00406/001 от 20 декабря 2022 г. | MZQ24: СПРАВКА 015/00406/001 от 20 декабря 2022 г. | NAG24: СПРАВКА 015/00406/001 от 20 декабря 2022 г. | NAW24: СПРАВКА 015/00406/001 от 20 декабря 2022 г. | NBM24: СПРАВКА 015/00406/001 от 20 декабря 2022 г. | NCC24: СПРАВКА 015/00406/001 от 20 декабря 2022 г. | NCS24: СПРАВКА 015/00406/001 от 20 декабря 2022 г. | NDI24: СПРАВКА 015/00406/001 от 20 декабря 2022 г. | NDY24: СПРАВКА 015/00406/001 от 20 декабря 2022 г. | NEO24: СПРАВКА 015/00406/001 от 20 декабря 2022 г. | NFE24: СПРАВКА 015/00406/001 от 20 декабря 2022 г. | NFU24: СПРАВКА 015/00406/001 от 20 декабря 2022 г. | NGK24: СПРАВКА 015/00406/001 от 20 декабря 2022 г. | NHA24: СПРАВКА 015/00406/001 от 20 декабря 2022 г. | NHQ24: СПРАВКА 015/00406/001 от 20 декабря 2022 г. | NIG24: СПРАВКА 015/00406/001 от 20 декабря 2022 г. | NIW24: СПРАВКА 015/00406/001 от 20 декабря 2022 г. | NJM24: СПРАВКА 015/00406/001 от 20 декабря 2022 г. | NKC24: СПРАВКА 015/00406/001 от 20 декабря 2022 г. | NKS24: СПРАВКА 015/00406/001 от 20 декабря 2022 г. | NLI24: СПРАВКА 015/00406/001 от 20 декабря 2022 г. | NLY24: СПРАВКА 015/00406/001 от 20 декабря 2022 г. | NMO24: СПРАВКА 015/00406/001 от 20 декабря 2022 г. | NNE24: СПРАВКА 015/00406/001 от 20 декабря 2022 г. | NNU24: СПРАВКА 015/00406/001 от 20 декабря 2022 г. | NOK24: СПРАВКА 015/00406/001 от 20 декабря 2022 г. | NPA24: СПРАВКА 015/00406/001 от 20 декабря 2022 г. | NPQ24: СПРАВКА 015/00406/001 от 20 декабря 2022 г. | NQG24: СПРАВКА 015/00406/001 от 20 декабря 2022 г. | NQW24: СПРАВКА 015/00406/001 от 20 декабря 2022 г. | NRM24: СПРАВКА 015/00406/001 от 20 декабря 2022 г. | NSC24: СПРАВКА 015/00406/001 от 20 декабря 2022 г. | NSS24: СПРАВКА 015/00406/001 от 20 декабря 2022 г. | NTI24: СПРАВКА 015/00406/001 от 20 декабря 2022 г. | NTY24: СПРАВКА 015/00406/001 от 20 декабря 2022 г. | NUO24: СПРАВКА 015/00406/001 от 20 декабря 2022 г. | NVE24: СПРАВКА 015/00406/001 от 20 декабря 2022 г. | NVU24: СПРАВКА 015/00406/001 от 20 декабря 2022 г. | NWK24: СПРАВКА 015/00406/001 от 20 декабря 2022 г. | NXA24: СПРАВКА 015/00406/001 от 20 декабря 2022 г. | NXQ24: СПРАВКА 015/00406/001 от 20 декабря 2022 г. | NYG24: СПРАВКА 015/00406/001 от 20 декабря 2022 г. | NYW24: СПРАВКА 015/00406/001 от 20 декабря 2022 г. | NZM24: СПРАВКА 015/00406/001 от 20 декабря 2022 г. | OAC24: СПРАВКА 015/00406/001 от 20 декабря 2022 г. | OAS24: СПРАВКА 015/00406/001 от 20 декабря 2022 г. | OBI24: СПРАВКА 015/00406/001 от 20 декабря 2022 г. | OBY24: СПРАВКА 015/00406/001 от 20 декабря 2022 г. | OCO24: СПРАВКА 015/00406/001 от 20 декабря 2022 г. | ODE24: СПРАВКА 015/00406/001 от 20 декабря 2022 г. | ODU24: СПРАВКА 015/00406/001 от 20 декабря 2022 г. | OEK24: СПРАВКА 015/00406/001 от 20 декабря 2022 г. | OFA24: СПРАВКА 015/00406/001 от 20 декабря 2022 г. | OFQ24: СПРАВКА 015/00406/001 от 20 декабря 2022 г. | OGG24: СПРАВКА 015/00406/001 от 20 декабря 2022 г. | OGW24: СПРАВКА 015/00406/001 от 20 декабря 2022 г. | OHM24: СПРАВКА 015/00406/001 от 20 декабря 2022 г. | OIC24: СПРАВКА 015/00406/001 от 20 декабря 2022 г. | OIS24: СПРАВКА 015/00406/001 от 20 декабря 2022 г. | OJI24: СПРАВКА 015/00406/001 от 20 декабря 2022 г. | OJY24: СПРАВКА 015/00406/001 от 20 декабря 2022 г. | OKO24: СПРАВКА 015/00406/001 от 20 декабря 2022 г. | OLE24: СПРАВКА 015/00406/001 от 20 декабря 2022 г. | OLU24: СПРАВКА 015/00406/001 от 20 декабря 2022 г. | OMK24: СПРАВКА 015/00406/001 от 20 декабря 2022 г. | ONA24: СПРАВКА 015/00406/001 от 20 декабря 2022 г. | ONQ24: СПРАВКА 015/00406/001 от 20 декабря 2022 г. | OOG24: СПРАВКА 015/00406/001 от 20 декабря 2022 г. | OOW24: СПРАВКА 015/00406/001 от 20 декабря 2022 г. | OPM24: СПРАВКА 015/00406/001 от 20 декабря 2022 г. | OQC24: СПРАВКА 015/00406/001 от 20 декабря 2022 г. | OQS24: СПРАВКА 015/00406/001 от 20 декабря 2022 г. | ORI24: СПРАВКА 015/00406/001 от 20 декабря 2022 г. | ORY24: СПРАВКА 015/00406/001 от 20 декабря 2022 г. | OSO24: СПРАВКА 015/00406/001 от 20 декабря 2022 г. | OTE24: СПРАВКА 015/00406/001 от 20 декабря 2022 г. | OTU24: СПРАВКА 015/00406/001 от 20 декабря 2022 г. | OUK24: СПРАВКА 015/00406/001 от 20 декабря 2022 г. | OVA24: СПРАВКА 015/00406/001 от 20 декабря 2022 г. | OVQ24: СПРАВКА 015/00406/001 от 20 декабря 2022 г. | OWG24: СПРАВКА 015/00406/001 от 20 декабря 2022 г. | OWW24: СПРАВКА 015/00406/001 от 20 декабря 2022 г. | OXM24: СПРАВКА 015/00406/001 от 20 декабря 2022 г. | OYC24: СПРАВКА 015/00406/001 от 20 декабря 2022 г. | OYS24: СПРАВКА 015/00406/001 от 20 декабря 2022 г. | OZI24: СПРАВКА 015/00406/001 от 20 декабря 2022 г. | OZY24: СПРАВКА 015/00406/001 от 20 декабря 2022 г. | PAO24: СПРАВКА 015/00406/001 от 20 декабря 2022 г. | PBE24: СПРАВКА 015/00406/001 от 20 декабря 2022 г. | PBU24: СПРАВКА 015/00406/001 от 20 декабря 2022 г. | PCK24: СПРАВКА 015/00406/001 от 20 декабря 2022 г. | PDA24: СПРАВКА 015/00406/001 от 20 декабря 2022 г. | PDQ24: СПРАВКА 015/00406/001 от 20 декабря 2022 г. | PEG24: СПРАВКА 015/00406/001 от 20 декабря 2022 г. | PEW24: СПРАВКА 015/00406/001 от 20 декабря 2022 г. | PFM24: СПРАВКА 015/00406/001 от 20 декабря 2022 г. | PGC24: СПРАВКА 015/00406/001 от 20 декабря 2022 г. | PGS24: СПРАВКА 015/00406/001 от 20 декабря 2022 г. | PHI24: СПРАВКА 015/00406/001 от 20 декабря 2022 г. | PHY24: СПРАВКА 015/00406/001 от 20 декабря 2022 г. | PIO24: СПРАВКА 015/00406/001 от 20 декабря 2022 г. | PJE24: СПРАВКА 015/00406/001 от 20 декабря 2022 г. | PJU24: СПРАВКА 015/00406/001 от 20 декабря 2022 г. | PKK24: СПРАВКА 015/00406/001 от 20 декабря 2022 г. | PLA24: СПРАВКА 015/00406/001 от 20 декабря 2022 г. | PLQ24: СПРАВКА 015/00406/001 от 20 декабря 2022 г. | PMG24: СПРАВКА 015/00406/001 от 20 декабря 2022 г. | PMW24: СПРАВКА 015/00406/001 от 20 декабря 2022 г. | PNM24: СПРАВКА 015/00406/001 от 20 декабря 2022 г. | POC24: СПРАВКА 015/00406/001 от 20 декабря 2022 г. | POS24: СПРАВКА 015/00406/001 от 20 декабря 2022 г. | PPI24: СПРАВКА 015/00406/001 от 20 декабря 2022 г. | PPY24: СПРАВКА 015/00406/001 от 20 декабря 2022 г. | PQO24: СПРАВКА 015/00406/001 от 20 декабря 2022 г. | PRE24: СПРАВКА 015/00406/001 от 20 декабря 2022 г. | PRU24: СПРАВКА 015/00406/001 от 20 декабря 2022 г. | PSK24: СПРАВКА 015/00406/001 от 20 декабря 2022 г. | PTA24: СПРАВКА 015/00406/001 от 20 декабря 2022 г. | PTQ24: СПРАВКА 015/00406/001 от 20 декабря 2022 г. | PUG24: СПРАВКА 015/00406/001 от 20 декабря 2022 г. | PUW24: СПРАВКА 015/00406/001 от 20 декабря 2022 г. | PVM24: СПРАВКА 015/00406/001 от 20 декабря 2022 г. | PWC24: СПРАВКА 015/00406/001 от 20 декабря 2022 г. | PWS24: СПРАВКА 015/00406/001 от 20 декабря 2022 г. | PXI24: СПРАВКА 015/00406/001 от 20 декабря 2022 г. | PXY24: СПРАВКА 015/00406/001 от 20 декабря 2022 г. | PYO24: СПРАВКА 015/00406/001 от 20 декабря 2022 г. | PZE24: СПРАВКА 015/00406/001 от 20 декабря 2022 г. | PZU24: СПРАВКА 015/00406/001 от 20 декабря 2022 г. | QAK24: СПРАВКА 015/00406/001 от 20 декабря 2022 г. | QBA24: СПРАВКА 015/00406/001 от 20 декабря 2022 г. | QBQ24: СПРАВКА 015/00406/001 от 20 декабря 2022 г. | QCG24: СПРАВКА 015/00406/001 от 20 декабря 2022 г. | QCW24: СПРАВКА 015/00406/001 от 20 декабря 2022 г. | QDM24: СПРАВКА 015/00406/001 от 20 декабря 2022 г. | QEC24: СПРАВКА 015/00406/001 от 20 декабря 2022 г. | QES24: СПРАВКА 015/00406/001 от 20 декабря 2022 г. | QFI24: СПРАВКА 015/00406/001 от 20 декабря 2022 г. | QFY24: СПРАВКА 015/00406/001 от 20 декабря 2022 г. | QGO24: СПРАВКА 015/00406/001 от 20 декабря 2022 г. | QHE24: СПРАВКА 015/00406/001 от 20 декабря 2022 г. | QHU24: СПРАВКА 015/00406/001 от 20 декабря 2022 г. | QIK24: СПРАВКА 015/00406/001 от 20 декабря 2022 г. | QJA24: СПРАВКА 015/00406/001 от 20 декабря 2022 г. | QJQ24: СПРАВКА 015/00406/001 от 20 декабря 2022 г. | QKG24: СПРАВКА 015/00406/001 от 20 декабря 2022 г. | QKW24: СПРАВКА 015/00406/001 от 20 декабря 2022 г. | QLM24: СПРАВКА 015/00406/001 от 20 декабря 2022 г. | QMC24: СПРАВКА 015/00406/001 от 20 декабря 2022 г. | QMS24: СПРАВКА 015/00406/001 от 20 декабря 2022 г. | QNI24: СПРАВКА 015/00406/001 от 20 декабря 2022 г. | QNY24: СПРАВКА 015/00406/001 от 20 декабря 2022 г. | QOO24: СПРАВКА 015/00406/001 от 20 декабря 2022 г. | QPE24: СПРАВКА 015/00406/001 от 20 декабря 2022 г. | QPU24: СПРАВКА 015/00406/001 от 20 декабря 2022 г. | QQK24: СПРАВКА 015/00406/001 от 20 декабря 2022 г. | QRA24: СПРАВКА 015/00406/001 от 20 декабря 2022 г. | QRQ24: СПРАВКА 015/00406/001 от 20 декабря 2022 г. | QSG24: СПРАВКА 015/00406/001 от 20 декабря 2022 г. | QSW24: СПРАВКА 015/00406/001 от 20 декабря 2022 г. | QTM24: СПРАВКА 015/00406/001 от 20 декабря 2022 г. | QUC24: СПРАВКА 015/00406/001 от 20 декабря 2022 г. | QUS24: СПРАВКА 015/00406/001 от 20 декабря 2022 г. | QVI24: СПРАВКА 015/00406/001 от 20 декабря 2022 г. | QVY24: СПРАВКА 015/00406/001 от 20 декабря 2022 г. | QWO24: СПРАВКА 015/00406/001 от 20 декабря 2022 г. | QXE24: СПРАВКА 015/00406/001 от 20 декабря 2022 г. | QXU24: СПРАВКА 015/00406/001 от 20 декабря 2022 г. | QYK24: СПРАВКА 015/00406/001 от 20 декабря 2022 г. | QZA24: СПРАВКА 015/00406/001 от 20 декабря 2022 г. | QZQ24: СПРАВКА 015/00406/001 от 20 декабря 2022 г. | RAG24: СПРАВКА 015/00406/001 от 20 декабря 2022 г. | RAW24: СПРАВКА 015/00406/001 от 20 декабря 2022 г. | RBM24: СПРАВКА 015/00406/001 от 20 декабря 2022 г. | RCC24: СПРАВКА 015/00406/001 от 20 декабря 2022 г. | RCS24: СПРАВКА 015/00406/001 от 20 декабря 2022 г. | RDI24: СПРАВКА 015/00406/001 от 20 декабря 2022 г. | RDY24: СПРАВКА 015/00406/001 от 20 декабря 2022 г. | REO24: СПРАВКА 015/00406/001 от 20 декабря 2022 г. | RFE24: СПРАВКА 015/00406/001 от 20 декабря 2022 г. | RFU24: СПРАВКА 015/00406/001 от 20 декабря 2022 г. | RGK24: СПРАВКА 015/00406/001 от 20 декабря 2022 г. | RHA24: СПРАВКА 015/00406/001 от 20 декабря 2022 г. | RHQ24: СПРАВКА 015/00406/001 от 20 декабря 2022 г. | RIG24: СПРАВКА 015/00406/001 от 20 декабря 2022 г. | RIW24: СПРАВКА 015/00406/001 от 20 декабря 2022 г. | RJM24: СПРАВКА 015/00406/001 от 20 декабря 2022 г. | RKC24: СПРАВКА 015/00406/001 от 20 декабря 2022 г. | RKS24: СПРАВКА 015/00406/001 от 20 декабря 2022 г. | RLI24: СПРАВКА 015/00406/001 от 20 декабря 2022 г. | RLY24: СПРАВКА 015/00406/001 от 20 декабря 2022 г. | RMO24: СПРАВКА 015/00406/001 от 20 декабря 2022 г. | RNE24: СПРАВКА 015/00406/001 от 20 декабря 2022 г. | RNU24: СПРАВКА 015/00406/001 от 20 декабря 2022 г. | ROK24: СПРАВКА 015/00406/001 от 20 декабря 2022 г. | RPA24: СПРАВКА 015/00406/001 от 20 декабря 2022 г. | RPQ24: СПРАВКА 015/00406/001 от 20 декабря 2022 г. | RQG24: СПРАВКА 015/00406/001 от 20 декабря 2022 г. | RQW24: СПРАВКА 015/00406/001 от 20 декабря 2022 г. | RRM24: СПРАВКА 015/00406/001 от 20 декабря 2022 г. | RSC24: СПРАВКА 015/00406/001 от 20 декабря 2022 г. | RSS24: СПРАВКА 015/00406/001 от 20 декабря 2022 г. | RTI24: СПРАВКА 015/00406/001 от 20 декабря 2022 г. | RTY24: СПРАВКА 015/00406/001 от 20 декабря 2022 г. | RUO24: СПРАВКА 015/00406/001 от 20 декабря 2022 г. | RVE24: СПРАВКА 015/00406/001 от 20 декабря 2022 г. | RVU24: СПРАВКА 015/00406/001 от 20 декабря 2022 г. | RWK24: СПРАВКА 015/00406/001 от 20 декабря 2022 г. | RXA24: СПРАВКА 015/00406/001 от 20 декабря 2022 г. | RXQ24: СПРАВКА 015/00406/001 от 20 декабря 2022 г. | RYG24: СПРАВКА 015/00406/001 от 20 декабря 2022 г. | RYW24: СПРАВКА 015/00406/001 от 20 декабря 2022 г. | RZM24: СПРАВКА 015/00406/001 от 20 декабря 2022 г. | SAC24: СПРАВКА 015/00406/001 от 20 декабря 2022 г. | SAS24: СПРАВКА 015/00406/001 от 20 декабря 2022 г. | SBI24: СПРАВКА 015/00406/001 от 20 декабря 2022 г. | SBY24: СПРАВКА 015/00406/001 от 20 декабря 2022 г. | SCO24: СПРАВКА 015/00406/001 от 20 декабря 2022 г. | SDE24: СПРАВКА 015/00406/001 от 20 декабря 2022 г. | SDU24: СПРАВКА 015/00406/001 от 20 декабря 2022 г. | SEK24: СПРАВКА 015/00406/001 от 20 декабря 2022 г. | SFA24: СПРАВКА 015/00406/001 от 20 декабря 2022 г. | SFQ24: СПРАВКА 015/00406/001 от 20 декабря 2022 г. | SGG24: СПРАВКА 015/00406/001 от 20 декабря 2022 г. | SGW24: СПРАВКА 015/00406/001 от 20 декабря 2022 г. | SHM24: СПРАВКА 015/00406/001 от 20 декабря 2022 г. | SIC24: СПРАВКА 015/00406/001 от 20 декабря 2022 г. | SIS24: СПРАВКА 015/00406/001 от 20 декабря 2022 г. | SJI24: СПРАВКА 015/00406/001 от 20 декабря 2022 г. | SJY24: СПРАВКА 015/00406/001 от 20 декабря 2022 г. | SKO24: СПРАВКА 015/00406/001 от 20 декабря 2022 г. | SLE24: СПРАВКА 015/00406/001 от 20 декабря 2022 г. | SLU24: СПРАВКА 015/00406/001 от 20 декабря 2022 г. | SMK24: СПРАВКА 015/00406/001 от 20 декабря 2022 г. | SNA24: СПРАВКА 015/00406/001 от 20 декабря 2022 г. | SNQ24: СПРАВКА 015/00406/001 от 20 декабря 2022 г. | SOG24: СПРАВКА 015/00406/001 от 20 декабря 2022 г. | SOW24: СПРАВКА 015/00406/001 от 20 декабря 2022 г. | SPM24: СПРАВКА 015/00406/001 от 20 декабря 2022 г. | SQC24: СПРАВКА 015/00406/001 от 20 декабря 2022 г. | SQS24: СПРАВКА 015/00406/001 от 20 декабря 2022 г. | SRI24: СПРАВКА 015/00406/001 от 20 декабря 2022 г. | SRY24: СПРАВКА 015/00406/001 от 20 декабря 2022 г. | SSO24: СПРАВКА 015/00406/001 от 20 декабря 2022 г. | STE24: СПРАВКА 015/00406/001 от 20 декабря 2022 г. | STU24: СПРАВКА 015/00406/001 от 20 декабря 2022 г. | SUK24: СПРАВКА 015/00406/001 от 20 декабря 2022 г. | SVA24: СПРАВКА 015/00406/001 от 20 декабря 2022 г. | SVQ24: СПРАВКА 015/00406/001 от 20 декабря 2022 г. | SWG24: СПРАВКА 015/00406/001 от 20 декабря 2022 г. | SWW24: СПРАВКА 015/00406/001 от 20 декабря 2022 г. | SXM24: СПРАВКА 015/00406/001 от 20 декабря 2022 г. | SYC24: СПРАВКА 015/00406/001 от 20 декабря 2022 г. | SYS24: СПРАВКА 015/00406/001 от 20 декабря 2022 г. | SZI24: СПРАВКА 015/00406/001 от 20 декабря 2022 г. | SZY24: СПРАВКА 015/00406/001 от 20 декабря 2022 г. | TAO24: СПРАВКА 015/00406/001 от 20 декабря 2022 г. | TBE24: СПРАВКА 015/00406/001 от 20 декабря 2022 г. | TBU24: СПРАВКА 015/00406/001 от 20 декабря 2022 г. | TCK24: СПРАВКА 015/00406/001 от 20 декабря 2022 г. | TDA24: СПРАВКА 015/00406/001 от 20 декабря 2022 г. | TDQ24: СПРАВКА 015/00406/001 от 20 декабря 2022 г. | TEG24: СПРАВКА 015/00406/001 от 20 декабря 2022 г. | TEW24: СПРАВКА 015/00406/001 от 20 декабря 2022 г. | TFM24: СПРАВКА 015/00406/001 от 20 декабря 2022 г. | TGC24: СПРАВКА 015/00406/001 от 20 декабря 2022 г. | TGS24: СПРАВКА 015/00406/001 от 20 декабря 2022 г. | THI24: СПРАВКА 015/00406/001 от 20 декабря 2022 г. | THY24: СПРАВКА 015/00406/001 от 20 декабря 2022 г. | TIO24: СПРАВКА 015/00406/001 от 20 декабря 2022 г. | TJE24: СПРАВКА 015/00406/001 от 20 декабря 2022 г. | TJU24: СПРАВКА 015/00406/001 от 20 декабря 2022 г. | TKK24: СПРАВКА 015/00406/001 от 20 декабря 2022 г. | TLA24: СПРАВКА 015/00406/001 от 20 декабря 2022 г. | TLQ24: СПРАВКА 015/00406/001 от 20 декабря 2022 г. | TMG24: СПРАВКА 015/00406/001 от 20 декабря 2022 г. | TMW24: СПРАВКА 015/00406/001 от 20 декабря 2022 г. | TNM24: СПРАВКА 015/00406/001 от 20 декабря 2022 г. | TOC24: СПРАВКА 015/00406/001 от 20 декабря 2022 г. | TOS24: СПРАВКА 015/00406/001 от 20 декабря 2022 г. | TPI24: СПРАВКА 015/00406/001 от 20 декабря 2022 г. | TPY24: СПРАВКА 015/00406/001 от 20 декабря 2022 г. | TQO24: СПРАВКА 015/00406/001 от 20 декабря 2022 г. | TRE24: СПРАВКА 015/00406/001 от 20 декабря 2022 г. | TRU24: СПРАВКА 015/00406/001 от 20 декабря 2022 г. | TSK24: СПРАВКА 015/00406/001 от 20 декабря 2022 г. | TTA24: СПРАВКА 015/00406/001 от 20 декабря 2022 г. | TTQ24: СПРАВКА 015/00406/001 от 20 декабря 2022 г. | TUG24: СПРАВКА 015/00406/001 от 20 декабря 2022 г. | TUW24: СПРАВКА 015/00406/001 от 20 декабря 2022 г. | TVM24: СПРАВКА 015/00406/001 от 20 декабря 2022 г. | TWC24: СПРАВКА 015/00406/001 от 20 декабря 2022 г. | TWS24: СПРАВКА 015/00406/001 от 20 декабря 2022 г. | TXI24: СПРАВКА 015/00406/001 от 20 декабря 2022 г. | TXY24: СПРАВКА 015/00406/001 от 20 декабря 2022 г. | TYO24: СПРАВКА 015/00406/001 от 20 декабря 2022 г. | TZE24: СПРАВКА 015/00406/001 от 20 декабря 2022 г. | TZU24: СПРАВКА 015/00406/001 от 20 декабря 2022 г. | UAK24: СПРАВКА 015/00406/001 от 20 декабря 2022 г. | UBA24: СПРАВКА 015/00406/001 от 20 декабря 2022 г. | UBQ24: СПРАВКА 015/00406/001 от 20 декабря 2022 г. | UCG24: СПРАВКА 015/00406/001 от 20 декабря 2022 г. | UCW24: СПРАВКА 015/00406/001 от 20 декабря 2022 г. | UDM24: СПРАВКА 015/00406/001 от 20 декабря 2022 г. | UEC24: СПРАВКА 015/00406/001 от 20 декабря 2022 г. | UES24: СПРАВКА 015/00406/001 от 20 декабря 2022 г. | UFI24: СПРАВКА 015/00406/001 от 20 декабря 2022 г. | UFY24: СПРАВКА 015/00406/001 от 20 декабря 2022 г. | UGO24: СПРАВКА 015/00406/001 от 20 декабря 2022 г. | UHE24: СПРАВКА 015/00406/001 от 20 декабря 2022 г. | UHU24: СПРАВКА 015/00406/001 от 20 декабря 2022 г. | UIK24: СПРАВКА 015/00406/001 от 20 декабря 2022 г. | UJA24: СПРАВКА 015/00406/001 от 20 декабря 2022 г. | UJQ24: СПРАВКА 015/00406/001 от 20 декабря 2022 г. | UKG24: СПРАВКА 015/00406/001 от 20 декабря 2022 г. | UKW24: СПРАВКА 015/00406/001 от 20 декабря 2022 г. | ULM24: СПРАВКА 015/00406/001 от 20 декабря 2022 г. | UMC24: СПРАВКА 015/00406/001 от 20 декабря 2022 г. | UMS24: СПРАВКА 015/00406/001 от 20 декабря 2022 г. | UNI24: СПРАВКА 015/00406/001 от 20 декабря 2022 г. | UNY24: СПРАВКА 015/00406/001 от 20 декабря 2022 г. | UOO24: СПРАВКА 015/00406/001 от 20 декабря 2022 г. | UPE24: СПРАВКА 015/00406/001 от 20 декабря 2022 г. | UPU24: СПРАВКА 015/00406/001 от 20 декабря 2022 г. | UQK24: СПРАВКА 015/00406/001 от 20 декабря 2022 г. | URA24: СПРАВКА 015/00406/001 от 20 декабря 2022 г. | URQ24: СПРАВКА 015/00406/001 от 20 декабря 2022 г. | USG24: СПРАВКА 015/00406/001 от 20 декабря 2022 г. | USW24: СПРАВКА 015/00406/001 от 20 декабря 2022 г. | UTM24: СПРАВКА 015/00406/001 от 20 декабря 2022 г. | UUC24: СПРАВКА 015/00406/001 от 20 декабря 2022 г. | UUS24: СПРАВКА 015/00406/001 от 20 декабря 2022 г. | UVI24: СПРАВКА 015/00406/001 от 20 декабря 2022 г. | UVY24: СПРАВКА 015/00406/001 от 20 декабря 2022 г. | UWO24: СПРАВКА 015/00406/001 от 20 декабря 2022 г. | UXE24: СПРАВКА 015/00406/001 от 20 декабря 2022 г. | UXU24: СПРАВКА 015/00406/001 от 20 декабря 2022 г. | UYK24: СПРАВКА 015/00406/001 от 20 декабря 2022 г. | UZA24: СПРАВКА 015/00406/001 от 20 декабря 2022 г. | UZQ24: СПРАВКА 015/00406/001 от 20 декабря 2022 г. | VAG24: СПРАВКА 015/00406/001 от 20 декабря 2022 г. | VAW24: СПРАВКА 015/00406/001 от 20 декабря 2022 г. | VBM24: СПРАВКА 015/00406/001 от 20 декабря 2022 г. | VCC24: СПРАВКА 015/00406/001 от 20 декабря 2022 г. | VCS24: СПРАВКА 015/00406/001 от 20 декабря 2022 г. | VDI24: СПРАВКА 015/00406/001 от 20 декабря 2022 г. | VDY24: СПРАВКА 015/00406/001 от 20 декабря 2022 г. | VEO24: СПРАВКА 015/00406/001 от 20 декабря 2022 г. | VFE24: СПРАВКА 015/00406/001 от 20 декабря 2022 г. | VFU24: СПРАВКА 015/00406/001 от 20 декабря 2022 г. | VGK24: СПРАВКА 015/00406/001 от 20 декабря 2022 г. | VHA24: СПРАВКА 015/00406/001 от 20 декабря 2022 г. | VHQ24: СПРАВКА 015/00406/001 от 20 декабря 2022 г. | VIG24: СПРАВКА 015/00406/001 от 20 декабря 2022 г. | VIW24: СПРАВКА 015/00406/001 от 20 декабря 2022 г. | VJM24: СПРАВКА 015/00406/001 от 20 декабря 2022 г. | VKC24: СПРАВКА 015/00406/001 от 20 декабря 2022 г. | VKS24: СПРАВКА 015/00406/001 от 20 декабря 2022 г. | VLI24: СПРАВКА 015/00406/001 от 20 декабря 2022 г. | VLY24: СПРАВКА 015/00406/001 от 20 декабря 2022 г. | VMO24: СПРАВКА 015/00406/001 от 20 декабря 2022 г. | VNE24: СПРАВКА 015/00406/001 от 20 декабря 2022 г. | VNU24: СПРАВКА 015/00406/001 от 20 декабря 2022 г. | VOK24: СПРАВКА 015/00406/001 от 20 декабря 2022 г. | VPA24: СПРАВКА 015/00406/001 от 20 декабря 2022 г. | VPQ24: СПРАВКА 015/00406/001 от 20 декабря 2022 г. | VQG24: СПРАВКА 015/00406/001 от 20 декабря 2022 г. | VQW24: СПРАВКА 015/00406/001 от 20 декабря 2022 г. | VRM24: СПРАВКА 015/00406/001 от 20 декабря 2022 г. | VSC24: СПРАВКА 015/00406/001 от 20 декабря 2022 г. | VSS24: СПРАВКА 015/00406/001 от 20 декабря 2022 г. | VTI24: СПРАВКА 015/00406/001 от 20 декабря 2022 г. | VTY24: СПРАВКА 015/00406/001 от 20 декабря 2022 г. | VUO24: СПРАВКА 015/00406/001 от 20 декабря 2022 г. | VVE24: СПРАВКА 015/00406/001 от 20 декабря 2022 г. | VVU24: СПРАВКА 015/00406/001 от 20 декабря 2022 г. | VWK24: СПРАВКА 015/00406/001 от 20 декабря 2022 г. | VXA24: СПРАВКА 015/00406/001 от 20 декабря 2022 г. | VXQ24: СПРАВКА 015/00406/001 от 20 декабря 2022 г. | VYG24: СПРАВКА 015/00406/001 от 20 декабря 2022 г. | VYW24: СПРАВКА 015/00406/001 от 20 декабря 2022 г. | VZM24: СПРАВКА 015/00406/001 от 20 декабря 2022 г. | WAC24: СПРАВКА 015/00406/001 от 20 декабря 2022 г. | WAS24: СПРАВКА 015/00406/001 от 20 декабря 2022 г. | WBI24: СПРАВКА 015/00406/001 от 20 декабря 2022 г. | WBY24: СПРАВКА 015/00406/001 от 20 декабря 2022 г. | WCO24: СПРАВКА 015/00406/001 от 20 декабря 2022 г. | WDE24: СПРАВКА 015/00406/001 от 20 декабря 2022 г. | WDU24: СПРАВКА 015/00406/001 от 20 декабря 2022 г. | WEK24: СПРАВКА 015/00406/001 от 20 декабря 2022 г. | WFA24: СПРАВКА 015/00406/001 от 20 декабря 2022 г. | WFQ24: СПРАВКА 015/00406/001 от 20 декабря 2022 г. | WGG24: СПРАВКА 015/00406/001 от 20 декабря 2022 г. | WGW24: СПРАВКА 015/00406/001 от 20 декабря 2022 г. | WHM24: СПРАВКА 015/00406/001 от 20 декабря 2022 г. | WIC24: СПРАВКА 015/00406/001 от 20 декабря 2022 г. | WIS24: СПРАВКА 015/00406/001 от 20 декабря 2022 г. | WJI24: СПРАВКА 015/00406/001 от 20 декабря 2022 г. | WJY24: СПРАВКА 015/00406/001 от 20 декабря 2022 г. | WKO24: СПРАВКА 015/00406/001 от 20 декабря 2022 г. | WLE24: СПРАВКА 015/00406/001 от 20 декабря 2022 г. | WLU24: СПРАВКА 015/00406/001 от 20 декабря 2022 г. | WMK24: СПРАВКА 015/00406/001 от 20 декабря 2022 г. | WNA24: СПРАВКА 015/00406/001 от 20 декабря 2022 г. | WNQ24: СПРАВКА 015/00406/001 от 20 декабря 2022 г. | WOG24: СПРАВКА 015/00406/001 от 20 декабря 2022 г. | WOW24: СПРАВКА 015/00406/001 от 20 декабря 2022 г. | WPM24: СПРАВКА 015/00406/001 от 20 декабря 2022 г. | WQC24: СПРАВКА 015/00406/001 от 20 декабря 2022 г. | WQS24: СПРАВКА 015/00406/001 от 20 декабря 2022 г. | WRI24: СПРАВКА 015/00406/001 от 20 декабря 2022 г. | WRY24: СПРАВКА 015/00406/001 от 20 декабря 2022 г. | WSO24: СПРАВКА 015/00406/001 от 20 декабря 2022 г. | WTE24: СПРАВКА 015/00406/001 от 20 декабря 2022 г. | WTU24: СПРАВКА 015/00406/001 от 20 декабря 2022 г. | WUK24: СПРАВКА 015/00406/001 от 20 декабря 2022 г. | WVA24: СПРАВКА 015/00406/001 от 20 декабря 2022 г. | WVQ24: СПРАВКА 015/00406/001 от 20 декабря 2022 г. | WWG24: СПРАВКА 015/00406/001 от 20 декабря 2022 г. | WWW24: СПРАВКА 015/00406/001 от 20 декабря 2022 г. | WXM24: СПРАВКА 015/00406/001 от 20 декабря 2022 г. | WYC24: СПРАВКА 015/00406/001 от 20 декабря 2022 г. | WYS24: СПРАВКА 015/00406/001 от 20 декабря 2022 г. | WZI24: СПРАВКА 015/00406/001 от 20 декабря 2022 г. | WZY24: СПРАВКА 015/00406/001 от 20 декабря 2022 г. | XAO24: СПРАВКА 015/00406/001 от 20 декабря 2022 г. | XBE24: СПРАВКА 015/00406/001 от 20 декабря 2022 г. | XBU24: СПРАВКА 015/00406/001 от 20 декабря 2022 г. | XCK24: СПРАВКА 015/00406/001 от 20 декабря 2022 г. | XDA24: СПРАВКА 015/00406/001 от 20 декабря 2022 г. | XDQ24: СПРАВКА 015/00406/001 от 20 декабря 2022 г. | XEG24: СПРАВКА 015/00406/001 от 20 декабря 2022 г.
O25: Форма по ОКУД | P25: 0501012
O26: Дата | P26: =H19 -> 18 января 2024 г.
B27: Муниципальное общеобразовательное учреждение Шуйская средняя общеобразовательная школа №1 | O27: по ОКПО | P27: 77446968
A28: Получатель бюджетных средств
A29: Распорядитель бюджетных средств | B29: Администрация Прионежского муниципального района
A30: Главный распорядитель бюджетных средств | B30: Администрация Прионежского муниципального района | O30: Глава по БК | P30: 015
A31: Наименование бюджета | B31: Бюджет Прионежского муниципального района | O31: по ОКТМО | P31: 86636470
A32: Единица измерения: | B32: руб. | O32: по ОКЕЙ | P32: 383
A33: Наименование показателя (детализация кода бюджетной классификации) | B33: РЗ | C33: ПР | D33: ЦСР | E33: Вид расхода | F33: Детализация | G33: Вид целевых средств | H33: Сумма на текущий год | K33: Сумма на первый год планового периода (руб) | N33: Сумма на второй год планового периода (руб.)
H34: 2024-01-17 | I34: ИЗМЕНЕНИЯ (+/-) | J34: ИТОГО | K34: =H34 -> 2024-01-17 | L34: ИЗМЕНЕНИЯ (+/-) | M34: ИТОГО | N34: =H34 -> 2024-01-17 | O34: ИЗМЕНЕНИЯ (+/-) | P34: ИТОГО
A35: 1 | B35: =SUM(A35+1) -> 2 | C35: 3 | D35: 4 | E35: 5 | F35: 6 | G35: 7 | H35: 8 | I35: 9 | J35: 10 | K35: 11 | L35: 12 | M35: 13 | N35: 14 | O35: 15 | P35: 16
A36: Средства местного бюджета (КЦ 1000)
A37: Заработная плата | B37: 07 | C37: 01 | D37: 0220170200 | E37: 111 | F37: 211000 | G37: 1000 | H37: 2,716,061.42 | J37: =H37+I37 -> 2,716,061.42 | K37: 2,716,061.42 | M37: =K37+L37 -> 2,716,061.42 | N37: 2,716,061.42 | P37: =N37+O37 -> 2,716,061.42
A38: Расходы по оплате проезда к месту отпуска и обратно отдельным категориям лиц (для лиц, работающих в районах Крайнего Севера и приравненных к ним местностях, и членов их семей) | B38: 07 | C38: 01 | D38: 0220170200 | E38: 112 | F38: 214000 | G38: 1000 | H38: 20,000.00 | J38: =H38+I38 -> 20,000.00 | K38: 20,000.00 | M38: =K38+L38 -> 20,000.00 | N38: 20,000.00 | P38: =N38+O38 -> 20,000.00
A39: Начисления на выплаты по оплате труда | B39: 07 | C39: 01 | D39: 0220170200 | E39: 119 | F39: 213000 | G39: 1000 | H39: 820,250.50 | J39: 820,250.50 | K39: 820,250.50 | M39: 820,250.50 | N39: 820,250.50 | P39: 820,250.50
A40: Услуги связи (телефон) | B40: 07 | C40: 01 | D40: 0220170200 | E40: 244 | F40: 221100 | G40: 1000 | H40: 32,769.60 | J40: 32,769.60 | K40: 34,721.88 | M40: 34,721.88 | N40: 36,785.06 | P40: 36,785.06
A41: Услуги связи (почта) | B41: 07 | C41: 01 | D41: 0220170200 | E41: 244 | F41: 221300 | G41: 1000 | H41: 12,000.00 | J41: 12,000.00 | K41: 12,792.00 | M41: 12,792.00 | N41: 13,636.27 | P41: 13,636.27
A42: Отопление, горячее водоснабжение и газоснабжение | B42: 07 | C42: 01 | D42: 0220170200 | E42: 247 | F42: 223100 | G42: 1000 | H42: 581,744.79 | J42: 581,744.79 | K42: 590,000.00 | M42: 590,000.00 | N42: 590,000.00 | P42: 590,000.00
A43: Электроэнергия | B43: 07 | C43: 01 | D43: 0220170200 | E43: 247 | F43: 223200 | G43: 1000 | H43: 1,782,695.91 | J43: 1,782,695.91 | K43: 1,800,000.00 | M43: 1,800,000.00 | N43: 1,972,936.91 | P43: 1,972,936.91
A44: Холодное водоснабжение | B44: 07 | C44: 01 | D44: 0220170200 | E44: 244 | F44: 223300 | G44: 1000 | H44: 148,808.90 | J44: 148,808.90 | K44: 149,000.00 | M44: 149,000.00 | N44: 195,004.79 | P44: 195,004.79
A45: Водоотведение | B45: 07 | C45: 01 | D45: 0220170200 | E45: 244 | F45: 223400 | G45: 1000 | H45: 155,193.20 | J45: 155,193.20 | K45: 160,000.00 | M45: 160,000.00 | N45: 305,051.13 | P45: 305,051.13
A46: Вывоз бытовых отходов | B46: 07 | C46: 01 | D46: 0220170200 | E46: 244 | F46: 223500 | G46: 1000 | H46: 72,359.15 | J46: 72,359.15 | K46: 91,926.69 | M46: 91,926.69 | N46: 94,707.35 | P46: 94,707.35
A47: Санитарная и противопожарная (дезинфекция, дезинсекция, дератизация, газация, огнезащитная) обработка помещений | B47: 07 | C47: 01 | D47: 0220170200 | E47: 244 | F47: 225600 | G47: 1000 | H47: 41,819.85 | J47: 41,819.85 | K47: 42,000.00 | M47: 42,000.00 | N47: 471,068.05 | P47: 471,068.05
A48: Содержание и обслуживание помещений | B48: 07 | C48: 01 | D48: 0220170200 | E48: 244 | F48: 225700 | G48: 1000 | H48: 260,071.43 | J48: 260,071.43 | K48: 232,462.14 | M48: 232,462.14 | N48: 240,266.89 | P48: 240,266.89
A49: Другие расходы | B49: 07 | C49: 01 | D49: 0220170200 | E49: 244 | F49: 225900 | G49: 1000 | H49: 50,000.00 | J49: 50,000.00 | K49: 50,000.00 | M49: 50,000.00 | N49: 50,000.00 | P49: 50,000.00
A50: Аттестация | B50: 07 | C50: 01 | D50: 0220170200 | E50: 244 | F50: 226200 | G50: 1000 | H50: 25,000.00 | J50: 25,000.00 | M50: 0.00 | P50: 0.00
A51: Ведомственная, вневедомственная, пожарная охрана | B51: 07 | C51: 01 | D51: 0220170200 | E51: 244 | F51: 226400 | G51: 1000 | H51: 103,685.75 | J51: 103,685.75 | K51: 110,529.01 | M51: 110,529.01 | N51: 117,823.93 | P51: 117,823.93
A52: Медицинский осмотр работников учрежждений, за исключением водителей транспортных средств | B52: 07 | C52: 01 | D52: 0220170200 | E52: 244 | F52: 226800 | G52: 1000 | H52: 218,889.22 | J52: 218,889.22 | K52: 277,636.10 | M52: 277,636.10 | N52: 289,019.18 | P52: 289,019.18
A53: Другие расходы | B53: 07 | C53: 01 | D53: 0220170200 | E53: 244 | F53: 226900 | G53: 1000 | H53: 50,000.00 | J53: 50,000.00 | K53: 50,000.00 | M53: 50,000.00 | N53: 50,000.00 | P53: 50,000.00
A54: Приобретение предметов длительного пользования (оборудование, мебель,компьютерная техника и т.п.) стоимостью свыше 3000 рублей | B54: 07 | C54: 01 | D54: 0220170200 | E54: 244 | F54: 310100 | G54: 1000 | H54: 40,000.00 | J54: 40,000.00 | K54: 40,000.00 | M54: 40,000.00 | N54: 40,000.00 | P54: 40,000.00
A55: Другие расходы стоимостью до 3000,00 рублей | B55: 07 | C55: 01 | D55: 0220170200 | E55: 244 | F55: 310900 | G55: 1000 | H55: 30,000.00 | J55: 30,000.00 | K55: 30,000.00 | M55: 30,000.00 | N55: 30,000.00 | P55: 30,000.00
A56: Продукты питания | B56: 07 | C56: 01 | D56: 0220170200 | E56: 244 | F56: 342000 | G56: 1000 | H56: 900,000.00 | J56: 900,000.00 | K56: 900,000.00 | M56: 900,000.00 | N56: 900,000.00 | P56: 900,000.00
A57: Приобретение строительных материалов | B57: 07 | C57: 01 | D57: 0220170200 | E57: 244 | F57: 344000 | G57: 1000 | H57: 20,000.00 | J57: 20,000.00 | K57: 20,000.00 | M57: 20,000.00 | N57: 20,000.00 | P57: 20,000.00
A58: Увеличение стоимости прочих оборотных запасов (материалов) | B58: 07 | C58: 01 | D58: 0220170200 | E58: 244 | F58: 346000 | G58: 1000 | H58: 80,000.00 | J58: 80,000.00 | K58: 80,000.00 | M58: 80,000.00 | N58: 80,000.00 | P58: 80,000.00
A59: Налог на имущество | B59: 07 | C59: 01 | D59: 0220170200 | E59: 851 | F59: 291200 | G59: 1000 | H59: 1,270,049.00 | J59: 1,270,049.00 | K59: 1,270,049.00 | M59: 1,270,049.00 | N59: 1,270,049.00 | P59: 1,270,049.00
A60: Земельный налог | B60: 07 | C60: 01 | D60: 0220170200 | E60: 851 | F60: 291300 | G60: 1000 | H60: 16,817.00 | J60: 16,817.00 | K60: 16,817.00 | M60: 16,817.00 | N60: 16,817.00 | P60: 16,817.00
A61: Итого по КЦ 1000 | H61: =SUM(H37:H60) -> 9,448,215.72 | I61: =SUM(I37:I60) -> 0.00 | J61: 9,448,215.72 | K61: 9,514,245.74 | L61: 0.00 | M61: 9,514,245.74 | N61: 10,339,477.48 | O61: 0.00 | P61: 10,339,477.48
A62: Средства местного бюджета (КЦ 1000)
A63: Заработная плата | B63: 07 | C63: 02 | D63: 0220270210 | E63: 111 | F63: 211000 | G63: 1000 | H63: 3,557,030.47 | J63: =H63+I63 -> 3,557,030.47 | K63: 3,557,030.47 | M63: =K63+L63 -> 3,557,030.47 | N63: 3,557,030.47 | P63: =N63+O63 -> 3,557,030.47
A64: Расходы по оплате проезда к месту отпуска и обратно отдельным категориям лиц (для лиц, работающих в районах Крайнего Севера и приравненных к ним местностях, и членов их семей) | B64: 07 | C64: 02 | D64: 0220270210 | E64: 112 | F64: 214000 | G64: 1000 | H64: 20,000.00 | J64: =H64+I64 -> 20,000.00 | K64: 20,000.00 | M64: =K64+L64 -> 20,000.00 | N64: 20,000.00 | P64: =N64+O64 -> 20,000.00
A65: Начисления на выплаты по оплате труда | B65: 07 | C65: 02 | D65: 0220270210 | E65: 119 | F65: 213000 | G65: 1000 | H65: 1,074,223.20 | J65: 1,074,223.20 | K65: 1,074,223.20 | M65: 1,074,223.20 | N65: 1,074,223.20 | P65: 1,074,223.20
A66: Услуги связи (телефон) | B66: 07 | C66: 02 | D66: 0220270210 | E66: 244 | F66: 221100 | G66: 1000 | H66: 43,200.00 | J66: 43,200.00 | K66: 52,498.80 | M66: 52,498.80 | N66: 54,651.21 | P66: 54,651.21
A67: Услуги связи (почта) | B67: 07 | C67: 02 | D67: 0220270210 | E67: 244 | F67: 221300 | G67: 1000 | H67: 10,000.00 | J67: 10,000.00 | K67: 10,420.00 | M67: 10,420.00 | N67: 10,857.60 | P67: 10,857.60
A68: Отопление, горячее водоснабжение и газоснабжение | B68: 07 | C68: 02 | D68: 0220270210 | E68: 247 | F68: 223100 | G68: 1000 | H68: 3,220,180.98 | J68: 3,220,180.98 | K68: 3,220,000.00 | M68: 3,220,000.00 | N68: 3,541,852.90 | P68: 3,541,852.90
A69: Электроэнергия | B69: 07 | C69: 02 | D69: 0220270210 | E69: 247 | F69: 223200 | G69: 1000 | H69: 740,097.06 | J69: 740,097.06 | K69: 783,955.84 | M69: 783,955.84 | N69: 810,061.29 | P69: 810,061.29
A70: Холодное водоснабжение | B70: 07 | C70: 02 | D70: 0220270210 | E70: 244 | F70: 223300 | G70: 1000 | H70: 107,463.24 | J70: 107,463.24 | K70: 113,811.28 | M70: 113,811.28 | N70: 117,487.36 | P70: 117,487.36
A71: Водоотведение | B71: 07 | C71: 02 | D71: 0220270210 | E71: 244 | F71: 223400 | G71: 1000 | H71: 112,069.73 | J71: 112,069.73 | K71: 178,037.99 | M71: 178,037.99 | N71: 183,788.57 | P71: 183,788.57
A72: Вывоз бытовых отходов | B72: 07 | C72: 02 | D72: 0220270210 | E72: 244 | F72: 223500 | G72: 1000 | H72: 56,746.02 | J72: 56,746.02 | K72: 60,076.11 | M72: 60,076.11 | N72: 61,893.30 | P72: 61,893.30
A73: Санитарная и противопожарная (дезинфекция, дезинсекция, дератизация, газация, огнезащитная) обработка помещений | B73: 07 | C73: 02 | D73: 0220270210 | E73: 244 | F73: 225600 | G73: 1000 | H73: 22,000.00 | J73: 22,000.00 | K73: 15,990.00 | M73: 15,990.00 | N73: 17,045.34 | P73: 17,045.34
A74: Содержание, обслуживание помещений и сетей инженерно-технического обеспечения | B74: 07 | C74: 02 | D74: 0220270210 | E74: 244 | F74: 225700 | G74: 1000 | H74: 206,000.00 | J74: 206,000.00 | K74: 214,652.00 | M74: 214,652.00 | N74: 223,452.73 | P74: 223,452.73
A75: Другие расходы | B75: 07 | C75: 02 | D75: 0220270210 | E75: 244 | F75: 225900 | G75: 1000 | H75: 100,000.00 | J75: 100,000.00 | K75: 100,000.00 | M75: 100,000.00 | N75: 100,000.00 | P75: 100,000.00
A76: Аттестация | B76: 07 | C76: 02 | D76: 0220270210 | E76: 244 | F76: 226200 | G76: 1000 | J76: 0.00 | M76: 0.00 | P76: 0.00
A77: Ведомственная, вневедомственная, пожарная охрана | B77: 07 | C77: 02 | D77: 0220270210 | E77: 244 | F77: 226400 | G77: 1000 | H77: 97,991.86 | J77: 97,991.86 | K77: 64,374.72 | M77: 64,374.72 | N77: 68,226.88 | P77: 68,226.88
A78: Медицинский осмотр водителей транспортных средств | B78: 07 | C78: 02 | D78: 0220270210 | E78: 244 | F78: 226500 | G78: 1000 | H78: 136,275.00 | J78: 136,275.00 | K78: 156,716.25 | M78: 156,716.25 | N78: 180,223.69 | P78: 180,223.69
A79: Медицинский осмотр работников учрежждений, за исключением водителей транспортных средств | B79: 07 | C79: 02 | D79: 0220270210 | E79: 244 | F79: 226800 | G79: 1000 | H79: 234,225.00 | J79: 234,225.00 | K79: 243,828.23 | M79: 243,828.23 | N79: 253,825.19 | P79: 253,825.19
A80: Другие расходы | B80: 07 | C80: 02 | D80: 0220270210 | E80: 244 | F80: 226900 | G80: 1000 | H80: 100,000.00 | J80: 100,000.00 | K80: 100,000.00 | M80: 100,000.00 | N80: 100,000.00 | P80: 100,000.00
A81: Обязательное страхование автогражданской ответственности | B81: 07 | C81: 02 | D81: 0220270210 | E81: 244 | F81: 227200 | G81: 1000 | H81: 12,000.00 | J81: 12,000.00 | K81: 12,000.00 | M81: 12,000.00 | N81: 12,000.00 | P81: 12,000.00
A82: Приобретение предметов длительного пользования (оборудование, мебель,компьютерная техника и т.п.) стоимостью свыше 3000 рублей | B82: 07 | C82: 02 | D82: 0220270210 | E82: 244 | F82: 310100 | G82: 1000 | H82: 40,000.00 | J82: 40,000.00 | K82: 40,000.00 | M82: 40,000.00 | N82: 40,000.00 | P82: 40,000.00
A83: Другие расходы стоимостью до 3000,00 рублей | B83: 07 | C83: 02 | D83: 0220270210 | E83: 244 | F83: 310900 | G83: 1000 | H83: 30,000.00 | J83: 30,000.00 | K83: 30,000.00 | M83: 30,000.00 | N83: 30,000.00 | P83: 30,000.00
A84: Приобретение строительных материалов | B84: 07 | C84: 02 | D84: 0220270210 | E84: 244 | F84: 344000 | G84: 1000 | H84: 20,000.00 | J84: 20,000.00 | K84: 20,000.00 | M84: 20,000.00 | N84: 20,000.00 | P84: 20,000.00
A85: Мягкий инвентарь | B85: 07 | C85: 02 | D85: 0220270210 | E85: 244 | F85: 345000 | G85: 1000 | H85: 10,000.00 | J85: 10,000.00 | K85: 10,000.00 | M85: 10,000.00 | N85: 10,000.00 | P85: 10,000.00
A86: Увеличение стоимости прочих оборотных запасов (материалов) | B86: 07 | C86: 02 | D86: 0220270210 | E86: 244 | F86: 346000 | G86: 1000 | H86: 80,000.00 | J86: 80,000.00 | K86: 80,000.00 | M86: 80,000.00 | N86: 80,000.00 | P86: 80,000.00
A87: Налог на имущество | B87: 07 | C87: 02 | D87: 0220270210 | E87: 851 | F87: 291200 | G87: 1000 | H87: 62,393.00 | J87: 62,393.00 | K87: 62,393.00 | M87: 62,393.00 | N87: 62,393.00 | P87: 62,393.00
A88: Земельный залог | B88: 07 | C88: 02 | D88: 0220270210 | E88: 851 | F88: 291300 | G88: 1000 | H88: 36,368.00 | J88: 36,368.00 | K88: 36,368.00 | M88: 36,368.00 | N88: 36,368.00 | P88: 36,368.00
A89: Транспотный налог | B89: 07 | C89: 02 | D89: 0220270210 | E89: 852 | F89: 291400 | G89: 1000 | H89: 60,590.00 | J89: 60,590.00 | K89: 60,590.00 | M89: 60,590.00 | N89: 60,590.00 | P89: 60,590.00
A90: Итого по КЦ 1000 | H90: =SUM(H63:H89) -> 10,188,853.56 | I90: =SUM(I63:I89) -> 0.00 | J90: 10,188,853.56 | K90: 10,316,965.89 | L90: 0.00 | M90: 10,316,965.89 | N90: 10,725,970.73 | O90: 0.00 | P90: 10,725,970.73
A91: Средства, полученные от оказания платных услуг, безвозмездных поступлений (КЦ 8000)
A92: Продукты питания | B92: 07 | C92: 01 | D92: 0220170200 | E92: 244 | F92: 342000 | G92: 8000 | H92: 4,500,000.00 | J92: =H92+I92 -> 4,500,000.00 | K92: 4,500,000.00 | M92: =K92+L92 -> 4,500,000.00 | N92: 4,500,000.00 | P92: =N92+O92 -> 4,500,000.00
A93: Итого по КЦ 8000 | H93: =SUM(H92) -> 4,500,000.00 | I93: =SUM(I92) -> 0.00 | J93: 4,500,000.00 | K93: 4,500,000.00 | L93: 0.00 | M93: 4,500,000.00 | N93: 4,500,000.00 | O93: 0.00 | P93: 4,500,000.00
A94: Субвенции на обеспечение гос.гарантий реализации прав на получение общедоступного и бесплатного дошкольного образования в муниципальных дошкольных образовательных организациях, общедоступного и бесплатного дошкольного, начального общего, основного общего, среднего общего образования в муниципальных общеобразовательных организациях, обеспечение дополнительного образования детей в муниципальных общеобразовательных организациях (КЦ 24219)
A96: Заработная плата | B96: 07 | C96: 01 | D96: 0220142190 | E96: 111 | F96: 211000 | G96: 24424219000219 | H96: 20,850,907.55 | J96: =H96+I96 -> 20,850,907.55 | K96: 0.00 | M96: =K96+L96 -> 0.00 | N96: 0.00 | P96: =N96+O96 -> 0.00
A97: Начисления на выплаты по оплате труда | B97: 07 | C97: 01 | D97: 0220142190 | E97: 119 | F97: 213000 | G97: 24424219000219 | H97: 6,296,974.08 | J97: 6,296,974.08 | K97: 0.00 | M97: 0.00 | N97: 0.00 | P97: 0.00
A98: Услуги связи (интернет) | B98: 07 | C98: 01 | D98: 0220142190 | E98: 244 | F98: 221200 | G98: 24424219000219 | H98: 44,000.00 | J98: 44,000.00 | K98: 0.00 | M98: 0.00 | N98: 0.00 | P98: 0.00
A99: Итого субвенция 0701 (КЦ 23424219000219) | H99: =SUM(H96:H98) -> 27,191,881.63 | I99: 0.00 | J99: 27,191,881.63 | K99: 0.00 | L99: 0.00 | M99: 0.00 | N99: 0.00 | O99: 0.00 | P99: 0.00
A100: Заработная плата | B100: 07 | C100: 02 | D100: 0220242190 | E100: 111 | F100: 211000 | G100: 24424219000219 | H100: 30,264,082.56 | J100: =H100+I100 -> 30,264,082.56 | K100: 0.00 | M100: =K100+L100 -> 0.00 | N100: 0.00 | P100: =N100+O100 -> 0.00
A101: Начисления на выплаты по оплате труда | B101: 07 | C101: 02 | D101: 0220242190 | E101: 119 | F101: 213000 | G101: 24424219000219 | H101: 9,139,752.93 | J101: 9,139,752.93 | K101: 0.00 | M101: 0.00 | N101: 0.00 | P101: 0.00
A102: Услуги связи (интернет) | B102: 07 | C102: 02 | D102: 0220242190 | E102: 244 | F102: 221200 | G102: 24424219000219 | H102: 40,000.00 | J102: 40,000.00 | K102: 0.00 | M102: 0.00 | N102: 0.00 | P102: 0.00
A103: Мероприятия по переподготовке и повышению квалификации кадров | B103: 07 | C103: 05 | D103: 0220242190 | E103: 244 | F103: 226700 | G103: 24424219000219 | H103: 35,000.00 | J103: 35,000.00 | K103: 0.00 | M103: 0.00 | N103: 0.00 | P103: 0.00
A104: Итого субвенция 0702 (КЦ 23424219000219) | H104: =SUM(H100:H103) -> 39,478,835.49 | I104: 0.00 | J104: 39,478,835.49 | K104: 0.00 | L104: 0.00 | M104: 0.00 | N104: 0.00 | O104: 0.00 | P104: 0.00
A105: Итого по КЦ 24424219000219 | H105: =H99+H104 -> 66,670,717.12 | I105: 0.00 | J105: 66,670,717.12 | K105: 0.00 | L105: 0.00 | M105: 0.00 | N105: 0.00 | O105: 0.00 | P105: 0.00
A106: Субсидии на проведение мероприятий по обеспечению деятельности советников директора по воспитанию и взаимодействию с детским общественными объединениями в образовательных организациях
A107: Заработная плата | B107: 07 | C107: 02 | D107: 022EВ51790 | E107: 111 | F107: 211000 | G107: 23-51790-00000-00000 | H107: 251,508.00 | J107: =H107+I107 -> 251,508.00 | K107: 0 | M107: =K107+L107 -> 0.00 | N107: 0 | P107: =N107+O107 -> 0.00
A108: Начисления на выплаты по оплате труда | B108: 07 | C108: 02 | D108: 022EВ51790 | E108: 119 | F108: 213000 | G108: 23-51790-00000-00000 | H108: 75,955.42 | J108: 75,955.42 | K108: 0.00 | M108: 0.00 | N108: 0.00 | P108: 0.00
A109: Итого по КЦ 23-51790-00000-00000 | H109: =SUM(H107:H108) -> 327,463.42 | I109: =SUM(I107:I108) -> 0.00 | J109: 327,463.42 | K109: 0.00 | L109: 0.00 | M109: 0.00 | N109: 0.00 | O109: 0.00 | P109: 0.00
A110: Топливо и ГСМ | B110: 07 | C110: 02 | D110: 0220243202 | E110: 244 | F110: 343000 | G110: 24434320000320 | H110: 0.00 | I110: 540,800.00 | J110: 540,800.00 | K110: 0.00 | M110: 0.00 | N110: 0.00 | P110: 0.00
A111: Топливо и ГСМ | B111: 07 | C111: 02 | D111: 02202S3202 | E111: 244 | F111: 343000 | G111: 1000 | H111: 0.00 | I111: 60,088.89 | J111: 60,088.89 | K111: 0.00 | M111: 0.00 | N111: 0.00 | P111: 0.00
A112: ИТОГО по КЦ 24434320000320 | H112: =SUM(H110:H111) -> 0.00 | I112: =SUM(I110:I111) -> 600,888.89 | J112: 600,888.89 | K112: 0.00 | L112: 0.00 | M112: 0.00 | N112: 0.00 | O112: 0.00 | P112: 0.00
A113: Всего | H113: =H61+H90+H93+H105+H109+H112 -> 91,135,249.82 | I113: =I61+I90+I93+I105+I109+I112 -> 600,888.89 | J113: 91,736,138.71 | K113: 24,331,211.63 | L113: 0.00 | M113: 24,331,211.63 | N113: 25,565,448.21 | O113: 0.00 | P113: 25,565,448.21
A115: Директор | E115: О.В. Высоцкая
A116: (уполномоченное лицо) | B116: (подпись) | E116: (расшифровка подписи)
A118: Гл.бухгалтер МУ "ЦБ № 1" | F118: И.В. Ананьева
A119: (уполномоченное лицо) | B119: (подпись) | F119: (расшифровка подписи)
A121: Ведущий экономист ПЭО | F121: И.В. Пружинина
A122: (исполнитель) | B122: (подпись) | F122: (расшифровка подписи)

Sheet 22.01
N1: Приложение №2
N2: к Порядку составления, утверждения
N3: и ведения бюджетных смет Администрации
N4: Прионежского муниципального района
N5: и казенных учреждений, находящихся
N6: в ведении Администрации Прионежского
N7: муниципального района
N8: от 30 декабря 2022 № 1390
F9: УТВЕРЖДАЮ
F10: Глава Администрации Прионежского муниципального района
F11: (наименование должности лица, согласующего бюджетную смету)
F13: Администрация Прионежского муниципального района
F14: (наименование главного распорядителя (распорядителя) бюджетных средств; учреждения)
K16: Г.Н. Шемет
F17: (подпись) (расшифровка подписи)
H19: 22 января 2024 г.
B21: Изменения к БЮДЖЕТНОЙ СМЕТЕ НА 2024 ФИНАНСОВЫЙ ГОД И ПЛАНОВЫЙ ПЕРИОД 2025 и 2026 ГОДОВ
B24: СПРАВКА №№015/00406/008, 015/00406/009, 015/00406/011, 015/00406/012 от | J24: =H19 -> 22 января 2024 г. | P24: КОДЫ | Y24: СПРАВКА 015/00406/001 от 20 декабря 2022 г. | AO24: СПРАВКА 015/00406/001 от 20 декабря 2022 г. | BE24: СПРАВКА 015/00406/001 от 20 декабря 2022 г. | BU24: СПРАВКА 015/00406/001 от 20 декабря 2022 г. | CK24: СПРАВКА 015/00406/001 от 20 декабря 2022 г. | DA24: СПРАВКА 015/00406/001 от 20 декабря 2022 г. | DQ24: СПРАВКА 015/00406/001 от 20 декабря 2022 г. | EG24: СПРАВКА 015/00406/001 от 20 декабря 2022 г. | EW24: СПРАВКА 015/00406/001 от 20 декабря 2022 г. | FM24: СПРАВКА 015/00406/001 от 20 декабря 2022 г. | GC24: СПРАВКА 015/00406/001 от 20 декабря 2022 г. | GS24: СПРАВКА 015/00406/001 от 20 декабря 2022 г. | HI24: СПРАВКА 015/00406/001 от 20 декабря 2022 г. | HY24: СПРАВКА 015/00406/001 от 20 декабря 2022 г. | IO24: СПРАВКА 015/00406/001 от 20 декабря 2022 г. | JE24: СПРАВКА 015/00406/001 от 20 декабря 2022 г. | JU24: СПРАВКА 015/00406/001 от 20 декабря 2022 г. | KK24: СПРАВКА 015/00406/001 от 20 декабря 2022 г. | LA24: СПРАВКА 015/00406/001 от 20 декабря 2022 г. | LQ24: СПРАВКА 015/00406/001 от 20 декабря 2022 г. | MG24: СПРАВКА 015/00406/001 от 20 декабря 2022 г. | MW24: СПРАВКА 015/00406/001 от 20 декабря 2022 г. | NM24: СПРАВКА 015/00406/001 от 20 декабря 2022 г. | OC24: СПРАВКА 015/00406/001 от 20 декабря 2022 г. | OS24: СПРАВКА 015/00406/001 от 20 декабря 2022 г. | PI24: СПРАВКА 015/00406/001 от 20 декабря 2022 г. | PY24: СПРАВКА 015/00406/001 от 20 декабря 2022 г. | QO24: СПРАВКА 015/00406/001 от 20 декабря 2022 г. | RE24: СПРАВКА 015/00406/001 от 20 декабря 2022 г. | RU24: СПРАВКА 015/00406/001 от 20 декабря 2022 г. | SK24: СПРАВКА 015/00406/001 от 20 декабря 2022 г. | TA24: СПРАВКА 015/00406/001 от 20 декабря 2022 г. | TQ24: СПРАВКА 015/00406/001 от 20 декабря 2022 г. | UG24: СПРАВКА 015/00406/001 от 20 декабря 2022 г. | UW24: СПРАВКА 015/00406/001 от 20 декабря 2022 г. | VM24: СПРАВКА 015/00406/001 от 20 декабря 2022 г. | WC24: СПРАВКА 015/00406/001 от 20 декабря 2022 г. | WS24: СПРАВКА 015/00406/001 от 20 декабря 2022 г. | XI24: СПРАВКА 015/00406/001 от 20 декабря 2022 г. | XY24: СПРАВКА 015/00406/001 от 20 декабря 2022 г. | YO24: СПРАВКА 015/00406/001 от 20 декабря 2022 г. | ZE24: СПРАВКА 015/00406/001 от 20 декабря 2022 г. | ZU24: СПРАВКА 015/00406/001 от 20 декабря 2022 г. | AAK24: СПРАВКА 015/00406/001 от 20 декабря 2022 г. | ABA24: СПРАВКА 015/00406/001 от 20 декабря 2022 г. | ABQ24: СПРАВКА 015/00406/001 от 20 декабря 2022 г. | ACG24: СПРАВКА 015/00406/001 от 20 декабря 2022 г. | ACW24: СПРАВКА 015/00406/001 от 20 декабря 2022 г. | ADM24: СПРАВКА 015/00406/001 от 20 декабря 2022 г. | AEC24: СПРАВКА 015/00406/001 от 20 декабря 2022 г. | AES24: СПРАВКА 015/00406/001 от 20 декабря 2022 г. | AFI24: СПРАВКА 015/00406/001 от 20 декабря 2022 г. | AFY24: СПРАВКА 015/00406/001 от 20 декабря 2022 г. | AGO24: СПРАВКА 015/00406/001 от 20 декабря 2022 г. | AHE24: СПРАВКА 015/00406/001 от 20 декабря 2022 г. | AHU24: СПРАВКА 015/00406/001 от 20 декабря 2022 г. | AIK24: СПРАВКА 015/00406/001 от 20 декабря 2022 г. | AJA24: СПРАВКА 015/00406/001 от 20 декабря 2022 г. | AJQ24: СПРАВКА 015/00406/001 от 20 декабря 2022 г. | AKG24: СПРАВКА 015/00406/001 от 20 декабря 2022 г. | AKW24: СПРАВКА 015/00406/001 от 20 декабря 2022 г. | ALM24: СПРАВКА 015/00406/001 от 20 декабря 2022 г. | AMC24: СПРАВКА 015/00406/001 от 20 декабря 2022 г. | AMS24: СПРАВКА 015/00406/001 от 20 декабря 2022 г. | ANI24: СПРАВКА 015/00406/001 от 20 декабря 2022 г. | ANY24: СПРАВКА 015/00406/001 от 20 декабря 2022 г. | AOO24: СПРАВКА 015/00406/001 от 20 декабря 2022 г. | APE24: СПРАВКА 015/00406/001 от 20 декабря 2022 г. | APU24: СПРАВКА 015/00406/001 от 20 декабря 2022 г. | AQK24: СПРАВКА 015/00406/001 от 20 декабря 2022 г. | ARA24: СПРАВКА 015/00406/001 от 20 декабря 2022 г. | ARQ24: СПРАВКА 015/00406/001 от 20 декабря 2022 г. | ASG24: СПРАВКА 015/00406/001 от 20 декабря 2022 г. | ASW24: СПРАВКА 015/00406/001 от 20 декабря 2022 г. | ATM24: СПРАВКА 015/00406/001 от 20 декабря 2022 г. | AUC24: СПРАВКА 015/00406/001 от 20 декабря 2022 г. | AUS24: СПРАВКА 015/00406/001 от 20 декабря 2022 г. | AVI24: СПРАВКА 015/00406/001 от 20 декабря 2022 г. | AVY24: СПРАВКА 015/00406/001 от 20 декабря 2022 г. | AWO24: СПРАВКА 015/00406/001 от 20 декабря 2022 г. | AXE24: СПРАВКА 015/00406/001 от 20 декабря 2022 г. | AXU24: СПРАВКА 015/00406/001 от 20 декабря 2022 г. | AYK24: СПРАВКА 015/00406/001 от 20 декабря 2022 г. | AZA24: СПРАВКА 015/00406/001 от 20 декабря 2022 г. | AZQ24: СПРАВКА 015/00406/001 от 20 декабря 2022 г. | BAG24: СПРАВКА 015/00406/001 от 20 декабря 2022 г. | BAW24: СПРАВКА 015/00406/001 от 20 декабря 2022 г. | BBM24: СПРАВКА 015/00406/001 от 20 декабря 2022 г. | BCC24: СПРАВКА 015/00406/001 от 20 декабря 2022 г. | BCS24: СПРАВКА 015/00406/001 от 20 декабря 2022 г. | BDI24: СПРАВКА 015/00406/001 от 20 декабря 2022 г. | BDY24: СПРАВКА 015/00406/001 от 20 декабря 2022 г. | BEO24: СПРАВКА 015/00406/001 от 20 декабря 2022 г. | BFE24: СПРАВКА 015/00406/001 от 20 декабря 2022 г. | BFU24: СПРАВКА 015/00406/001 от 20 декабря 2022 г. | BGK24: СПРАВКА 015/00406/001 от 20 декабря 2022 г. | BHA24: СПРАВКА 015/00406/001 от 20 декабря 2022 г. | BHQ24: СПРАВКА 015/00406/001 от 20 декабря 2022 г. | BIG24: СПРАВКА 015/00406/001 от 20 декабря 2022 г. | BIW24: СПРАВКА 015/00406/001 от 20 декабря 2022 г. | BJM24: СПРАВКА 015/00406/001 от 20 декабря 2022 г. | BKC24: СПРАВКА 015/00406/001 от 20 декабря 2022 г. | BKS24: СПРАВКА 015/00406/001 от 20 декабря 2022 г. | BLI24: СПРАВКА 015/00406/001 от 20 декабря 2022 г. | BLY24: СПРАВКА 015/00406/001 от 20 декабря 2022 г. | BMO24: СПРАВКА 015/00406/001 от 20 декабря 2022 г. | BNE24: СПРАВКА 015/00406/001 от 20 декабря 2022 г. | BNU24: СПРАВКА 015/00406/001 от 20 декабря 2022 г. | BOK24: СПРАВКА 015/00406/001 от 20 декабря 2022 г. | BPA24: СПРАВКА 015/00406/001 от 20 декабря 2022 г. | BPQ24: СПРАВКА 015/00406/001 от 20 декабря 2022 г. | BQG24: СПРАВКА 015/00406/001 от 20 декабря 2022 г. | BQW24: СПРАВКА 015/00406/001 от 20 декабря 2022 г. | BRM24: СПРАВКА 015/00406/001 от 20 декабря 2022 г. | BSC24: СПРАВКА 015/00406/001 от 20 декабря 2022 г. | BSS24: СПРАВКА 015/00406/001 от 20 декабря 2022 г. | BTI24: СПРАВКА 015/00406/001 от 20 декабря 2022 г. | BTY24: СПРАВКА 015/00406/001 от 20 декабря 2022 г. | BUO24: СПРАВКА 015/00406/001 от 20 декабря 2022 г. | BVE24: СПРАВКА 015/00406/001 от 20 декабря 2022 г. | BVU24: СПРАВКА 015/00406/001 от 20 декабря 2022 г. | BWK24: СПРАВКА 015/00406/001 от 20 декабря 2022 г. | BXA24: СПРАВКА 015/00406/001 от 20 декабря 2022 г. | BXQ24: СПРАВКА 015/00406/001 от 20 декабря 2022 г. | BYG24: СПРАВКА 015/00406/001 от 20 декабря 2022 г. | BYW24: СПРАВКА 015/00406/001 от 20 декабря 2022 г. | BZM24: СПРАВКА 015/00406/001 от 20 декабря 2022 г. | CAC24: СПРАВКА 015/00406/001 от 20 декабря 2022 г. | CAS24: СПРАВКА 015/00406/001 от 20 декабря 2022 г. | CBI24: СПРАВКА 015/00406/001 от 20 декабря 2022 г. | CBY24: СПРАВКА 015/00406/001 от 20 декабря 2022 г. | CCO24: СПРАВКА 015/00406/001 от 20 декабря 2022 г. | CDE24: СПРАВКА 015/00406/001 от 20 декабря 2022 г. | CDU24: СПРАВКА 015/00406/001 от 20 декабря 2022 г. | CEK24: СПРАВКА 015/00406/001 от 20 декабря 2022 г. | CFA24: СПРАВКА 015/00406/001 от 20 декабря 2022 г. | CFQ24: СПРАВКА 015/00406/001 от 20 декабря 2022 г. | CGG24: СПРАВКА 015/00406/001 от 20 декабря 2022 г. | CGW24: СПРАВКА 015/00406/001 от 20 декабря 2022 г. | CHM24: СПРАВКА 015/00406/001 от 20 декабря 2022 г. | CIC24: СПРАВКА 015/00406/001 от 20 декабря 2022 г. | CIS24: СПРАВКА 015/00406/001 от 20 декабря 2022 г. | CJI24: СПРАВКА 015/00406/001 от 20 декабря 2022 г. | CJY24: СПРАВКА 015/00406/001 от 20 декабря 2022 г. | CKO24: СПРАВКА 015/00406/001 от 20 декабря 2022 г. | CLE24: СПРАВКА 015/00406/001 от 20 декабря 2022 г. | CLU24: СПРАВКА 015/00406/001 от 20 декабря 2022 г. | CMK24: СПРАВКА 015/00406/001 от 20 декабря 2022 г. | CNA24: СПРАВКА 015/00406/001 от 20 декабря 2022 г. | CNQ24: СПРАВКА 015/00406/001 от 20 декабря 2022 г. | COG24: СПРАВКА 015/00406/001 от 20 декабря 2022 г. | COW24: СПРАВКА 015/00406/001 от 20 декабря 2022 г. | CPM24: СПРАВКА 015/00406/001 от 20 декабря 2022 г. | CQC24: СПРАВКА 015/00406/001 от 20 декабря 2022 г. | CQS24: СПРАВКА 015/00406/001 от 20 декабря 2022 г. | CRI24: СПРАВКА 015/00406/001 от 20 декабря 2022 г. | CRY24: СПРАВКА 015/00406/001 от 20 декабря 2022 г. | CSO24: СПРАВКА 015/00406/001 от 20 декабря 2022 г. | CTE24: СПРАВКА 015/00406/001 от 20 декабря 2022 г. | CTU24: СПРАВКА 015/00406/001 от 20 декабря 2022 г. | CUK24: СПРАВКА 015/00406/001 от 20 декабря 2022 г. | CVA24: СПРАВКА 015/00406/001 от 20 декабря 2022 г. | CVQ24: СПРАВКА 015/00406/001 от 20 декабря 2022 г. | CWG24: СПРАВКА 015/00406/001 от 20 декабря 2022 г. | CWW24: СПРАВКА 015/00406/001 от 20 декабря 2022 г. | CXM24: СПРАВКА 015/00406/001 от 20 декабря 2022 г. | CYC24: СПРАВКА 015/00406/001 от 20 декабря 2022 г. | CYS24: СПРАВКА 015/00406/001 от 20 декабря 2022 г. | CZI24: СПРАВКА 015/00406/001 от 20 декабря 2022 г. | CZY24: СПРАВКА 015/00406/001 от 20 декабря 2022 г. | DAO24: СПРАВКА 015/00406/001 от 20 декабря 2022 г. | DBE24: СПРАВКА 015/00406/001 от 20 декабря 2022 г. | DBU24: СПРАВКА 015/00406/001 от 20 декабря 2022 г. | DCK24: СПРАВКА 015/00406/001 от 20 декабря 2022 г. | DDA24: СПРАВКА 015/00406/001 от 20 декабря 2022 г. | DDQ24: СПРАВКА 015/00406/001 от 20 декабря 2022 г. | DEG24: СПРАВКА 015/00406/001 от 20 декабря 2022 г. | DEW24: СПРАВКА 015/00406/001 от 20 декабря 2022 г. | DFM24: СПРАВКА 015/00406/001 от 20 декабря 2022 г. | DGC24: СПРАВКА 015/00406/001 от 20 декабря 2022 г. | DGS24: СПРАВКА 015/00406/001 от 20 декабря 2022 г. | DHI24: СПРАВКА 015/00406/001 от 20 декабря 2022 г. | DHY24: СПРАВКА 015/00406/001 от 20 декабря 2022 г. | DIO24: СПРАВКА 015/00406/001 от 20 декабря 2022 г. | DJE24: СПРАВКА 015/00406/001 от 20 декабря 2022 г. | DJU24: СПРАВКА 015/00406/001 от 20 декабря 2022 г. | DKK24: СПРАВКА 015/00406/001 от 20 декабря 2022 г. | DLA24: СПРАВКА 015/00406/001 от 20 декабря 2022 г. | DLQ24: СПРАВКА 015/00406/001 от 20 декабря 2022 г. | DMG24: СПРАВКА 015/00406/001 от 20 декабря 2022 г. | DMW24: СПРАВКА 015/00406/001 от 20 декабря 2022 г. | DNM24: СПРАВКА 015/00406/001 от 20 декабря 2022 г. | DOC24: СПРАВКА 015/00406/001 от 20 декабря 2022 г. | DOS24: СПРАВКА 015/00406/001 от 20 декабря 2022 г. | DPI24: СПРАВКА 015/00406/001 от 20 декабря 2022 г. | DPY24: СПРАВКА 015/00406/001 от 20 декабря 2022 г. | DQO24: СПРАВКА 015/00406/001 от 20 декабря 2022 г. | DRE24: СПРАВКА 015/00406/001 от 20 декабря 2022 г. | DRU24: СПРАВКА 015/00406/001 от 20 декабря 2022 г. | DSK24: СПРАВКА 015/00406/001 от 20 декабря 2022 г. | DTA24: СПРАВКА 015/00406/001 от 20 декабря 2022 г. | DTQ24: СПРАВКА 015/00406/001 от 20 декабря 2022 г. | DUG24: СПРАВКА 015/00406/001 от 20 декабря 2022 г. | DUW24: СПРАВКА 015/00406/001 от 20 декабря 2022 г. | DVM24: СПРАВКА 015/00406/001 от 20 декабря 2022 г. | DWC24: СПРАВКА 015/00406/001 от 20 декабря 2022 г. | DWS24: СПРАВКА 015/00406/001 от 20 декабря 2022 г. | DXI24: СПРАВКА 015/00406/001 от 20 декабря 2022 г. | DXY24: СПРАВКА 015/00406/001 от 20 декабря 2022 г. | DYO24: СПРАВКА 015/00406/001 от 20 декабря 2022 г. | DZE24: СПРАВКА 015/00406/001 от 20 декабря 2022 г. | DZU24: СПРАВКА 015/00406/001 от 20 декабря 2022 г. | EAK24: СПРАВКА 015/00406/001 от 20 декабря 2022 г. | EBA24: СПРАВКА 015/00406/001 от 20 декабря 2022 г. | EBQ24: СПРАВКА 015/00406/001 от 20 декабря 2022 г. | ECG24: СПРАВКА 015/00406/001 от 20 декабря 2022 г. | ECW24: СПРАВКА 015/00406/001 от 20 декабря 2022 г. | EDM24: СПРАВКА 015/00406/001 от 20 декабря 2022 г. | EEC24: СПРАВКА 015/00406/001 от 20 декабря 2022 г. | EES24: СПРАВКА 015/00406/001 от 20 декабря 2022 г. | EFI24: СПРАВКА 015/00406/001 от 20 декабря 2022 г. | EFY24: СПРАВКА 015/00406/001 от 20 декабря 2022 г. | EGO24: СПРАВКА 015/00406/001 от 20 декабря 2022 г. | EHE24: СПРАВКА 015/00406/001 от 20 декабря 2022 г. | EHU24: СПРАВКА 015/00406/001 от 20 декабря 2022 г. | EIK24: СПРАВКА 015/00406/001 от 20 декабря 2022 г. | EJA24: СПРАВКА 015/00406/001 от 20 декабря 2022 г. | EJQ24: СПРАВКА 015/00406/001 от 20 декабря 2022 г. | EKG24: СПРАВКА 015/00406/001 от 20 декабря 2022 г. | EKW24: СПРАВКА 015/00406/001 от 20 декабря 2022 г. | ELM24: СПРАВКА 015/00406/001 от 20 декабря 2022 г. | EMC24: СПРАВКА 015/00406/001 от 20 декабря 2022 г. | EMS24: СПРАВКА 015/00406/001 от 20 декабря 2022 г. | ENI24: СПРАВКА 015/00406/001 от 20 декабря 2022 г. | ENY24: СПРАВКА 015/00406/001 от 20 декабря 2022 г. | EOO24: СПРАВКА 015/00406/001 от 20 декабря 2022 г. | EPE24: СПРАВКА 015/00406/001 от 20 декабря 2022 г. | EPU24: СПРАВКА 015/00406/001 от 20 декабря 2022 г. | EQK24: СПРАВКА 015/00406/001 от 20 декабря 2022 г. | ERA24: СПРАВКА 015/00406/001 от 20 декабря 2022 г. | ERQ24: СПРАВКА 015/00406/001 от 20 декабря 2022 г. | ESG24: СПРАВКА 015/00406/001 от 20 декабря 2022 г. | ESW24: СПРАВКА 015/00406/001 от 20 декабря 2022 г. | ETM24: СПРАВКА 015/00406/001 от 20 декабря 2022 г. | EUC24: СПРАВКА 015/00406/001 от 20 декабря 2022 г. | EUS24: СПРАВКА 015/00406/001 от 20 декабря 2022 г. | EVI24: СПРАВКА 015/00406/001 от 20 декабря 2022 г. | EVY24: СПРАВКА 015/00406/001 от 20 декабря 2022 г. | EWO24: СПРАВКА 015/00406/001 от 20 декабря 2022 г. | EXE24: СПРАВКА 015/00406/001 от 20 декабря 2022 г. | EXU24: СПРАВКА 015/00406/001 от 20 декабря 2022 г. | EYK24: СПРАВКА 015/00406/001 от 20 декабря 2022 г. | EZA24: СПРАВКА 015/00406/001 от 20 декабря 2022 г. | EZQ24: СПРАВКА 015/00406/001 от 20 декабря 2022 г. | FAG24: СПРАВКА 015/00406/001 от 20 декабря 2022 г. | FAW24: СПРАВКА 015/00406/001 от 20 декабря 2022 г. | FBM24: СПРАВКА 015/00406/001 от 20 декабря 2022 г. | FCC24: СПРАВКА 015/00406/001 от 20 декабря 2022 г. | FCS24: СПРАВКА 015/00406/001 от 20 декабря 2022 г. | FDI24: СПРАВКА 015/00406/001 от 20 декабря 2022 г. | FDY24: СПРАВКА 015/00406/001 от 20 декабря 2022 г. | FEO24: СПРАВКА 015/00406/001 от 20 декабря 2022 г. | FFE24: СПРАВКА 015/00406/001 от 20 декабря 2022 г. | FFU24: СПРАВКА 015/00406/001 от 20 декабря 2022 г. | FGK24: СПРАВКА 015/00406/001 от 20 декабря 2022 г. | FHA24: СПРАВКА 015/00406/001 от 20 декабря 2022 г. | FHQ24: СПРАВКА 015/00406/001 от 20 декабря 2022 г. | FIG24: СПРАВКА 015/00406/001 от 20 декабря 2022 г. | FIW24: СПРАВКА 015/00406/001 от 20 декабря 2022 г. | FJM24: СПРАВКА 015/00406/001 от 20 декабря 2022 г. | FKC24: СПРАВКА 015/00406/001 от 20 декабря 2022 г. | FKS24: СПРАВКА 015/00406/001 от 20 декабря 2022 г. | FLI24: СПРАВКА 015/00406/001 от 20 декабря 2022 г. | FLY24: СПРАВКА 015/00406/001 от 20 декабря 2022 г. | FMO24: СПРАВКА 015/00406/001 от 20 декабря 2022 г. | FNE24: СПРАВКА 015/00406/001 от 20 декабря 2022 г. | FNU24: СПРАВКА 015/00406/001 от 20 декабря 2022 г. | FOK24: СПРАВКА 015/00406/001 от 20 декабря 2022 г. | FPA24: СПРАВКА 015/00406/001 от 20 декабря 2022 г. | FPQ24: СПРАВКА 015/00406/001 от 20 декабря 2022 г. | FQG24: СПРАВКА 015/00406/001 от 20 декабря 2022 г. | FQW24: СПРАВКА 015/00406/001 от 20 декабря 2022 г. | FRM24: СПРАВКА 015/00406/001 от 20 декабря 2022 г. | FSC24: СПРАВКА 015/00406/001 от 20 декабря 2022 г. | FSS24: СПРАВКА 015/00406/001 от 20 декабря 2022 г. | FTI24: СПРАВКА 015/00406/001 от 20 декабря 2022 г. | FTY24: СПРАВКА 015/00406/001 от 20 декабря 2022 г. | FUO24: СПРАВКА 015/00406/001 от 20 декабря 2022 г. | FVE24: СПРАВКА 015/00406/001 от 20 декабря 2022 г. | FVU24: СПРАВКА 015/00406/001 от 20 декабря 2022 г. | FWK24: СПРАВКА 015/00406/001 от 20 декабря 2022 г. | FXA24: СПРАВКА 015/00406/001 от 20 декабря 2022 г. | FXQ24: СПРАВКА 015/00406/001 от 20 декабря 2022 г. | FYG24: СПРАВКА 015/00406/001 от 20 декабря 2022 г. | FYW24: СПРАВКА 015/00406/001 от 20 декабря 2022 г. | FZM24: СПРАВКА 015/00406/001 от 20 декабря 2022 г. | GAC24: СПРАВКА 015/00406/001 от 20 декабря 2022 г. | GAS24: СПРАВКА 015/00406/001 от 20 декабря 2022 г. | GBI24: СПРАВКА 015/00406/001 от 20 декабря 2022 г. | GBY24: СПРАВКА 015/00406/001 от 20 декабря 2022 г. | GCO24: СПРАВКА 015/00406/001 от 20 декабря 2022 г. | GDE24: СПРАВКА 015/00406/001 от 20 декабря 2022 г. | GDU24: СПРАВКА 015/00406/001 от 20 декабря 2022 г. | GEK24: СПРАВКА 015/00406/001 от 20 декабря 2022 г. | GFA24: СПРАВКА 015/00406/001 от 20 декабря 2022 г. | GFQ24: СПРАВКА 015/00406/001 от 20 декабря 2022 г. | GGG24: СПРАВКА 015/00406/001 от 20 декабря 2022 г. | GGW24: СПРАВКА 015/00406/001 от 20 декабря 2022 г. | GHM24: СПРАВКА 015/00406/001 от 20 декабря 2022 г. | GIC24: СПРАВКА 015/00406/001 от 20 декабря 2022 г. | GIS24: СПРАВКА 015/00406/001 от 20 декабря 2022 г. | GJI24: СПРАВКА 015/00406/001 от 20 декабря 2022 г. | GJY24: СПРАВКА 015/00406/001 от 20 декабря 2022 г. | GKO24: СПРАВКА 015/00406/001 от 20 декабря 2022 г. | GLE24: СПРАВКА 015/00406/001 от 20 декабря 2022 г. | GLU24: СПРАВКА 015/00406/001 от 20 декабря 2022 г. | GMK24: СПРАВКА 015/00406/001 от 20 декабря 2022 г. | GNA24: СПРАВКА 015/00406/001 от 20 декабря 2022 г. | GNQ24: СПРАВКА 015/00406/001 от 20 декабря 2022 г. | GOG24: СПРАВКА 015/00406/001 от 20 декабря 2022 г. | GOW24: СПРАВКА 015/00406/001 от 20 декабря 2022 г. | GPM24: СПРАВКА 015/00406/001 от 20 декабря 2022 г. | GQC24: СПРАВКА 015/00406/001 от 20 декабря 2022 г. | GQS24: СПРАВКА 015/00406/001 от 20 декабря 2022 г. | GRI24: СПРАВКА 015/00406/001 от 20 декабря 2022 г. | GRY24: СПРАВКА 015/00406/001 от 20 декабря 2022 г. | GSO24: СПРАВКА 015/00406/001 от 20 декабря 2022 г. | GTE24: СПРАВКА 015/00406/001 от 20 декабря 2022 г. | GTU24: СПРАВКА 015/00406/001 от 20 декабря 2022 г. | GUK24: СПРАВКА 015/00406/001 от 20 декабря 2022 г. | GVA24: СПРАВКА 015/00406/001 от 20 декабря 2022 г. | GVQ24: СПРАВКА 015/00406/001 от 20 декабря 2022 г. | GWG24: СПРАВКА 015/00406/001 от 20 декабря 2022 г. | GWW24: СПРАВКА 015/00406/001 от 20 декабря 2022 г. | GXM24: СПРАВКА 015/00406/001 от 20 декабря 2022 г. | GYC24: СПРАВКА 015/00406/001 от 20 декабря 2022 г. | GYS24: СПРАВКА 015/00406/001 от 20 декабря 2022 г. | GZI24: СПРАВКА 015/00406/001 от 20 декабря 2022 г. | GZY24: СПРАВКА 015/00406/001 от 20 декабря 2022 г. | HAO24: СПРАВКА 015/00406/001 от 20 декабря 2022 г. | HBE24: СПРАВКА 015/00406/001 от 20 декабря 2022 г. | HBU24: СПРАВКА 015/00406/001 от 20 декабря 2022 г. | HCK24: СПРАВКА 015/00406/001 от 20 декабря 2022 г. | HDA24: СПРАВКА 015/00406/001 от 20 декабря 2022 г. | HDQ24: СПРАВКА 015/00406/001 от 20 декабря 2022 г. | HEG24: СПРАВКА 015/00406/001 от 20 декабря 2022 г. | HEW24: СПРАВКА 015/00406/001 от 20 декабря 2022 г. | HFM24: СПРАВКА 015/00406/001 от 20 декабря 2022 г. | HGC24: СПРАВКА 015/00406/001 от 20 декабря 2022 г. | HGS24: СПРАВКА 015/00406/001 от 20 декабря 2022 г. | HHI24: СПРАВКА 015/00406/001 от 20 декабря 2022 г. | HHY24: СПРАВКА 015/00406/001 от 20 декабря 2022 г. | HIO24: СПРАВКА 015/00406/001 от 20 декабря 2022 г. | HJE24: СПРАВКА 015/00406/001 от 20 декабря 2022 г. | HJU24: СПРАВКА 015/00406/001 от 20 декабря 2022 г. | HKK24: СПРАВКА 015/00406/001 от 20 декабря 2022 г. | HLA24: СПРАВКА 015/00406/001 от 20 декабря 2022 г. | HLQ24: СПРАВКА 015/00406/001 от 20 декабря 2022 г. | HMG24: СПРАВКА 015/00406/001 от 20 декабря 2022 г. | HMW24: СПРАВКА 015/00406/001 от 20 декабря 2022 г. | HNM24: СПРАВКА 015/00406/001 от 20 декабря 2022 г. | HOC24: СПРАВКА 015/00406/001 от 20 декабря 2022 г. | HOS24: СПРАВКА 015/00406/001 от 20 декабря 2022 г. | HPI24: СПРАВКА 015/00406/001 от 20 декабря 2022 г. | HPY24: СПРАВКА 015/00406/001 от 20 декабря 2022 г. | HQO24: СПРАВКА 015/00406/001 от 20 декабря 2022 г. | HRE24: СПРАВКА 015/00406/001 от 20 декабря 2022 г. | HRU24: СПРАВКА 015/00406/001 от 20 декабря 2022 г. | HSK24: СПРАВКА 015/00406/001 от 20 декабря 2022 г. | HTA24: СПРАВКА 015/00406/001 от 20 декабря 2022 г. | HTQ24: СПРАВКА 015/00406/001 от 20 декабря 2022 г. | HUG24: СПРАВКА 015/00406/001 от 20 декабря 2022 г. | HUW24: СПРАВКА 015/00406/001 от 20 декабря 2022 г. | HVM24: СПРАВКА 015/00406/001 от 20 декабря 2022 г. | HWC24: СПРАВКА 015/00406/001 от 20 декабря 2022 г. | HWS24: СПРАВКА 015/00406/001 от 20 декабря 2022 г. | HXI24: СПРАВКА 015/00406/001 от 20 декабря 2022 г. | HXY24: СПРАВКА 015/00406/001 от 20 декабря 2022 г. | HYO24: СПРАВКА 015/00406/001 от 20 декабря 2022 г. | HZE24: СПРАВКА 015/00406/001 от 20 декабря 2022 г. | HZU24: СПРАВКА 015/00406/001 от 20 декабря 2022 г. | IAK24: СПРАВКА 015/00406/001 от 20 декабря 2022 г. | IBA24: СПРАВКА 015/00406/001 от 20 декабря 2022 г. | IBQ24: СПРАВКА 015/00406/001 от 20 декабря 2022 г. | ICG24: СПРАВКА 015/00406/001 от 20 декабря 2022 г. | ICW24: СПРАВКА 015/00406/001 от 20 декабря 2022 г. | IDM24: СПРАВКА 015/00406/001 от 20 декабря 2022 г. | IEC24: СПРАВКА 015/00406/001 от 20 декабря 2022 г. | IES24: СПРАВКА 015/00406/001 от 20 декабря 2022 г. | IFI24: СПРАВКА 015/00406/001 от 20 декабря 2022 г. | IFY24: СПРАВКА 015/00406/001 от 20 декабря 2022 г. | IGO24: СПРАВКА 015/00406/001 от 20 декабря 2022 г. | IHE24: СПРАВКА 015/00406/001 от 20 декабря 2022 г. | IHU24: СПРАВКА 015/00406/001 от 20 декабря 2022 г. | IIK24: СПРАВКА 015/00406/001 от 20 декабря 2022 г. | IJA24: СПРАВКА 015/00406/001 от 20 декабря 2022 г. | IJQ24: СПРАВКА 015/00406/001 от 20 декабря 2022 г. | IKG24: СПРАВКА 015/00406/001 от 20 декабря 2022 г. | IKW24: СПРАВКА 015/00406/001 от 20 декабря 2022 г. | ILM24: СПРАВКА 015/00406/001 от 20 декабря 2022 г. | IMC24: СПРАВКА 015/00406/001 от 20 декабря 2022 г. | IMS24: СПРАВКА 015/00406/001 от 20 декабря 2022 г. | INI24: СПРАВКА 015/00406/001 от 20 декабря 2022 г. | INY24: СПРАВКА 015/00406/001 от 20 декабря 2022 г. | IOO24: СПРАВКА 015/00406/001 от 20 декабря 2022 г. | IPE24: СПРАВКА 015/00406/001 от 20 декабря 2022 г. | IPU24: СПРАВКА 015/00406/001 от 20 декабря 2022 г. | IQK24: СПРАВКА 015/00406/001 от 20 декабря 2022 г. | IRA24: СПРАВКА 015/00406/001 от 20 декабря 2022 г. | IRQ24: СПРАВКА 015/00406/001 от 20 декабря 2022 г. | ISG24: СПРАВКА 015/00406/001 от 20 декабря 2022 г. | ISW24: СПРАВКА 015/00406/001 от 20 декабря 2022 г. | ITM24: СПРАВКА 015/00406/001 от 20 декабря 2022 г. | IUC24: СПРАВКА 015/00406/001 от 20 декабря 2022 г. | IUS24: СПРАВКА 015/00406/001 от 20 декабря 2022 г. | IVI24: СПРАВКА 015/00406/001 от 20 декабря 2022 г. | IVY24: СПРАВКА 015/00406/001 от 20 декабря 2022 г. | IWO24: СПРАВКА 015/00406/001 от 20 декабря 2022 г. | IXE24: СПРАВКА 015/00406/001 от 20 декабря 2022 г. | IXU24: СПРАВКА 015/00406/001 от 20 декабря 2022 г. | IYK24: СПРАВКА 015/00406/001 от 20 декабря 2022 г. | IZA24: СПРАВКА 015/00406/001 от 20 декабря 2022 г. | IZQ24: СПРАВКА 015/00406/001 от 20 декабря 2022 г. | JAG24: СПРАВКА 015/00406/001 от 20 декабря 2022 г. | JAW24: СПРАВКА 015/00406/001 от 20 декабря 2022 г. | JBM24: СПРАВКА 015/00406/001 от 20 декабря 2022 г. | JCC24: СПРАВКА 015/00406/001 от 20 декабря 2022 г. | JCS24: СПРАВКА 015/00406/001 от 20 декабря 2022 г. | JDI24: СПРАВКА 015/00406/001 от 20 декабря 2022 г. | JDY24: СПРАВКА 015/00406/001 от 20 декабря 2022 г. | JEO24: СПРАВКА 015/00406/001 от 20 декабря 2022 г. | JFE24: СПРАВКА 015/00406/001 от 20 декабря 2022 г. | JFU24: СПРАВКА 015/00406/001 от 20 декабря 2022 г. | JGK24: СПРАВКА 015/00406/001 от 20 декабря 2022 г. | JHA24: СПРАВКА 015/00406/001 от 20 декабря 2022 г. | JHQ24: СПРАВКА 015/00406/001 от 20 декабря 2022 г. | JIG24: СПРАВКА 015/00406/001 от 20 декабря 2022 г. | JIW24: СПРАВКА 015/00406/001 от 20 декабря 2022 г. | JJM24: СПРАВКА 015/00406/001 от 20 декабря 2022 г. | JKC24: СПРАВКА 015/00406/001 от 20 декабря 2022 г. | JKS24: СПРАВКА 015/00406/001 от 20 декабря 2022 г. | JLI24: СПРАВКА 015/00406/001 от 20 декабря 2022 г. | JLY24: СПРАВКА 015/00406/001 от 20 декабря 2022 г. | JMO24: СПРАВКА 015/00406/001 от 20 декабря 2022 г. | JNE24: СПРАВКА 015/00406/001 от 20 декабря 2022 г. | JNU24: СПРАВКА 015/00406/001 от 20 декабря 2022 г. | JOK24: СПРАВКА 015/00406/001 от 20 декабря 2022 г. | JPA24: СПРАВКА 015/00406/001 от 20 декабря 2022 г. | JPQ24: СПРАВКА 015/00406/001 от 20 декабря 2022 г. | JQG24: СПРАВКА 015/00406/001 от 20 декабря 2022 г. | JQW24: СПРАВКА 015/00406/001 от 20 декабря 2022 г. | JRM24: СПРАВКА 015/00406/001 от 20 декабря 2022 г. | JSC24: СПРАВКА 015/00406/001 от 20 декабря 2022 г. | JSS24: СПРАВКА 015/00406/001 от 20 декабря 2022 г. | JTI24: СПРАВКА 015/00406/001 от 20 декабря 2022 г. | JTY24: СПРАВКА 015/00406/001 от 20 декабря 2022 г. | JUO24: СПРАВКА 015/00406/001 от 20 декабря 2022 г. | JVE24: СПРАВКА 015/00406/001 от 20 декабря 2022 г. | JVU24: СПРАВКА 015/00406/001 от 20 декабря 2022 г. | JWK24: СПРАВКА 015/00406/001 от 20 декабря 2022 г. | JXA24: СПРАВКА 015/00406/001 от 20 декабря 2022 г. | JXQ24: СПРАВКА 015/00406/001 от 20 декабря 2022 г. | JYG24: СПРАВКА 015/00406/001 от 20 декабря 2022 г. | JYW24: СПРАВКА 015/00406/001 от 20 декабря 2022 г. | JZM24: СПРАВКА 015/00406/001 от 20 декабря 2022 г. | KAC24: СПРАВКА 015/00406/001 от 20 декабря 2022 г. | KAS24: СПРАВКА 015/00406/001 от 20 декабря 2022 г. | KBI24: СПРАВКА 015/00406/001 от 20 декабря 2022 г. | KBY24: СПРАВКА 015/00406/001 от 20 декабря 2022 г. | KCO24: СПРАВКА 015/00406/001 от 20 декабря 2022 г. | KDE24: СПРАВКА 015/00406/001 от 20 декабря 2022 г. | KDU24: СПРАВКА 015/00406/001 от 20 декабря 2022 г. | KEK24: СПРАВКА 015/00406/001 от 20 декабря 2022 г. | KFA24: СПРАВКА 015/00406/001 от 20 декабря 2022 г. | KFQ24: СПРАВКА 015/00406/001 от 20 декабря 2022 г. | KGG24: СПРАВКА 015/00406/001 от 20 декабря 2022 г. | KGW24: СПРАВКА 015/00406/001 от 20 декабря 2022 г. | KHM24: СПРАВКА 015/00406/001 от 20 декабря 2022 г. | KIC24: СПРАВКА 015/00406/001 от 20 декабря 2022 г. | KIS24: СПРАВКА 015/00406/001 от 20 декабря 2022 г. | KJI24: СПРАВКА 015/00406/001 от 20 декабря 2022 г. | KJY24: СПРАВКА 015/00406/001 от 20 декабря 2022 г. | KKO24: СПРАВКА 015/00406/001 от 20 декабря 2022 г. | KLE24: СПРАВКА 015/00406/001 от 20 декабря 2022 г. | KLU24: СПРАВКА 015/00406/001 от 20 декабря 2022 г. | KMK24: СПРАВКА 015/00406/001 от 20 декабря 2022 г. | KNA24: СПРАВКА 015/00406/001 от 20 декабря 2022 г. | KNQ24: СПРАВКА 015/00406/001 от 20 декабря 2022 г. | KOG24: СПРАВКА 015/00406/001 от 20 декабря 2022 г. | KOW24: СПРАВКА 015/00406/001 от 20 декабря 2022 г. | KPM24: СПРАВКА 015/00406/001 от 20 декабря 2022 г. | KQC24: СПРАВКА 015/00406/001 от 20 декабря 2022 г. | KQS24: СПРАВКА 015/00406/001 от 20 декабря 2022 г. | KRI24: СПРАВКА 015/00406/001 от 20 декабря 2022 г. | KRY24: СПРАВКА 015/00406/001 от 20 декабря 2022 г. | KSO24: СПРАВКА 015/00406/001 от 20 декабря 2022 г. | KTE24: СПРАВКА 015/00406/001 от 20 декабря 2022 г. | KTU24: СПРАВКА 015/00406/001 от 20 декабря 2022 г. | KUK24: СПРАВКА 015/00406/001 от 20 декабря 2022 г. | KVA24: СПРАВКА 015/00406/001 от 20 декабря 2022 г. | KVQ24: СПРАВКА 015/00406/001 от 20 декабря 2022 г. | KWG24: СПРАВКА 015/00406/001 от 20 декабря 2022 г. | KWW24: СПРАВКА 015/00406/001 от 20 декабря 2022 г. | KXM24: СПРАВКА 015/00406/001 от 20 декабря 2022 г. | KYC24: СПРАВКА 015/00406/001 от 20 декабря 2022 г. | KYS24: СПРАВКА 015/00406/001 от 20 декабря 2022 г. | KZI24: СПРАВКА 015/00406/001 от 20 декабря 2022 г. | KZY24: СПРАВКА 015/00406/001 от 20 декабря 2022 г. | LAO24: СПРАВКА 015/00406/001 от 20 декабря 2022 г. | LBE24: СПРАВКА 015/00406/001 от 20 декабря 2022 г. | LBU24: СПРАВКА 015/00406/001 от 20 декабря 2022 г. | LCK24: СПРАВКА 015/00406/001 от 20 декабря 2022 г. | LDA24: СПРАВКА 015/00406/001 от 20 декабря 2022 г. | LDQ24: СПРАВКА 015/00406/001 от 20 декабря 2022 г. | LEG24: СПРАВКА 015/00406/001 от 20 декабря 2022 г. | LEW24: СПРАВКА 015/00406/001 от 20 декабря 2022 г. | LFM24: СПРАВКА 015/00406/001 от 20 декабря 2022 г. | LGC24: СПРАВКА 015/00406/001 от 20 декабря 2022 г. | LGS24: СПРАВКА 015/00406/001 от 20 декабря 2022 г. | LHI24: СПРАВКА 015/00406/001 от 20 декабря 2022 г. | LHY24: СПРАВКА 015/00406/001 от 20 декабря 2022 г. | LIO24: СПРАВКА 015/00406/001 от 20 декабря 2022 г. | LJE24: СПРАВКА 015/00406/001 от 20 декабря 2022 г. | LJU24: СПРАВКА 015/00406/001 от 20 декабря 2022 г. | LKK24: СПРАВКА 015/00406/001 от 20 декабря 2022 г. | LLA24: СПРАВКА 015/00406/001 от 20 декабря 2022 г. | LLQ24: СПРАВКА 015/00406/001 от 20 декабря 2022 г. | LMG24: СПРАВКА 015/00406/001 от 20 декабря 2022 г. | LMW24: СПРАВКА 015/00406/001 от 20 декабря 2022 г. | LNM24: СПРАВКА 015/00406/001 от 20 декабря 2022 г. | LOC24: СПРАВКА 015/00406/001 от 20 декабря 2022 г. | LOS24: СПРАВКА 015/00406/001 от 20 декабря 2022 г. | LPI24: СПРАВКА 015/00406/001 от 20 декабря 2022 г. | LPY24: СПРАВКА 015/00406/001 от 20 декабря 2022 г. | LQO24: СПРАВКА 015/00406/001 от 20 декабря 2022 г. | LRE24: СПРАВКА 015/00406/001 от 20 декабря 2022 г. | LRU24: СПРАВКА 015/00406/001 от 20 декабря 2022 г. | LSK24: СПРАВКА 015/00406/001 от 20 декабря 2022 г. | LTA24: СПРАВКА 015/00406/001 от 20 декабря 2022 г. | LTQ24: СПРАВКА 015/00406/001 от 20 декабря 2022 г. | LUG24: СПРАВКА 015/00406/001 от 20 декабря 2022 г. | LUW24: СПРАВКА 015/00406/001 от 20 декабря 2022 г. | LVM24: СПРАВКА 015/00406/001 от 20 декабря 2022 г. | LWC24: СПРАВКА 015/00406/001 от 20 декабря 2022 г. | LWS24: СПРАВКА 015/00406/001 от 20 декабря 2022 г. | LXI24: СПРАВКА 015/00406/001 от 20 декабря 2022 г. | LXY24: СПРАВКА 015/00406/001 от 20 декабря 2022 г. | LYO24: СПРАВКА 015/00406/001 от 20 декабря 2022 г. | LZE24: СПРАВКА 015/00406/001 от 20 декабря 2022 г. | LZU24: СПРАВКА 015/00406/001 от 20 декабря 2022 г. | MAK24: СПРАВКА 015/00406/001 от 20 декабря 2022 г. | MBA24: СПРАВКА 015/00406/001 от 20 декабря 2022 г. | MBQ24: СПРАВКА 015/00406/001 от 20 декабря 2022 г. | MCG24: СПРАВКА 015/00406/001 от 20 декабря 2022 г. | MCW24: СПРАВКА 015/00406/001 от 20 декабря 2022 г. | MDM24: СПРАВКА 015/00406/001 от 20 декабря 2022 г. | MEC24: СПРАВКА 015/00406/001 от 20 декабря 2022 г. | MES24: СПРАВКА 015/00406/001 от 20 декабря 2022 г. | MFI24: СПРАВКА 015/00406/001 от 20 декабря 2022 г. | MFY24: СПРАВКА 015/00406/001 от 20 декабря 2022 г. | MGO24: СПРАВКА 015/00406/001 от 20 декабря 2022 г. | MHE24: СПРАВКА 015/00406/001 от 20 декабря 2022 г. | MHU24: СПРАВКА 015/00406/001 от 20 декабря 2022 г. | MIK24: СПРАВКА 015/00406/001 от 20 декабря 2022 г. | MJA24: СПРАВКА 015/00406/001 от 20 декабря 2022 г. | MJQ24: СПРАВКА 015/00406/001 от 20 декабря 2022 г. | MKG24: СПРАВКА 015/00406/001 от 20 декабря 2022 г. | MKW24: СПРАВКА 015/00406/001 от 20 декабря 2022 г. | MLM24: СПРАВКА 015/00406/001 от 20 декабря 2022 г. | MMC24: СПРАВКА 015/00406/001 от 20 декабря 2022 г. | MMS24: СПРАВКА 015/00406/001 от 20 декабря 2022 г. | MNI24: СПРАВКА 015/00406/001 от 20 декабря 2022 г. | MNY24: СПРАВКА 015/00406/001 от 20 декабря 2022 г. | MOO24: СПРАВКА 015/00406/001 от 20 декабря 2022 г. | MPE24: СПРАВКА 015/00406/001 от 20 декабря 2022 г. | MPU24: СПРАВКА 015/00406/001 от 20 декабря 2022 г. | MQK24: СПРАВКА 015/00406/001 от 20 декабря 2022 г. | MRA24: СПРАВКА 015/00406/001 от 20 декабря 2022 г. | MRQ24: СПРАВКА 015/00406/001 от 20 декабря 2022 г. | MSG24: СПРАВКА 015/00406/001 от 20 декабря 2022 г. | MSW24: СПРАВКА 015/00406/001 от 20 декабря 2022 г. | MTM24: СПРАВКА 015/00406/001 от 20 декабря 2022 г. | MUC24: СПРАВКА 015/00406/001 от 20 декабря 2022 г. | MUS24: СПРАВКА 015/00406/001 от 20 декабря 2022 г. | MVI24: СПРАВКА 015/00406/001 от 20 декабря 2022 г. | MVY24: СПРАВКА 015/00406/001 от 20 декабря 2022 г. | MWO24: СПРАВКА 015/00406/001 от 20 декабря 2022 г. | MXE24: СПРАВКА 015/00406/001 от 20 декабря 2022 г. | MXU24: СПРАВКА 015/00406/001 от 20 декабря 2022 г. | MYK24: СПРАВКА 015/00406/001 от 20 декабря 2022 г. | MZA24: СПРАВКА 015/00406/001 от 20 декабря 2022 г. | MZQ24: СПРАВКА 015/00406/001 от 20 декабря 2022 г. | NAG24: СПРАВКА 015/00406/001 от 20 декабря 2022 г. | NAW24: СПРАВКА 015/00406/001 от 20 декабря 2022 г. | NBM24: СПРАВКА 015/00406/001 от 20 декабря 2022 г. | NCC24: СПРАВКА 015/00406/001 от 20 декабря 2022 г. | NCS24: СПРАВКА 015/00406/001 от 20 декабря 2022 г. | NDI24: СПРАВКА 015/00406/001 от 20 декабря 2022 г. | NDY24: СПРАВКА 015/00406/001 от 20 декабря 2022 г. | NEO24: СПРАВКА 015/00406/001 от 20 декабря 2022 г. | NFE24: СПРАВКА 015/00406/001 от 20 декабря 2022 г. | NFU24: СПРАВКА 015/00406/001 от 20 декабря 2022 г. | NGK24: СПРАВКА 015/00406/001 от 20 декабря 2022 г. | NHA24: СПРАВКА 015/00406/001 от 20 декабря 2022 г. | NHQ24: СПРАВКА 015/00406/001 от 20 декабря 2022 г. | NIG24: СПРАВКА 015/00406/001 от 20 декабря 2022 г. | NIW24: СПРАВКА 015/00406/001 от 20 декабря 2022 г. | NJM24: СПРАВКА 015/00406/001 от 20 декабря 2022 г. | NKC24: СПРАВКА 015/00406/001 от 20 декабря 2022 г. | NKS24: СПРАВКА 015/00406/001 от 20 декабря 2022 г. | NLI24: СПРАВКА 015/00406/001 от 20 декабря 2022 г. | NLY24: СПРАВКА 015/00406/001 от 20 декабря 2022 г. | NMO24: СПРАВКА 015/00406/001 от 20 декабря 2022 г. | NNE24: СПРАВКА 015/00406/001 от 20 декабря 2022 г. | NNU24: СПРАВКА 015/00406/001 от 20 декабря 2022 г. | NOK24: СПРАВКА 015/00406/001 от 20 декабря 2022 г. | NPA24: СПРАВКА 015/00406/001 от 20 декабря 2022 г. | NPQ24: СПРАВКА 015/00406/001 от 20 декабря 2022 г. | NQG24: СПРАВКА 015/00406/001 от 20 декабря 2022 г. | NQW24: СПРАВКА 015/00406/001 от 20 декабря 2022 г. | NRM24: СПРАВКА 015/00406/001 от 20 декабря 2022 г. | NSC24: СПРАВКА 015/00406/001 от 20 декабря 2022 г. | NSS24: СПРАВКА 015/00406/001 от 20 декабря 2022 г. | NTI24: СПРАВКА 015/00406/001 от 20 декабря 2022 г. | NTY24: СПРАВКА 015/00406/001 от 20 декабря 2022 г. | NUO24: СПРАВКА 015/00406/001 от 20 декабря 2022 г. | NVE24: СПРАВКА 015/00406/001 от 20 декабря 2022 г. | NVU24: СПРАВКА 015/00406/001 от 20 декабря 2022 г. | NWK24: СПРАВКА 015/00406/001 от 20 декабря 2022 г. | NXA24: СПРАВКА 015/00406/001 от 20 декабря 2022 г. | NXQ24: СПРАВКА 015/00406/001 от 20 декабря 2022 г. | NYG24: СПРАВКА 015/00406/001 от 20 декабря 2022 г. | NYW24: СПРАВКА 015/00406/001 от 20 декабря 2022 г. | NZM24: СПРАВКА 015/00406/001 от 20 декабря 2022 г. | OAC24: СПРАВКА 015/00406/001 от 20 декабря 2022 г. | OAS24: СПРАВКА 015/00406/001 от 20 декабря 2022 г. | OBI24: СПРАВКА 015/00406/001 от 20 декабря 2022 г. | OBY24: СПРАВКА 015/00406/001 от 20 декабря 2022 г. | OCO24: СПРАВКА 015/00406/001 от 20 декабря 2022 г. | ODE24: СПРАВКА 015/00406/001 от 20 декабря 2022 г. | ODU24: СПРАВКА 015/00406/001 от 20 декабря 2022 г. | OEK24: СПРАВКА 015/00406/001 от 20 декабря 2022 г. | OFA24: СПРАВКА 015/00406/001 от 20 декабря 2022 г. | OFQ24: СПРАВКА 015/00406/001 от 20 декабря 2022 г. | OGG24: СПРАВКА 015/00406/001 от 20 декабря 2022 г. | OGW24: СПРАВКА 015/00406/001 от 20 декабря 2022 г. | OHM24: СПРАВКА 015/00406/001 от 20 декабря 2022 г. | OIC24: СПРАВКА 015/00406/001 от 20 декабря 2022 г. | OIS24: СПРАВКА 015/00406/001 от 20 декабря 2022 г. | OJI24: СПРАВКА 015/00406/001 от 20 декабря 2022 г. | OJY24: СПРАВКА 015/00406/001 от 20 декабря 2022 г. | OKO24: СПРАВКА 015/00406/001 от 20 декабря 2022 г. | OLE24: СПРАВКА 015/00406/001 от 20 декабря 2022 г. | OLU24: СПРАВКА 015/00406/001 от 20 декабря 2022 г. | OMK24: СПРАВКА 015/00406/001 от 20 декабря 2022 г. | ONA24: СПРАВКА 015/00406/001 от 20 декабря 2022 г. | ONQ24: СПРАВКА 015/00406/001 от 20 декабря 2022 г. | OOG24: СПРАВКА 015/00406/001 от 20 декабря 2022 г. | OOW24: СПРАВКА 015/00406/001 от 20 декабря 2022 г. | OPM24: СПРАВКА 015/00406/001 от 20 декабря 2022 г. | OQC24: СПРАВКА 015/00406/001 от 20 декабря 2022 г. | OQS24: СПРАВКА 015/00406/001 от 20 декабря 2022 г. | ORI24: СПРАВКА 015/00406/001 от 20 декабря 2022 г. | ORY24: СПРАВКА 015/00406/001 от 20 декабря 2022 г. | OSO24: СПРАВКА 015/00406/001 от 20 декабря 2022 г. | OTE24: СПРАВКА 015/00406/001 от 20 декабря 2022 г. | OTU24: СПРАВКА 015/00406/001 от 20 декабря 2022 г. | OUK24: СПРАВКА 015/00406/001 от 20 декабря 2022 г. | OVA24: СПРАВКА 015/00406/001 от 20 декабря 2022 г. | OVQ24: СПРАВКА 015/00406/001 от 20 декабря 2022 г. | OWG24: СПРАВКА 015/00406/001 от 20 декабря 2022 г. | OWW24: СПРАВКА 015/00406/001 от 20 декабря 2022 г. | OXM24: СПРАВКА 015/00406/001 от 20 декабря 2022 г. | OYC24: СПРАВКА 015/00406/001 от 20 декабря 2022 г. | OYS24: СПРАВКА 015/00406/001 от 20 декабря 2022 г. | OZI24: СПРАВКА 015/00406/001 от 20 декабря 2022 г. | OZY24: СПРАВКА 015/00406/001 от 20 декабря 2022 г. | PAO24: СПРАВКА 015/00406/001 от 20 декабря 2022 г. | PBE24: СПРАВКА 015/00406/001 от 20 декабря 2022 г. | PBU24: СПРАВКА 015/00406/001 от 20 декабря 2022 г. | PCK24: СПРАВКА 015/00406/001 от 20 декабря 2022 г. | PDA24: СПРАВКА 015/00406/001 от 20 декабря 2022 г. | PDQ24: СПРАВКА 015/00406/001 от 20 декабря 2022 г. | PEG24: СПРАВКА 015/00406/001 от 20 декабря 2022 г. | PEW24: СПРАВКА 015/00406/001 от 20 декабря 2022 г. | PFM24: СПРАВКА 015/00406/001 от 20 декабря 2022 г. | PGC24: СПРАВКА 015/00406/001 от 20 декабря 2022 г. | PGS24: СПРАВКА 015/00406/001 от 20 декабря 2022 г. | PHI24: СПРАВКА 015/00406/001 от 20 декабря 2022 г. | PHY24: СПРАВКА 015/00406/001 от 20 декабря 2022 г. | PIO24: СПРАВКА 015/00406/001 от 20 декабря 2022 г. | PJE24: СПРАВКА 015/00406/001 от 20 декабря 2022 г. | PJU24: СПРАВКА 015/00406/001 от 20 декабря 2022 г. | PKK24: СПРАВКА 015/00406/001 от 20 декабря 2022 г. | PLA24: СПРАВКА 015/00406/001 от 20 декабря 2022 г. | PLQ24: СПРАВКА 015/00406/001 от 20 декабря 2022 г. | PMG24: СПРАВКА 015/00406/001 от 20 декабря 2022 г. | PMW24: СПРАВКА 015/00406/001 от 20 декабря 2022 г. | PNM24: СПРАВКА 015/00406/001 от 20 декабря 2022 г. | POC24: СПРАВКА 015/00406/001 от 20 декабря 2022 г. | POS24: СПРАВКА 015/00406/001 от 20 декабря 2022 г. | PPI24: СПРАВКА 015/00406/001 от 20 декабря 2022 г. | PPY24: СПРАВКА 015/00406/001 от 20 декабря 2022 г. | PQO24: СПРАВКА 015/00406/001 от 20 декабря 2022 г. | PRE24: СПРАВКА 015/00406/001 от 20 декабря 2022 г. | PRU24: СПРАВКА 015/00406/001 от 20 декабря 2022 г. | PSK24: СПРАВКА 015/00406/001 от 20 декабря 2022 г. | PTA24: СПРАВКА 015/00406/001 от 20 декабря 2022 г. | PTQ24: СПРАВКА 015/00406/001 от 20 декабря 2022 г. | PUG24: СПРАВКА 015/00406/001 от 20 декабря 2022 г. | PUW24: СПРАВКА 015/00406/001 от 20 декабря 2022 г. | PVM24: СПРАВКА 015/00406/001 от 20 декабря 2022 г. | PWC24: СПРАВКА 015/00406/001 от 20 декабря 2022 г. | PWS24: СПРАВКА 015/00406/001 от 20 декабря 2022 г. | PXI24: СПРАВКА 015/00406/001 от 20 декабря 2022 г. | PXY24: СПРАВКА 015/00406/001 от 20 декабря 2022 г. | PYO24: СПРАВКА 015/00406/001 от 20 декабря 2022 г. | PZE24: СПРАВКА 015/00406/001 от 20 декабря 2022 г. | PZU24: СПРАВКА 015/00406/001 от 20 декабря 2022 г. | QAK24: СПРАВКА 015/00406/001 от 20 декабря 2022 г. | QBA24: СПРАВКА 015/00406/001 от 20 декабря 2022 г. | QBQ24: СПРАВКА 015/00406/001 от 20 декабря 2022 г. | QCG24: СПРАВКА 015/00406/001 от 20 декабря 2022 г. | QCW24: СПРАВКА 015/00406/001 от 20 декабря 2022 г. | QDM24: СПРАВКА 015/00406/001 от 20 декабря 2022 г. | QEC24: СПРАВКА 015/00406/001 от 20 декабря 2022 г. | QES24: СПРАВКА 015/00406/001 от 20 декабря 2022 г. | QFI24: СПРАВКА 015/00406/001 от 20 декабря 2022 г. | QFY24: СПРАВКА 015/00406/001 от 20 декабря 2022 г. | QGO24: СПРАВКА 015/00406/001 от 20 декабря 2022 г. | QHE24: СПРАВКА 015/00406/001 от 20 декабря 2022 г. | QHU24: СПРАВКА 015/00406/001 от 20 декабря 2022 г. | QIK24: СПРАВКА 015/00406/001 от 20 декабря 2022 г. | QJA24: СПРАВКА 015/00406/001 от 20 декабря 2022 г. | QJQ24: СПРАВКА 015/00406/001 от 20 декабря 2022 г. | QKG24: СПРАВКА 015/00406/001 от 20 декабря 2022 г. | QKW24: СПРАВКА 015/00406/001 от 20 декабря 2022 г. | QLM24: СПРАВКА 015/00406/001 от 20 декабря 2022 г. | QMC24: СПРАВКА 015/00406/001 от 20 декабря 2022 г. | QMS24: СПРАВКА 015/00406/001 от 20 декабря 2022 г. | QNI24: СПРАВКА 015/00406/001 от 20 декабря 2022 г. | QNY24: СПРАВКА 015/00406/001 от 20 декабря 2022 г. | QOO24: СПРАВКА 015/00406/001 от 20 декабря 2022 г. | QPE24: СПРАВКА 015/00406/001 от 20 декабря 2022 г. | QPU24: СПРАВКА 015/00406/001 от 20 декабря 2022 г. | QQK24: СПРАВКА 015/00406/001 от 20 декабря 2022 г. | QRA24: СПРАВКА 015/00406/001 от 20 декабря 2022 г. | QRQ24: СПРАВКА 015/00406/001 от 20 декабря 2022 г. | QSG24: СПРАВКА 015/00406/001 от 20 декабря 2022 г. | QSW24: СПРАВКА 015/00406/001 от 20 декабря 2022 г. | QTM24: СПРАВКА 015/00406/001 от 20 декабря 2022 г. | QUC24: СПРАВКА 015/00406/001 от 20 декабря 2022 г. | QUS24: СПРАВКА 015/00406/001 от 20 декабря 2022 г. | QVI24: СПРАВКА 015/00406/001 от 20 декабря 2022 г. | QVY24: СПРАВКА 015/00406/001 от 20 декабря 2022 г. | QWO24: СПРАВКА 015/00406/001 от 20 декабря 2022 г. | QXE24: СПРАВКА 015/00406/001 от 20 декабря 2022 г. | QXU24: СПРАВКА 015/00406/001 от 20 декабря 2022 г. | QYK24: СПРАВКА 015/00406/001 от 20 декабря 2022 г. | QZA24: СПРАВКА 015/00406/001 от 20 декабря 2022 г. | QZQ24: СПРАВКА 015/00406/001 от 20 декабря 2022 г. | RAG24: СПРАВКА 015/00406/001 от 20 декабря 2022 г. | RAW24: СПРАВКА 015/00406/001 от 20 декабря 2022 г. | RBM24: СПРАВКА 015/00406/001 от 20 декабря 2022 г. | RCC24: СПРАВКА 015/00406/001 от 20 декабря 2022 г. | RCS24: СПРАВКА 015/00406/001 от 20 декабря 2022 г. | RDI24: СПРАВКА 015/00406/001 от 20 декабря 2022 г. | RDY24: СПРАВКА 015/00406/001 от 20 декабря 2022 г. | REO24: СПРАВКА 015/00406/001 от 20 декабря 2022 г. | RFE24: СПРАВКА 015/00406/001 от 20 декабря 2022 г. | RFU24: СПРАВКА 015/00406/001 от 20 декабря 2022 г. | RGK24: СПРАВКА 015/00406/001 от 20 декабря 2022 г. | RHA24: СПРАВКА 015/00406/001 от 20 декабря 2022 г. | RHQ24: СПРАВКА 015/00406/001 от 20 декабря 2022 г. | RIG24: СПРАВКА 015/00406/001 от 20 декабря 2022 г. | RIW24: СПРАВКА 015/00406/001 от 20 декабря 2022 г. | RJM24: СПРАВКА 015/00406/001 от 20 декабря 2022 г. | RKC24: СПРАВКА 015/00406/001 от 20 декабря 2022 г. | RKS24: СПРАВКА 015/00406/001 от 20 декабря 2022 г. | RLI24: СПРАВКА 015/00406/001 от 20 декабря 2022 г. | RLY24: СПРАВКА 015/00406/001 от 20 декабря 2022 г. | RMO24: СПРАВКА 015/00406/001 от 20 декабря 2022 г. | RNE24: СПРАВКА 015/00406/001 от 20 декабря 2022 г. | RNU24: СПРАВКА 015/00406/001 от 20 декабря 2022 г. | ROK24: СПРАВКА 015/00406/001 от 20 декабря 2022 г. | RPA24: СПРАВКА 015/00406/001 от 20 декабря 2022 г. | RPQ24: СПРАВКА 015/00406/001 от 20 декабря 2022 г. | RQG24: СПРАВКА 015/00406/001 от 20 декабря 2022 г. | RQW24: СПРАВКА 015/00406/001 от 20 декабря 2022 г. | RRM24: СПРАВКА 015/00406/001 от 20 декабря 2022 г. | RSC24: СПРАВКА 015/00406/001 от 20 декабря 2022 г. | RSS24: СПРАВКА 015/00406/001 от 20 декабря 2022 г. | RTI24: СПРАВКА 015/00406/001 от 20 декабря 2022 г. | RTY24: СПРАВКА 015/00406/001 от 20 декабря 2022 г. | RUO24: СПРАВКА 015/00406/001 от 20 декабря 2022 г. | RVE24: СПРАВКА 015/00406/001 от 20 декабря 2022 г. | RVU24: СПРАВКА 015/00406/001 от 20 декабря 2022 г. | RWK24: СПРАВКА 015/00406/001 от 20 декабря 2022 г. | RXA24: СПРАВКА 015/00406/001 от 20 декабря 2022 г. | RXQ24: СПРАВКА 015/00406/001 от 20 декабря 2022 г. | RYG24: СПРАВКА 015/00406/001 от 20 декабря 2022 г. | RYW24: СПРАВКА 015/00406/001 от 20 декабря 2022 г. | RZM24: СПРАВКА 015/00406/001 от 20 декабря 2022 г. | SAC24: СПРАВКА 015/00406/001 от 20 декабря 2022 г. | SAS24: СПРАВКА 015/00406/001 от 20 декабря 2022 г. | SBI24: СПРАВКА 015/00406/001 от 20 декабря 2022 г. | SBY24: СПРАВКА 015/00406/001 от 20 декабря 2022 г. | SCO24: СПРАВКА 015/00406/001 от 20 декабря 2022 г. | SDE24: СПРАВКА 015/00406/001 от 20 декабря 2022 г. | SDU24: СПРАВКА 015/00406/001 от 20 декабря 2022 г. | SEK24: СПРАВКА 015/00406/001 от 20 декабря 2022 г. | SFA24: СПРАВКА 015/00406/001 от 20 декабря 2022 г. | SFQ24: СПРАВКА 015/00406/001 от 20 декабря 2022 г. | SGG24: СПРАВКА 015/00406/001 от 20 декабря 2022 г. | SGW24: СПРАВКА 015/00406/001 от 20 декабря 2022 г. | SHM24: СПРАВКА 015/00406/001 от 20 декабря 2022 г. | SIC24: СПРАВКА 015/00406/001 от 20 декабря 2022 г. | SIS24: СПРАВКА 015/00406/001 от 20 декабря 2022 г. | SJI24: СПРАВКА 015/00406/001 от 20 декабря 2022 г. | SJY24: СПРАВКА 015/00406/001 от 20 декабря 2022 г. | SKO24: СПРАВКА 015/00406/001 от 20 декабря 2022 г. | SLE24: СПРАВКА 015/00406/001 от 20 декабря 2022 г. | SLU24: СПРАВКА 015/00406/001 от 20 декабря 2022 г. | SMK24: СПРАВКА 015/00406/001 от 20 декабря 2022 г. | SNA24: СПРАВКА 015/00406/001 от 20 декабря 2022 г. | SNQ24: СПРАВКА 015/00406/001 от 20 декабря 2022 г. | SOG24: СПРАВКА 015/00406/001 от 20 декабря 2022 г. | SOW24: СПРАВКА 015/00406/001 от 20 декабря 2022 г. | SPM24: СПРАВКА 015/00406/001 от 20 декабря 2022 г. | SQC24: СПРАВКА 015/00406/001 от 20 декабря 2022 г. | SQS24: СПРАВКА 015/00406/001 от 20 декабря 2022 г. | SRI24: СПРАВКА 015/00406/001 от 20 декабря 2022 г. | SRY24: СПРАВКА 015/00406/001 от 20 декабря 2022 г. | SSO24: СПРАВКА 015/00406/001 от 20 декабря 2022 г. | STE24: СПРАВКА 015/00406/001 от 20 декабря 2022 г. | STU24: СПРАВКА 015/00406/001 от 20 декабря 2022 г. | SUK24: СПРАВКА 015/00406/001 от 20 декабря 2022 г. | SVA24: СПРАВКА 015/00406/001 от 20 декабря 2022 г. | SVQ24: СПРАВКА 015/00406/001 от 20 декабря 2022 г. | SWG24: СПРАВКА 015/00406/001 от 20 декабря 2022 г. | SWW24: СПРАВКА 015/00406/001 от 20 декабря 2022 г. | SXM24: СПРАВКА 015/00406/001 от 20 декабря 2022 г. | SYC24: СПРАВКА 015/00406/001 от 20 декабря 2022 г. | SYS24: СПРАВКА 015/00406/001 от 20 декабря 2022 г. | SZI24: СПРАВКА 015/00406/001 от 20 декабря 2022 г. | SZY24: СПРАВКА 015/00406/001 от 20 декабря 2022 г. | TAO24: СПРАВКА 015/00406/001 от 20 декабря 2022 г. | TBE24: СПРАВКА 015/00406/001 от 20 декабря 2022 г. | TBU24: СПРАВКА 015/00406/001 от 20 декабря 2022 г. | TCK24: СПРАВКА 015/00406/001 от 20 декабря 2022 г. | TDA24: СПРАВКА 015/00406/001 от 20 декабря 2022 г. | TDQ24: СПРАВКА 015/00406/001 от 20 декабря 2022 г. | TEG24: СПРАВКА 015/00406/001 от 20 декабря 2022 г. | TEW24: СПРАВКА 015/00406/001 от 20 декабря 2022 г. | TFM24: СПРАВКА 015/00406/001 от 20 декабря 2022 г. | TGC24: СПРАВКА 015/00406/001 от 20 декабря 2022 г. | TGS24: СПРАВКА 015/00406/001 от 20 декабря 2022 г. | THI24: СПРАВКА 015/00406/001 от 20 декабря 2022 г. | THY24: СПРАВКА 015/00406/001 от 20 декабря 2022 г. | TIO24: СПРАВКА 015/00406/001 от 20 декабря 2022 г. | TJE24: СПРАВКА 015/00406/001 от 20 декабря 2022 г. | TJU24: СПРАВКА 015/00406/001 от 20 декабря 2022 г. | TKK24: СПРАВКА 015/00406/001 от 20 декабря 2022 г. | TLA24: СПРАВКА 015/00406/001 от 20 декабря 2022 г. | TLQ24: СПРАВКА 015/00406/001 от 20 декабря 2022 г. | TMG24: СПРАВКА 015/00406/001 от 20 декабря 2022 г. | TMW24: СПРАВКА 015/00406/001 от 20 декабря 2022 г. | TNM24: СПРАВКА 015/00406/001 от 20 декабря 2022 г. | TOC24: СПРАВКА 015/00406/001 от 20 декабря 2022 г. | TOS24: СПРАВКА 015/00406/001 от 20 декабря 2022 г. | TPI24: СПРАВКА 015/00406/001 от 20 декабря 2022 г. | TPY24: СПРАВКА 015/00406/001 от 20 декабря 2022 г. | TQO24: СПРАВКА 015/00406/001 от 20 декабря 2022 г. | TRE24: СПРАВКА 015/00406/001 от 20 декабря 2022 г. | TRU24: СПРАВКА 015/00406/001 от 20 декабря 2022 г. | TSK24: СПРАВКА 015/00406/001 от 20 декабря 2022 г. | TTA24: СПРАВКА 015/00406/001 от 20 декабря 2022 г. | TTQ24: СПРАВКА 015/00406/001 от 20 декабря 2022 г. | TUG24: СПРАВКА 015/00406/001 от 20 декабря 2022 г. | TUW24: СПРАВКА 015/00406/001 от 20 декабря 2022 г. | TVM24: СПРАВКА 015/00406/001 от 20 декабря 2022 г. | TWC24: СПРАВКА 015/00406/001 от 20 декабря 2022 г. | TWS24: СПРАВКА 015/00406/001 от 20 декабря 2022 г. | TXI24: СПРАВКА 015/00406/001 от 20 декабря 2022 г. | TXY24: СПРАВКА 015/00406/001 от 20 декабря 2022 г. | TYO24: СПРАВКА 015/00406/001 от 20 декабря 2022 г. | TZE24: СПРАВКА 015/00406/001 от 20 декабря 2022 г. | TZU24: СПРАВКА 015/00406/001 от 20 декабря 2022 г. | UAK24: СПРАВКА 015/00406/001 от 20 декабря 2022 г. | UBA24: СПРАВКА 015/00406/001 от 20 декабря 2022 г. | UBQ24: СПРАВКА 015/00406/001 от 20 декабря 2022 г. | UCG24: СПРАВКА 015/00406/001 от 20 декабря 2022 г. | UCW24: СПРАВКА 015/00406/001 от 20 декабря 2022 г. | UDM24: СПРАВКА 015/00406/001 от 20 декабря 2022 г. | UEC24: СПРАВКА 015/00406/001 от 20 декабря 2022 г. | UES24: СПРАВКА 015/00406/001 от 20 декабря 2022 г. | UFI24: СПРАВКА 015/00406/001 от 20 декабря 2022 г. | UFY24: СПРАВКА 015/00406/001 от 20 декабря 2022 г. | UGO24: СПРАВКА 015/00406/001 от 20 декабря 2022 г. | UHE24: СПРАВКА 015/00406/001 от 20 декабря 2022 г. | UHU24: СПРАВКА 015/00406/001 от 20 декабря 2022 г. | UIK24: СПРАВКА 015/00406/001 от 20 декабря 2022 г. | UJA24: СПРАВКА 015/00406/001 от 20 декабря 2022 г. | UJQ24: СПРАВКА 015/00406/001 от 20 декабря 2022 г. | UKG24: СПРАВКА 015/00406/001 от 20 декабря 2022 г. | UKW24: СПРАВКА 015/00406/001 от 20 декабря 2022 г. | ULM24: СПРАВКА 015/00406/001 от 20 декабря 2022 г. | UMC24: СПРАВКА 015/00406/001 от 20 декабря 2022 г. | UMS24: СПРАВКА 015/00406/001 от 20 декабря 2022 г. | UNI24: СПРАВКА 015/00406/001 от 20 декабря 2022 г. | UNY24: СПРАВКА 015/00406/001 от 20 декабря 2022 г. | UOO24: СПРАВКА 015/00406/001 от 20 декабря 2022 г. | UPE24: СПРАВКА 015/00406/001 от 20 декабря 2022 г. | UPU24: СПРАВКА 015/00406/001 от 20 декабря 2022 г. | UQK24: СПРАВКА 015/00406/001 от 20 декабря 2022 г. | URA24: СПРАВКА 015/00406/001 от 20 декабря 2022 г. | URQ24: СПРАВКА 015/00406/001 от 20 декабря 2022 г. | USG24: СПРАВКА 015/00406/001 от 20 декабря 2022 г. | USW24: СПРАВКА 015/00406/001 от 20 декабря 2022 г. | UTM24: СПРАВКА 015/00406/001 от 20 декабря 2022 г. | UUC24: СПРАВКА 015/00406/001 от 20 декабря 2022 г. | UUS24: СПРАВКА 015/00406/001 от 20 декабря 2022 г. | UVI24: СПРАВКА 015/00406/001 от 20 декабря 2022 г. | UVY24: СПРАВКА 015/00406/001 от 20 декабря 2022 г. | UWO24: СПРАВКА 015/00406/001 от 20 декабря 2022 г. | UXE24: СПРАВКА 015/00406/001 от 20 декабря 2022 г. | UXU24: СПРАВКА 015/00406/001 от 20 декабря 2022 г. | UYK24: СПРАВКА 015/00406/001 от 20 декабря 2022 г. | UZA24: СПРАВКА 015/00406/001 от 20 декабря 2022 г. | UZQ24: СПРАВКА 015/00406/001 от 20 декабря 2022 г. | VAG24: СПРАВКА 015/00406/001 от 20 декабря 2022 г. | VAW24: СПРАВКА 015/00406/001 от 20 декабря 2022 г. | VBM24: СПРАВКА 015/00406/001 от 20 декабря 2022 г. | VCC24: СПРАВКА 015/00406/001 от 20 декабря 2022 г. | VCS24: СПРАВКА 015/00406/001 от 20 декабря 2022 г. | VDI24: СПРАВКА 015/00406/001 от 20 декабря 2022 г. | VDY24: СПРАВКА 015/00406/001 от 20 декабря 2022 г. | VEO24: СПРАВКА 015/00406/001 от 20 декабря 2022 г. | VFE24: СПРАВКА 015/00406/001 от 20 декабря 2022 г. | VFU24: СПРАВКА 015/00406/001 от 20 декабря 2022 г. | VGK24: СПРАВКА 015/00406/001 от 20 декабря 2022 г. | VHA24: СПРАВКА 015/00406/001 от 20 декабря 2022 г. | VHQ24: СПРАВКА 015/00406/001 от 20 декабря 2022 г. | VIG24: СПРАВКА 015/00406/001 от 20 декабря 2022 г. | VIW24: СПРАВКА 015/00406/001 от 20 декабря 2022 г. | VJM24: СПРАВКА 015/00406/001 от 20 декабря 2022 г. | VKC24: СПРАВКА 015/00406/001 от 20 декабря 2022 г. | VKS24: СПРАВКА 015/00406/001 от 20 декабря 2022 г. | VLI24: СПРАВКА 015/00406/001 от 20 декабря 2022 г. | VLY24: СПРАВКА 015/00406/001 от 20 декабря 2022 г. | VMO24: СПРАВКА 015/00406/001 от 20 декабря 2022 г. | VNE24: СПРАВКА 015/00406/001 от 20 декабря 2022 г. | VNU24: СПРАВКА 015/00406/001 от 20 декабря 2022 г. | VOK24: СПРАВКА 015/00406/001 от 20 декабря 2022 г. | VPA24: СПРАВКА 015/00406/001 от 20 декабря 2022 г. | VPQ24: СПРАВКА 015/00406/001 от 20 декабря 2022 г. | VQG24: СПРАВКА 015/00406/001 от 20 декабря 2022 г. | VQW24: СПРАВКА 015/00406/001 от 20 декабря 2022 г. | VRM24: СПРАВКА 015/00406/001 от 20 декабря 2022 г. | VSC24: СПРАВКА 015/00406/001 от 20 декабря 2022 г. | VSS24: СПРАВКА 015/00406/001 от 20 декабря 2022 г. | VTI24: СПРАВКА 015/00406/001 от 20 декабря 2022 г. | VTY24: СПРАВКА 015/00406/001 от 20 декабря 2022 г. | VUO24: СПРАВКА 015/00406/001 от 20 декабря 2022 г. | VVE24: СПРАВКА 015/00406/001 от 20 декабря 2022 г. | VVU24: СПРАВКА 015/00406/001 от 20 декабря 2022 г. | VWK24: СПРАВКА 015/00406/001 от 20 декабря 2022 г. | VXA24: СПРАВКА 015/00406/001 от 20 декабря 2022 г. | VXQ24: СПРАВКА 015/00406/001 от 20 декабря 2022 г. | VYG24: СПРАВКА 015/00406/001 от 20 декабря 2022 г. | VYW24: СПРАВКА 015/00406/001 от 20 декабря 2022 г. | VZM24: СПРАВКА 015/00406/001 от 20 декабря 2022 г. | WAC24: СПРАВКА 015/00406/001 от 20 декабря 2022 г. | WAS24: СПРАВКА 015/00406/001 от 20 декабря 2022 г. | WBI24: СПРАВКА 015/00406/001 от 20 декабря 2022 г. | WBY24: СПРАВКА 015/00406/001 от 20 декабря 2022 г. | WCO24: СПРАВКА 015/00406/001 от 20 декабря 2022 г. | WDE24: СПРАВКА 015/00406/001 от 20 декабря 2022 г. | WDU24: СПРАВКА 015/00406/001 от 20 декабря 2022 г. | WEK24: СПРАВКА 015/00406/001 от 20 декабря 2022 г. | WFA24: СПРАВКА 015/00406/001 от 20 декабря 2022 г. | WFQ24: СПРАВКА 015/00406/001 от 20 декабря 2022 г. | WGG24: СПРАВКА 015/00406/001 от 20 декабря 2022 г. | WGW24: СПРАВКА 015/00406/001 от 20 декабря 2022 г. | WHM24: СПРАВКА 015/00406/001 от 20 декабря 2022 г. | WIC24: СПРАВКА 015/00406/001 от 20 декабря 2022 г. | WIS24: СПРАВКА 015/00406/001 от 20 декабря 2022 г. | WJI24: СПРАВКА 015/00406/001 от 20 декабря 2022 г. | WJY24: СПРАВКА 015/00406/001 от 20 декабря 2022 г. | WKO24: СПРАВКА 015/00406/001 от 20 декабря 2022 г. | WLE24: СПРАВКА 015/00406/001 от 20 декабря 2022 г. | WLU24: СПРАВКА 015/00406/001 от 20 декабря 2022 г. | WMK24: СПРАВКА 015/00406/001 от 20 декабря 2022 г. | WNA24: СПРАВКА 015/00406/001 от 20 декабря 2022 г. | WNQ24: СПРАВКА 015/00406/001 от 20 декабря 2022 г. | WOG24: СПРАВКА 015/00406/001 от 20 декабря 2022 г. | WOW24: СПРАВКА 015/00406/001 от 20 декабря 2022 г. | WPM24: СПРАВКА 015/00406/001 от 20 декабря 2022 г. | WQC24: СПРАВКА 015/00406/001 от 20 декабря 2022 г. | WQS24: СПРАВКА 015/00406/001 от 20 декабря 2022 г. | WRI24: СПРАВКА 015/00406/001 от 20 декабря 2022 г. | WRY24: СПРАВКА 015/00406/001 от 20 декабря 2022 г. | WSO24: СПРАВКА 015/00406/001 от 20 декабря 2022 г. | WTE24: СПРАВКА 015/00406/001 от 20 декабря 2022 г. | WTU24: СПРАВКА 015/00406/001 от 20 декабря 2022 г. | WUK24: СПРАВКА 015/00406/001 от 20 декабря 2022 г. | WVA24: СПРАВКА 015/00406/001 от 20 декабря 2022 г. | WVQ24: СПРАВКА 015/00406/001 от 20 декабря 2022 г. | WWG24: СПРАВКА 015/00406/001 от 20 декабря 2022 г. | WWW24: СПРАВКА 015/00406/001 от 20 декабря 2022 г. | WXM24: СПРАВКА 015/00406/001 от 20 декабря 2022 г. | WYC24: СПРАВКА 015/00406/001 от 20 декабря 2022 г. | WYS24: СПРАВКА 015/00406/001 от 20 декабря 2022 г. | WZI24: СПРАВКА 015/00406/001 от 20 декабря 2022 г. | WZY24: СПРАВКА 015/00406/001 от 20 декабря 2022 г. | XAO24: СПРАВКА 015/00406/001 от 20 декабря 2022 г. | XBE24: СПРАВКА 015/00406/001 от 20 декабря 2022 г. | XBU24: СПРАВКА 015/00406/001 от 20 декабря 2022 г. | XCK24: СПРАВКА 015/00406/001 от 20 декабря 2022 г. | XDA24: СПРАВКА 015/00406/001 от 20 декабря 2022 г. | XDQ24: СПРАВКА 015/00406/001 от 20 декабря 2022 г. | XEG24: СПРАВКА 015/00406/001 от 20 декабря 2022 г.
O25: Форма по ОКУД | P25: 0501012
O26: Дата | P26: =H19 -> 22 января 2024 г.
B27: Муниципальное общеобразовательное учреждение Шуйская средняя общеобразовательная школа №1 | O27: по ОКПО | P27: 77446968
A28: Получатель бюджетных средств
A29: Распорядитель бюджетных средств | B29: Администрация Прионежского муниципального района
A30: Главный распорядитель бюджетных средств | B30: Администрация Прионежского муниципального района | O30: Глава по БК | P30: 015
A31: Наименование бюджета | B31: Бюджет Прионежского муниципального района | O31: по ОКТМО | P31: 86636470
A32: Единица измерения: | B32: руб. | O32: по ОКЕЙ | P32: 383
A33: Наименование показателя (детализация кода бюджетной классификации) | B33: РЗ | C33: ПР | D33: ЦСР | E33: Вид расхода | F33: Детализация | G33: Вид целевых средств | H33: Сумма на текущий год | K33: Сумма на первый год планового периода (руб) | N33: Сумма на второй год планового периода (руб.)
H34: 2024-01-18 | I34: ИЗМЕНЕНИЯ (+/-) | J34: ИТОГО | K34: =H34 -> 2024-01-18 | L34: ИЗМЕНЕНИЯ (+/-) | M34: ИТОГО | N34: =H34 -> 2024-01-18 | O34: ИЗМЕНЕНИЯ (+/-) | P34: ИТОГО
A35: 1 | B35: =SUM(A35+1) -> 2 | C35: 3 | D35: 4 | E35: 5 | F35: 6 | G35: 7 | H35: 8 | I35: 9 | J35: 10 | K35: 11 | L35: 12 | M35: 13 | N35: 14 | O35: 15 | P35: 16
A36: Средства местного бюджета (КЦ 1000)
A37: Заработная плата | B37: 07 | C37: 01 | D37: 0220170200 | E37: 111 | F37: 211000 | G37: 1000 | H37: 2,716,061.42 | J37: =H37+I37 -> 2,716,061.42 | K37: 2,716,061.42 | M37: =K37+L37 -> 2,716,061.42 | N37: 2,716,061.42 | P37: =N37+O37 -> 2,716,061.42
A38: Расходы по оплате проезда к месту отпуска и обратно отдельным категориям лиц (для лиц, работающих в районах Крайнего Севера и приравненных к ним местностях, и членов их семей) | B38: 07 | C38: 01 | D38: 0220170200 | E38: 112 | F38: 214000 | G38: 1000 | H38: 20,000.00 | J38: =H38+I38 -> 20,000.00 | K38: 20,000.00 | M38: =K38+L38 -> 20,000.00 | N38: 20,000.00 | P38: =N38+O38 -> 20,000.00
A39: Начисления на выплаты по оплате труда | B39: 07 | C39: 01 | D39: 0220170200 | E39: 119 | F39: 213000 | G39: 1000 | H39: 820,250.50 | J39: 820,250.50 | K39: 820,250.50 | M39: 820,250.50 | N39: 820,250.50 | P39: 820,250.50
A40: Услуги связи (телефон) | B40: 07 | C40: 01 | D40: 0220170200 | E40: 244 | F40: 221100 | G40: 1000 | H40: 32,769.60 | J40: 32,769.60 | K40: 34,721.88 | M40: 34,721.88 | N40: 36,785.06 | P40: 36,785.06
A41: Услуги связи (почта) | B41: 07 | C41: 01 | D41: 0220170200 | E41: 244 | F41: 221300 | G41: 1000 | H41: 12,000.00 | J41: 12,000.00 | K41: 12,792.00 | M41: 12,792.00 | N41: 13,636.27 | P41: 13,636.27
A42: Отопление, горячее водоснабжение и газоснабжение | B42: 07 | C42: 01 | D42: 0220170200 | E42: 247 | F42: 223100 | G42: 1000 | H42: 581,744.79 | J42: 581,744.79 | K42: 590,000.00 | M42: 590,000.00 | N42: 590,000.00 | P42: 590,000.00
A43: Электроэнергия | B43: 07 | C43: 01 | D43: 0220170200 | E43: 247 | F43: 223200 | G43: 1000 | H43: 1,782,695.91 | J43: 1,782,695.91 | K43: 1,800,000.00 | M43: 1,800,000.00 | N43: 1,972,936.91 | P43: 1,972,936.91
A44: Холодное водоснабжение | B44: 07 | C44: 01 | D44: 0220170200 | E44: 244 | F44: 223300 | G44: 1000 | H44: 148,808.90 | J44: 148,808.90 | K44: 149,000.00 | M44: 149,000.00 | N44: 195,004.79 | P44: 195,004.79
A45: Водоотведение | B45: 07 | C45: 01 | D45: 0220170200 | E45: 244 | F45: 223400 | G45: 1000 | H45: 155,193.20 | J45: 155,193.20 | K45: 160,000.00 | M45: 160,000.00 | N45: 305,051.13 | P45: 305,051.13
A46: Вывоз бытовых отходов | B46: 07 | C46: 01 | D46: 0220170200 | E46: 244 | F46: 223500 | G46: 1000 | H46: 72,359.15 | J46: 72,359.15 | K46: 91,926.69 | M46: 91,926.69 | N46: 94,707.35 | P46: 94,707.35
A47: Санитарная и противопожарная (дезинфекция, дезинсекция, дератизация, газация, огнезащитная) обработка помещений | B47: 07 | C47: 01 | D47: 0220170200 | E47: 244 | F47: 225600 | G47: 1000 | H47: 41,819.85 | J47: 41,819.85 | K47: 42,000.00 | M47: 42,000.00 | N47: 471,068.05 | P47: 471,068.05
A48: Содержание и обслуживание помещений | B48: 07 | C48: 01 | D48: 0220170200 | E48: 244 | F48: 225700 | G48: 1000 | H48: 260,071.43 | J48: 260,071.43 | K48: 232,462.14 | M48: 232,462.14 | N48: 240,266.89 | P48: 240,266.89
A49: Другие расходы | B49: 07 | C49: 01 | D49: 0220170200 | E49: 244 | F49: 225900 | G49: 1000 | H49: 50,000.00 | J49: 50,000.00 | K49: 50,000.00 | M49: 50,000.00 | N49: 50,000.00 | P49: 50,000.00
A50: Аттестация | B50: 07 | C50: 01 | D50: 0220170200 | E50: 244 | F50: 226200 | G50: 1000 | H50: 25,000.00 | J50: 25,000.00 | M50: 0.00 | P50: 0.00
A51: Ведомственная, вневедомственная, пожарная охрана | B51: 07 | C51: 01 | D51: 0220170200 | E51: 244 | F51: 226400 | G51: 1000 | H51: 103,685.75 | J51: 103,685.75 | K51: 110,529.01 | M51: 110,529.01 | N51: 117,823.93 | P51: 117,823.93
A52: Медицинский осмотр работников учрежждений, за исключением водителей транспортных средств | B52: 07 | C52: 01 | D52: 0220170200 | E52: 244 | F52: 226800 | G52: 1000 | H52: 218,889.22 | J52: 218,889.22 | K52: 277,636.10 | M52: 277,636.10 | N52: 289,019.18 | P52: 289,019.18
A53: Другие расходы | B53: 07 | C53: 01 | D53: 0220170200 | E53: 244 | F53: 226900 | G53: 1000 | H53: 50,000.00 | I53: -20,000.00 | J53: 30,000.00 | K53: 50,000.00 | M53: 50,000.00 | N53: 50,000.00 | P53: 50,000.00
A54: Приобретение предметов длительного пользования (оборудование, мебель,компьютерная техника и т.п.) стоимостью свыше 3000 рублей | B54: 07 | C54: 01 | D54: 0220170200 | E54: 244 | F54: 310100 | G54: 1000 | H54: 40,000.00 | J54: 40,000.00 | K54: 40,000.00 | M54: 40,000.00 | N54: 40,000.00 | P54: 40,000.00
A55: Другие расходы стоимостью до 3000,00 рублей | B55: 07 | C55: 01 | D55: 0220170200 | E55: 244 | F55: 310900 | G55: 1000 | H55: 30,000.00 | J55: 30,000.00 | K55: 30,000.00 | M55: 30,000.00 | N55: 30,000.00 | P55: 30,000.00
A56: Продукты питания | B56: 07 | C56: 01 | D56: 0220170200 | E56: 244 | F56: 342000 | G56: 1000 | H56: 900,000.00 | J56: 900,000.00 | K56: 900,000.00 | M56: 900,000.00 | N56: 900,000.00 | P56: 900,000.00
A57: Приобретение строительных материалов | B57: 07 | C57: 01 | D57: 0220170200 | E57: 244 | F57: 344000 | G57: 1000 | H57: 20,000.00 | J57: 20,000.00 | K57: 20,000.00 | M57: 20,000.00 | N57: 20,000.00 | P57: 20,000.00
A58: Увеличение стоимости прочих оборотных запасов (материалов) | B58: 07 | C58: 01 | D58: 0220170200 | E58: 244 | F58: 346000 | G58: 1000 | H58: 80,000.00 | J58: 80,000.00 | K58: 80,000.00 | M58: 80,000.00 | N58: 80,000.00 | P58: 80,000.00
A59: Налог на имущество | B59: 07 | C59: 01 | D59: 0220170200 | E59: 851 | F59: 291200 | G59: 1000 | H59: 1,270,049.00 | J59: 1,270,049.00 | K59: 1,270,049.00 | M59: 1,270,049.00 | N59: 1,270,049.00 | P59: 1,270,049.00
A60: Земельный налог | B60: 07 | C60: 01 | D60: 0220170200 | E60: 851 | F60: 291300 | G60: 1000 | H60: 16,817.00 | J60: 16,817.00 | K60: 16,817.00 | M60: 16,817.00 | N60: 16,817.00 | P60: 16,817.00
A61: Итого по КЦ 1000 | H61: =SUM(H37:H60) -> 9,448,215.72 | I61: =SUM(I37:I60) -> -20,000.00 | J61: 9,428,215.72 | K61: 9,514,245.74 | L61: 0.00 | M61: 9,514,245.74 | N61: 10,339,477.48 | O61: 0.00 | P61: 10,339,477.48
A62: Средства местного бюджета (КЦ 1000)
A63: Заработная плата | B63: 07 | C63: 02 | D63: 0220270210 | E63: 111 | F63: 211000 | G63: 1000 | H63: 3,557,030.47 | J63: =H63+I63 -> 3,557,030.47 | K63: 3,557,030.47 | M63: =K63+L63 -> 3,557,030.47 | N63: 3,557,030.47 | P63: =N63+O63 -> 3,557,030.47
A64: Расходы по оплате проезда к месту отпуска и обратно отдельным категориям лиц (для лиц, работающих в районах Крайнего Севера и приравненных к ним местностях, и членов их семей) | B64: 07 | C64: 02 | D64: 0220270210 | E64: 112 | F64: 214000 | G64: 1000 | H64: 20,000.00 | J64: =H64+I64 -> 20,000.00 | K64: 20,000.00 | M64: =K64+L64 -> 20,000.00 | N64: 20,000.00 | P64: =N64+O64 -> 20,000.00
A65: Начисления на выплаты по оплате труда | B65: 07 | C65: 02 | D65: 0220270210 | E65: 119 | F65: 213000 | G65: 1000 | H65: 1,074,223.20 | J65: 1,074,223.20 | K65: 1,074,223.20 | M65: 1,074,223.20 | N65: 1,074,223.20 | P65: 1,074,223.20
A66: Услуги связи (телефон) | B66: 07 | C66: 02 | D66: 0220270210 | E66: 244 | F66: 221100 | G66: 1000 | H66: 43,200.00 | J66: 43,200.00 | K66: 52,498.80 | M66: 52,498.80 | N66: 54,651.21 | P66: 54,651.21
A67: Услуги связи (почта) | B67: 07 | C67: 02 | D67: 0220270210 | E67: 244 | F67: 221300 | G67: 1000 | H67: 10,000.00 | J67: 10,000.00 | K67: 10,420.00 | M67: 10,420.00 | N67: 10,857.60 | P67: 10,857.60
A68: Отопление, горячее водоснабжение и газоснабжение | B68: 07 | C68: 02 | D68: 0220270210 | E68: 247 | F68: 223100 | G68: 1000 | H68: 3,220,180.98 | J68: 3,220,180.98 | K68: 3,220,000.00 | M68: 3,220,000.00 | N68: 3,541,852.90 | P68: 3,541,852.90
A69: Электроэнергия | B69: 07 | C69: 02 | D69: 0220270210 | E69: 247 | F69: 223200 | G69: 1000 | H69: 740,097.06 | J69: 740,097.06 | K69: 783,955.84 | M69: 783,955.84 | N69: 810,061.29 | P69: 810,061.29
A70: Холодное водоснабжение | B70: 07 | C70: 02 | D70: 0220270210 | E70: 244 | F70: 223300 | G70: 1000 | H70: 107,463.24 | J70: 107,463.24 | K70: 113,811.28 | M70: 113,811.28 | N70: 117,487.36 | P70: 117,487.36
A71: Водоотведение | B71: 07 | C71: 02 | D71: 0220270210 | E71: 244 | F71: 223400 | G71: 1000 | H71: 112,069.73 | J71: 112,069.73 | K71: 178,037.99 | M71: 178,037.99 | N71: 183,788.57 | P71: 183,788.57
A72: Вывоз бытовых отходов | B72: 07 | C72: 02 | D72: 0220270210 | E72: 244 | F72: 223500 | G72: 1000 | H72: 56,746.02 | J72: 56,746.02 | K72: 60,076.11 | M72: 60,076.11 | N72: 61,893.30 | P72: 61,893.30
A73: Санитарная и противопожарная (дезинфекция, дезинсекция, дератизация, газация, огнезащитная) обработка помещений | B73: 07 | C73: 02 | D73: 0220270210 | E73: 244 | F73: 225600 | G73: 1000 | H73: 22,000.00 | J73: 22,000.00 | K73: 15,990.00 | M73: 15,990.00 | N73: 17,045.34 | P73: 17,045.34
A74: Содержание, обслуживание помещений и сетей инженерно-технического обеспечения | B74: 07 | C74: 02 | D74: 0220270210 | E74: 244 | F74: 225700 | G74: 1000 | H74: 206,000.00 | J74: 206,000.00 | K74: 214,652.00 | M74: 214,652.00 | N74: 223,452.73 | P74: 223,452.73
A75: Другие расходы | B75: 07 | C75: 02 | D75: 0220270210 | E75: 244 | F75: 225900 | G75: 1000 | H75: 100,000.00 | J75: 100,000.00 | K75: 100,000.00 | M75: 100,000.00 | N75: 100,000.00 | P75: 100,000.00
A76: Аттестация | B76: 07 | C76: 02 | D76: 0220270210 | E76: 244 | F76: 226200 | G76: 1000 | H76: 0.00 | J76: 0.00 | M76: 0.00 | P76: 0.00
A77: Ведомственная, вневедомственная, пожарная охрана | B77: 07 | C77: 02 | D77: 0220270210 | E77: 244 | F77: 226400 | G77: 1000 | H77: 97,991.86 | J77: 97,991.86 | K77: 64,374.72 | M77: 64,374.72 | N77: 68,226.88 | P77: 68,226.88
A78: Медицинский осмотр водителей транспортных средств | B78: 07 | C78: 02 | D78: 0220270210 | E78: 244 | F78: 226500 | G78: 1000 | H78: 136,275.00 | J78: 136,275.00 | K78: 156,716.25 | M78: 156,716.25 | N78: 180,223.69 | P78: 180,223.69
A79: Мероприятия по переподготовке и повышению квалификации кадров | B79: 07 | C79: 05 | D79: 0220270210 | E79: 244 | F79: 226700 | G79: 1000 | H79: 0.00 | I79: 20,000.00 | J79: 20,000.00
A80: Медицинский осмотр работников учрежждений, за исключением водителей транспортных средств | B80: 07 | C80: 02 | D80: 0220270210 | E80: 244 | F80: 226800 | G80: 1000 | H80: 234,225.00 | J80: 234,225.00 | K80: 243,828.23 | M80: 243,828.23 | N80: 253,825.19 | P80: 253,825.19
A81: Другие расходы | B81: 07 | C81: 02 | D81: 0220270210 | E81: 244 | F81: 226900 | G81: 1000 | H81: 100,000.00 | J81: 100,000.00 | K81: 100,000.00 | M81: 100,000.00 | N81: 100,000.00 | P81: 100,000.00
A82: Обязательное страхование автогражданской ответственности | B82: 07 | C82: 02 | D82: 0220270210 | E82: 244 | F82: 227200 | G82: 1000 | H82: 12,000.00 | J82: 12,000.00 | K82: 12,000.00 | M82: 12,000.00 | N82: 12,000.00 | P82: 12,000.00
A83: Приобретение предметов длительного пользования (оборудование, мебель,компьютерная техника и т.п.) стоимостью свыше 3000 рублей | B83: 07 | C83: 02 | D83: 0220270210 | E83: 244 | F83: 310100 | G83: 1000 | H83: 40,000.00 | J83: 40,000.00 | K83: 40,000.00 | M83: 40,000.00 | N83: 40,000.00 | P83: 40,000.00
A84: Другие расходы стоимостью до 3000,00 рублей | B84: 07 | C84: 02 | D84: 0220270210 | E84: 244 | F84: 310900 | G84: 1000 | H84: 30,000.00 | J84: 30,000.00 | K84: 30,000.00 | M84: 30,000.00 | N84: 30,000.00 | P84: 30,000.00
A85: Приобретение строительных материалов | B85: 07 | C85: 02 | D85: 0220270210 | E85: 244 | F85: 344000 | G85: 1000 | H85: 20,000.00 | J85: 20,000.00 | K85: 20,000.00 | M85: 20,000.00 | N85: 20,000.00 | P85: 20,000.00
A86: Мягкий инвентарь | B86: 07 | C86: 02 | D86: 0220270210 | E86: 244 | F86: 345000 | G86: 1000 | H86: 10,000.00 | J86: 10,000.00 | K86: 10,000.00 | M86: 10,000.00 | N86: 10,000.00 | P86: 10,000.00
A87: Увеличение стоимости прочих оборотных запасов (материалов) | B87: 07 | C87: 02 | D87: 0220270210 | E87: 244 | F87: 346000 | G87: 1000 | H87: 80,000.00 | J87: 80,000.00 | K87: 80,000.00 | M87: 80,000.00 | N87: 80,000.00 | P87: 80,000.00
A88: Налог на имущество | B88: 07 | C88: 02 | D88: 0220270210 | E88: 851 | F88: 291200 | G88: 1000 | H88: 62,393.00 | J88: 62,393.00 | K88: 62,393.00 | M88: 62,393.00 | N88: 62,393.00 | P88: 62,393.00
A89: Земельный залог | B89: 07 | C89: 02 | D89: 0220270210 | E89: 851 | F89: 291300 | G89: 1000 | H89: 36,368.00 | J89: 36,368.00 | K89: 36,368.00 | M89: 36,368.00 | N89: 36,368.00 | P89: 36,368.00
A90: Транспотный налог | B90: 07 | C90: 02 | D90: 0220270210 | E90: 852 | F90: 291400 | G90: 1000 | H90: 60,590.00 | J90: 60,590.00 | K90: 60,590.00 | M90: 60,590.00 | N90: 60,590.00 | P90: 60,590.00
A91: Итого по КЦ 1000 | H91: =SUM(H63:H90) -> 10,188,853.56 | I91: =SUM(I63:I90) -> 20,000.00 | J91: 10,208,853.56 | K91: 10,316,965.89 | L91: 0.00 | M91: 10,316,965.89 | N91: 10,725,970.73 | O91: 0.00 | P91: 10,725,970.73
A92: Средства, полученные от оказания платных услуг, безвозмездных поступлений (КЦ 8000)
A93: Продукты питания | B93: 07 | C93: 01 | D93: 0220170200 | E93: 244 | F93: 342000 | G93: 8000 | H93: 4,500,000.00 | J93: =H93+I93 -> 4,500,000.00 | K93: 4,500,000.00 | M93: =K93+L93 -> 4,500,000.00 | N93: 4,500,000.00 | P93: =N93+O93 -> 4,500,000.00
A94: Итого по КЦ 8000 | H94: =SUM(H93) -> 4,500,000.00 | I94: =SUM(I93) -> 0.00 | J94: 4,500,000.00 | K94: 4,500,000.00 | L94: 0.00 | M94: 4,500,000.00 | N94: 4,500,000.00 | O94: 0.00 | P94: 4,500,000.00
A95: Субвенции на обеспечение гос.гарантий реализации прав на получение общедоступного и бесплатного дошкольного образования в муниципальных дошкольных образовательных организациях, общедоступного и бесплатного дошкольного, начального общего, основного общего, среднего общего образования в муниципальных общеобразовательных организациях, обеспечение дополнительного образования детей в муниципальных общеобразовательных организациях (КЦ 24219)
A97: Заработная плата | B97: 07 | C97: 01 | D97: 0220142190 | E97: 111 | F97: 211000 | G97: 24424219000219 | H97: 20,850,907.55 | J97: =H97+I97 -> 20,850,907.55 | K97: 0.00 | M97: =K97+L97 -> 0.00 | N97: 0.00 | P97: =N97+O97 -> 0.00
A98: Начисления на выплаты по оплате труда | B98: 07 | C98: 01 | D98: 0220142190 | E98: 119 | F98: 213000 | G98: 24424219000219 | H98: 6,296,974.08 | J98: 6,296,974.08 | K98: 0.00 | M98: 0.00 | N98: 0.00 | P98: 0.00
A99: Услуги связи (интернет) | B99: 07 | C99: 01 | D99: 0220142190 | E99: 244 | F99: 221200 | G99: 24424219000219 | H99: 44,000.00 | J99: 44,000.00 | K99: 0.00 | M99: 0.00 | N99: 0.00 | P99: 0.00
A100: Итого субвенция 0701 (КЦ 23424219000219) | H100: =SUM(H97:H99) -> 27,191,881.63 | I100: 0.00 | J100: 27,191,881.63 | K100: 0.00 | L100: 0.00 | M100: 0.00 | N100: 0.00 | O100: 0.00 | P100: 0.00
A101: Заработная плата | B101: 07 | C101: 02 | D101: 0220242190 | E101: 111 | F101: 211000 | G101: 24424219000219 | H101: 30,264,082.56 | J101: =H101+I101 -> 30,264,082.56 | K101: 0.00 | M101: =K101+L101 -> 0.00 | N101: 0.00 | P101: =N101+O101 -> 0.00
A102: Начисления на выплаты по оплате труда | B102: 07 | C102: 02 | D102: 0220242190 | E102: 119 | F102: 213000 | G102: 24424219000219 | H102: 9,139,752.93 | J102: 9,139,752.93 | K102: 0.00 | M102: 0.00 | N102: 0.00 | P102: 0.00
A103: Услуги связи (интернет) | B103: 07 | C103: 02 | D103: 0220242190 | E103: 244 | F103: 221200 | G103: 24424219000219 | H103: 40,000.00 | J103: 40,000.00 | K103: 0.00 | M103: 0.00 | N103: 0.00 | P103: 0.00
A104: Мероприятия по переподготовке и повышению квалификации кадров | B104: 07 | C104: 05 | D104: 0220242190 | E104: 244 | F104: 226700 | G104: 24424219000219 | H104: 35,000.00 | J104: 35,000.00 | K104: 0.00 | M104: 0.00 | N104: 0.00 | P104: 0.00
A105: Итого субвенция 0702 (КЦ 23424219000219) | H105: =SUM(H101:H104) -> 39,478,835.49 | I105: 0.00 | J105: 39,478,835.49 | K105: 0.00 | L105: 0.00 | M105: 0.00 | N105: 0.00 | O105: 0.00 | P105: 0.00
A106: Итого по КЦ 24424219000219 | H106: =H100+H105 -> 66,670,717.12 | I106: 0.00 | J106: 66,670,717.12 | K106: 0.00 | L106: 0.00 | M106: 0.00 | N106: 0.00 | O106: 0.00 | P106: 0.00
A107: Субсидии на проведение мероприятий по обеспечению деятельности советников директора по воспитанию и взаимодействию с детским общественными объединениями в образовательных организациях
A108: Заработная плата | B108: 07 | C108: 02 | D108: 022EВ51790 | E108: 111 | F108: 211000 | G108: 23-51790-00000-00000 | H108: 251,508.00 | J108: =H108+I108 -> 251,508.00 | K108: 0 | M108: =K108+L108 -> 0.00 | N108: 0 | P108: =N108+O108 -> 0.00
A109: Начисления на выплаты по оплате труда | B109: 07 | C109: 02 | D109: 022EВ51790 | E109: 119 | F109: 213000 | G109: 23-51790-00000-00000 | H109: 75,955.42 | J109: 75,955.42 | K109: 0.00 | M109: 0.00 | N109: 0.00 | P109: 0.00
A110: Итого по КЦ 23-51790-00000-00000 | H110: =SUM(H108:H109) -> 327,463.42 | I110: =SUM(I108:I109) -> 0.00 | J110: 327,463.42 | K110: 0.00 | L110: 0.00 | M110: 0.00 | N110: 0.00 | O110: 0.00 | P110: 0.00
A111: Топливо и ГСМ | B111: 07 | C111: 02 | D111: 0220243202 | E111: 244 | F111: 343000 | G111: 24434320000320 | H111: 540,800.00 | J111: 540,800.00 | K111: 0.00 | M111: 0.00 | N111: 0.00 | P111: 0.00
A112: Топливо и ГСМ | B112: 07 | C112: 02 | D112: 02202S3202 | E112: 244 | F112: 343000 | G112: 1000 | H112: 60,088.89 | J112: 60,088.89 | K112: 0.00 | M112: 0.00 | N112: 0.00 | P112: 0.00
A113: ИТОГО по КЦ 24434320000320 | H113: =SUM(H111:H112) -> 600,888.89 | I113: =SUM(I111:I112) -> 0.00 | J113: 600,888.89 | K113: 0.00 | L113: 0.00 | M113: 0.00 | N113: 0.00 | O113: 0.00 | P113: 0.00
A114: Субвенция на осуществление государственных полномочий РК по выплате компенсации платы, взимаемой с родителей (законных представителей) за присмотр и уход за детьми, осваивающими образовательные программы дошкольного образования в организациях, осуществляющих образовательную деятельности, за исключением государственных образовательных организаций РК.
A115: Пособия по социальной помощи населению в натуральной форме | B115: 10 | C115: 04 | D115: 0220142030 | E115: 323 | F115: 263000 | G115: 24424203000203 | H115: 0.00 | I115: 1,200,000.00 | J115: =H115+I115 -> 1,200,000.00 | K115: 0.00 | M115: 0.00 | N115: 0.00 | P115: 0.00
A116: Итого по КЦ 24424203000203 | H116: =SUM(H115) -> 0.00 | I116: =SUM(I115) -> 1,200,000.00 | J116: 1,200,000.00 | K116: 0.00 | L116: 0.00 | M116: 0.00 | N116: 0.00 | O116: 0.00 | P116: 0.00
A117: Субсидия на реализацию мероприятий государственной программы РК "Совершенствование социальной защиты граждан" в целях организации адресной социальной помощи семьям, имеющим детей
A118: Пособия по социальной помощи населению в натуральной форме | B118: 10 | C118: 03 | D118: 0320243210 | E118: 323 | F118: 263000 | G118: 24434321000316 | H118: 0.00 | I118: 700,000.00 | J118: =H118+I118 -> 700,000.00 | K118: 0 | M118: 0 | N118: 0 | P118: 0
A119: Пособия по социальной помощи населению в натуральной форме | B119: 10 | C119: 03 | D119: 03202S3210 | E119: 323 | F119: 263000 | G119: 1000 | H119: 0.00 | I119: 300,000.00 | J119: 300,000.00 | K119: 0 | M119: 0 | N119: 0 | P119: 0
A120: ИТОГО по КЦ 24434321000316, 1000 | H120: =SUM(H118:H119) -> 0.00 | I120: =SUM(I118:I119) -> 1,000,000.00 | J120: 1,000,000.00 | K120: 0.00 | L120: 0.00 | M120: 0.00 | N120: 0.00 | O120: 0.00 | P120: 0.00
A121: Всего | H121: =H61+H91+H94+H106+H110+H113+H116+H120 -> 91,736,138.71 | I121: =I61+I91+I94+I106+I110+I113+I116+I120 -> 2,200,000.00 | J121: 93,936,138.71 | K121: 24,331,211.63 | L121: 0.00 | M121: 24,331,211.63 | N121: 25,565,448.21 | O121: 0.00 | P121: 25,565,448.21
A123: Директор | E123: О.В. Высоцкая
A124: (уполномоченное лицо) | B124: (подпись) | E124: (расшифровка подписи)
A126: Гл.бухгалтер МУ "ЦБ № 1" | F126: И.В. Ананьева
A127: (уполномоченное лицо) | B127: (подпись) | F127: (расшифровка подписи)
A129: Ведущий экономист ПЭО | F129: И.В. Пружинина
A130: (исполнитель) | B130: (подпись) | F130: (расшифровка подписи)

Sheet 24.01
N1: Приложение №2
N2: к Порядку составления, утверждения
N3: и ведения бюджетных смет Администрации
N4: Прионежского муниципального района
N5: и казенных учреждений, находящихся
N6: в ведении Администрации Прионежского
N7: муниципального района
N8: от 30 декабря 2022 № 1390
F9: УТВЕРЖДАЮ
F10: Глава Администрации Прионежского муниципального района
F11: (наименование должности лица, согласующего бюджетную смету)
F13: Администрация Прионежского муниципального района
F14: (наименование главного распорядителя (распорядителя) бюджетных средств; учреждения)
K16: Г.Н. Шемет
F17: (подпись) (расшифровка подписи)
H19: 24 января 2024 г.
B21: Изменения к БЮДЖЕТНОЙ СМЕТЕ НА 2024 ФИНАНСОВЫЙ ГОД И ПЛАНОВЫЙ ПЕРИОД 2025 и 2026 ГОДОВ
